Workbook

Sheet Cover
C2: Powercor
C3: Revised proposal 2026-31
C5: Risk based HV underground cables
C6: Model number: | D6: 3.4.02
C8: 2025-12-01
A40: =_xlfn.SHEETS() -> 17
A41: 2025-11-13

Sheet Summary
A1: =bus -> Powercor
A2: =proj -> HV cable replacement
A3: SUMMARY
A5: RESULTS
G7: PV of costs | H7: PV of benefits | I7: NPV
C8: Option | G8: =output_dollars -> 2026-06-30 | H8: =output_dollars -> 2026-06-30 | I8: =output_dollars -> 2026-06-30
C9: =options -> Option 1 (base case) | D9: =INDEX(Assumptions!$E$14:$E$18, MATCH(C9, Assumptions!$C$14:$C$18,0)) -> No change to existing practices | G9: =IF(Data!$C9, "", INDEX(Consol!$F$15:$F$82, MATCH($C9&G$7, Consol!$D$15:$D$82,0))/mill_conv) -> 0 | H9: =IF(Data!$C9, "", INDEX(Consol!$F$15:$F$82, MATCH($C9&H$7, Consol!$D$15:$D$82,0))/mill_conv) -> 0 | I9: =IF(Data!$C9, "", INDEX(Consol!$F$15:$F$82, MATCH($C9&I$7, Consol!$D$15:$D$82,0))/mill_conv) -> 0
C10: Option 2 | D10: =INDEX(Assumptions!$E$14:$E$18, MATCH(C10, Assumptions!$C$14:$C$18,0)) -> Replace highest 5 delta risk cable sections | G10: =IF(Data!$C10, "", INDEX(Consol!$F$15:$F$82, MATCH($C10&G$7, Consol!$D$15:$D$82,0))/mill_conv) -> -3.947480903 | H10: =IF(Data!$C10, "", INDEX(Consol!$F$15:$F$82, MATCH($C10&H$7, Consol!$D$15:$D$82,0))/mill_conv) -> 9.049270316 | I10: =IF(Data!$C10, "", INDEX(Consol!$F$15:$F$82, MATCH($C10&I$7, Consol!$D$15:$D$82,0))/mill_conv) -> 5.101789413
C11: Option 3 | D11: =INDEX(Assumptions!$E$14:$E$18, MATCH(C11, Assumptions!$C$14:$C$18,0)) -> Replace highest 10 delta risk cable sections | G11: =IF(Data!$C11, "", INDEX(Consol!$F$15:$F$82, MATCH($C11&G$7, Consol!$D$15:$D$82,0))/mill_conv) -> -7.42982566 | H11: =IF(Data!$C11, "", INDEX(Consol!$F$15:$F$82, MATCH($C11&H$7, Consol!$D$15:$D$82,0))/mill_conv) -> 15.67572044 | I11: =IF(Data!$C11, "", INDEX(Consol!$F$15:$F$82, MATCH($C11&I$7, Consol!$D$15:$D$82,0))/mill_conv) -> 8.245894779
C12: Option 4 | D12: =INDEX(Assumptions!$E$14:$E$18, MATCH(C12, Assumptions!$C$14:$C$18,0)) -> Monitor highest delta risk cable sections and replace those with high partial discharge | G12: =IF(Data!$C12, "", INDEX(Consol!$F$15:$F$82, MATCH($C12&G$7, Consol!$D$15:$D$82,0))/mill_conv) -> -7.1677591 | H12: =IF(Data!$C12, "", INDEX(Consol!$F$15:$F$82, MATCH($C12&H$7, Consol!$D$15:$D$82,0))/mill_conv) -> 10.71325288 | I12: =IF(Data!$C12, "", INDEX(Consol!$F$15:$F$82, MATCH($C12&I$7, Consol!$D$15:$D$82,0))/mill_conv) -> 3.545493779
C13: Option 5 | D13: =INDEX(Assumptions!$E$14:$E$18, MATCH(C13, Assumptions!$C$14:$C$18,0)) -> Replace highest 5 delta risk cable sections and monitor further 10 | G13: =IF(Data!$C13, "", INDEX(Consol!$F$15:$F$82, MATCH($C13&G$7, Consol!$D$15:$D$82,0))/mill_conv) -> -5.979994545 | H13: =IF(Data!$C13, "", INDEX(Consol!$F$15:$F$82, MATCH($C13&H$7, Consol!$D$15:$D$82,0))/mill_conv) -> 12.0288258 | I13: =IF(Data!$C13, "", INDEX(Consol!$F$15:$F$82, MATCH($C13&I$7, Consol!$D$15:$D$82,0))/mill_conv) -> 6.04883126
G16: NPV
C17: Preferred option: | G17: =output_dollars -> 2026-06-30
C18: =INDEX($C$9:$C$13,MATCH(G18, $I$9:$I$13,0)) -> Option 3 | D18: =INDEX($D$9:$D$13,MATCH(G18, $I$9:$I$13,0)) -> Replace highest 10 delta risk cable sections | G18: =_xlfn.MAXIFS(I9:I13, IF(compliance, Data!$F$9:$F$13, Data!$C$9:$C$13),FALSE) -> 8.245894779
A23: PREFERRED OPTION
C25: Preferred Option
C26: =C18 -> Option 3
C29: Expenditure forecast | D29: =output_dollars -> 2026-06-30 | F29: =Assumptions!K89 -> 2026-27 | G29: =Assumptions!L89 -> 2027-28 | H29: =Assumptions!M89 -> 2028-29 | I29: =Assumptions!N89 -> 2029-30 | J29: =Assumptions!O89 -> 2030-31 | L29: Total
C30: Capital expenditure | F30: =-INDEX(Consol!I$15:I$82,MATCH($C$26&$C30,Consol!$D$15:$D$82,0))/mill_conv -> 3.18451234 | G30: =-INDEX(Consol!J$15:J$82,MATCH($C$26&$C30,Consol!$D$15:$D$82,0))/mill_conv -> 3.18451234 | H30: =-INDEX(Consol!K$15:K$82,MATCH($C$26&$C30,Consol!$D$15:$D$82,0))/mill_conv -> 3.18451234 | I30: =-INDEX(Consol!L$15:L$82,MATCH($C$26&$C30,Consol!$D$15:$D$82,0))/mill_conv -> 3.18451234 | J30: =-INDEX(Consol!M$15:M$82,MATCH($C$26&$C30,Consol!$D$15:$D$82,0))/mill_conv -> 3.18451234 | L30: =SUM(F30:J30) -> 15.9225617
C31: Less adjustment for overlap with faults/corrective program | F31: =-Overlap_adjustment!H23/10^6 -> 0 | G31: =-Overlap_adjustment!I23/10^6 -> -0.001342787579 | H31: =-Overlap_adjustment!J23/10^6 -> -0.004728320148 | I31: =-Overlap_adjustment!K23/10^6 -> -0.0111218905 | J31: =-Overlap_adjustment!L23/10^6 -> -0.02184811797 | L31: =SUM(F31:J31) -> -0.0390411162
C32: Total capital expenditure | F32: =SUM(F30:F31) -> 3.18451234 | G32: =SUM(G30:G31) -> 3.183169552 | H32: =SUM(H30:H31) -> 3.17978402 | I32: =SUM(I30:I31) -> 3.173390449 | J32: =SUM(J30:J31) -> 3.162664222 | L32: =SUM(F32:J32) -> 15.88352058
A35: CHART
C37: Preferred option capex compared with risk ($M, 2026)
A63: SENSITIVITIES
C66: Sensitivity | D66: =output_dollars -> 2026-06-30 | F66: =Sensitivity_calcs!C89 -> Option 1 (base case) | G66: =Sensitivity_calcs!D89 -> Option 2 | H66: =Sensitivity_calcs!E89 -> Option 3 | I66: =Sensitivity_calcs!F89 -> Option 4 | J66: =Sensitivity_calcs!G89 -> Option 5 | L66: Preferred option
C67: =Sensitivity_calcs!B90 -> None | F67: =Sensitivity_calcs!C90 -> 0 | G67: =Sensitivity_calcs!D90 -> 5.101789413 | H67: =Sensitivity_calcs!E90 -> 8.245894779 | I67: =Sensitivity_calcs!F90 -> 3.545493779 | J67: =Sensitivity_calcs!G90 -> 6.04883126 | L67: =Sensitivity_calcs!K90 -> Option 3
C68: =Sensitivity_calcs!B91 -> Capex 10% higher | F68: =Sensitivity_calcs!C91 -> 0 | G68: =Sensitivity_calcs!D91 -> 4.707041323 | H68: =Sensitivity_calcs!E91 -> 7.502912213 | I68: =Sensitivity_calcs!F91 -> 2.828717869 | J68: =Sensitivity_calcs!G91 -> 5.450831805 | L68: =Sensitivity_calcs!K91 -> Option 3
C69: =Sensitivity_calcs!B92 -> Capex 10% lower | F69: =Sensitivity_calcs!C92 -> 0 | G69: =Sensitivity_calcs!D92 -> 5.496537504 | H69: =Sensitivity_calcs!E92 -> 8.988877345 | I69: =Sensitivity_calcs!F92 -> 4.262269689 | J69: =Sensitivity_calcs!G92 -> 6.646830714 | L69: =Sensitivity_calcs!K92 -> Option 3
C70: =Sensitivity_calcs!B93 -> Total benefits 10% higher | F70: =Sensitivity_calcs!C93 -> 0 | G70: =Sensitivity_calcs!D93 -> 6.006716445 | H70: =Sensitivity_calcs!E93 -> 9.813466823 | I70: =Sensitivity_calcs!F93 -> 4.616819067 | J70: =Sensitivity_calcs!G93 -> 7.25171384 | L70: =Sensitivity_calcs!K93 -> Option 3
C71: =Sensitivity_calcs!B94 -> Total benefits 10% lower | F71: =Sensitivity_calcs!C94 -> 0 | G71: =Sensitivity_calcs!D94 -> 4.196862382 | H71: =Sensitivity_calcs!E94 -> 6.678322735 | I71: =Sensitivity_calcs!F94 -> 2.474168491 | J71: =Sensitivity_calcs!G94 -> 4.845948679 | L71: =Sensitivity_calcs!K94 -> Option 3
C72: =Sensitivity_calcs!B95 -> Capex 10% higher & total benefits 10% lower | F72: =Sensitivity_calcs!C95 -> 0 | G72: =Sensitivity_calcs!D95 -> 3.802114292 | H72: =Sensitivity_calcs!E95 -> 5.935340169 | I72: =Sensitivity_calcs!F95 -> 1.757392581 | J72: =Sensitivity_calcs!G95 -> 4.247949225 | L72: =Sensitivity_calcs!K95 -> Option 3
C73: =Sensitivity_calcs!B96 -> 0 | F73: =Sensitivity_calcs!C96 ->  | G73: =Sensitivity_calcs!D96 ->  | H73: =Sensitivity_calcs!E96 ->  | I73: =Sensitivity_calcs!F96 ->  | J73: =Sensitivity_calcs!G96 ->  | L73: =Sensitivity_calcs!K96 -> 
C74: =Sensitivity_calcs!B97 -> 0 | F74: =Sensitivity_calcs!C97 ->  | G74: =Sensitivity_calcs!D97 ->  | H74: =Sensitivity_calcs!E97 ->  | I74: =Sensitivity_calcs!F97 ->  | J74: =Sensitivity_calcs!G97 ->  | K74: =IF(C74=0,0, INDEX($F$66:$J$66, MATCH(MAX($F74:$I74),$F74:$I74,0))) -> 0 | L74: =Sensitivity_calcs!K97 -> 
D75: =Sensitivity_calcs!B98 -> 0 | F75: =Sensitivity_calcs!C98 ->  | G75: =Sensitivity_calcs!D98 ->  | H75: =Sensitivity_calcs!E98 ->  | I75: =Sensitivity_calcs!F98 ->  | J75: =Sensitivity_calcs!G98 ->  | L75: =Sensitivity_calcs!K98 -> 
D76: =Sensitivity_calcs!B99 -> 0

Sheet Assumptions
A1: =bus -> Powercor
A2: =proj -> HV cable replacement
A4: Project
C6: Business: | E6: Powercor
C8: Descripton: | E8: HV cable replacement
C10: Date of cost inputs: | E10: December | G10: 2023
C13: Option | E13: Description
C14: =options -> Option 1 (base case) | E14: No change to existing practices
C15: Option 2 | E15: Replace highest 5 delta risk cable sections
C16: Option 3 | E16: Replace highest 10 delta risk cable sections
C17: Option 4 | E17: Monitor highest delta risk cable sections and replace those with high partial discharge
C18: Option 5 | E18: Replace highest 5 delta risk cable sections and monitor further 10
C20: Compliance project | E20: No
C22: Expenditure starts | E22: 2026-27 | F22: [start]
A25: Timing & WACC
C27: Input dollars | G27: =EOMONTH(DATE(Assumptions!$G$10,INDEX(Data!$K$107:$K$108, MATCH(Assumptions!$E$10, Data!$J$107:$J$108,0)), 1),0) -> 2023-12-31 | H27: [input_dollars]
C28: Pre-tax real WACC | G28: 0.035 | H28: [real_disc]
C29: VCR date | G29: 2024-12-31 | H29: [vcr_date]
C31: Analysis period (years) | G31: 20 | H31: [years]\
C33: Output dollars | G33: 2026-06-30 | H33: [output_dollars]
C34: Other benefits date | G34: 2024-12-31 | H34: [custval_date]
C35: Value of CO2 reductions input date | G35: 2023-06-30
A39: VCR
C41: Enter ZSS code >> | D41: eg. AR | E41: Network average | G41: Network average | H41: 36774.19741 | I41: 2024 VCR ($/MWh)
A45: Risks
B48: SAFETY
C50: Value of statistical life | G50: 5400000 | H50: 2023-06-30
C52: Value of injury | G52: 0 | H52: =input_dollars -> 2023-12-31
C54: =Data!A83 -> Disproportionate factors applied to various bushfire and other risk valuations
C55: =Data!B85 -> Harm to property from network | G55: =Data!F85 -> 1
C56: =Data!B86 -> Harm to property from bushfire | G56: =Data!F86 -> 1
C57: =Data!B87 -> Harm to environment | G57: =Data!F87 -> 1
C58: =Data!B88 -> Safety - Public trespass | G58: =Data!F88 -> 1
C59: =Data!B89 -> Safety - Single fatality or serious injury ^ | G59: =Data!F89 -> 3
C60: =Data!B90 -> Safety from bushfire in HBRA | G60: =Data!F90 -> 3
C61: =Data!B91 -> Safety - Multiple fatality or serious injury ^ | G61: =Data!F91 -> 6
C62: =Data!B92 -> Safety from bushfire (REFCL declared areas) | G62: =Data!F92 -> 6
C63: =Data!B93 -> Safety from bushfire (electric line construction areas) | G63: =Data!F93 -> 10
C66: ^ Public or employee
C69: Incident type | G69: Value | H69: Probability | I69: DF selected | J69: Description/comment
C70: Safety (fatality) | G70: =G50*INDEX(hy_escalation, MATCH(input_dollars,hy_dates,0))/INDEX(hy_escalation, MATCH(H50,hy_dates,0)) -> 5607473.52 | H70: 0 | I70: 0 | J70: 0
C71: Safety (injury) | G71: =G52*INDEX(hy_escalation, MATCH(input_dollars,hy_dates,0))/INDEX(hy_escalation, MATCH(H52,hy_dates,0)) -> 0 | H71: 0 | I71: 0 | J71: 0
B77: UNPLANNED REPLACEMENT/REPAIR
C78: Major failure (replace) | G78: 0 | H78: =input_dollars -> 2023-12-31
C79: Minor failure (repair) | G79: 0 | H79: =input_dollars -> 2023-12-31
C81: Premium for failure | G81: 0.2
A87: Other benefits
B89: ENVIRONMENTAL | K89: 2026-27 | L89: 2027-28 | M89: 2028-29 | N89: 2029-30 | O89: 2030-31 | P89: 2031-32
C90: Value of CO2 reductions | H90: =G35 -> 2023-06-30 | I90: $/kWh | K90: 0.0247304868 | L90: 0.02234074009 | M90: 0.02019632912 | N90: 0.01806294208 | O90: 0.01591339762 | P90: 0.01371506943
B93: CUSTOMER VALUE | G93: Value
C94: =Data!B60 -> Reliability in worst-served areas | G94: 151432.8174 | H94: =custval_date -> 2024-12-31 | I94: per MWh
C95: =Data!B61 -> Network resilience | G95: 24590 | H95: 2024-12-31 | I95: per MWh
C96: =Data!B62 -> Enabling solar exports | G96: 88.35771951 | H96: 2024-12-31 | I96: per MWh
C97: =Data!B63 -> Aesthetics | G97: 0 | H97: 2024-12-31 | I97: per customer
C98: =Data!B64 -> Customer value of time - residential | G98: 0.3518133654 | H98: 2024-12-31 | I98: per customer minute
C99: =Data!B65 -> Customer value of time - business | G99: 0.3518133654 | H99: 2024-12-31 | I99: per customer minute
C100: =Data!B66 -> Communication | G100: 0 | H100: 2024-12-31 | I100: per customer
C101: =Data!B67 -> Information accessibility | G101: 0 | H101: 2024-12-31 | I101: per customer
A106: Sensitivities
G110: Capex | H110: Total benefits
B111: 1 | C111: =IF(G111=0, "", G$110&" "&ABS($G111)*100&"%"&IF($G111>0, " higher", " lower"))&IF(AND(G111<>0, H111<>0), " & ", "")&IF(H111=0, "", H$110&" "&ABS($H111)*100&"%"&IF($H111>0, " higher", " lower")) -> Capex 10% higher | G111: 0.1 | H111: 0
B112: 2 | C112: =IF(G112=0, "", G$110&" "&ABS($G112)*100&"%"&IF($G112>0, " higher", " lower"))&IF(AND(G112<>0, H112<>0), " & ", "")&IF(H112=0, "", H$110&" "&ABS($H112)*100&"%"&IF($H112>0, " higher", " lower")) -> Capex 10% lower | G112: -0.1 | H112: 0
B113: 3 | C113: =IF(G113=0, "", G$110&" "&ABS($G113)*100&"%"&IF($G113>0, " higher", " lower"))&IF(AND(G113<>0, H113<>0), " & ", "")&IF(H113=0, "", H$110&" "&ABS($H113)*100&"%"&IF($H113>0, " higher", " lower")) -> Total benefits 10% higher | G113: 0 | H113: 0.1
B114: 4 | C114: =IF(G114=0, "", G$110&" "&ABS($G114)*100&"%"&IF($G114>0, " higher", " lower"))&IF(AND(G114<>0, H114<>0), " & ", "")&IF(H114=0, "", H$110&" "&ABS($H114)*100&"%"&IF($H114>0, " higher", " lower")) -> Total benefits 10% lower | G114: 0 | H114: -0.1
B115: 5 | C115: =IF(G115=0, "", G$110&" "&ABS($G115)*100&"%"&IF($G115>0, " higher", " lower"))&IF(AND(G115<>0, H115<>0), " & ", "")&IF(H115=0, "", LOWER(H$110)&" "&ABS($H115)*100&"%"&IF($H115>0, " higher", " lower")) -> Capex 10% higher & total benefits 10% lower | G115: 0.1 | H115: -0.1

Sheet Option1 (base case)
A1: =bus -> Powercor
A2: =proj -> HV cable replacement
A3: OPTION 1 (base case)
A6: Count | H6: 0 | I6: =H6+1 -> 1 | J6: 2 | K6: 3 | L6: 4 | M6: 5 | N6: 6 | O6: 7 | P6: 8 | Q6: 9 | R6: 10 | S6: 11 | T6: 12 | U6: 13 | V6: 14 | W6: 15 | X6: 16 | Y6: 17 | Z6: 18 | AA6: 19 | AB6: 20 | AC6: 21 | AD6: 22 | AE6: 23 | AF6: 24 | AG6: 25
A7: Value of CO2 reductions | G7: $/MWh | I7: =IF(ISBLANK(Assumptions!K90), H7,Assumptions!K90*thous_conv) -> 24.7304868 | J7: =IF(ISBLANK(Assumptions!L90), I7,Assumptions!L90*thous_conv) -> 22.34074009 | K7: =IF(ISBLANK(Assumptions!M90), J7,Assumptions!M90*thous_conv) -> 20.19632912 | L7: =IF(ISBLANK(Assumptions!N90), K7,Assumptions!N90*thous_conv) -> 18.06294208 | M7: =IF(ISBLANK(Assumptions!O90), L7,Assumptions!O90*thous_conv) -> 15.91339762 | N7: =IF(ISBLANK(Assumptions!P90), M7,Assumptions!P90*thous_conv) -> 13.71506943 | O7: =IF(ISBLANK(Assumptions!Q90), N7,Assumptions!Q90*thous_conv) -> 13.71506943 | P7: =IF(ISBLANK(Assumptions!R90), O7,Assumptions!R90*thous_conv) -> 13.71506943 | Q7: =IF(ISBLANK(Assumptions!S90), P7,Assumptions!S90*thous_conv) -> 13.71506943 | R7: =IF(ISBLANK(Assumptions!T90), Q7,Assumptions!T90*thous_conv) -> 13.71506943 | S7: =IF(ISBLANK(Assumptions!U90), R7,Assumptions!U90*thous_conv) -> 13.71506943 | T7: =IF(ISBLANK(Assumptions!V90), S7,Assumptions!V90*thous_conv) -> 13.71506943 | U7: =IF(ISBLANK(Assumptions!W90), T7,Assumptions!W90*thous_conv) -> 13.71506943 | V7: =IF(ISBLANK(Assumptions!X90), U7,Assumptions!X90*thous_conv) -> 13.71506943 | W7: =IF(ISBLANK(Assumptions!Y90), V7,Assumptions!Y90*thous_conv) -> 13.71506943 | X7: =IF(ISBLANK(Assumptions!Z90), W7,Assumptions!Z90*thous_conv) -> 13.71506943 | Y7: =IF(ISBLANK(Assumptions!AA90), X7,Assumptions!AA90*thous_conv) -> 13.71506943 | Z7: =IF(ISBLANK(Assumptions!AB90), Y7,Assumptions!AB90*thous_conv) -> 13.71506943 | AA7: =IF(ISBLANK(Assumptions!AC90), Z7,Assumptions!AC90*thous_conv) -> 13.71506943 | AB7: =IF(ISBLANK(Assumptions!AD90), AA7,Assumptions!AD90*thous_conv) -> 13.71506943 | AC7: =IF(ISBLANK(Assumptions!AE90), AB7,Assumptions!AE90*thous_conv) -> 13.71506943 | AD7: =IF(ISBLANK(Assumptions!AF90), AC7,Assumptions!AF90*thous_conv) -> 13.71506943 | AE7: =IF(ISBLANK(Assumptions!AG90), AD7,Assumptions!AG90*thous_conv) -> 13.71506943 | AF7: =IF(ISBLANK(Assumptions!AH90), AE7,Assumptions!AH90*thous_conv) -> 13.71506943 | AG7: =IF(ISBLANK(Assumptions!AI90), AF7,Assumptions!AI90*thous_conv) -> 13.71506943
G9: Units | H9: =DATE(LEFT(I9,4), 6,30) -> 2026-06-30 | I9: =start -> 2026-27 | J9: =LEFT(I9,4)+1&"-"&RIGHT(I9,2)+1 -> 2027-28 | K9: 2028-29 | L9: 2029-30 | M9: 2030-31 | N9: 2031-32 | O9: 2032-33 | P9: 2033-34 | Q9: 2034-35 | R9: 2035-36 | S9: 2036-37 | T9: 2037-38 | U9: 2038-39 | V9: 2039-40 | W9: 2040-41 | X9: 2041-42 | Y9: 2042-43 | Z9: 2043-44 | AA9: 2044-45 | AB9: 2045-46 | AC9: 2046-47 | AD9: 2047-48 | AE9: 2048-49 | AF9: 2049-50 | AG9: 2050-51
A11: INVESTMENT & OPERATING COST
C13: Capex | E13: Asset life (yrs)
C14: < Enter description > | E14: 0 | G14: =input_dollars -> 2023-12-31 | I14: 0 | J14: 0 | K14: 0 | L14: 0 | M14: 0 | N14: 0 | O14: 0 | P14: 0 | Q14: 0 | R14: 0 | S14: 0 | T14: 0 | U14: 0 | V14: 0 | W14: 0 | X14: 0 | Y14: 0 | Z14: 0 | AA14: 0 | AB14: 0 | AC14: 0 | AD14: 0 | AE14: 0 | AF14: 0 | AG14: 0
C15: < Enter description > | E15: 0 | G15: =input_dollars -> 2023-12-31 | I15: 0 | J15: 0 | K15: 0 | L15: 0 | M15: 0 | N15: 0 | O15: 0 | P15: 0 | Q15: 0 | R15: 0 | S15: 0 | T15: 0 | U15: 0 | V15: 0 | W15: 0 | X15: 0 | Y15: 0 | Z15: 0 | AA15: 0 | AB15: 0 | AC15: 0 | AD15: 0 | AE15: 0 | AF15: 0 | AG15: 0
C16: < Enter description > | E16: 0 | G16: =input_dollars -> 2023-12-31 | I16: 0 | J16: 0 | K16: 0 | L16: 0 | M16: 0 | N16: 0 | O16: 0 | P16: 0 | Q16: 0 | R16: 0 | S16: 0 | T16: 0 | U16: 0 | V16: 0 | W16: 0 | X16: 0 | Y16: 0 | Z16: 0 | AA16: 0 | AB16: 0 | AC16: 0 | AD16: 0 | AE16: 0 | AF16: 0 | AG16: 0
C17: Capital expenditure | G17: =input_dollars -> 2023-12-31 | I17: =SUM(I14:I16) -> 0 | J17: 0 | K17: 0 | L17: 0 | M17: 0 | N17: 0 | O17: 0 | P17: 0 | Q17: 0 | R17: 0 | S17: 0 | T17: 0 | U17: 0 | V17: 0 | W17: 0 | X17: 0 | Y17: 0 | Z17: 0 | AA17: 0 | AB17: 0 | AC17: =SUM(AC14:AC16) -> 0 | AD17: =SUM(AD14:AD16) -> 0 | AE17: =SUM(AE14:AE16) -> 0 | AF17: =SUM(AF14:AF16) -> 0 | AG17: =SUM(AG14:AG16) -> 0
C19: Operating expenditure | G19: =input_dollars -> 2023-12-31 | I19: 0 | J19: 0 | K19: 0 | L19: 0 | M19: 0 | N19: 0 | O19: 0 | P19: 0 | Q19: 0 | R19: 0 | S19: 0 | T19: 0 | U19: 0 | V19: 0 | W19: 0 | X19: 0 | Y19: 0 | Z19: 0 | AA19: 0 | AB19: 0 | AC19: 0 | AD19: 0 | AE19: 0 | AF19: 0 | AG19: 0
A22: RISK ASSUMPTIONS
C24: PoF (major) | I24: 0 | J24: 0 | K24: 0 | L24: 0 | M24: 0 | N24: 0 | O24: 0 | P24: 0 | Q24: 0 | R24: 0 | S24: 0 | T24: 0 | U24: 0 | V24: 0 | W24: 0 | X24: 0 | Y24: 0 | Z24: 0 | AA24: 0 | AB24: 0 | AC24: 0 | AD24: 0 | AE24: 0 | AF24: 0 | AG24: 0
C25: PoF (reparable) | I25: 0 | J25: 0 | K25: 0 | L25: 0 | M25: 0 | N25: 0 | O25: 0 | P25: 0 | Q25: 0 | R25: 0 | S25: 0 | T25: 0 | U25: 0 | V25: 0 | W25: 0 | X25: 0 | Y25: 0 | Z25: 0 | AA25: 0 | AB25: 0 | AC25: 0 | AD25: 0 | AE25: 0 | AF25: 0 | AG25: 0
C27: Energy at risk (weighted) | G27: MWh | I27: =INDEX(Workings_risks!J$60:J$233, MATCH($A$3&$C27, Workings_risks!$E$60:$E$233,0)) -> 656.9024966 | J27: =INDEX(Workings_risks!K$60:K$233, MATCH($A$3&$C27, Workings_risks!$E$60:$E$233,0)) -> 785.8035192 | K27: =INDEX(Workings_risks!L$60:L$233, MATCH($A$3&$C27, Workings_risks!$E$60:$E$233,0)) -> 945.6529251 | L27: =INDEX(Workings_risks!M$60:M$233, MATCH($A$3&$C27, Workings_risks!$E$60:$E$233,0)) -> 1143.886803 | M27: =INDEX(Workings_risks!N$60:N$233, MATCH($A$3&$C27, Workings_risks!$E$60:$E$233,0)) -> 1390.262379 | N27: =INDEX(Workings_risks!O$60:O$233, MATCH($A$3&$C27, Workings_risks!$E$60:$E$233,0)) -> 1696.98074 | O27: =INDEX(Workings_risks!P$60:P$233, MATCH($A$3&$C27, Workings_risks!$E$60:$E$233,0)) -> 2074.500634 | P27: =INDEX(Workings_risks!Q$60:Q$233, MATCH($A$3&$C27, Workings_risks!$E$60:$E$233,0)) -> 2456.154337 | Q27: =INDEX(Workings_risks!R$60:R$233, MATCH($A$3&$C27, Workings_risks!$E$60:$E$233,0)) -> 2841.005251 | R27: =INDEX(Workings_risks!S$60:S$233, MATCH($A$3&$C27, Workings_risks!$E$60:$E$233,0)) -> 3228.883708 | S27: =INDEX(Workings_risks!T$60:T$233, MATCH($A$3&$C27, Workings_risks!$E$60:$E$233,0)) -> 3705.842165 | T27: =INDEX(Workings_risks!U$60:U$233, MATCH($A$3&$C27, Workings_risks!$E$60:$E$233,0)) -> 4190.600406 | U27: =INDEX(Workings_risks!V$60:V$233, MATCH($A$3&$C27, Workings_risks!$E$60:$E$233,0)) -> 4642.56441 | V27: =INDEX(Workings_risks!W$60:W$233, MATCH($A$3&$C27, Workings_risks!$E$60:$E$233,0)) -> 4965.817527 | W27: =INDEX(Workings_risks!X$60:X$233, MATCH($A$3&$C27, Workings_risks!$E$60:$E$233,0)) -> 5215.533152 | X27: =INDEX(Workings_risks!Y$60:Y$233, MATCH($A$3&$C27, Workings_risks!$E$60:$E$233,0)) -> 5436.662296 | Y27: =INDEX(Workings_risks!Z$60:Z$233, MATCH($A$3&$C27, Workings_risks!$E$60:$E$233,0)) -> 5568.939128 | Z27: =INDEX(Workings_risks!AA$60:AA$233, MATCH($A$3&$C27, Workings_risks!$E$60:$E$233,0)) -> 5681.314008 | AA27: =INDEX(Workings_risks!AB$60:AB$233, MATCH($A$3&$C27, Workings_risks!$E$60:$E$233,0)) -> 5775.703793 | AB27: =INDEX(Workings_risks!AC$60:AC$233, MATCH($A$3&$C27, Workings_risks!$E$60:$E$233,0)) -> 5860.414336 | AC27: =INDEX(Workings_risks!AD$60:AD$233, MATCH($A$3&$C27, Workings_risks!$E$60:$E$233,0)) -> 5938.586005 | AD27: =INDEX(Workings_risks!AE$60:AE$233, MATCH($A$3&$C27, Workings_risks!$E$60:$E$233,0)) -> 5994.135117 | AE27: =INDEX(Workings_risks!AF$60:AF$233, MATCH($A$3&$C27, Workings_risks!$E$60:$E$233,0)) -> 6037.306365 | AF27: =INDEX(Workings_risks!AG$60:AG$233, MATCH($A$3&$C27, Workings_risks!$E$60:$E$233,0)) -> 6074.934775 | AG27: =INDEX(Workings_risks!AH$60:AH$233, MATCH($A$3&$C27, Workings_risks!$E$60:$E$233,0)) -> 6110.804599
C28: Energy at risk value | D28: $/MWh | E28: =Assumptions!H41*vcr_esc -> 34717.18798 | F28: =IF(AND(SUM(I27:AG27)<>0, E28=0), "!", "") ->  | G28: =input_dollars -> 2023-12-31 | I28: =I27*$E$28 -> 22805807.46 | J28: =J27*$E$28 -> 27280888.49 | K28: 32830410.36 | L28: 39712533.16 | M28: 48266000.35 | N28: 58914399.34 | O28: 72020828.49 | P28: 85270771.82 | Q28: 98631713.34 | R28: 112097762.6 | S28: 128656419.1 | T28: 145485862 | U28: 161176781.3 | V28: 172399220.6 | W28: 181068644.9 | X28: 188745626.9 | Y28: 193337906.6 | Z28: 197239246.4 | AA28: 200516194.3 | AB28: 203457106.1 | AC28: 206171006.7 | AD28: 208099515.6 | AE28: 209598300 | AF28: 210904652.6 | AG28: 212149952
C30: Safety consequence | D30: (after DF) | G30: =input_dollars -> 2023-12-31 | I30: =INDEX(Workings_risks!J$60:J$170, MATCH($A$3&$C30, Workings_risks!$E$60:$E$170,0)) -> 3423255.928 | J30: =INDEX(Workings_risks!K$60:K$170, MATCH($A$3&$C30, Workings_risks!$E$60:$E$170,0)) -> 4094986.043 | K30: =INDEX(Workings_risks!L$60:L$170, MATCH($A$3&$C30, Workings_risks!$E$60:$E$170,0)) -> 4927994.639 | L30: =INDEX(Workings_risks!M$60:M$170, MATCH($A$3&$C30, Workings_risks!$E$60:$E$170,0)) -> 5961032.723 | M30: =INDEX(Workings_risks!N$60:N$170, MATCH($A$3&$C30, Workings_risks!$E$60:$E$170,0)) -> 7244947.24 | N30: =INDEX(Workings_risks!O$60:O$170, MATCH($A$3&$C30, Workings_risks!$E$60:$E$170,0)) -> 8843320.594 | O30: =INDEX(Workings_risks!P$60:P$170, MATCH($A$3&$C30, Workings_risks!$E$60:$E$170,0)) -> 10810655.51 | P30: =INDEX(Workings_risks!Q$60:Q$170, MATCH($A$3&$C30, Workings_risks!$E$60:$E$170,0)) -> 12799532.56 | Q30: =INDEX(Workings_risks!R$60:R$170, MATCH($A$3&$C30, Workings_risks!$E$60:$E$170,0)) -> 14805070.94 | R30: =INDEX(Workings_risks!S$60:S$170, MATCH($A$3&$C30, Workings_risks!$E$60:$E$170,0)) -> 16826386.49 | S30: =INDEX(Workings_risks!T$60:T$170, MATCH($A$3&$C30, Workings_risks!$E$60:$E$170,0)) -> 19311916.5 | T30: =INDEX(Workings_risks!U$60:U$170, MATCH($A$3&$C30, Workings_risks!$E$60:$E$170,0)) -> 21838092.8 | U30: =INDEX(Workings_risks!V$60:V$170, MATCH($A$3&$C30, Workings_risks!$E$60:$E$170,0)) -> 24193371.49 | V30: =INDEX(Workings_risks!W$60:W$170, MATCH($A$3&$C30, Workings_risks!$E$60:$E$170,0)) -> 25877910.91 | W30: =INDEX(Workings_risks!X$60:X$170, MATCH($A$3&$C30, Workings_risks!$E$60:$E$170,0)) -> 27179231.12 | X30: =INDEX(Workings_risks!Y$60:Y$170, MATCH($A$3&$C30, Workings_risks!$E$60:$E$170,0)) -> 28331581.21 | Y30: =INDEX(Workings_risks!Z$60:Z$170, MATCH($A$3&$C30, Workings_risks!$E$60:$E$170,0)) -> 29020903.38 | Z30: =INDEX(Workings_risks!AA$60:AA$170, MATCH($A$3&$C30, Workings_risks!$E$60:$E$170,0)) -> 29606512.31 | AA30: =INDEX(Workings_risks!AB$60:AB$170, MATCH($A$3&$C30, Workings_risks!$E$60:$E$170,0)) -> 30098397.17 | AB30: =INDEX(Workings_risks!AC$60:AC$170, MATCH($A$3&$C30, Workings_risks!$E$60:$E$170,0)) -> 30539841.48 | AC30: =INDEX(Workings_risks!AD$60:AD$170, MATCH($A$3&$C30, Workings_risks!$E$60:$E$170,0)) -> 30947210.35 | AD30: =INDEX(Workings_risks!AE$60:AE$170, MATCH($A$3&$C30, Workings_risks!$E$60:$E$170,0)) -> 31236688.36 | AE30: =INDEX(Workings_risks!AF$60:AF$170, MATCH($A$3&$C30, Workings_risks!$E$60:$E$170,0)) -> 31461662.74 | AF30: =INDEX(Workings_risks!AG$60:AG$170, MATCH($A$3&$C30, Workings_risks!$E$60:$E$170,0)) -> 31657752.23 | AG30: =INDEX(Workings_risks!AH$60:AH$170, MATCH($A$3&$C30, Workings_risks!$E$60:$E$170,0)) -> 31844677.37
C31: Unplanned replacements | G31: =input_dollars -> 2023-12-31 | I31: =INDEX(Workings_risks!J$60:J$170, MATCH($A$3&$C31, Workings_risks!$E$60:$E$170,0)) -> 1900959.372 | J31: =INDEX(Workings_risks!K$60:K$170, MATCH($A$3&$C31, Workings_risks!$E$60:$E$170,0)) -> 2273976.081 | K31: =INDEX(Workings_risks!L$60:L$170, MATCH($A$3&$C31, Workings_risks!$E$60:$E$170,0)) -> 2736551.924 | L31: =INDEX(Workings_risks!M$60:M$170, MATCH($A$3&$C31, Workings_risks!$E$60:$E$170,0)) -> 3310205.624 | M31: =INDEX(Workings_risks!N$60:N$170, MATCH($A$3&$C31, Workings_risks!$E$60:$E$170,0)) -> 4023172.864 | N31: =INDEX(Workings_risks!O$60:O$170, MATCH($A$3&$C31, Workings_risks!$E$60:$E$170,0)) -> 4910761.427 | O31: =INDEX(Workings_risks!P$60:P$170, MATCH($A$3&$C31, Workings_risks!$E$60:$E$170,0)) -> 6003237.077 | P31: =INDEX(Workings_risks!Q$60:Q$170, MATCH($A$3&$C31, Workings_risks!$E$60:$E$170,0)) -> 7107675.235 | Q31: =INDEX(Workings_risks!R$60:R$170, MATCH($A$3&$C31, Workings_risks!$E$60:$E$170,0)) -> 8221365.554 | R31: =INDEX(Workings_risks!S$60:S$170, MATCH($A$3&$C31, Workings_risks!$E$60:$E$170,0)) -> 9343817.047 | S31: =INDEX(Workings_risks!T$60:T$170, MATCH($A$3&$C31, Workings_risks!$E$60:$E$170,0)) -> 10724050.27 | T31: =INDEX(Workings_risks!U$60:U$170, MATCH($A$3&$C31, Workings_risks!$E$60:$E$170,0)) -> 12126854.68 | U31: =INDEX(Workings_risks!V$60:V$170, MATCH($A$3&$C31, Workings_risks!$E$60:$E$170,0)) -> 13434758.39 | V31: =INDEX(Workings_risks!W$60:W$170, MATCH($A$3&$C31, Workings_risks!$E$60:$E$170,0)) -> 14370195.6 | W31: =INDEX(Workings_risks!X$60:X$170, MATCH($A$3&$C31, Workings_risks!$E$60:$E$170,0)) -> 15092828.36 | X31: =INDEX(Workings_risks!Y$60:Y$170, MATCH($A$3&$C31, Workings_risks!$E$60:$E$170,0)) -> 15732736.89 | Y31: =INDEX(Workings_risks!Z$60:Z$170, MATCH($A$3&$C31, Workings_risks!$E$60:$E$170,0)) -> 16115522.6 | Z31: =INDEX(Workings_risks!AA$60:AA$170, MATCH($A$3&$C31, Workings_risks!$E$60:$E$170,0)) -> 16440715.58 | AA31: =INDEX(Workings_risks!AB$60:AB$170, MATCH($A$3&$C31, Workings_risks!$E$60:$E$170,0)) -> 16713862.88 | AB31: =INDEX(Workings_risks!AC$60:AC$170, MATCH($A$3&$C31, Workings_risks!$E$60:$E$170,0)) -> 16959000.18 | AC31: =INDEX(Workings_risks!AD$60:AD$170, MATCH($A$3&$C31, Workings_risks!$E$60:$E$170,0)) -> 17185215.13 | AD31: =INDEX(Workings_risks!AE$60:AE$170, MATCH($A$3&$C31, Workings_risks!$E$60:$E$170,0)) -> 17345964.41 | AE31: =INDEX(Workings_risks!AF$60:AF$170, MATCH($A$3&$C31, Workings_risks!$E$60:$E$170,0)) -> 17470894.35 | AF31: =INDEX(Workings_risks!AG$60:AG$170, MATCH($A$3&$C31, Workings_risks!$E$60:$E$170,0)) -> 17579784.3 | AG31: =INDEX(Workings_risks!AH$60:AH$170, MATCH($A$3&$C31, Workings_risks!$E$60:$E$170,0)) -> 17683585.21
C32: Environmental consequence | D32: (after DF) | G32: =input_dollars -> 2023-12-31 | I32: =INDEX(Workings_risks!J$60:J$170, MATCH($A$3&$C32, Workings_risks!$E$60:$E$170,0)) -> 165853.3837 | J32: =INDEX(Workings_risks!K$60:K$170, MATCH($A$3&$C32, Workings_risks!$E$60:$E$170,0)) -> 198398.0474 | K32: =INDEX(Workings_risks!L$60:L$170, MATCH($A$3&$C32, Workings_risks!$E$60:$E$170,0)) -> 238756.4947 | L32: =INDEX(Workings_risks!M$60:M$170, MATCH($A$3&$C32, Workings_risks!$E$60:$E$170,0)) -> 288806.1742 | M32: =INDEX(Workings_risks!N$60:N$170, MATCH($A$3&$C32, Workings_risks!$E$60:$E$170,0)) -> 351010.5701 | N32: =INDEX(Workings_risks!O$60:O$170, MATCH($A$3&$C32, Workings_risks!$E$60:$E$170,0)) -> 428450.1875 | O32: =INDEX(Workings_risks!P$60:P$170, MATCH($A$3&$C32, Workings_risks!$E$60:$E$170,0)) -> 523765.6297 | P32: =INDEX(Workings_risks!Q$60:Q$170, MATCH($A$3&$C32, Workings_risks!$E$60:$E$170,0)) -> 620124.7672 | Q32: =INDEX(Workings_risks!R$60:R$170, MATCH($A$3&$C32, Workings_risks!$E$60:$E$170,0)) -> 717291.13 | R32: =INDEX(Workings_risks!S$60:S$170, MATCH($A$3&$C32, Workings_risks!$E$60:$E$170,0)) -> 815221.8806 | S32: =INDEX(Workings_risks!T$60:T$170, MATCH($A$3&$C32, Workings_risks!$E$60:$E$170,0)) -> 935643.3656 | T32: =INDEX(Workings_risks!U$60:U$170, MATCH($A$3&$C32, Workings_risks!$E$60:$E$170,0)) -> 1058034.124 | U32: =INDEX(Workings_risks!V$60:V$170, MATCH($A$3&$C32, Workings_risks!$E$60:$E$170,0)) -> 1172145.061 | V32: =INDEX(Workings_risks!W$60:W$170, MATCH($A$3&$C32, Workings_risks!$E$60:$E$170,0)) -> 1253759.339 | W32: =INDEX(Workings_risks!X$60:X$170, MATCH($A$3&$C32, Workings_risks!$E$60:$E$170,0)) -> 1316807.024 | X32: =INDEX(Workings_risks!Y$60:Y$170, MATCH($A$3&$C32, Workings_risks!$E$60:$E$170,0)) -> 1372637.252 | Y32: =INDEX(Workings_risks!Z$60:Z$170, MATCH($A$3&$C32, Workings_risks!$E$60:$E$170,0)) -> 1406034.234 | Z32: =INDEX(Workings_risks!AA$60:AA$170, MATCH($A$3&$C32, Workings_risks!$E$60:$E$170,0)) -> 1434406.411 | AA32: =INDEX(Workings_risks!AB$60:AB$170, MATCH($A$3&$C32, Workings_risks!$E$60:$E$170,0)) -> 1458237.748 | AB32: =INDEX(Workings_risks!AC$60:AC$170, MATCH($A$3&$C32, Workings_risks!$E$60:$E$170,0)) -> 1479625.291 | AC32: =INDEX(Workings_risks!AD$60:AD$170, MATCH($A$3&$C32, Workings_risks!$E$60:$E$170,0)) -> 1499361.912 | AD32: =INDEX(Workings_risks!AE$60:AE$170, MATCH($A$3&$C32, Workings_risks!$E$60:$E$170,0)) -> 1513386.837 | AE32: =INDEX(Workings_risks!AF$60:AF$170, MATCH($A$3&$C32, Workings_risks!$E$60:$E$170,0)) -> 1524286.625 | AF32: =INDEX(Workings_risks!AG$60:AG$170, MATCH($A$3&$C32, Workings_risks!$E$60:$E$170,0)) -> 1533786.968 | AG32: =INDEX(Workings_risks!AH$60:AH$170, MATCH($A$3&$C32, Workings_risks!$E$60:$E$170,0)) -> 1542843.307
C33: Response cost | G33: =input_dollars -> 2023-12-31 | I33: =INDEX(Workings_risks!J$60:J$170, MATCH($A$3&$C33, Workings_risks!$E$60:$E$170,0)) -> 1114904.081 | J33: =INDEX(Workings_risks!K$60:K$170, MATCH($A$3&$C33, Workings_risks!$E$60:$E$170,0)) -> 1333676.695 | K33: =INDEX(Workings_risks!L$60:L$170, MATCH($A$3&$C33, Workings_risks!$E$60:$E$170,0)) -> 1604975.337 | L33: =INDEX(Workings_risks!M$60:M$170, MATCH($A$3&$C33, Workings_risks!$E$60:$E$170,0)) -> 1941420.64 | M33: =INDEX(Workings_risks!N$60:N$170, MATCH($A$3&$C33, Workings_risks!$E$60:$E$170,0)) -> 2359572.704 | N33: =INDEX(Workings_risks!O$60:O$170, MATCH($A$3&$C33, Workings_risks!$E$60:$E$170,0)) -> 2880139.385 | O33: =INDEX(Workings_risks!P$60:P$170, MATCH($A$3&$C33, Workings_risks!$E$60:$E$170,0)) -> 3520871.417 | P33: =INDEX(Workings_risks!Q$60:Q$170, MATCH($A$3&$C33, Workings_risks!$E$60:$E$170,0)) -> 4168619.406 | Q33: =INDEX(Workings_risks!R$60:R$170, MATCH($A$3&$C33, Workings_risks!$E$60:$E$170,0)) -> 4821793.746 | R33: =INDEX(Workings_risks!S$60:S$170, MATCH($A$3&$C33, Workings_risks!$E$60:$E$170,0)) -> 5480106.474 | S33: =INDEX(Workings_risks!T$60:T$170, MATCH($A$3&$C33, Workings_risks!$E$60:$E$170,0)) -> 6289607.022 | T33: =INDEX(Workings_risks!U$60:U$170, MATCH($A$3&$C33, Workings_risks!$E$60:$E$170,0)) -> 7112345.471 | U33: =INDEX(Workings_risks!V$60:V$170, MATCH($A$3&$C33, Workings_risks!$E$60:$E$170,0)) -> 7879425.083 | V33: =INDEX(Workings_risks!W$60:W$170, MATCH($A$3&$C33, Workings_risks!$E$60:$E$170,0)) -> 8428054.783 | W33: =INDEX(Workings_risks!X$60:X$170, MATCH($A$3&$C33, Workings_risks!$E$60:$E$170,0)) -> 8851875.626 | X33: =INDEX(Workings_risks!Y$60:Y$170, MATCH($A$3&$C33, Workings_risks!$E$60:$E$170,0)) -> 9227179.093 | Y33: =INDEX(Workings_risks!Z$60:Z$170, MATCH($A$3&$C33, Workings_risks!$E$60:$E$170,0)) -> 9451681.179 | Z33: =INDEX(Workings_risks!AA$60:AA$170, MATCH($A$3&$C33, Workings_risks!$E$60:$E$170,0)) -> 9642405.392 | AA33: =INDEX(Workings_risks!AB$60:AB$170, MATCH($A$3&$C33, Workings_risks!$E$60:$E$170,0)) -> 9802605.052 | AB33: =INDEX(Workings_risks!AC$60:AC$170, MATCH($A$3&$C33, Workings_risks!$E$60:$E$170,0)) -> 9946376.967 | AC33: =INDEX(Workings_risks!AD$60:AD$170, MATCH($A$3&$C33, Workings_risks!$E$60:$E$170,0)) -> 10079051.01 | AD33: =INDEX(Workings_risks!AE$60:AE$170, MATCH($A$3&$C33, Workings_risks!$E$60:$E$170,0)) -> 10173329.74 | AE33: =INDEX(Workings_risks!AF$60:AF$170, MATCH($A$3&$C33, Workings_risks!$E$60:$E$170,0)) -> 10246600.59 | AF33: =INDEX(Workings_risks!AG$60:AG$170, MATCH($A$3&$C33, Workings_risks!$E$60:$E$170,0)) -> 10310464.05 | AG33: =INDEX(Workings_risks!AH$60:AH$170, MATCH($A$3&$C33, Workings_risks!$E$60:$E$170,0)) -> 10371342.81
G34: =input_dollars -> 2023-12-31 | I34: 0 | J34: 0 | K34: 0 | L34: 0 | M34: 0 | N34: 0 | O34: 0 | P34: 0 | Q34: 0 | R34: 0 | S34: 0 | T34: 0 | U34: 0 | V34: 0 | W34: 0 | X34: 0 | Y34: 0 | Z34: 0 | AA34: 0 | AB34: 0 | AC34: 0 | AD34: 0 | AE34: 0 | AF34: 0 | AG34: 0
C36: Total risk cost | I36: =SUM(I28:I34) -> 29410780.22 | J36: =SUM(J28:J34) -> 35181925.36 | K36: 42338688.76 | L36: 51213998.32 | M36: 62244703.73 | N36: 75977070.93 | O36: 92879358.12 | P36: 109966723.8 | Q36: 127197234.7 | R36: 144563294.5 | S36: 165917636.2 | T36: 187621189.1 | U36: 207856481.3 | V36: 222329141.2 | W36: 233509387 | X36: 243409761.3 | Y36: 249332047.9 | Z36: 254363286.1 | AA36: 258589297.1 | AB36: 262381950.1 | AC36: =SUM(AC28:AC34) -> 265881845.1 | AD36: =SUM(AD28:AD34) -> 268368885 | AE36: =SUM(AE28:AE34) -> 270301744.3 | AF36: =SUM(AF28:AF34) -> 271986440.1 | AG36: =SUM(AG28:AG34) -> 273592400.7
A38: OTHER BENEFITS
C41: Reduction in CO2 emissions | G41: MWh | I41: 0 | J41: 0 | K41: 0 | L41: 0 | M41: 0 | N41: 0 | O41: 0 | P41: 0 | Q41: 0 | R41: 0 | S41: 0 | T41: 0 | U41: 0 | V41: 0 | W41: 0 | X41: 0 | Y41: 0 | Z41: 0 | AA41: 0 | AB41: 0 | AC41: 0 | AD41: 0 | AE41: 0 | AF41: 0 | AG41: 0
C42: Value of reduction in CO2 emissions | G42: $ | I42: =I41*I7 -> 0 | J42: 0 | K42: 0 | L42: 0 | M42: 0 | N42: 0 | O42: 0 | P42: 0 | Q42: 0 | R42: 0 | S42: 0 | T42: 0 | U42: 0 | V42: 0 | W42: 0 | X42: 0 | Y42: 0 | Z42: 0 | AA42: 0 | AB42: 0 | AC42: 0 | AD42: 0 | AE42: 0 | AF42: 0 | AG42: 0
C45: Reliability in worst-served areas | D45: $/MWh | E45: =Assumptions!G94 -> 151432.8174 | G45: MWh | I45: 0 | J45: 0 | K45: 0 | L45: 0 | M45: 0 | N45: 0 | O45: 0 | P45: 0 | Q45: 0 | R45: 0 | S45: 0 | T45: 0 | U45: 0 | V45: 0 | W45: 0 | X45: 0 | Y45: 0 | Z45: 0 | AA45: 0 | AB45: 0 | AC45: 0 | AD45: 0 | AE45: 0 | AF45: 0 | AG45: 0
C46: Network resilience | D46: $/MWh | E46: =Assumptions!G95 -> 24590 | G46: MWh | I46: 0 | J46: 0 | K46: 0 | L46: 0 | M46: 0 | N46: 0 | O46: 0 | P46: 0 | Q46: 0 | R46: 0 | S46: 0 | T46: 0 | U46: 0 | V46: 0 | W46: 0 | X46: 0 | Y46: 0 | Z46: 0 | AA46: 0 | AB46: 0 | AC46: 0 | AD46: 0 | AE46: 0 | AF46: 0 | AG46: 0
C47: Enabling solar exports | D47: $/MWh | E47: =Assumptions!G96 -> 88.35771951 | G47: MWh | I47: 0 | J47: 0 | K47: 0 | L47: 0 | M47: 0 | N47: 0 | O47: 0 | P47: 0 | Q47: 0 | R47: 0 | S47: 0 | T47: 0 | U47: 0 | V47: 0 | W47: 0 | X47: 0 | Y47: 0 | Z47: 0 | AA47: 0 | AB47: 0 | AC47: 0 | AD47: 0 | AE47: 0 | AF47: 0 | AG47: 0
C48: Aesthetics | D48: $/customer | E48: =Assumptions!G97 -> 0 | G48: customers | I48: 0 | J48: 0 | K48: 0 | L48: 0 | M48: 0 | N48: 0 | O48: 0 | P48: 0 | Q48: 0 | R48: 0 | S48: 0 | T48: 0 | U48: 0 | V48: 0 | W48: 0 | X48: 0 | Y48: 0 | Z48: 0 | AA48: 0 | AB48: 0 | AC48: 0 | AD48: 0 | AE48: 0 | AF48: 0 | AG48: 0
C49: Customer value of time (res) | D49: $/customer min | E49: =Assumptions!G98 -> 0.3518133654 | G49: mins | I49: 0 | J49: 0 | K49: 0 | L49: 0 | M49: 0 | N49: 0 | O49: 0 | P49: 0 | Q49: 0 | R49: 0 | S49: 0 | T49: 0 | U49: 0 | V49: 0 | W49: 0 | X49: 0 | Y49: 0 | Z49: 0 | AA49: 0 | AB49: 0 | AC49: 0 | AD49: 0 | AE49: 0 | AF49: 0 | AG49: 0
C50: Customer value of time (bus) | D50: $/customer min | E50: =Assumptions!G99 -> 0.3518133654 | G50: mins | I50: 0 | J50: 0 | K50: 0 | L50: 0 | M50: 0 | N50: 0 | O50: 0 | P50: 0 | Q50: 0 | R50: 0 | S50: 0 | T50: 0 | U50: 0 | V50: 0 | W50: 0 | X50: 0 | Y50: 0 | Z50: 0 | AA50: 0 | AB50: 0 | AC50: 0 | AD50: 0 | AE50: 0 | AF50: 0 | AG50: 0
C51: Communication | D51: $/customer | E51: =Assumptions!G100 -> 0 | G51: customers | I51: 0 | J51: 0 | K51: 0 | L51: 0 | M51: 0 | N51: 0 | O51: 0 | P51: 0 | Q51: 0 | R51: 0 | S51: 0 | T51: 0 | U51: 0 | V51: 0 | W51: 0 | X51: 0 | Y51: 0 | Z51: 0 | AA51: 0 | AB51: 0 | AC51: 0 | AD51: 0 | AE51: 0 | AF51: 0 | AG51: 0
C52: Information accessibility | D52: $/customer | E52: =Assumptions!G101 -> 0 | G52: customers | I52: 0 | J52: 0 | K52: 0 | L52: 0 | M52: 0 | N52: 0 | O52: 0 | P52: 0 | Q52: 0 | R52: 0 | S52: 0 | T52: 0 | U52: 0 | V52: 0 | W52: 0 | X52: 0 | Y52: 0 | Z52: 0 | AA52: 0 | AB52: 0 | AC52: 0 | AD52: 0 | AE52: 0 | AF52: 0 | AG52: 0
C54: Other benefits 1 | G54: =input_dollars -> 2023-12-31 | I54: 0 | J54: 0 | K54: 0 | L54: 0 | M54: 0 | N54: 0 | O54: 0 | P54: 0 | Q54: 0 | R54: 0 | S54: 0 | T54: 0 | U54: 0 | V54: 0 | W54: 0 | X54: 0 | Y54: 0 | Z54: 0 | AA54: 0 | AB54: 0 | AC54: 0 | AD54: 0 | AE54: 0 | AF54: 0 | AG54: 0
C55: Other benefits 2 | G55: =input_dollars -> 2023-12-31 | I55: 0 | J55: 0 | K55: 0 | L55: 0 | M55: 0 | N55: 0 | O55: 0 | P55: 0 | Q55: 0 | R55: 0 | S55: 0 | T55: 0 | U55: 0 | V55: 0 | W55: 0 | X55: 0 | Y55: 0 | Z55: 0 | AA55: 0 | AB55: 0 | AC55: 0 | AD55: 0 | AE55: 0 | AF55: 0 | AG55: 0
C57: Total other benefits | G57: =input_dollars -> 2023-12-31 | I57: =SUMPRODUCT((I$45:I$52)*($E$45:$E$52))+SUM(I54:I55)+I42 -> 0 | J57: =SUMPRODUCT((J$45:J$52)*($E$45:$E$52))+SUM(J54:J55)+J42 -> 0 | K57: =SUMPRODUCT((K$45:K$52)*($E$45:$E$52))+SUM(K54:K55)+K42 -> 0 | L57: =SUMPRODUCT((L$45:L$52)*($E$45:$E$52))+SUM(L54:L55)+L42 -> 0 | M57: =SUMPRODUCT((M$45:M$52)*($E$45:$E$52))+SUM(M54:M55)+M42 -> 0 | N57: =SUMPRODUCT((N$45:N$52)*($E$45:$E$52))+SUM(N54:N55)+N42 -> 0 | O57: =SUMPRODUCT((O$45:O$52)*($E$45:$E$52))+SUM(O54:O55)+O42 -> 0 | P57: =SUMPRODUCT((P$45:P$52)*($E$45:$E$52))+SUM(P54:P55)+P42 -> 0 | Q57: =SUMPRODUCT((Q$45:Q$52)*($E$45:$E$52))+SUM(Q54:Q55)+Q42 -> 0 | R57: =SUMPRODUCT((R$45:R$52)*($E$45:$E$52))+SUM(R54:R55)+R42 -> 0 | S57: =SUMPRODUCT((S$45:S$52)*($E$45:$E$52))+SUM(S54:S55)+S42 -> 0 | T57: =SUMPRODUCT((T$45:T$52)*($E$45:$E$52))+SUM(T54:T55)+T42 -> 0 | U57: =SUMPRODUCT((U$45:U$52)*($E$45:$E$52))+SUM(U54:U55)+U42 -> 0 | V57: =SUMPRODUCT((V$45:V$52)*($E$45:$E$52))+SUM(V54:V55)+V42 -> 0 | W57: =SUMPRODUCT((W$45:W$52)*($E$45:$E$52))+SUM(W54:W55)+W42 -> 0 | X57: =SUMPRODUCT((X$45:X$52)*($E$45:$E$52))+SUM(X54:X55)+X42 -> 0 | Y57: =SUMPRODUCT((Y$45:Y$52)*($E$45:$E$52))+SUM(Y54:Y55)+Y42 -> 0 | Z57: =SUMPRODUCT((Z$45:Z$52)*($E$45:$E$52))+SUM(Z54:Z55)+Z42 -> 0 | AA57: =SUMPRODUCT((AA$45:AA$52)*($E$45:$E$52))+SUM(AA54:AA55)+AA42 -> 0 | AB57: =SUMPRODUCT((AB$45:AB$52)*($E$45:$E$52))+SUM(AB54:AB55)+AB42 -> 0 | AC57: =SUMPRODUCT((AC$45:AC$52)*($E$45:$E$52))+SUM(AC54:AC55)+AC42 -> 0 | AD57: =SUMPRODUCT((AD$45:AD$52)*($E$45:$E$52))+SUM(AD54:AD55)+AD42 -> 0 | AE57: =SUMPRODUCT((AE$45:AE$52)*($E$45:$E$52))+SUM(AE54:AE55)+AE42 -> 0 | AF57: =SUMPRODUCT((AF$45:AF$52)*($E$45:$E$52))+SUM(AF54:AF55)+AF42 -> 0 | AG57: =SUMPRODUCT((AG$45:AG$52)*($E$45:$E$52))+SUM(AG54:AG55)+AG42 -> 0
A60: SUMMARY
C64: Risks mitigated vs base case | G64: =input_dollars -> 2023-12-31
C66: Capital expenditure
C67: =C14 -> < Enter description > | G67: =input_dollars -> 2023-12-31 | I67: =-I14 -> 0 | J67: 0 | K67: 0 | L67: 0 | M67: 0 | N67: 0 | O67: 0 | P67: 0 | Q67: 0 | R67: 0 | S67: 0 | T67: 0 | U67: 0 | V67: 0 | W67: 0 | X67: 0 | Y67: 0 | Z67: 0 | AA67: 0 | AB67: 0 | AC67: 0 | AD67: 0 | AE67: 0 | AF67: 0 | AG67: 0
C68: =C15 -> < Enter description > | G68: =input_dollars -> 2023-12-31 | I68: =-I15 -> 0 | J68: 0 | K68: 0 | L68: 0 | M68: 0 | N68: 0 | O68: 0 | P68: 0 | Q68: 0 | R68: 0 | S68: 0 | T68: 0 | U68: 0 | V68: 0 | W68: 0 | X68: 0 | Y68: 0 | Z68: 0 | AA68: 0 | AB68: 0 | AC68: 0 | AD68: 0 | AE68: 0 | AF68: 0 | AG68: 0
C69: =C16 -> < Enter description > | G69: =input_dollars -> 2023-12-31 | I69: =-I16 -> 0 | J69: 0 | K69: 0 | L69: 0 | M69: 0 | N69: 0 | O69: 0 | P69: 0 | Q69: 0 | R69: 0 | S69: 0 | T69: 0 | U69: 0 | V69: 0 | W69: 0 | X69: 0 | Y69: 0 | Z69: 0 | AA69: 0 | AB69: 0 | AC69: 0 | AD69: 0 | AE69: 0 | AF69: 0 | AG69: 0
C71: Cumulative capex
C72: =C14 -> < Enter description > | G72: =input_dollars -> 2023-12-31 | I72: =SUMPRODUCT(($I67:I67))-SUMPRODUCT(($I67:I67)*($I$6:I$6<=(I$6-$E14))) -> 0 | J72: =SUMPRODUCT(($I67:J67))-SUMPRODUCT(($I67:J67)*($I$6:J$6<=(J$6-$E14))) -> 0 | K72: =SUMPRODUCT(($I67:K67))-SUMPRODUCT(($I67:K67)*($I$6:K$6<=(K$6-$E14))) -> 0 | L72: =SUMPRODUCT(($I67:L67))-SUMPRODUCT(($I67:L67)*($I$6:L$6<=(L$6-$E14))) -> 0 | M72: =SUMPRODUCT(($I67:M67))-SUMPRODUCT(($I67:M67)*($I$6:M$6<=(M$6-$E14))) -> 0 | N72: =SUMPRODUCT(($I67:N67))-SUMPRODUCT(($I67:N67)*($I$6:N$6<=(N$6-$E14))) -> 0 | O72: =SUMPRODUCT(($I67:O67))-SUMPRODUCT(($I67:O67)*($I$6:O$6<=(O$6-$E14))) -> 0 | P72: =SUMPRODUCT(($I67:P67))-SUMPRODUCT(($I67:P67)*($I$6:P$6<=(P$6-$E14))) -> 0 | Q72: =SUMPRODUCT(($I67:Q67))-SUMPRODUCT(($I67:Q67)*($I$6:Q$6<=(Q$6-$E14))) -> 0 | R72: =SUMPRODUCT(($I67:R67))-SUMPRODUCT(($I67:R67)*($I$6:R$6<=(R$6-$E14))) -> 0 | S72: =SUMPRODUCT(($I67:S67))-SUMPRODUCT(($I67:S67)*($I$6:S$6<=(S$6-$E14))) -> 0 | T72: =SUMPRODUCT(($I67:T67))-SUMPRODUCT(($I67:T67)*($I$6:T$6<=(T$6-$E14))) -> 0 | U72: =SUMPRODUCT(($I67:U67))-SUMPRODUCT(($I67:U67)*($I$6:U$6<=(U$6-$E14))) -> 0 | V72: =SUMPRODUCT(($I67:V67))-SUMPRODUCT(($I67:V67)*($I$6:V$6<=(V$6-$E14))) -> 0 | W72: =SUMPRODUCT(($I67:W67))-SUMPRODUCT(($I67:W67)*($I$6:W$6<=(W$6-$E14))) -> 0 | X72: =SUMPRODUCT(($I67:X67))-SUMPRODUCT(($I67:X67)*($I$6:X$6<=(X$6-$E14))) -> 0 | Y72: =SUMPRODUCT(($I67:Y67))-SUMPRODUCT(($I67:Y67)*($I$6:Y$6<=(Y$6-$E14))) -> 0 | Z72: =SUMPRODUCT(($I67:Z67))-SUMPRODUCT(($I67:Z67)*($I$6:Z$6<=(Z$6-$E14))) -> 0 | AA72: =SUMPRODUCT(($I67:AA67))-SUMPRODUCT(($I67:AA67)*($I$6:AA$6<=(AA$6-$E14))) -> 0 | AB72: =SUMPRODUCT(($I67:AB67))-SUMPRODUCT(($I67:AB67)*($I$6:AB$6<=(AB$6-$E14))) -> 0 | AC72: =SUMPRODUCT(($I67:AC67))-SUMPRODUCT(($I67:AC67)*($I$6:AC$6<=(AC$6-$E14))) -> 0 | AD72: =SUMPRODUCT(($I67:AD67))-SUMPRODUCT(($I67:AD67)*($I$6:AD$6<=(AD$6-$E14))) -> 0 | AE72: =SUMPRODUCT(($I67:AE67))-SUMPRODUCT(($I67:AE67)*($I$6:AE$6<=(AE$6-$E14))) -> 0 | AF72: =SUMPRODUCT(($I67:AF67))-SUMPRODUCT(($I67:AF67)*($I$6:AF$6<=(AF$6-$E14))) -> 0 | AG72: =SUMPRODUCT(($I67:AG67))-SUMPRODUCT(($I67:AG67)*($I$6:AG$6<=(AG$6-$E14))) -> 0
C73: =C15 -> < Enter description > | G73: =input_dollars -> 2023-12-31 | I73: =SUMPRODUCT(($I68:I68))-SUMPRODUCT(($I68:I68)*($I$6:I$6<=(I$6-$E15))) -> 0 | J73: =SUMPRODUCT(($I68:J68))-SUMPRODUCT(($I68:J68)*($I$6:J$6<=(J$6-$E15))) -> 0 | K73: =SUMPRODUCT(($I68:K68))-SUMPRODUCT(($I68:K68)*($I$6:K$6<=(K$6-$E15))) -> 0 | L73: =SUMPRODUCT(($I68:L68))-SUMPRODUCT(($I68:L68)*($I$6:L$6<=(L$6-$E15))) -> 0 | M73: =SUMPRODUCT(($I68:M68))-SUMPRODUCT(($I68:M68)*($I$6:M$6<=(M$6-$E15))) -> 0 | N73: =SUMPRODUCT(($I68:N68))-SUMPRODUCT(($I68:N68)*($I$6:N$6<=(N$6-$E15))) -> 0 | O73: =SUMPRODUCT(($I68:O68))-SUMPRODUCT(($I68:O68)*($I$6:O$6<=(O$6-$E15))) -> 0 | P73: =SUMPRODUCT(($I68:P68))-SUMPRODUCT(($I68:P68)*($I$6:P$6<=(P$6-$E15))) -> 0 | Q73: =SUMPRODUCT(($I68:Q68))-SUMPRODUCT(($I68:Q68)*($I$6:Q$6<=(Q$6-$E15))) -> 0 | R73: =SUMPRODUCT(($I68:R68))-SUMPRODUCT(($I68:R68)*($I$6:R$6<=(R$6-$E15))) -> 0 | S73: =SUMPRODUCT(($I68:S68))-SUMPRODUCT(($I68:S68)*($I$6:S$6<=(S$6-$E15))) -> 0 | T73: =SUMPRODUCT(($I68:T68))-SUMPRODUCT(($I68:T68)*($I$6:T$6<=(T$6-$E15))) -> 0 | U73: =SUMPRODUCT(($I68:U68))-SUMPRODUCT(($I68:U68)*($I$6:U$6<=(U$6-$E15))) -> 0 | V73: =SUMPRODUCT(($I68:V68))-SUMPRODUCT(($I68:V68)*($I$6:V$6<=(V$6-$E15))) -> 0 | W73: =SUMPRODUCT(($I68:W68))-SUMPRODUCT(($I68:W68)*($I$6:W$6<=(W$6-$E15))) -> 0 | X73: =SUMPRODUCT(($I68:X68))-SUMPRODUCT(($I68:X68)*($I$6:X$6<=(X$6-$E15))) -> 0 | Y73: =SUMPRODUCT(($I68:Y68))-SUMPRODUCT(($I68:Y68)*($I$6:Y$6<=(Y$6-$E15))) -> 0 | Z73: =SUMPRODUCT(($I68:Z68))-SUMPRODUCT(($I68:Z68)*($I$6:Z$6<=(Z$6-$E15))) -> 0 | AA73: =SUMPRODUCT(($I68:AA68))-SUMPRODUCT(($I68:AA68)*($I$6:AA$6<=(AA$6-$E15))) -> 0 | AB73: =SUMPRODUCT(($I68:AB68))-SUMPRODUCT(($I68:AB68)*($I$6:AB$6<=(AB$6-$E15))) -> 0 | AC73: =SUMPRODUCT(($I68:AC68))-SUMPRODUCT(($I68:AC68)*($I$6:AC$6<=(AC$6-$E15))) -> 0 | AD73: =SUMPRODUCT(($I68:AD68))-SUMPRODUCT(($I68:AD68)*($I$6:AD$6<=(AD$6-$E15))) -> 0 | AE73: =SUMPRODUCT(($I68:AE68))-SUMPRODUCT(($I68:AE68)*($I$6:AE$6<=(AE$6-$E15))) -> 0 | AF73: =SUMPRODUCT(($I68:AF68))-SUMPRODUCT(($I68:AF68)*($I$6:AF$6<=(AF$6-$E15))) -> 0 | AG73: =SUMPRODUCT(($I68:AG68))-SUMPRODUCT(($I68:AG68)*($I$6:AG$6<=(AG$6-$E15))) -> 0
C74: =C16 -> < Enter description > | G74: =input_dollars -> 2023-12-31 | I74: =SUMPRODUCT(($I69:I69))-SUMPRODUCT(($I69:I69)*($I$6:I$6<=(I$6-$E16))) -> 0 | J74: =SUMPRODUCT(($I69:J69))-SUMPRODUCT(($I69:J69)*($I$6:J$6<=(J$6-$E16))) -> 0 | K74: =SUMPRODUCT(($I69:K69))-SUMPRODUCT(($I69:K69)*($I$6:K$6<=(K$6-$E16))) -> 0 | L74: =SUMPRODUCT(($I69:L69))-SUMPRODUCT(($I69:L69)*($I$6:L$6<=(L$6-$E16))) -> 0 | M74: =SUMPRODUCT(($I69:M69))-SUMPRODUCT(($I69:M69)*($I$6:M$6<=(M$6-$E16))) -> 0 | N74: =SUMPRODUCT(($I69:N69))-SUMPRODUCT(($I69:N69)*($I$6:N$6<=(N$6-$E16))) -> 0 | O74: =SUMPRODUCT(($I69:O69))-SUMPRODUCT(($I69:O69)*($I$6:O$6<=(O$6-$E16))) -> 0 | P74: =SUMPRODUCT(($I69:P69))-SUMPRODUCT(($I69:P69)*($I$6:P$6<=(P$6-$E16))) -> 0 | Q74: =SUMPRODUCT(($I69:Q69))-SUMPRODUCT(($I69:Q69)*($I$6:Q$6<=(Q$6-$E16))) -> 0 | R74: =SUMPRODUCT(($I69:R69))-SUMPRODUCT(($I69:R69)*($I$6:R$6<=(R$6-$E16))) -> 0 | S74: =SUMPRODUCT(($I69:S69))-SUMPRODUCT(($I69:S69)*($I$6:S$6<=(S$6-$E16))) -> 0 | T74: =SUMPRODUCT(($I69:T69))-SUMPRODUCT(($I69:T69)*($I$6:T$6<=(T$6-$E16))) -> 0 | U74: =SUMPRODUCT(($I69:U69))-SUMPRODUCT(($I69:U69)*($I$6:U$6<=(U$6-$E16))) -> 0 | V74: =SUMPRODUCT(($I69:V69))-SUMPRODUCT(($I69:V69)*($I$6:V$6<=(V$6-$E16))) -> 0 | W74: =SUMPRODUCT(($I69:W69))-SUMPRODUCT(($I69:W69)*($I$6:W$6<=(W$6-$E16))) -> 0 | X74: =SUMPRODUCT(($I69:X69))-SUMPRODUCT(($I69:X69)*($I$6:X$6<=(X$6-$E16))) -> 0 | Y74: =SUMPRODUCT(($I69:Y69))-SUMPRODUCT(($I69:Y69)*($I$6:Y$6<=(Y$6-$E16))) -> 0 | Z74: =SUMPRODUCT(($I69:Z69))-SUMPRODUCT(($I69:Z69)*($I$6:Z$6<=(Z$6-$E16))) -> 0 | AA74: =SUMPRODUCT(($I69:AA69))-SUMPRODUCT(($I69:AA69)*($I$6:AA$6<=(AA$6-$E16))) -> 0 | AB74: =SUMPRODUCT(($I69:AB69))-SUMPRODUCT(($I69:AB69)*($I$6:AB$6<=(AB$6-$E16))) -> 0 | AC74: =SUMPRODUCT(($I69:AC69))-SUMPRODUCT(($I69:AC69)*($I$6:AC$6<=(AC$6-$E16))) -> 0 | AD74: =SUMPRODUCT(($I69:AD69))-SUMPRODUCT(($I69:AD69)*($I$6:AD$6<=(AD$6-$E16))) -> 0 | AE74: =SUMPRODUCT(($I69:AE69))-SUMPRODUCT(($I69:AE69)*($I$6:AE$6<=(AE$6-$E16))) -> 0 | AF74: =SUMPRODUCT(($I69:AF69))-SUMPRODUCT(($I69:AF69)*($I$6:AF$6<=(AF$6-$E16))) -> 0 | AG74: =SUMPRODUCT(($I69:AG69))-SUMPRODUCT(($I69:AG69)*($I$6:AG$6<=(AG$6-$E16))) -> 0
C76: Annualised capex
C77: =$C$76&" - "&C14 -> Annualised capex - < Enter description > | G77: =input_dollars -> 2023-12-31 | I77: =IF($E14=0,0,-PMT(real_disc, $E14,H72,)) -> 0 | J77: 0 | K77: 0 | L77: 0 | M77: 0 | N77: 0 | O77: 0 | P77: 0 | Q77: 0 | R77: 0 | S77: 0 | T77: 0 | U77: 0 | V77: 0 | W77: 0 | X77: 0 | Y77: 0 | Z77: 0 | AA77: 0 | AB77: 0 | AC77: 0 | AD77: 0 | AE77: 0 | AF77: 0 | AG77: 0
C78: =$C$76&" - "&C15 -> Annualised capex - < Enter description > | G78: =input_dollars -> 2023-12-31 | I78: =IF($E15=0,0,-PMT(real_disc, $E15,H73,)) -> 0 | J78: 0 | K78: 0 | L78: 0 | M78: 0 | N78: 0 | O78: 0 | P78: 0 | Q78: 0 | R78: 0 | S78: 0 | T78: 0 | U78: 0 | V78: 0 | W78: 0 | X78: 0 | Y78: 0 | Z78: 0 | AA78: 0 | AB78: 0 | AC78: 0 | AD78: 0 | AE78: 0 | AF78: 0 | AG78: 0
C79: =$C$76&" - "&C16 -> Annualised capex - < Enter description > | G79: =input_dollars -> 2023-12-31 | I79: =IF($E16=0,0,-PMT(real_disc, $E16,H74,)) -> 0 | J79: 0 | K79: 0 | L79: 0 | M79: 0 | N79: 0 | O79: 0 | P79: 0 | Q79: 0 | R79: 0 | S79: 0 | T79: 0 | U79: 0 | V79: 0 | W79: 0 | X79: 0 | Y79: 0 | Z79: 0 | AA79: 0 | AB79: 0 | AC79: 0 | AD79: 0 | AE79: 0 | AF79: 0 | AG79: 0
C80: Total annualised capex | G80: =input_dollars -> 2023-12-31 | I80: =SUM(I77:I79) -> 0 | J80: =SUM(J77:J79) -> 0 | K80: 0 | L80: 0 | M80: 0 | N80: 0 | O80: 0 | P80: 0 | Q80: 0 | R80: 0 | S80: 0 | T80: 0 | U80: 0 | V80: 0 | W80: 0 | X80: 0 | Y80: 0 | Z80: 0 | AA80: 0 | AB80: 0 | AC80: =SUM(AC77:AC79) -> 0 | AD80: =SUM(AD77:AD79) -> 0 | AE80: =SUM(AE77:AE79) -> 0 | AF80: =SUM(AF77:AF79) -> 0 | AG80: =SUM(AG77:AG79) -> 0
C82: Annualised capex | G82: =input_dollars -> 2023-12-31 | I82: =I80 -> 0 | J82: =J80 -> 0 | K82: 0 | L82: 0 | M82: 0 | N82: 0 | O82: 0 | P82: 0 | Q82: 0 | R82: 0 | S82: 0 | T82: 0 | U82: 0 | V82: 0 | W82: 0 | X82: 0 | Y82: 0 | Z82: 0 | AA82: 0 | AB82: 0 | AC82: =AC80 -> 0 | AD82: =AD80 -> 0 | AE82: =AE80 -> 0 | AF82: =AF80 -> 0 | AG82: =AG80 -> 0
C83: Operating expenditure | G83: 2023-12-31 | I83: =-I19 -> 0 | J83: 0 | K83: 0 | L83: 0 | M83: 0 | N83: 0 | O83: 0 | P83: 0 | Q83: 0 | R83: 0 | S83: 0 | T83: 0 | U83: 0 | V83: 0 | W83: 0 | X83: 0 | Y83: 0 | Z83: 0 | AA83: 0 | AB83: 0 | AC83: 0 | AD83: 0 | AE83: 0 | AF83: 0 | AG83: 0
C84: Risk mitigated | G84: 2023-12-31 | I84: =I64 -> 0 | J84: =J64 -> 0 | K84: 0 | L84: 0 | M84: 0 | N84: 0 | O84: 0 | P84: 0 | Q84: 0 | R84: 0 | S84: 0 | T84: 0 | U84: 0 | V84: 0 | W84: 0 | X84: 0 | Y84: 0 | Z84: 0 | AA84: 0 | AB84: 0 | AC84: =AC64 -> 0 | AD84: =AD64 -> 0 | AE84: =AE64 -> 0 | AF84: =AF64 -> 0 | AG84: =AG64 -> 0
C85: Other benefits value | G85: 2023-12-31 | I85: =I57 -> 0 | J85: 0 | K85: 0 | L85: 0 | M85: 0 | N85: 0 | O85: 0 | P85: 0 | Q85: 0 | R85: 0 | S85: 0 | T85: 0 | U85: 0 | V85: 0 | W85: 0 | X85: 0 | Y85: 0 | Z85: 0 | AA85: 0 | AB85: 0 | AC85: 0 | AD85: 0 | AE85: 0 | AF85: 0 | AG85: 0
C87: Net benefits | G87: 2023-12-31 | I87: =SUM(I82:I86) -> 0 | J87: 0 | K87: 0 | L87: 0 | M87: 0 | N87: 0 | O87: 0 | P87: 0 | Q87: 0 | R87: 0 | S87: 0 | T87: 0 | U87: 0 | V87: 0 | W87: 0 | X87: 0 | Y87: 0 | Z87: 0 | AA87: 0 | AB87: 0 | AC87: =SUM(AC82:AC86) -> 0 | AD87: =SUM(AD82:AD86) -> 0 | AE87: =SUM(AE82:AE86) -> 0 | AF87: =SUM(AF82:AF86) -> 0 | AG87: =SUM(AG82:AG86) -> 0
A102: SENSITIVITIES
A106: NPV | C106: Net benefits | G106: =PROPER($A$3)&A106 -> Option 1 (Base Case)NPV | I106: =I87 -> 0 | J106: =J87 -> 0 | K106: 0 | L106: 0 | M106: 0 | N106: 0 | O106: 0 | P106: 0 | Q106: 0 | R106: 0 | S106: 0 | T106: 0 | U106: 0 | V106: 0 | W106: 0 | X106: 0 | Y106: 0 | Z106: 0 | AA106: 0 | AB106: 0 | AC106: 0 | AD106: 0 | AE106: 0 | AF106: 0 | AG106: 0
C107: Total annualised capex | I107: =I82 -> 0 | J107: =J82 -> 0 | K107: 0 | L107: 0 | M107: 0 | N107: 0 | O107: 0 | P107: 0 | Q107: 0 | R107: 0 | S107: 0 | T107: 0 | U107: 0 | V107: 0 | W107: 0 | X107: 0 | Y107: 0 | Z107: 0 | AA107: 0 | AB107: 0 | AC107: 0 | AD107: 0 | AE107: 0 | AF107: 0 | AG107: 0
C108: Total benefits | I108: =SUM(I84:I85) -> 0 | J108: =SUM(J84:J85) -> 0 | K108: 0 | L108: 0 | M108: 0 | N108: 0 | O108: 0 | P108: 0 | Q108: 0 | R108: 0 | S108: 0 | T108: 0 | U108: 0 | V108: 0 | W108: 0 | X108: 0 | Y108: 0 | Z108: 0 | AA108: 0 | AB108: 0 | AC108: 0 | AD108: 0 | AE108: 0 | AF108: 0 | AG108: 0
D109: =Assumptions!G110 -> Capex | E109: =Assumptions!H110 -> Total benefits
A110: ="sens"&Assumptions!B111 -> sens1 | C110: =Assumptions!C111 -> Capex 10% higher | D110: =Assumptions!G111 -> 0.1 | E110: =Assumptions!H111 -> 0 | G110: =PROPER($A$3)&A110 -> Option 1 (Base Case)sens1 | I110: =I$106+IF($C110<>0,SUMPRODUCT((I$107:I$108)*TRANSPOSE(($D110:$E110))),0) -> 0 | J110: =J$106+IF($C110<>0,SUMPRODUCT((J$107:J$108)*TRANSPOSE(($D110:$E110))),0) -> 0 | K110: =K$106+IF($C110<>0,SUMPRODUCT((K$107:K$108)*TRANSPOSE(($D110:$E110))),0) -> 0 | L110: =L$106+IF($C110<>0,SUMPRODUCT((L$107:L$108)*TRANSPOSE(($D110:$E110))),0) -> 0 | M110: =M$106+IF($C110<>0,SUMPRODUCT((M$107:M$108)*TRANSPOSE(($D110:$E110))),0) -> 0 | N110: =N$106+IF($C110<>0,SUMPRODUCT((N$107:N$108)*TRANSPOSE(($D110:$E110))),0) -> 0 | O110: =O$106+IF($C110<>0,SUMPRODUCT((O$107:O$108)*TRANSPOSE(($D110:$E110))),0) -> 0 | P110: =P$106+IF($C110<>0,SUMPRODUCT((P$107:P$108)*TRANSPOSE(($D110:$E110))),0) -> 0 | Q110: =Q$106+IF($C110<>0,SUMPRODUCT((Q$107:Q$108)*TRANSPOSE(($D110:$E110))),0) -> 0 | R110: =R$106+IF($C110<>0,SUMPRODUCT((R$107:R$108)*TRANSPOSE(($D110:$E110))),0) -> 0 | S110: =S$106+IF($C110<>0,SUMPRODUCT((S$107:S$108)*TRANSPOSE(($D110:$E110))),0) -> 0 | T110: =T$106+IF($C110<>0,SUMPRODUCT((T$107:T$108)*TRANSPOSE(($D110:$E110))),0) -> 0 | U110: =U$106+IF($C110<>0,SUMPRODUCT((U$107:U$108)*TRANSPOSE(($D110:$E110))),0) -> 0 | V110: =V$106+IF($C110<>0,SUMPRODUCT((V$107:V$108)*TRANSPOSE(($D110:$E110))),0) -> 0 | W110: =W$106+IF($C110<>0,SUMPRODUCT((W$107:W$108)*TRANSPOSE(($D110:$E110))),0) -> 0 | X110: =X$106+IF($C110<>0,SUMPRODUCT((X$107:X$108)*TRANSPOSE(($D110:$E110))),0) -> 0 | Y110: =Y$106+IF($C110<>0,SUMPRODUCT((Y$107:Y$108)*TRANSPOSE(($D110:$E110))),0) -> 0 | Z110: =Z$106+IF($C110<>0,SUMPRODUCT((Z$107:Z$108)*TRANSPOSE(($D110:$E110))),0) -> 0 | AA110: =AA$106+IF($C110<>0,SUMPRODUCT((AA$107:AA$108)*TRANSPOSE(($D110:$E110))),0) -> 0 | AB110: =AB$106+IF($C110<>0,SUMPRODUCT((AB$107:AB$108)*TRANSPOSE(($D110:$E110))),0) -> 0 | AC110: =AC$106+IF($C110<>0,SUMPRODUCT((AC$107:AC$108)*TRANSPOSE(($D110:$E110))),0) -> 0 | AD110: =AD$106+IF($C110<>0,SUMPRODUCT((AD$107:AD$108)*TRANSPOSE(($D110:$E110))),0) -> 0 | AE110: =AE$106+IF($C110<>0,SUMPRODUCT((AE$107:AE$108)*TRANSPOSE(($D110:$E110))),0) -> 0 | AF110: =AF$106+IF($C110<>0,SUMPRODUCT((AF$107:AF$108)*TRANSPOSE(($D110:$E110))),0) -> 0 | AG110: =AG$106+IF($C110<>0,SUMPRODUCT((AG$107:AG$108)*TRANSPOSE(($D110:$E110))),0) -> 0
A111: ="sens"&Assumptions!B112 -> sens2 | C111: =Assumptions!C112 -> Capex 10% lower | D111: =Assumptions!G112 -> -0.1 | E111: =Assumptions!H112 -> 0 | G111: =PROPER($A$3)&A111 -> Option 1 (Base Case)sens2 | I111: =I$106+IF($C111<>0,SUMPRODUCT((I$107:I$108)*TRANSPOSE(($D111:$E111))),0) -> 0 | J111: =J$106+IF($C111<>0,SUMPRODUCT((J$107:J$108)*TRANSPOSE(($D111:$E111))),0) -> 0 | K111: =K$106+IF($C111<>0,SUMPRODUCT((K$107:K$108)*TRANSPOSE(($D111:$E111))),0) -> 0 | L111: =L$106+IF($C111<>0,SUMPRODUCT((L$107:L$108)*TRANSPOSE(($D111:$E111))),0) -> 0 | M111: =M$106+IF($C111<>0,SUMPRODUCT((M$107:M$108)*TRANSPOSE(($D111:$E111))),0) -> 0 | N111: =N$106+IF($C111<>0,SUMPRODUCT((N$107:N$108)*TRANSPOSE(($D111:$E111))),0) -> 0 | O111: =O$106+IF($C111<>0,SUMPRODUCT((O$107:O$108)*TRANSPOSE(($D111:$E111))),0) -> 0 | P111: =P$106+IF($C111<>0,SUMPRODUCT((P$107:P$108)*TRANSPOSE(($D111:$E111))),0) -> 0 | Q111: =Q$106+IF($C111<>0,SUMPRODUCT((Q$107:Q$108)*TRANSPOSE(($D111:$E111))),0) -> 0 | R111: =R$106+IF($C111<>0,SUMPRODUCT((R$107:R$108)*TRANSPOSE(($D111:$E111))),0) -> 0 | S111: =S$106+IF($C111<>0,SUMPRODUCT((S$107:S$108)*TRANSPOSE(($D111:$E111))),0) -> 0 | T111: =T$106+IF($C111<>0,SUMPRODUCT((T$107:T$108)*TRANSPOSE(($D111:$E111))),0) -> 0 | U111: =U$106+IF($C111<>0,SUMPRODUCT((U$107:U$108)*TRANSPOSE(($D111:$E111))),0) -> 0 | V111: =V$106+IF($C111<>0,SUMPRODUCT((V$107:V$108)*TRANSPOSE(($D111:$E111))),0) -> 0 | W111: =W$106+IF($C111<>0,SUMPRODUCT((W$107:W$108)*TRANSPOSE(($D111:$E111))),0) -> 0 | X111: =X$106+IF($C111<>0,SUMPRODUCT((X$107:X$108)*TRANSPOSE(($D111:$E111))),0) -> 0 | Y111: =Y$106+IF($C111<>0,SUMPRODUCT((Y$107:Y$108)*TRANSPOSE(($D111:$E111))),0) -> 0 | Z111: =Z$106+IF($C111<>0,SUMPRODUCT((Z$107:Z$108)*TRANSPOSE(($D111:$E111))),0) -> 0 | AA111: =AA$106+IF($C111<>0,SUMPRODUCT((AA$107:AA$108)*TRANSPOSE(($D111:$E111))),0) -> 0 | AB111: =AB$106+IF($C111<>0,SUMPRODUCT((AB$107:AB$108)*TRANSPOSE(($D111:$E111))),0) -> 0 | AC111: =AC$106+IF($C111<>0,SUMPRODUCT((AC$107:AC$108)*TRANSPOSE(($D111:$E111))),0) -> 0 | AD111: =AD$106+IF($C111<>0,SUMPRODUCT((AD$107:AD$108)*TRANSPOSE(($D111:$E111))),0) -> 0 | AE111: =AE$106+IF($C111<>0,SUMPRODUCT((AE$107:AE$108)*TRANSPOSE(($D111:$E111))),0) -> 0 | AF111: =AF$106+IF($C111<>0,SUMPRODUCT((AF$107:AF$108)*TRANSPOSE(($D111:$E111))),0) -> 0 | AG111: =AG$106+IF($C111<>0,SUMPRODUCT((AG$107:AG$108)*TRANSPOSE(($D111:$E111))),0) -> 0
A112: ="sens"&Assumptions!B113 -> sens3 | C112: =Assumptions!C113 -> Total benefits 10% higher | D112: =Assumptions!G113 -> 0 | E112: =Assumptions!H113 -> 0.1 | G112: Option 1 (Base Case)sens3 | I112: =I$106+IF($C112<>0,SUMPRODUCT((I$107:I$108)*TRANSPOSE(($D112:$E112))),0) -> 0 | J112: =J$106+IF($C112<>0,SUMPRODUCT((J$107:J$108)*TRANSPOSE(($D112:$E112))),0) -> 0 | K112: =K$106+IF($C112<>0,SUMPRODUCT((K$107:K$108)*TRANSPOSE(($D112:$E112))),0) -> 0 | L112: =L$106+IF($C112<>0,SUMPRODUCT((L$107:L$108)*TRANSPOSE(($D112:$E112))),0) -> 0 | M112: =M$106+IF($C112<>0,SUMPRODUCT((M$107:M$108)*TRANSPOSE(($D112:$E112))),0) -> 0 | N112: =N$106+IF($C112<>0,SUMPRODUCT((N$107:N$108)*TRANSPOSE(($D112:$E112))),0) -> 0 | O112: =O$106+IF($C112<>0,SUMPRODUCT((O$107:O$108)*TRANSPOSE(($D112:$E112))),0) -> 0 | P112: =P$106+IF($C112<>0,SUMPRODUCT((P$107:P$108)*TRANSPOSE(($D112:$E112))),0) -> 0 | Q112: =Q$106+IF($C112<>0,SUMPRODUCT((Q$107:Q$108)*TRANSPOSE(($D112:$E112))),0) -> 0 | R112: =R$106+IF($C112<>0,SUMPRODUCT((R$107:R$108)*TRANSPOSE(($D112:$E112))),0) -> 0 | S112: =S$106+IF($C112<>0,SUMPRODUCT((S$107:S$108)*TRANSPOSE(($D112:$E112))),0) -> 0 | T112: =T$106+IF($C112<>0,SUMPRODUCT((T$107:T$108)*TRANSPOSE(($D112:$E112))),0) -> 0 | U112: =U$106+IF($C112<>0,SUMPRODUCT((U$107:U$108)*TRANSPOSE(($D112:$E112))),0) -> 0 | V112: =V$106+IF($C112<>0,SUMPRODUCT((V$107:V$108)*TRANSPOSE(($D112:$E112))),0) -> 0 | W112: =W$106+IF($C112<>0,SUMPRODUCT((W$107:W$108)*TRANSPOSE(($D112:$E112))),0) -> 0 | X112: =X$106+IF($C112<>0,SUMPRODUCT((X$107:X$108)*TRANSPOSE(($D112:$E112))),0) -> 0 | Y112: =Y$106+IF($C112<>0,SUMPRODUCT((Y$107:Y$108)*TRANSPOSE(($D112:$E112))),0) -> 0 | Z112: =Z$106+IF($C112<>0,SUMPRODUCT((Z$107:Z$108)*TRANSPOSE(($D112:$E112))),0) -> 0 | AA112: =AA$106+IF($C112<>0,SUMPRODUCT((AA$107:AA$108)*TRANSPOSE(($D112:$E112))),0) -> 0 | AB112: =AB$106+IF($C112<>0,SUMPRODUCT((AB$107:AB$108)*TRANSPOSE(($D112:$E112))),0) -> 0 | AC112: =AC$106+IF($C112<>0,SUMPRODUCT((AC$107:AC$108)*TRANSPOSE(($D112:$E112))),0) -> 0 | AD112: =AD$106+IF($C112<>0,SUMPRODUCT((AD$107:AD$108)*TRANSPOSE(($D112:$E112))),0) -> 0 | AE112: =AE$106+IF($C112<>0,SUMPRODUCT((AE$107:AE$108)*TRANSPOSE(($D112:$E112))),0) -> 0 | AF112: =AF$106+IF($C112<>0,SUMPRODUCT((AF$107:AF$108)*TRANSPOSE(($D112:$E112))),0) -> 0 | AG112: =AG$106+IF($C112<>0,SUMPRODUCT((AG$107:AG$108)*TRANSPOSE(($D112:$E112))),0) -> 0
A113: ="sens"&Assumptions!B114 -> sens4 | C113: =Assumptions!C114 -> Total benefits 10% lower | D113: =Assumptions!G114 -> 0 | E113: =Assumptions!H114 -> -0.1 | G113: Option 1 (Base Case)sens4 | I113: =I$106+IF($C113<>0,SUMPRODUCT((I$107:I$108)*TRANSPOSE(($D113:$E113))),0) -> 0 | J113: =J$106+IF($C113<>0,SUMPRODUCT((J$107:J$108)*TRANSPOSE(($D113:$E113))),0) -> 0 | K113: =K$106+IF($C113<>0,SUMPRODUCT((K$107:K$108)*TRANSPOSE(($D113:$E113))),0) -> 0 | L113: =L$106+IF($C113<>0,SUMPRODUCT((L$107:L$108)*TRANSPOSE(($D113:$E113))),0) -> 0 | M113: =M$106+IF($C113<>0,SUMPRODUCT((M$107:M$108)*TRANSPOSE(($D113:$E113))),0) -> 0 | N113: =N$106+IF($C113<>0,SUMPRODUCT((N$107:N$108)*TRANSPOSE(($D113:$E113))),0) -> 0 | O113: =O$106+IF($C113<>0,SUMPRODUCT((O$107:O$108)*TRANSPOSE(($D113:$E113))),0) -> 0 | P113: =P$106+IF($C113<>0,SUMPRODUCT((P$107:P$108)*TRANSPOSE(($D113:$E113))),0) -> 0 | Q113: =Q$106+IF($C113<>0,SUMPRODUCT((Q$107:Q$108)*TRANSPOSE(($D113:$E113))),0) -> 0 | R113: =R$106+IF($C113<>0,SUMPRODUCT((R$107:R$108)*TRANSPOSE(($D113:$E113))),0) -> 0 | S113: =S$106+IF($C113<>0,SUMPRODUCT((S$107:S$108)*TRANSPOSE(($D113:$E113))),0) -> 0 | T113: =T$106+IF($C113<>0,SUMPRODUCT((T$107:T$108)*TRANSPOSE(($D113:$E113))),0) -> 0 | U113: =U$106+IF($C113<>0,SUMPRODUCT((U$107:U$108)*TRANSPOSE(($D113:$E113))),0) -> 0 | V113: =V$106+IF($C113<>0,SUMPRODUCT((V$107:V$108)*TRANSPOSE(($D113:$E113))),0) -> 0 | W113: =W$106+IF($C113<>0,SUMPRODUCT((W$107:W$108)*TRANSPOSE(($D113:$E113))),0) -> 0 | X113: =X$106+IF($C113<>0,SUMPRODUCT((X$107:X$108)*TRANSPOSE(($D113:$E113))),0) -> 0 | Y113: =Y$106+IF($C113<>0,SUMPRODUCT((Y$107:Y$108)*TRANSPOSE(($D113:$E113))),0) -> 0 | Z113: =Z$106+IF($C113<>0,SUMPRODUCT((Z$107:Z$108)*TRANSPOSE(($D113:$E113))),0) -> 0 | AA113: =AA$106+IF($C113<>0,SUMPRODUCT((AA$107:AA$108)*TRANSPOSE(($D113:$E113))),0) -> 0 | AB113: =AB$106+IF($C113<>0,SUMPRODUCT((AB$107:AB$108)*TRANSPOSE(($D113:$E113))),0) -> 0 | AC113: =AC$106+IF($C113<>0,SUMPRODUCT((AC$107:AC$108)*TRANSPOSE(($D113:$E113))),0) -> 0 | AD113: =AD$106+IF($C113<>0,SUMPRODUCT((AD$107:AD$108)*TRANSPOSE(($D113:$E113))),0) -> 0 | AE113: =AE$106+IF($C113<>0,SUMPRODUCT((AE$107:AE$108)*TRANSPOSE(($D113:$E113))),0) -> 0 | AF113: =AF$106+IF($C113<>0,SUMPRODUCT((AF$107:AF$108)*TRANSPOSE(($D113:$E113))),0) -> 0 | AG113: =AG$106+IF($C113<>0,SUMPRODUCT((AG$107:AG$108)*TRANSPOSE(($D113:$E113))),0) -> 0
A114: ="sens"&Assumptions!B115 -> sens5 | C114: =Assumptions!C115 -> Capex 10% higher & total benefits 10% lower | D114: =Assumptions!G115 -> 0.1 | E114: =Assumptions!H115 -> -0.1 | G114: Option 1 (Base Case)sens5 | I114: =I$106+IF($C114<>0,SUMPRODUCT((I$107:I$108)*TRANSPOSE(($D114:$E114))),0) -> 0 | J114: =J$106+IF($C114<>0,SUMPRODUCT((J$107:J$108)*TRANSPOSE(($D114:$E114))),0) -> 0 | K114: =K$106+IF($C114<>0,SUMPRODUCT((K$107:K$108)*TRANSPOSE(($D114:$E114))),0) -> 0 | L114: =L$106+IF($C114<>0,SUMPRODUCT((L$107:L$108)*TRANSPOSE(($D114:$E114))),0) -> 0 | M114: =M$106+IF($C114<>0,SUMPRODUCT((M$107:M$108)*TRANSPOSE(($D114:$E114))),0) -> 0 | N114: =N$106+IF($C114<>0,SUMPRODUCT((N$107:N$108)*TRANSPOSE(($D114:$E114))),0) -> 0 | O114: =O$106+IF($C114<>0,SUMPRODUCT((O$107:O$108)*TRANSPOSE(($D114:$E114))),0) -> 0 | P114: =P$106+IF($C114<>0,SUMPRODUCT((P$107:P$108)*TRANSPOSE(($D114:$E114))),0) -> 0 | Q114: =Q$106+IF($C114<>0,SUMPRODUCT((Q$107:Q$108)*TRANSPOSE(($D114:$E114))),0) -> 0 | R114: =R$106+IF($C114<>0,SUMPRODUCT((R$107:R$108)*TRANSPOSE(($D114:$E114))),0) -> 0 | S114: =S$106+IF($C114<>0,SUMPRODUCT((S$107:S$108)*TRANSPOSE(($D114:$E114))),0) -> 0 | T114: =T$106+IF($C114<>0,SUMPRODUCT((T$107:T$108)*TRANSPOSE(($D114:$E114))),0) -> 0 | U114: =U$106+IF($C114<>0,SUMPRODUCT((U$107:U$108)*TRANSPOSE(($D114:$E114))),0) -> 0 | V114: =V$106+IF($C114<>0,SUMPRODUCT((V$107:V$108)*TRANSPOSE(($D114:$E114))),0) -> 0 | W114: =W$106+IF($C114<>0,SUMPRODUCT((W$107:W$108)*TRANSPOSE(($D114:$E114))),0) -> 0 | X114: =X$106+IF($C114<>0,SUMPRODUCT((X$107:X$108)*TRANSPOSE(($D114:$E114))),0) -> 0 | Y114: =Y$106+IF($C114<>0,SUMPRODUCT((Y$107:Y$108)*TRANSPOSE(($D114:$E114))),0) -> 0 | Z114: =Z$106+IF($C114<>0,SUMPRODUCT((Z$107:Z$108)*TRANSPOSE(($D114:$E114))),0) -> 0 | AA114: =AA$106+IF($C114<>0,SUMPRODUCT((AA$107:AA$108)*TRANSPOSE(($D114:$E114))),0) -> 0 | AB114: =AB$106+IF($C114<>0,SUMPRODUCT((AB$107:AB$108)*TRANSPOSE(($D114:$E114))),0) -> 0 | AC114: =AC$106+IF($C114<>0,SUMPRODUCT((AC$107:AC$108)*TRANSPOSE(($D114:$E114))),0) -> 0 | AD114: =AD$106+IF($C114<>0,SUMPRODUCT((AD$107:AD$108)*TRANSPOSE(($D114:$E114))),0) -> 0 | AE114: =AE$106+IF($C114<>0,SUMPRODUCT((AE$107:AE$108)*TRANSPOSE(($D114:$E114))),0) -> 0 | AF114: =AF$106+IF($C114<>0,SUMPRODUCT((AF$107:AF$108)*TRANSPOSE(($D114:$E114))),0) -> 0 | AG114: =AG$106+IF($C114<>0,SUMPRODUCT((AG$107:AG$108)*TRANSPOSE(($D114:$E114))),0) -> 0
A115: ="sens"&Assumptions!B116 -> sens | C115: =Assumptions!C116 -> 0 | D115: =Assumptions!G116 -> 0 | E115: =Assumptions!H116 -> 0 | G115: Option 1 (Base Case)sens | I115: =I$106+IF($C115<>0,SUMPRODUCT((I$107:I$108)*TRANSPOSE(($D115:$E115))),0) -> 0 | J115: =J$106+IF($C115<>0,SUMPRODUCT((J$107:J$108)*TRANSPOSE(($D115:$E115))),0) -> 0 | K115: =K$106+IF($C115<>0,SUMPRODUCT((K$107:K$108)*TRANSPOSE(($D115:$E115))),0) -> 0 | L115: =L$106+IF($C115<>0,SUMPRODUCT((L$107:L$108)*TRANSPOSE(($D115:$E115))),0) -> 0 | M115: =M$106+IF($C115<>0,SUMPRODUCT((M$107:M$108)*TRANSPOSE(($D115:$E115))),0) -> 0 | N115: =N$106+IF($C115<>0,SUMPRODUCT((N$107:N$108)*TRANSPOSE(($D115:$E115))),0) -> 0 | O115: =O$106+IF($C115<>0,SUMPRODUCT((O$107:O$108)*TRANSPOSE(($D115:$E115))),0) -> 0 | P115: =P$106+IF($C115<>0,SUMPRODUCT((P$107:P$108)*TRANSPOSE(($D115:$E115))),0) -> 0 | Q115: =Q$106+IF($C115<>0,SUMPRODUCT((Q$107:Q$108)*TRANSPOSE(($D115:$E115))),0) -> 0 | R115: =R$106+IF($C115<>0,SUMPRODUCT((R$107:R$108)*TRANSPOSE(($D115:$E115))),0) -> 0 | S115: =S$106+IF($C115<>0,SUMPRODUCT((S$107:S$108)*TRANSPOSE(($D115:$E115))),0) -> 0 | T115: =T$106+IF($C115<>0,SUMPRODUCT((T$107:T$108)*TRANSPOSE(($D115:$E115))),0) -> 0 | U115: =U$106+IF($C115<>0,SUMPRODUCT((U$107:U$108)*TRANSPOSE(($D115:$E115))),0) -> 0 | V115: =V$106+IF($C115<>0,SUMPRODUCT((V$107:V$108)*TRANSPOSE(($D115:$E115))),0) -> 0 | W115: =W$106+IF($C115<>0,SUMPRODUCT((W$107:W$108)*TRANSPOSE(($D115:$E115))),0) -> 0 | X115: =X$106+IF($C115<>0,SUMPRODUCT((X$107:X$108)*TRANSPOSE(($D115:$E115))),0) -> 0 | Y115: =Y$106+IF($C115<>0,SUMPRODUCT((Y$107:Y$108)*TRANSPOSE(($D115:$E115))),0) -> 0 | Z115: =Z$106+IF($C115<>0,SUMPRODUCT((Z$107:Z$108)*TRANSPOSE(($D115:$E115))),0) -> 0 | AA115: =AA$106+IF($C115<>0,SUMPRODUCT((AA$107:AA$108)*TRANSPOSE(($D115:$E115))),0) -> 0 | AB115: =AB$106+IF($C115<>0,SUMPRODUCT((AB$107:AB$108)*TRANSPOSE(($D115:$E115))),0) -> 0 | AC115: =AC$106+IF($C115<>0,SUMPRODUCT((AC$107:AC$108)*TRANSPOSE(($D115:$E115))),0) -> 0 | AD115: =AD$106+IF($C115<>0,SUMPRODUCT((AD$107:AD$108)*TRANSPOSE(($D115:$E115))),0) -> 0 | AE115: =AE$106+IF($C115<>0,SUMPRODUCT((AE$107:AE$108)*TRANSPOSE(($D115:$E115))),0) -> 0 | AF115: =AF$106+IF($C115<>0,SUMPRODUCT((AF$107:AF$108)*TRANSPOSE(($D115:$E115))),0) -> 0 | AG115: =AG$106+IF($C115<>0,SUMPRODUCT((AG$107:AG$108)*TRANSPOSE(($D115:$E115))),0) -> 0
A116: ="sens"&Assumptions!B117 -> sens | C116: =Assumptions!C117 -> 0 | D116: =Assumptions!G117 -> 0 | E116: =Assumptions!H117 -> 0 | G116: Option 1 (Base Case)sens | I116: =I$106+IF($C116<>0,SUMPRODUCT((I$107:I$108)*TRANSPOSE(($D116:$E116))),0) -> 0 | J116: =J$106+IF($C116<>0,SUMPRODUCT((J$107:J$108)*TRANSPOSE(($D116:$E116))),0) -> 0 | K116: =K$106+IF($C116<>0,SUMPRODUCT((K$107:K$108)*TRANSPOSE(($D116:$E116))),0) -> 0 | L116: =L$106+IF($C116<>0,SUMPRODUCT((L$107:L$108)*TRANSPOSE(($D116:$E116))),0) -> 0 | M116: =M$106+IF($C116<>0,SUMPRODUCT((M$107:M$108)*TRANSPOSE(($D116:$E116))),0) -> 0 | N116: =N$106+IF($C116<>0,SUMPRODUCT((N$107:N$108)*TRANSPOSE(($D116:$E116))),0) -> 0 | O116: =O$106+IF($C116<>0,SUMPRODUCT((O$107:O$108)*TRANSPOSE(($D116:$E116))),0) -> 0 | P116: =P$106+IF($C116<>0,SUMPRODUCT((P$107:P$108)*TRANSPOSE(($D116:$E116))),0) -> 0 | Q116: =Q$106+IF($C116<>0,SUMPRODUCT((Q$107:Q$108)*TRANSPOSE(($D116:$E116))),0) -> 0 | R116: =R$106+IF($C116<>0,SUMPRODUCT((R$107:R$108)*TRANSPOSE(($D116:$E116))),0) -> 0 | S116: =S$106+IF($C116<>0,SUMPRODUCT((S$107:S$108)*TRANSPOSE(($D116:$E116))),0) -> 0 | T116: =T$106+IF($C116<>0,SUMPRODUCT((T$107:T$108)*TRANSPOSE(($D116:$E116))),0) -> 0 | U116: =U$106+IF($C116<>0,SUMPRODUCT((U$107:U$108)*TRANSPOSE(($D116:$E116))),0) -> 0 | V116: =V$106+IF($C116<>0,SUMPRODUCT((V$107:V$108)*TRANSPOSE(($D116:$E116))),0) -> 0 | W116: =W$106+IF($C116<>0,SUMPRODUCT((W$107:W$108)*TRANSPOSE(($D116:$E116))),0) -> 0 | X116: =X$106+IF($C116<>0,SUMPRODUCT((X$107:X$108)*TRANSPOSE(($D116:$E116))),0) -> 0 | Y116: =Y$106+IF($C116<>0,SUMPRODUCT((Y$107:Y$108)*TRANSPOSE(($D116:$E116))),0) -> 0 | Z116: =Z$106+IF($C116<>0,SUMPRODUCT((Z$107:Z$108)*TRANSPOSE(($D116:$E116))),0) -> 0 | AA116: =AA$106+IF($C116<>0,SUMPRODUCT((AA$107:AA$108)*TRANSPOSE(($D116:$E116))),0) -> 0 | AB116: =AB$106+IF($C116<>0,SUMPRODUCT((AB$107:AB$108)*TRANSPOSE(($D116:$E116))),0) -> 0 | AC116: =AC$106+IF($C116<>0,SUMPRODUCT((AC$107:AC$108)*TRANSPOSE(($D116:$E116))),0) -> 0 | AD116: =AD$106+IF($C116<>0,SUMPRODUCT((AD$107:AD$108)*TRANSPOSE(($D116:$E116))),0) -> 0 | AE116: =AE$106+IF($C116<>0,SUMPRODUCT((AE$107:AE$108)*TRANSPOSE(($D116:$E116))),0) -> 0 | AF116: =AF$106+IF($C116<>0,SUMPRODUCT((AF$107:AF$108)*TRANSPOSE(($D116:$E116))),0) -> 0 | AG116: =AG$106+IF($C116<>0,SUMPRODUCT((AG$107:AG$108)*TRANSPOSE(($D116:$E116))),0) -> 0
A117: ="sens"&Assumptions!B118 -> sens | C117: =Assumptions!C118 -> 0 | D117: =Assumptions!G118 -> 0 | E117: =Assumptions!H118 -> 0 | G117: Option 1 (Base Case)sens | I117: =I$106+IF($C117<>0,SUMPRODUCT((I$107:I$108)*TRANSPOSE(($D117:$E117))),0) -> 0 | J117: =J$106+IF($C117<>0,SUMPRODUCT((J$107:J$108)*TRANSPOSE(($D117:$E117))),0) -> 0 | K117: =K$106+IF($C117<>0,SUMPRODUCT((K$107:K$108)*TRANSPOSE(($D117:$E117))),0) -> 0 | L117: =L$106+IF($C117<>0,SUMPRODUCT((L$107:L$108)*TRANSPOSE(($D117:$E117))),0) -> 0 | M117: =M$106+IF($C117<>0,SUMPRODUCT((M$107:M$108)*TRANSPOSE(($D117:$E117))),0) -> 0 | N117: =N$106+IF($C117<>0,SUMPRODUCT((N$107:N$108)*TRANSPOSE(($D117:$E117))),0) -> 0 | O117: =O$106+IF($C117<>0,SUMPRODUCT((O$107:O$108)*TRANSPOSE(($D117:$E117))),0) -> 0 | P117: =P$106+IF($C117<>0,SUMPRODUCT((P$107:P$108)*TRANSPOSE(($D117:$E117))),0) -> 0 | Q117: =Q$106+IF($C117<>0,SUMPRODUCT((Q$107:Q$108)*TRANSPOSE(($D117:$E117))),0) -> 0 | R117: =R$106+IF($C117<>0,SUMPRODUCT((R$107:R$108)*TRANSPOSE(($D117:$E117))),0) -> 0 | S117: =S$106+IF($C117<>0,SUMPRODUCT((S$107:S$108)*TRANSPOSE(($D117:$E117))),0) -> 0 | T117: =T$106+IF($C117<>0,SUMPRODUCT((T$107:T$108)*TRANSPOSE(($D117:$E117))),0) -> 0 | U117: =U$106+IF($C117<>0,SUMPRODUCT((U$107:U$108)*TRANSPOSE(($D117:$E117))),0) -> 0 | V117: =V$106+IF($C117<>0,SUMPRODUCT((V$107:V$108)*TRANSPOSE(($D117:$E117))),0) -> 0 | W117: =W$106+IF($C117<>0,SUMPRODUCT((W$107:W$108)*TRANSPOSE(($D117:$E117))),0) -> 0 | X117: =X$106+IF($C117<>0,SUMPRODUCT((X$107:X$108)*TRANSPOSE(($D117:$E117))),0) -> 0 | Y117: =Y$106+IF($C117<>0,SUMPRODUCT((Y$107:Y$108)*TRANSPOSE(($D117:$E117))),0) -> 0 | Z117: =Z$106+IF($C117<>0,SUMPRODUCT((Z$107:Z$108)*TRANSPOSE(($D117:$E117))),0) -> 0 | AA117: =AA$106+IF($C117<>0,SUMPRODUCT((AA$107:AA$108)*TRANSPOSE(($D117:$E117))),0) -> 0 | AB117: =AB$106+IF($C117<>0,SUMPRODUCT((AB$107:AB$108)*TRANSPOSE(($D117:$E117))),0) -> 0 | AC117: =AC$106+IF($C117<>0,SUMPRODUCT((AC$107:AC$108)*TRANSPOSE(($D117:$E117))),0) -> 0 | AD117: =AD$106+IF($C117<>0,SUMPRODUCT((AD$107:AD$108)*TRANSPOSE(($D117:$E117))),0) -> 0 | AE117: =AE$106+IF($C117<>0,SUMPRODUCT((AE$107:AE$108)*TRANSPOSE(($D117:$E117))),0) -> 0 | AF117: =AF$106+IF($C117<>0,SUMPRODUCT((AF$107:AF$108)*TRANSPOSE(($D117:$E117))),0) -> 0 | AG117: =AG$106+IF($C117<>0,SUMPRODUCT((AG$107:AG$108)*TRANSPOSE(($D117:$E117))),0) -> 0

Sheet Option2
A1: =bus -> Powercor
A2: =proj -> HV cable replacement
A3: OPTION 2 | C3: =INDEX(Assumptions!$E$14:$E$18, MATCH(A3,_xlfn.ANCHORARRAY( Assumptions!$C$14),0)) -> Replace highest 5 delta risk cable sections
A4: =(INDEX(Data!$D$9:$D$13, MATCH(A3, options,0))) -> 
A6: ='Option1 (base case)'!A6 -> Count | I6: ='Option1 (base case)'!I6 -> 1 | J6: ='Option1 (base case)'!J6 -> 2 | K6: ='Option1 (base case)'!K6 -> 3 | L6: ='Option1 (base case)'!L6 -> 4 | M6: ='Option1 (base case)'!M6 -> 5 | N6: ='Option1 (base case)'!N6 -> 6 | O6: ='Option1 (base case)'!O6 -> 7 | P6: ='Option1 (base case)'!P6 -> 8 | Q6: ='Option1 (base case)'!Q6 -> 9 | R6: ='Option1 (base case)'!R6 -> 10 | S6: ='Option1 (base case)'!S6 -> 11 | T6: ='Option1 (base case)'!T6 -> 12 | U6: ='Option1 (base case)'!U6 -> 13 | V6: ='Option1 (base case)'!V6 -> 14 | W6: ='Option1 (base case)'!W6 -> 15 | X6: ='Option1 (base case)'!X6 -> 16 | Y6: ='Option1 (base case)'!Y6 -> 17 | Z6: ='Option1 (base case)'!Z6 -> 18 | AA6: ='Option1 (base case)'!AA6 -> 19 | AB6: ='Option1 (base case)'!AB6 -> 20 | AC6: ='Option1 (base case)'!AC6 -> 21 | AD6: ='Option1 (base case)'!AD6 -> 22 | AE6: ='Option1 (base case)'!AE6 -> 23 | AF6: ='Option1 (base case)'!AF6 -> 24 | AG6: ='Option1 (base case)'!AG6 -> 25
A7: ='Option1 (base case)'!A7 -> Value of CO2 reductions | G7: $/MWh | I7: ='Option1 (base case)'!I7 -> 24.7304868 | J7: ='Option1 (base case)'!J7 -> 22.34074009 | K7: ='Option1 (base case)'!K7 -> 20.19632912 | L7: ='Option1 (base case)'!L7 -> 18.06294208 | M7: ='Option1 (base case)'!M7 -> 15.91339762 | N7: ='Option1 (base case)'!N7 -> 13.71506943 | O7: ='Option1 (base case)'!O7 -> 13.71506943 | P7: ='Option1 (base case)'!P7 -> 13.71506943 | Q7: ='Option1 (base case)'!Q7 -> 13.71506943 | R7: ='Option1 (base case)'!R7 -> 13.71506943 | S7: ='Option1 (base case)'!S7 -> 13.71506943 | T7: ='Option1 (base case)'!T7 -> 13.71506943 | U7: ='Option1 (base case)'!U7 -> 13.71506943 | V7: ='Option1 (base case)'!V7 -> 13.71506943 | W7: ='Option1 (base case)'!W7 -> 13.71506943 | X7: ='Option1 (base case)'!X7 -> 13.71506943 | Y7: ='Option1 (base case)'!Y7 -> 13.71506943 | Z7: ='Option1 (base case)'!Z7 -> 13.71506943 | AA7: ='Option1 (base case)'!AA7 -> 13.71506943 | AB7: ='Option1 (base case)'!AB7 -> 13.71506943 | AC7: ='Option1 (base case)'!AC7 -> 13.71506943 | AD7: ='Option1 (base case)'!AD7 -> 13.71506943 | AE7: ='Option1 (base case)'!AE7 -> 13.71506943 | AF7: ='Option1 (base case)'!AF7 -> 13.71506943 | AG7: ='Option1 (base case)'!AG7 -> 13.71506943
G9: Units | I9: ='Option1 (base case)'!I9 -> 2026-27 | J9: ='Option1 (base case)'!J9 -> 2027-28 | K9: ='Option1 (base case)'!K9 -> 2028-29 | L9: ='Option1 (base case)'!L9 -> 2029-30 | M9: ='Option1 (base case)'!M9 -> 2030-31 | N9: ='Option1 (base case)'!N9 -> 2031-32 | O9: ='Option1 (base case)'!O9 -> 2032-33 | P9: ='Option1 (base case)'!P9 -> 2033-34 | Q9: ='Option1 (base case)'!Q9 -> 2034-35 | R9: ='Option1 (base case)'!R9 -> 2035-36 | S9: ='Option1 (base case)'!S9 -> 2036-37 | T9: ='Option1 (base case)'!T9 -> 2037-38 | U9: ='Option1 (base case)'!U9 -> 2038-39 | V9: ='Option1 (base case)'!V9 -> 2039-40 | W9: ='Option1 (base case)'!W9 -> 2040-41 | X9: ='Option1 (base case)'!X9 -> 2041-42 | Y9: ='Option1 (base case)'!Y9 -> 2042-43 | Z9: ='Option1 (base case)'!Z9 -> 2043-44 | AA9: ='Option1 (base case)'!AA9 -> 2044-45 | AB9: ='Option1 (base case)'!AB9 -> 2045-46 | AC9: ='Option1 (base case)'!AC9 -> 2046-47 | AD9: ='Option1 (base case)'!AD9 -> 2047-48 | AE9: ='Option1 (base case)'!AE9 -> 2048-49 | AF9: ='Option1 (base case)'!AF9 -> 2049-50 | AG9: ='Option1 (base case)'!AG9 -> 2050-51
A11: INVESTMENT & OPERATING COST
C13: Capex | E13: Asset life (yrs)
C14: Cable replacement | E14: 60 | G14: =input_dollars -> 2023-12-31 | I14: =Workings_costs!E43 -> 1528818.218 | J14: =Workings_costs!F43 -> 1528818.218 | K14: =Workings_costs!G43 -> 1528818.218 | L14: =Workings_costs!H43 -> 1528818.218 | M14: =Workings_costs!I43 -> 1528818.218 | N14: 0 | O14: 0 | P14: 0 | Q14: 0 | R14: 0 | S14: 0 | T14: 0 | U14: 0 | V14: 0 | W14: 0 | X14: 0 | Y14: 0 | Z14: 0 | AA14: 0 | AB14: 0 | AC14: 0 | AD14: 0 | AE14: 0 | AF14: 0 | AG14: 0
E15: 0 | G15: =input_dollars -> 2023-12-31 | I15: 0 | J15: 0 | K15: 0 | L15: 0 | M15: 0 | N15: 0 | O15: 0 | P15: 0 | Q15: 0 | R15: 0 | S15: 0 | T15: 0 | U15: 0 | V15: 0 | W15: 0 | X15: 0 | Y15: 0 | Z15: 0 | AA15: 0 | AB15: 0 | AC15: 0 | AD15: 0 | AE15: 0 | AF15: 0 | AG15: 0
E16: 0 | G16: =input_dollars -> 2023-12-31 | I16: 0 | J16: 0 | K16: 0 | L16: 0 | M16: 0 | N16: 0 | O16: 0 | P16: 0 | Q16: 0 | R16: 0 | S16: 0 | T16: 0 | U16: 0 | V16: 0 | W16: 0 | X16: 0 | Y16: 0 | Z16: 0 | AA16: 0 | AB16: 0 | AC16: 0 | AD16: 0 | AE16: 0 | AF16: 0 | AG16: 0
C17: Capital expenditure | G17: =input_dollars -> 2023-12-31 | I17: =SUM(I14:I16) -> 1528818.218 | J17: 1528818.218 | K17: 1528818.218 | L17: 1528818.218 | M17: 1528818.218 | N17: 0 | O17: 0 | P17: 0 | Q17: 0 | R17: =SUM(R14:R16) -> 0 | S17: 0 | T17: 0 | U17: 0 | V17: 0 | W17: 0 | X17: 0 | Y17: 0 | Z17: 0 | AA17: 0 | AB17: 0 | AC17: 0 | AD17: 0 | AE17: 0 | AF17: 0 | AG17: 0
C19: Operating expenditure | G19: =input_dollars -> 2023-12-31 | I19: 0 | J19: 0 | K19: 0 | L19: 0 | M19: 0 | N19: 0 | O19: 0 | P19: 0 | Q19: 0 | R19: 0 | S19: 0 | T19: 0 | U19: 0 | V19: 0 | W19: 0 | X19: 0 | Y19: 0 | Z19: 0 | AA19: 0 | AB19: 0 | AC19: 0 | AD19: 0 | AE19: 0 | AF19: 0 | AG19: 0
A22: RISK ASSUMPTIONS
C24: PoF (major) | I24: 0 | J24: 0 | K24: 0 | L24: 0 | M24: 0 | N24: 0 | O24: 0 | P24: 0 | Q24: 0 | R24: 0 | S24: 0 | T24: 0 | U24: 0 | V24: 0 | W24: 0 | X24: 0 | Y24: 0 | Z24: 0 | AA24: 0 | AB24: 0 | AC24: 0 | AD24: 0 | AE24: 0 | AF24: 0 | AG24: 0
C25: PoF (reparable) | I25: 0 | J25: 0 | K25: 0 | L25: 0 | M25: 0 | N25: 0 | O25: 0 | P25: 0 | Q25: 0 | R25: 0 | S25: 0 | T25: 0 | U25: 0 | V25: 0 | W25: 0 | X25: 0 | Y25: 0 | Z25: 0 | AA25: 0 | AB25: 0 | AC25: 0 | AD25: 0 | AE25: 0 | AF25: 0 | AG25: 0
C27: Energy at risk (weighted) | G27: MWh | I27: =INDEX(Workings_risks!J$60:J$233, MATCH($A$3&$C27, Workings_risks!$E$60:$E$233,0)) -> 656.9024966 | J27: =INDEX(Workings_risks!K$60:K$233, MATCH($A$3&$C27, Workings_risks!$E$60:$E$233,0)) -> 784.7868578 | K27: =INDEX(Workings_risks!L$60:L$233, MATCH($A$3&$C27, Workings_risks!$E$60:$E$233,0)) -> 943.1239707 | L27: =INDEX(Workings_risks!M$60:M$233, MATCH($A$3&$C27, Workings_risks!$E$60:$E$233,0)) -> 1139.171789 | M27: =INDEX(Workings_risks!N$60:N$233, MATCH($A$3&$C27, Workings_risks!$E$60:$E$233,0)) -> 1382.449033 | N27: =INDEX(Workings_risks!O$60:O$233, MATCH($A$3&$C27, Workings_risks!$E$60:$E$233,0)) -> 1684.837912 | O27: =INDEX(Workings_risks!P$60:P$233, MATCH($A$3&$C27, Workings_risks!$E$60:$E$233,0)) -> 2059.637905 | P27: =INDEX(Workings_risks!Q$60:Q$233, MATCH($A$3&$C27, Workings_risks!$E$60:$E$233,0)) -> 2439.762417 | Q27: =INDEX(Workings_risks!R$60:R$233, MATCH($A$3&$C27, Workings_risks!$E$60:$E$233,0)) -> 2824.414156 | R27: =INDEX(Workings_risks!S$60:S$233, MATCH($A$3&$C27, Workings_risks!$E$60:$E$233,0)) -> 3212.292613 | S27: =INDEX(Workings_risks!T$60:T$233, MATCH($A$3&$C27, Workings_risks!$E$60:$E$233,0)) -> 3689.251071 | T27: =INDEX(Workings_risks!U$60:U$233, MATCH($A$3&$C27, Workings_risks!$E$60:$E$233,0)) -> 4174.009312 | U27: =INDEX(Workings_risks!V$60:V$233, MATCH($A$3&$C27, Workings_risks!$E$60:$E$233,0)) -> 4625.973315 | V27: =INDEX(Workings_risks!W$60:W$233, MATCH($A$3&$C27, Workings_risks!$E$60:$E$233,0)) -> 4949.226433 | W27: =INDEX(Workings_risks!X$60:X$233, MATCH($A$3&$C27, Workings_risks!$E$60:$E$233,0)) -> 5198.942058 | X27: =INDEX(Workings_risks!Y$60:Y$233, MATCH($A$3&$C27, Workings_risks!$E$60:$E$233,0)) -> 5420.071201 | Y27: =INDEX(Workings_risks!Z$60:Z$233, MATCH($A$3&$C27, Workings_risks!$E$60:$E$233,0)) -> 5552.348034 | Z27: =INDEX(Workings_risks!AA$60:AA$233, MATCH($A$3&$C27, Workings_risks!$E$60:$E$233,0)) -> 5664.722913 | AA27: =INDEX(Workings_risks!AB$60:AB$233, MATCH($A$3&$C27, Workings_risks!$E$60:$E$233,0)) -> 5759.112698 | AB27: =INDEX(Workings_risks!AC$60:AC$233, MATCH($A$3&$C27, Workings_risks!$E$60:$E$233,0)) -> 5843.823241 | AC27: =INDEX(Workings_risks!AD$60:AD$233, MATCH($A$3&$C27, Workings_risks!$E$60:$E$233,0)) -> 5921.99491 | AD27: =INDEX(Workings_risks!AE$60:AE$233, MATCH($A$3&$C27, Workings_risks!$E$60:$E$233,0)) -> 5977.544022 | AE27: =INDEX(Workings_risks!AF$60:AF$233, MATCH($A$3&$C27, Workings_risks!$E$60:$E$233,0)) -> 6020.715271 | AF27: =INDEX(Workings_risks!AG$60:AG$233, MATCH($A$3&$C27, Workings_risks!$E$60:$E$233,0)) -> 6058.343681 | AG27: =INDEX(Workings_risks!AH$60:AH$233, MATCH($A$3&$C27, Workings_risks!$E$60:$E$233,0)) -> 6094.213504
C28: Energy at risk value | D28: $/MWh | E28: =Assumptions!H41*vcr_esc -> 34717.18798 | F28: =IF(AND(SUM(I27:AG27)<>0, E28=0), "!", "") ->  | G28: =input_dollars -> 2023-12-31 | I28: =I27*$E$28 -> 22805807.46 | J28: =J27*$E$28 -> 27245592.86 | K28: 32742612.18 | L28: 39548841.12 | M28: 47994742.94 | N28: 58492834.51 | O28: 71504836.33 | P28: 84701690.44 | Q28: 98055717.19 | R28: 111521766.5 | S28: 128080422.9 | T28: 144909865.9 | U28: 160600785.2 | V28: 171823224.4 | W28: 180492648.7 | X28: 188169630.7 | Y28: 192761910.4 | Z28: 196663250.2 | AA28: 199940198.1 | AB28: 202881110 | AC28: 205595010.5 | AD28: 207523519.5 | AE28: 209022303.8 | AF28: 210328656.4 | AG28: 211573955.8
C30: ='Option1 (base case)'!C30 -> Safety consequence | D30: (after DF) | G30: =input_dollars -> 2023-12-31 | I30: =INDEX(Workings_risks!J$60:J$170, MATCH($A$3&$C30, Workings_risks!$E$60:$E$170,0)) -> 3423255.928 | J30: =INDEX(Workings_risks!K$60:K$170, MATCH($A$3&$C30, Workings_risks!$E$60:$E$170,0)) -> 4090315.994 | K30: =INDEX(Workings_risks!L$60:L$170, MATCH($A$3&$C30, Workings_risks!$E$60:$E$170,0)) -> 4916377.851 | L30: =INDEX(Workings_risks!M$60:M$170, MATCH($A$3&$C30, Workings_risks!$E$60:$E$170,0)) -> 5939374.24 | M30: =INDEX(Workings_risks!N$60:N$170, MATCH($A$3&$C30, Workings_risks!$E$60:$E$170,0)) -> 7209056.526 | N30: =INDEX(Workings_risks!O$60:O$170, MATCH($A$3&$C30, Workings_risks!$E$60:$E$170,0)) -> 8787542.347 | O30: =INDEX(Workings_risks!P$60:P$170, MATCH($A$3&$C30, Workings_risks!$E$60:$E$170,0)) -> 10742383.36 | P30: =INDEX(Workings_risks!Q$60:Q$170, MATCH($A$3&$C30, Workings_risks!$E$60:$E$170,0)) -> 12724236.04 | Q30: =INDEX(Workings_risks!R$60:R$170, MATCH($A$3&$C30, Workings_risks!$E$60:$E$170,0)) -> 14728859.52 | R30: =INDEX(Workings_risks!S$60:S$170, MATCH($A$3&$C30, Workings_risks!$E$60:$E$170,0)) -> 16750175.06 | S30: =INDEX(Workings_risks!T$60:T$170, MATCH($A$3&$C30, Workings_risks!$E$60:$E$170,0)) -> 19235705.07 | T30: =INDEX(Workings_risks!U$60:U$170, MATCH($A$3&$C30, Workings_risks!$E$60:$E$170,0)) -> 21761881.38 | U30: =INDEX(Workings_risks!V$60:V$170, MATCH($A$3&$C30, Workings_risks!$E$60:$E$170,0)) -> 24117160.07 | V30: =INDEX(Workings_risks!W$60:W$170, MATCH($A$3&$C30, Workings_risks!$E$60:$E$170,0)) -> 25801699.49 | W30: =INDEX(Workings_risks!X$60:X$170, MATCH($A$3&$C30, Workings_risks!$E$60:$E$170,0)) -> 27103019.7 | X30: =INDEX(Workings_risks!Y$60:Y$170, MATCH($A$3&$C30, Workings_risks!$E$60:$E$170,0)) -> 28255369.79 | Y30: =INDEX(Workings_risks!Z$60:Z$170, MATCH($A$3&$C30, Workings_risks!$E$60:$E$170,0)) -> 28944691.95 | Z30: =INDEX(Workings_risks!AA$60:AA$170, MATCH($A$3&$C30, Workings_risks!$E$60:$E$170,0)) -> 29530300.89 | AA30: =INDEX(Workings_risks!AB$60:AB$170, MATCH($A$3&$C30, Workings_risks!$E$60:$E$170,0)) -> 30022185.75 | AB30: =INDEX(Workings_risks!AC$60:AC$170, MATCH($A$3&$C30, Workings_risks!$E$60:$E$170,0)) -> 30463630.06 | AC30: =INDEX(Workings_risks!AD$60:AD$170, MATCH($A$3&$C30, Workings_risks!$E$60:$E$170,0)) -> 30870998.93 | AD30: =INDEX(Workings_risks!AE$60:AE$170, MATCH($A$3&$C30, Workings_risks!$E$60:$E$170,0)) -> 31160476.94 | AE30: =INDEX(Workings_risks!AF$60:AF$170, MATCH($A$3&$C30, Workings_risks!$E$60:$E$170,0)) -> 31385451.32 | AF30: =INDEX(Workings_risks!AG$60:AG$170, MATCH($A$3&$C30, Workings_risks!$E$60:$E$170,0)) -> 31581540.81 | AG30: =INDEX(Workings_risks!AH$60:AH$170, MATCH($A$3&$C30, Workings_risks!$E$60:$E$170,0)) -> 31768465.94
C31: ='Option1 (base case)'!C31 -> Unplanned replacements | G31: =input_dollars -> 2023-12-31 | I31: =INDEX(Workings_risks!J$60:J$170, MATCH($A$3&$C31, Workings_risks!$E$60:$E$170,0)) -> 1900959.372 | J31: =INDEX(Workings_risks!K$60:K$170, MATCH($A$3&$C31, Workings_risks!$E$60:$E$170,0)) -> 2266991.284 | K31: =INDEX(Workings_risks!L$60:L$170, MATCH($A$3&$C31, Workings_risks!$E$60:$E$170,0)) -> 2719177.179 | L31: =INDEX(Workings_risks!M$60:M$170, MATCH($A$3&$C31, Workings_risks!$E$60:$E$170,0)) -> 3277811.933 | M31: =INDEX(Workings_risks!N$60:N$170, MATCH($A$3&$C31, Workings_risks!$E$60:$E$170,0)) -> 3969492.62 | N31: =INDEX(Workings_risks!O$60:O$170, MATCH($A$3&$C31, Workings_risks!$E$60:$E$170,0)) -> 4827336.228 | O31: =INDEX(Workings_risks!P$60:P$170, MATCH($A$3&$C31, Workings_risks!$E$60:$E$170,0)) -> 5901125.264 | P31: =INDEX(Workings_risks!Q$60:Q$170, MATCH($A$3&$C31, Workings_risks!$E$60:$E$170,0)) -> 6995057.377 | Q31: =INDEX(Workings_risks!R$60:R$170, MATCH($A$3&$C31, Workings_risks!$E$60:$E$170,0)) -> 8107379.305 | R31: =INDEX(Workings_risks!S$60:S$170, MATCH($A$3&$C31, Workings_risks!$E$60:$E$170,0)) -> 9229830.798 | S31: =INDEX(Workings_risks!T$60:T$170, MATCH($A$3&$C31, Workings_risks!$E$60:$E$170,0)) -> 10610064.02 | T31: =INDEX(Workings_risks!U$60:U$170, MATCH($A$3&$C31, Workings_risks!$E$60:$E$170,0)) -> 12012868.43 | U31: =INDEX(Workings_risks!V$60:V$170, MATCH($A$3&$C31, Workings_risks!$E$60:$E$170,0)) -> 13320772.14 | V31: =INDEX(Workings_risks!W$60:W$170, MATCH($A$3&$C31, Workings_risks!$E$60:$E$170,0)) -> 14256209.36 | W31: =INDEX(Workings_risks!X$60:X$170, MATCH($A$3&$C31, Workings_risks!$E$60:$E$170,0)) -> 14978842.11 | X31: =INDEX(Workings_risks!Y$60:Y$170, MATCH($A$3&$C31, Workings_risks!$E$60:$E$170,0)) -> 15618750.65 | Y31: =INDEX(Workings_risks!Z$60:Z$170, MATCH($A$3&$C31, Workings_risks!$E$60:$E$170,0)) -> 16001536.35 | Z31: =INDEX(Workings_risks!AA$60:AA$170, MATCH($A$3&$C31, Workings_risks!$E$60:$E$170,0)) -> 16326729.33 | AA31: =INDEX(Workings_risks!AB$60:AB$170, MATCH($A$3&$C31, Workings_risks!$E$60:$E$170,0)) -> 16599876.63 | AB31: =INDEX(Workings_risks!AC$60:AC$170, MATCH($A$3&$C31, Workings_risks!$E$60:$E$170,0)) -> 16845013.93 | AC31: =INDEX(Workings_risks!AD$60:AD$170, MATCH($A$3&$C31, Workings_risks!$E$60:$E$170,0)) -> 17071228.88 | AD31: =INDEX(Workings_risks!AE$60:AE$170, MATCH($A$3&$C31, Workings_risks!$E$60:$E$170,0)) -> 17231978.16 | AE31: =INDEX(Workings_risks!AF$60:AF$170, MATCH($A$3&$C31, Workings_risks!$E$60:$E$170,0)) -> 17356908.1 | AF31: =INDEX(Workings_risks!AG$60:AG$170, MATCH($A$3&$C31, Workings_risks!$E$60:$E$170,0)) -> 17465798.05 | AG31: =INDEX(Workings_risks!AH$60:AH$170, MATCH($A$3&$C31, Workings_risks!$E$60:$E$170,0)) -> 17569598.96
C32: ='Option1 (base case)'!C32 -> Environmental consequence | D32: (after DF) | G32: =input_dollars -> 2023-12-31 | I32: =INDEX(Workings_risks!J$60:J$170, MATCH($A$3&$C32, Workings_risks!$E$60:$E$170,0)) -> 165853.3837 | J32: =INDEX(Workings_risks!K$60:K$170, MATCH($A$3&$C32, Workings_risks!$E$60:$E$170,0)) -> 198355.4382 | K32: =INDEX(Workings_risks!L$60:L$170, MATCH($A$3&$C32, Workings_risks!$E$60:$E$170,0)) -> 238650.5042 | L32: =INDEX(Workings_risks!M$60:M$170, MATCH($A$3&$C32, Workings_risks!$E$60:$E$170,0)) -> 288608.5641 | M32: =INDEX(Workings_risks!N$60:N$170, MATCH($A$3&$C32, Workings_risks!$E$60:$E$170,0)) -> 350683.1063 | N32: =INDEX(Workings_risks!O$60:O$170, MATCH($A$3&$C32, Workings_risks!$E$60:$E$170,0)) -> 427941.2716 | O32: =INDEX(Workings_risks!P$60:P$170, MATCH($A$3&$C32, Workings_risks!$E$60:$E$170,0)) -> 523142.7205 | P32: =INDEX(Workings_risks!Q$60:Q$170, MATCH($A$3&$C32, Workings_risks!$E$60:$E$170,0)) -> 619437.7683 | Q32: =INDEX(Workings_risks!R$60:R$170, MATCH($A$3&$C32, Workings_risks!$E$60:$E$170,0)) -> 716595.7836 | R32: =INDEX(Workings_risks!S$60:S$170, MATCH($A$3&$C32, Workings_risks!$E$60:$E$170,0)) -> 814526.5341 | S32: =INDEX(Workings_risks!T$60:T$170, MATCH($A$3&$C32, Workings_risks!$E$60:$E$170,0)) -> 934948.0191 | T32: =INDEX(Workings_risks!U$60:U$170, MATCH($A$3&$C32, Workings_risks!$E$60:$E$170,0)) -> 1057338.777 | U32: =INDEX(Workings_risks!V$60:V$170, MATCH($A$3&$C32, Workings_risks!$E$60:$E$170,0)) -> 1171449.714 | V32: =INDEX(Workings_risks!W$60:W$170, MATCH($A$3&$C32, Workings_risks!$E$60:$E$170,0)) -> 1253063.993 | W32: =INDEX(Workings_risks!X$60:X$170, MATCH($A$3&$C32, Workings_risks!$E$60:$E$170,0)) -> 1316111.677 | X32: =INDEX(Workings_risks!Y$60:Y$170, MATCH($A$3&$C32, Workings_risks!$E$60:$E$170,0)) -> 1371941.906 | Y32: =INDEX(Workings_risks!Z$60:Z$170, MATCH($A$3&$C32, Workings_risks!$E$60:$E$170,0)) -> 1405338.887 | Z32: =INDEX(Workings_risks!AA$60:AA$170, MATCH($A$3&$C32, Workings_risks!$E$60:$E$170,0)) -> 1433711.064 | AA32: =INDEX(Workings_risks!AB$60:AB$170, MATCH($A$3&$C32, Workings_risks!$E$60:$E$170,0)) -> 1457542.402 | AB32: =INDEX(Workings_risks!AC$60:AC$170, MATCH($A$3&$C32, Workings_risks!$E$60:$E$170,0)) -> 1478929.945 | AC32: =INDEX(Workings_risks!AD$60:AD$170, MATCH($A$3&$C32, Workings_risks!$E$60:$E$170,0)) -> 1498666.566 | AD32: =INDEX(Workings_risks!AE$60:AE$170, MATCH($A$3&$C32, Workings_risks!$E$60:$E$170,0)) -> 1512691.491 | AE32: =INDEX(Workings_risks!AF$60:AF$170, MATCH($A$3&$C32, Workings_risks!$E$60:$E$170,0)) -> 1523591.278 | AF32: =INDEX(Workings_risks!AG$60:AG$170, MATCH($A$3&$C32, Workings_risks!$E$60:$E$170,0)) -> 1533091.622 | AG32: =INDEX(Workings_risks!AH$60:AH$170, MATCH($A$3&$C32, Workings_risks!$E$60:$E$170,0)) -> 1542147.96
C33: ='Option1 (base case)'!C33 -> Response cost | G33: =input_dollars -> 2023-12-31 | I33: =INDEX(Workings_risks!J$60:J$170, MATCH($A$3&$C33, Workings_risks!$E$60:$E$170,0)) -> 1114904.081 | J33: =INDEX(Workings_risks!K$60:K$170, MATCH($A$3&$C33, Workings_risks!$E$60:$E$170,0)) -> 1332512.304 | K33: =INDEX(Workings_risks!L$60:L$170, MATCH($A$3&$C33, Workings_risks!$E$60:$E$170,0)) -> 1602078.904 | L33: =INDEX(Workings_risks!M$60:M$170, MATCH($A$3&$C33, Workings_risks!$E$60:$E$170,0)) -> 1936020.493 | M33: =INDEX(Workings_risks!N$60:N$170, MATCH($A$3&$C33, Workings_risks!$E$60:$E$170,0)) -> 2350624.012 | N33: =INDEX(Workings_risks!O$60:O$170, MATCH($A$3&$C33, Workings_risks!$E$60:$E$170,0)) -> 2866232.101 | O33: =INDEX(Workings_risks!P$60:P$170, MATCH($A$3&$C33, Workings_risks!$E$60:$E$170,0)) -> 3503849.007 | P33: =INDEX(Workings_risks!Q$60:Q$170, MATCH($A$3&$C33, Workings_risks!$E$60:$E$170,0)) -> 4149845.599 | Q33: =INDEX(Workings_risks!R$60:R$170, MATCH($A$3&$C33, Workings_risks!$E$60:$E$170,0)) -> 4802791.823 | R33: =INDEX(Workings_risks!S$60:S$170, MATCH($A$3&$C33, Workings_risks!$E$60:$E$170,0)) -> 5461104.551 | S33: =INDEX(Workings_risks!T$60:T$170, MATCH($A$3&$C33, Workings_risks!$E$60:$E$170,0)) -> 6270605.099 | T33: =INDEX(Workings_risks!U$60:U$170, MATCH($A$3&$C33, Workings_risks!$E$60:$E$170,0)) -> 7093343.548 | U33: =INDEX(Workings_risks!V$60:V$170, MATCH($A$3&$C33, Workings_risks!$E$60:$E$170,0)) -> 7860423.161 | V33: =INDEX(Workings_risks!W$60:W$170, MATCH($A$3&$C33, Workings_risks!$E$60:$E$170,0)) -> 8409052.861 | W33: =INDEX(Workings_risks!X$60:X$170, MATCH($A$3&$C33, Workings_risks!$E$60:$E$170,0)) -> 8832873.704 | X33: =INDEX(Workings_risks!Y$60:Y$170, MATCH($A$3&$C33, Workings_risks!$E$60:$E$170,0)) -> 9208177.171 | Y33: =INDEX(Workings_risks!Z$60:Z$170, MATCH($A$3&$C33, Workings_risks!$E$60:$E$170,0)) -> 9432679.256 | Z33: =INDEX(Workings_risks!AA$60:AA$170, MATCH($A$3&$C33, Workings_risks!$E$60:$E$170,0)) -> 9623403.469 | AA33: =INDEX(Workings_risks!AB$60:AB$170, MATCH($A$3&$C33, Workings_risks!$E$60:$E$170,0)) -> 9783603.129 | AB33: =INDEX(Workings_risks!AC$60:AC$170, MATCH($A$3&$C33, Workings_risks!$E$60:$E$170,0)) -> 9927375.045 | AC33: =INDEX(Workings_risks!AD$60:AD$170, MATCH($A$3&$C33, Workings_risks!$E$60:$E$170,0)) -> 10060049.09 | AD33: =INDEX(Workings_risks!AE$60:AE$170, MATCH($A$3&$C33, Workings_risks!$E$60:$E$170,0)) -> 10154327.82 | AE33: =INDEX(Workings_risks!AF$60:AF$170, MATCH($A$3&$C33, Workings_risks!$E$60:$E$170,0)) -> 10227598.67 | AF33: =INDEX(Workings_risks!AG$60:AG$170, MATCH($A$3&$C33, Workings_risks!$E$60:$E$170,0)) -> 10291462.13 | AG33: =INDEX(Workings_risks!AH$60:AH$170, MATCH($A$3&$C33, Workings_risks!$E$60:$E$170,0)) -> 10352340.89
G34: =input_dollars -> 2023-12-31 | I34: 0 | J34: 0 | K34: 0 | L34: 0 | M34: 0 | N34: 0 | O34: 0 | P34: 0 | Q34: 0 | R34: 0 | S34: 0 | T34: 0 | U34: 0 | V34: 0 | W34: 0 | X34: 0 | Y34: 0 | Z34: 0 | AA34: 0 | AB34: 0 | AC34: 0 | AD34: 0 | AE34: 0 | AF34: 0 | AG34: 0
C36: Total risk cost | I36: =SUM(I28:I34) -> 29410780.22 | J36: =SUM(J28:J34) -> 35133767.89 | K36: 42218896.62 | L36: 50990656.35 | M36: 61874599.21 | N36: 75401886.46 | O36: 92175336.68 | P36: 109190267.2 | Q36: 126411343.6 | R36: 143777403.4 | S36: 165131745.1 | T36: 186835298 | U36: 207070590.3 | V36: 221543250.1 | W36: 232723495.9 | X36: 242623870.3 | Y36: 248546156.9 | Z36: 253577395 | AA36: 257803406 | AB36: 261596059 | AC36: 265095954 | AD36: 267582993.9 | AE36: 269515853.2 | AF36: 271200549 | AG36: 272806509.6
A38: OTHER BENEFITS
C41: Reduction in CO2 emissions | G41: MWh | I41: 0 | J41: 0 | K41: 0 | L41: 0 | M41: 0 | N41: 0 | O41: 0 | P41: 0 | Q41: 0 | R41: 0 | S41: 0 | T41: 0 | U41: 0 | V41: 0 | W41: 0 | X41: 0 | Y41: 0 | Z41: 0 | AA41: 0 | AB41: 0 | AC41: 0 | AD41: 0 | AE41: 0 | AF41: 0 | AG41: 0
C42: Value of reduction in CO2 emissions | G42: $ | I42: =I41*I7 -> 0 | J42: 0 | K42: 0 | L42: 0 | M42: 0 | N42: 0 | O42: 0 | P42: 0 | Q42: 0 | R42: 0 | S42: 0 | T42: 0 | U42: 0 | V42: 0 | W42: 0 | X42: 0 | Y42: 0 | Z42: 0 | AA42: 0 | AB42: 0 | AC42: 0 | AD42: 0 | AE42: 0 | AF42: 0 | AG42: 0
C45: Reliability in worst-served areas | D45: $/MWh | E45: =Assumptions!G94 -> 151432.8174 | G45: MWh | I45: 0 | J45: 0 | K45: 0 | L45: 0 | M45: 0 | N45: 0 | O45: 0 | P45: 0 | Q45: 0 | R45: 0 | S45: 0 | T45: 0 | U45: 0 | V45: 0 | W45: 0 | X45: 0 | Y45: 0 | Z45: 0 | AA45: 0 | AB45: 0 | AC45: 0 | AD45: 0 | AE45: 0 | AF45: 0 | AG45: 0
C46: Network resilience | D46: $/MWh | E46: =Assumptions!G95 -> 24590 | G46: MWh | I46: 0 | J46: 0 | K46: 0 | L46: 0 | M46: 0 | N46: 0 | O46: 0 | P46: 0 | Q46: 0 | R46: 0 | S46: 0 | T46: 0 | U46: 0 | V46: 0 | W46: 0 | X46: 0 | Y46: 0 | Z46: 0 | AA46: 0 | AB46: 0 | AC46: 0 | AD46: 0 | AE46: 0 | AF46: 0 | AG46: 0
C47: Enabling solar exports | D47: $/MWh | E47: =Assumptions!G96 -> 88.35771951 | G47: MWh | I47: 0 | J47: 0 | K47: 0 | L47: 0 | M47: 0 | N47: 0 | O47: 0 | P47: 0 | Q47: 0 | R47: 0 | S47: 0 | T47: 0 | U47: 0 | V47: 0 | W47: 0 | X47: 0 | Y47: 0 | Z47: 0 | AA47: 0 | AB47: 0 | AC47: 0 | AD47: 0 | AE47: 0 | AF47: 0 | AG47: 0
C48: Aesthetics | D48: $/customer | E48: =Assumptions!G97 -> 0 | G48: customers | I48: 0 | J48: 0 | K48: 0 | L48: 0 | M48: 0 | N48: 0 | O48: 0 | P48: 0 | Q48: 0 | R48: 0 | S48: 0 | T48: 0 | U48: 0 | V48: 0 | W48: 0 | X48: 0 | Y48: 0 | Z48: 0 | AA48: 0 | AB48: 0 | AC48: 0 | AD48: 0 | AE48: 0 | AF48: 0 | AG48: 0
C49: Customer value of time (res) | D49: $/customer min | E49: =Assumptions!G98 -> 0.3518133654 | G49: mins | I49: 0 | J49: 0 | K49: 0 | L49: 0 | M49: 0 | N49: 0 | O49: 0 | P49: 0 | Q49: 0 | R49: 0 | S49: 0 | T49: 0 | U49: 0 | V49: 0 | W49: 0 | X49: 0 | Y49: 0 | Z49: 0 | AA49: 0 | AB49: 0 | AC49: 0 | AD49: 0 | AE49: 0 | AF49: 0 | AG49: 0
C50: Customer value of time (bus) | D50: $/customer min | E50: =Assumptions!G99 -> 0.3518133654 | G50: mins | I50: 0 | J50: 0 | K50: 0 | L50: 0 | M50: 0 | N50: 0 | O50: 0 | P50: 0 | Q50: 0 | R50: 0 | S50: 0 | T50: 0 | U50: 0 | V50: 0 | W50: 0 | X50: 0 | Y50: 0 | Z50: 0 | AA50: 0 | AB50: 0 | AC50: 0 | AD50: 0 | AE50: 0 | AF50: 0 | AG50: 0
C51: Communication | D51: $/customer | E51: =Assumptions!G100 -> 0 | G51: customers | I51: 0 | J51: 0 | K51: 0 | L51: 0 | M51: 0 | N51: 0 | O51: 0 | P51: 0 | Q51: 0 | R51: 0 | S51: 0 | T51: 0 | U51: 0 | V51: 0 | W51: 0 | X51: 0 | Y51: 0 | Z51: 0 | AA51: 0 | AB51: 0 | AC51: 0 | AD51: 0 | AE51: 0 | AF51: 0 | AG51: 0
C52: Information accessibility | D52: $/customer | E52: =Assumptions!G101 -> 0 | G52: customers | I52: 0 | J52: 0 | K52: 0 | L52: 0 | M52: 0 | N52: 0 | O52: 0 | P52: 0 | Q52: 0 | R52: 0 | S52: 0 | T52: 0 | U52: 0 | V52: 0 | W52: 0 | X52: 0 | Y52: 0 | Z52: 0 | AA52: 0 | AB52: 0 | AC52: 0 | AD52: 0 | AE52: 0 | AF52: 0 | AG52: 0
C54: Other benefits 1 | G54: =input_dollars -> 2023-12-31 | I54: 0 | J54: 0 | K54: 0 | L54: 0 | M54: 0 | N54: 0 | O54: 0 | P54: 0 | Q54: 0 | R54: 0 | S54: 0 | T54: 0 | U54: 0 | V54: 0 | W54: 0 | X54: 0 | Y54: 0 | Z54: 0 | AA54: 0 | AB54: 0 | AC54: 0 | AD54: 0 | AE54: 0 | AF54: 0 | AG54: 0
C55: Other benefits 2 | G55: =input_dollars -> 2023-12-31 | I55: 0 | J55: 0 | K55: 0 | L55: 0 | M55: 0 | N55: 0 | O55: 0 | P55: 0 | Q55: 0 | R55: 0 | S55: 0 | T55: 0 | U55: 0 | V55: 0 | W55: 0 | X55: 0 | Y55: 0 | Z55: 0 | AA55: 0 | AB55: 0 | AC55: 0 | AD55: 0 | AE55: 0 | AF55: 0 | AG55: 0
C57: Total other benefits | G57: =input_dollars -> 2023-12-31 | I57: =SUMPRODUCT((I$45:I$52)*($E$45:$E$52))+SUM(I54:I55)+I42 -> 0 | J57: =SUMPRODUCT((J$45:J$52)*($E$45:$E$52))+SUM(J54:J55)+J42 -> 0 | K57: =SUMPRODUCT((K$45:K$52)*($E$45:$E$52))+SUM(K54:K55)+K42 -> 0 | L57: =SUMPRODUCT((L$45:L$52)*($E$45:$E$52))+SUM(L54:L55)+L42 -> 0 | M57: =SUMPRODUCT((M$45:M$52)*($E$45:$E$52))+SUM(M54:M55)+M42 -> 0 | N57: =SUMPRODUCT((N$45:N$52)*($E$45:$E$52))+SUM(N54:N55)+N42 -> 0 | O57: =SUMPRODUCT((O$45:O$52)*($E$45:$E$52))+SUM(O54:O55)+O42 -> 0 | P57: =SUMPRODUCT((P$45:P$52)*($E$45:$E$52))+SUM(P54:P55)+P42 -> 0 | Q57: =SUMPRODUCT((Q$45:Q$52)*($E$45:$E$52))+SUM(Q54:Q55)+Q42 -> 0 | R57: =SUMPRODUCT((R$45:R$52)*($E$45:$E$52))+SUM(R54:R55)+R42 -> 0 | S57: =SUMPRODUCT((S$45:S$52)*($E$45:$E$52))+SUM(S54:S55)+S42 -> 0 | T57: =SUMPRODUCT((T$45:T$52)*($E$45:$E$52))+SUM(T54:T55)+T42 -> 0 | U57: =SUMPRODUCT((U$45:U$52)*($E$45:$E$52))+SUM(U54:U55)+U42 -> 0 | V57: =SUMPRODUCT((V$45:V$52)*($E$45:$E$52))+SUM(V54:V55)+V42 -> 0 | W57: =SUMPRODUCT((W$45:W$52)*($E$45:$E$52))+SUM(W54:W55)+W42 -> 0 | X57: =SUMPRODUCT((X$45:X$52)*($E$45:$E$52))+SUM(X54:X55)+X42 -> 0 | Y57: =SUMPRODUCT((Y$45:Y$52)*($E$45:$E$52))+SUM(Y54:Y55)+Y42 -> 0 | Z57: =SUMPRODUCT((Z$45:Z$52)*($E$45:$E$52))+SUM(Z54:Z55)+Z42 -> 0 | AA57: =SUMPRODUCT((AA$45:AA$52)*($E$45:$E$52))+SUM(AA54:AA55)+AA42 -> 0 | AB57: =SUMPRODUCT((AB$45:AB$52)*($E$45:$E$52))+SUM(AB54:AB55)+AB42 -> 0 | AC57: =SUMPRODUCT((AC$45:AC$52)*($E$45:$E$52))+SUM(AC54:AC55)+AC42 -> 0 | AD57: =SUMPRODUCT((AD$45:AD$52)*($E$45:$E$52))+SUM(AD54:AD55)+AD42 -> 0 | AE57: =SUMPRODUCT((AE$45:AE$52)*($E$45:$E$52))+SUM(AE54:AE55)+AE42 -> 0 | AF57: =SUMPRODUCT((AF$45:AF$52)*($E$45:$E$52))+SUM(AF54:AF55)+AF42 -> 0 | AG57: =SUMPRODUCT((AG$45:AG$52)*($E$45:$E$52))+SUM(AG54:AG55)+AG42 -> 0
A60: SUMMARY
C64: ='Option1 (base case)'!C64 -> Risks mitigated vs base case | G64: =input_dollars -> 2023-12-31 | I64: =(1-INDEX(Data!$C$9:$C$13, MATCH($A$3, options,0)))*('Option1 (base case)'!I36-I36) -> 0 | J64: =(1-INDEX(Data!$C$9:$C$13, MATCH($A$3, options,0)))*('Option1 (base case)'!J36-J36) -> 48157.47291 | K64: =(1-INDEX(Data!$C$9:$C$13, MATCH($A$3, options,0)))*('Option1 (base case)'!K36-K36) -> 119792.1409 | L64: =(1-INDEX(Data!$C$9:$C$13, MATCH($A$3, options,0)))*('Option1 (base case)'!L36-L36) -> 223341.9666 | M64: =(1-INDEX(Data!$C$9:$C$13, MATCH($A$3, options,0)))*('Option1 (base case)'!M36-M36) -> 370104.5198 | N64: =(1-INDEX(Data!$C$9:$C$13, MATCH($A$3, options,0)))*('Option1 (base case)'!N36-N36) -> 575184.4723 | O64: =(1-INDEX(Data!$C$9:$C$13, MATCH($A$3, options,0)))*('Option1 (base case)'!O36-O36) -> 704021.4478 | P64: =(1-INDEX(Data!$C$9:$C$13, MATCH($A$3, options,0)))*('Option1 (base case)'!P36-P36) -> 776456.5622 | Q64: =(1-INDEX(Data!$C$9:$C$13, MATCH($A$3, options,0)))*('Option1 (base case)'!Q36-Q36) -> 785891.0904 | R64: =(1-INDEX(Data!$C$9:$C$13, MATCH($A$3, options,0)))*('Option1 (base case)'!R36-R36) -> 785891.0904 | S64: =(1-INDEX(Data!$C$9:$C$13, MATCH($A$3, options,0)))*('Option1 (base case)'!S36-S36) -> 785891.0904 | T64: =(1-INDEX(Data!$C$9:$C$13, MATCH($A$3, options,0)))*('Option1 (base case)'!T36-T36) -> 785891.0904 | U64: =(1-INDEX(Data!$C$9:$C$13, MATCH($A$3, options,0)))*('Option1 (base case)'!U36-U36) -> 785891.0904 | V64: =(1-INDEX(Data!$C$9:$C$13, MATCH($A$3, options,0)))*('Option1 (base case)'!V36-V36) -> 785891.0904 | W64: =(1-INDEX(Data!$C$9:$C$13, MATCH($A$3, options,0)))*('Option1 (base case)'!W36-W36) -> 785891.0904 | X64: =(1-INDEX(Data!$C$9:$C$13, MATCH($A$3, options,0)))*('Option1 (base case)'!X36-X36) -> 785891.0904 | Y64: =(1-INDEX(Data!$C$9:$C$13, MATCH($A$3, options,0)))*('Option1 (base case)'!Y36-Y36) -> 785891.0904 | Z64: =(1-INDEX(Data!$C$9:$C$13, MATCH($A$3, options,0)))*('Option1 (base case)'!Z36-Z36) -> 785891.0904 | AA64: =(1-INDEX(Data!$C$9:$C$13, MATCH($A$3, options,0)))*('Option1 (base case)'!AA36-AA36) -> 785891.0904 | AB64: =(1-INDEX(Data!$C$9:$C$13, MATCH($A$3, options,0)))*('Option1 (base case)'!AB36-AB36) -> 785891.0904 | AC64: =(1-INDEX(Data!$C$9:$C$13, MATCH($A$3, options,0)))*('Option1 (base case)'!AC36-AC36) -> 785891.0904 | AD64: =(1-INDEX(Data!$C$9:$C$13, MATCH($A$3, options,0)))*('Option1 (base case)'!AD36-AD36) -> 785891.0904 | AE64: =(1-INDEX(Data!$C$9:$C$13, MATCH($A$3, options,0)))*('Option1 (base case)'!AE36-AE36) -> 785891.0904 | AF64: =(1-INDEX(Data!$C$9:$C$13, MATCH($A$3, options,0)))*('Option1 (base case)'!AF36-AF36) -> 785891.0904 | AG64: =(1-INDEX(Data!$C$9:$C$13, MATCH($A$3, options,0)))*('Option1 (base case)'!AG36-AG36) -> 785891.0904
C66: Capital expenditure
C67: =C14 -> Cable replacement | G67: =input_dollars -> 2023-12-31 | I67: =-I14 -> -1528818.218 | J67: -1528818.218 | K67: -1528818.218 | L67: -1528818.218 | M67: -1528818.218 | N67: 0 | O67: 0 | P67: 0 | Q67: 0 | R67: 0 | S67: 0 | T67: 0 | U67: 0 | V67: 0 | W67: 0 | X67: 0 | Y67: 0 | Z67: 0 | AA67: 0 | AB67: 0 | AC67: 0 | AD67: 0 | AE67: 0 | AF67: 0 | AG67: 0
C68: =C15 -> 0 | G68: =input_dollars -> 2023-12-31 | I68: =-I15 -> 0 | J68: 0 | K68: 0 | L68: 0 | M68: 0 | N68: 0 | O68: 0 | P68: 0 | Q68: 0 | R68: 0 | S68: 0 | T68: 0 | U68: 0 | V68: 0 | W68: 0 | X68: 0 | Y68: 0 | Z68: 0 | AA68: 0 | AB68: 0 | AC68: 0 | AD68: 0 | AE68: 0 | AF68: 0 | AG68: 0
C69: =C16 -> 0 | G69: =input_dollars -> 2023-12-31 | I69: =-I16 -> 0 | J69: 0 | K69: 0 | L69: 0 | M69: 0 | N69: 0 | O69: 0 | P69: 0 | Q69: 0 | R69: 0 | S69: 0 | T69: 0 | U69: 0 | V69: 0 | W69: 0 | X69: 0 | Y69: 0 | Z69: 0 | AA69: 0 | AB69: 0 | AC69: 0 | AD69: 0 | AE69: 0 | AF69: 0 | AG69: 0
C71: Cumulative capex
C72: =C14 -> Cable replacement | G72: =input_dollars -> 2023-12-31 | I72: =SUMPRODUCT(($I67:I67))-SUMPRODUCT(($I67:I67)*($I$6:I$6<=(I$6-$E14))) -> -1528818.218 | J72: =SUMPRODUCT(($I67:J67))-SUMPRODUCT(($I67:J67)*($I$6:J$6<=(J$6-$E14))) -> -3057636.435 | K72: =SUMPRODUCT(($I67:K67))-SUMPRODUCT(($I67:K67)*($I$6:K$6<=(K$6-$E14))) -> -4586454.653 | L72: =SUMPRODUCT(($I67:L67))-SUMPRODUCT(($I67:L67)*($I$6:L$6<=(L$6-$E14))) -> -6115272.87 | M72: =SUMPRODUCT(($I67:M67))-SUMPRODUCT(($I67:M67)*($I$6:M$6<=(M$6-$E14))) -> -7644091.088 | N72: =SUMPRODUCT(($I67:N67))-SUMPRODUCT(($I67:N67)*($I$6:N$6<=(N$6-$E14))) -> -7644091.088 | O72: =SUMPRODUCT(($I67:O67))-SUMPRODUCT(($I67:O67)*($I$6:O$6<=(O$6-$E14))) -> -7644091.088 | P72: =SUMPRODUCT(($I67:P67))-SUMPRODUCT(($I67:P67)*($I$6:P$6<=(P$6-$E14))) -> -7644091.088 | Q72: =SUMPRODUCT(($I67:Q67))-SUMPRODUCT(($I67:Q67)*($I$6:Q$6<=(Q$6-$E14))) -> -7644091.088 | R72: =SUMPRODUCT(($I67:R67))-SUMPRODUCT(($I67:R67)*($I$6:R$6<=(R$6-$E14))) -> -7644091.088 | S72: =SUMPRODUCT(($I67:S67))-SUMPRODUCT(($I67:S67)*($I$6:S$6<=(S$6-$E14))) -> -7644091.088 | T72: =SUMPRODUCT(($I67:T67))-SUMPRODUCT(($I67:T67)*($I$6:T$6<=(T$6-$E14))) -> -7644091.088 | U72: =SUMPRODUCT(($I67:U67))-SUMPRODUCT(($I67:U67)*($I$6:U$6<=(U$6-$E14))) -> -7644091.088 | V72: =SUMPRODUCT(($I67:V67))-SUMPRODUCT(($I67:V67)*($I$6:V$6<=(V$6-$E14))) -> -7644091.088 | W72: =SUMPRODUCT(($I67:W67))-SUMPRODUCT(($I67:W67)*($I$6:W$6<=(W$6-$E14))) -> -7644091.088 | X72: =SUMPRODUCT(($I67:X67))-SUMPRODUCT(($I67:X67)*($I$6:X$6<=(X$6-$E14))) -> -7644091.088 | Y72: =SUMPRODUCT(($I67:Y67))-SUMPRODUCT(($I67:Y67)*($I$6:Y$6<=(Y$6-$E14))) -> -7644091.088 | Z72: =SUMPRODUCT(($I67:Z67))-SUMPRODUCT(($I67:Z67)*($I$6:Z$6<=(Z$6-$E14))) -> -7644091.088 | AA72: =SUMPRODUCT(($I67:AA67))-SUMPRODUCT(($I67:AA67)*($I$6:AA$6<=(AA$6-$E14))) -> -7644091.088 | AB72: =SUMPRODUCT(($I67:AB67))-SUMPRODUCT(($I67:AB67)*($I$6:AB$6<=(AB$6-$E14))) -> -7644091.088 | AC72: =SUMPRODUCT(($I67:AC67))-SUMPRODUCT(($I67:AC67)*($I$6:AC$6<=(AC$6-$E14))) -> -7644091.088 | AD72: =SUMPRODUCT(($I67:AD67))-SUMPRODUCT(($I67:AD67)*($I$6:AD$6<=(AD$6-$E14))) -> -7644091.088 | AE72: =SUMPRODUCT(($I67:AE67))-SUMPRODUCT(($I67:AE67)*($I$6:AE$6<=(AE$6-$E14))) -> -7644091.088 | AF72: =SUMPRODUCT(($I67:AF67))-SUMPRODUCT(($I67:AF67)*($I$6:AF$6<=(AF$6-$E14))) -> -7644091.088 | AG72: =SUMPRODUCT(($I67:AG67))-SUMPRODUCT(($I67:AG67)*($I$6:AG$6<=(AG$6-$E14))) -> -7644091.088
C73: =C15 -> 0 | G73: =input_dollars -> 2023-12-31 | I73: =SUMPRODUCT(($I68:I68))-SUMPRODUCT(($I68:I68)*($I$6:I$6<=(I$6-$E15))) -> 0 | J73: =SUMPRODUCT(($I68:J68))-SUMPRODUCT(($I68:J68)*($I$6:J$6<=(J$6-$E15))) -> 0 | K73: =SUMPRODUCT(($I68:K68))-SUMPRODUCT(($I68:K68)*($I$6:K$6<=(K$6-$E15))) -> 0 | L73: =SUMPRODUCT(($I68:L68))-SUMPRODUCT(($I68:L68)*($I$6:L$6<=(L$6-$E15))) -> 0 | M73: =SUMPRODUCT(($I68:M68))-SUMPRODUCT(($I68:M68)*($I$6:M$6<=(M$6-$E15))) -> 0 | N73: =SUMPRODUCT(($I68:N68))-SUMPRODUCT(($I68:N68)*($I$6:N$6<=(N$6-$E15))) -> 0 | O73: =SUMPRODUCT(($I68:O68))-SUMPRODUCT(($I68:O68)*($I$6:O$6<=(O$6-$E15))) -> 0 | P73: =SUMPRODUCT(($I68:P68))-SUMPRODUCT(($I68:P68)*($I$6:P$6<=(P$6-$E15))) -> 0 | Q73: =SUMPRODUCT(($I68:Q68))-SUMPRODUCT(($I68:Q68)*($I$6:Q$6<=(Q$6-$E15))) -> 0 | R73: =SUMPRODUCT(($I68:R68))-SUMPRODUCT(($I68:R68)*($I$6:R$6<=(R$6-$E15))) -> 0 | S73: =SUMPRODUCT(($I68:S68))-SUMPRODUCT(($I68:S68)*($I$6:S$6<=(S$6-$E15))) -> 0 | T73: =SUMPRODUCT(($I68:T68))-SUMPRODUCT(($I68:T68)*($I$6:T$6<=(T$6-$E15))) -> 0 | U73: =SUMPRODUCT(($I68:U68))-SUMPRODUCT(($I68:U68)*($I$6:U$6<=(U$6-$E15))) -> 0 | V73: =SUMPRODUCT(($I68:V68))-SUMPRODUCT(($I68:V68)*($I$6:V$6<=(V$6-$E15))) -> 0 | W73: =SUMPRODUCT(($I68:W68))-SUMPRODUCT(($I68:W68)*($I$6:W$6<=(W$6-$E15))) -> 0 | X73: =SUMPRODUCT(($I68:X68))-SUMPRODUCT(($I68:X68)*($I$6:X$6<=(X$6-$E15))) -> 0 | Y73: =SUMPRODUCT(($I68:Y68))-SUMPRODUCT(($I68:Y68)*($I$6:Y$6<=(Y$6-$E15))) -> 0 | Z73: =SUMPRODUCT(($I68:Z68))-SUMPRODUCT(($I68:Z68)*($I$6:Z$6<=(Z$6-$E15))) -> 0 | AA73: =SUMPRODUCT(($I68:AA68))-SUMPRODUCT(($I68:AA68)*($I$6:AA$6<=(AA$6-$E15))) -> 0 | AB73: =SUMPRODUCT(($I68:AB68))-SUMPRODUCT(($I68:AB68)*($I$6:AB$6<=(AB$6-$E15))) -> 0 | AC73: =SUMPRODUCT(($I68:AC68))-SUMPRODUCT(($I68:AC68)*($I$6:AC$6<=(AC$6-$E15))) -> 0 | AD73: =SUMPRODUCT(($I68:AD68))-SUMPRODUCT(($I68:AD68)*($I$6:AD$6<=(AD$6-$E15))) -> 0 | AE73: =SUMPRODUCT(($I68:AE68))-SUMPRODUCT(($I68:AE68)*($I$6:AE$6<=(AE$6-$E15))) -> 0 | AF73: =SUMPRODUCT(($I68:AF68))-SUMPRODUCT(($I68:AF68)*($I$6:AF$6<=(AF$6-$E15))) -> 0 | AG73: =SUMPRODUCT(($I68:AG68))-SUMPRODUCT(($I68:AG68)*($I$6:AG$6<=(AG$6-$E15))) -> 0
C74: =C16 -> 0 | G74: =input_dollars -> 2023-12-31 | I74: =SUMPRODUCT(($I69:I69))-SUMPRODUCT(($I69:I69)*($I$6:I$6<=(I$6-$E16))) -> 0 | J74: =SUMPRODUCT(($I69:J69))-SUMPRODUCT(($I69:J69)*($I$6:J$6<=(J$6-$E16))) -> 0 | K74: =SUMPRODUCT(($I69:K69))-SUMPRODUCT(($I69:K69)*($I$6:K$6<=(K$6-$E16))) -> 0 | L74: =SUMPRODUCT(($I69:L69))-SUMPRODUCT(($I69:L69)*($I$6:L$6<=(L$6-$E16))) -> 0 | M74: =SUMPRODUCT(($I69:M69))-SUMPRODUCT(($I69:M69)*($I$6:M$6<=(M$6-$E16))) -> 0 | N74: =SUMPRODUCT(($I69:N69))-SUMPRODUCT(($I69:N69)*($I$6:N$6<=(N$6-$E16))) -> 0 | O74: =SUMPRODUCT(($I69:O69))-SUMPRODUCT(($I69:O69)*($I$6:O$6<=(O$6-$E16))) -> 0 | P74: =SUMPRODUCT(($I69:P69))-SUMPRODUCT(($I69:P69)*($I$6:P$6<=(P$6-$E16))) -> 0 | Q74: =SUMPRODUCT(($I69:Q69))-SUMPRODUCT(($I69:Q69)*($I$6:Q$6<=(Q$6-$E16))) -> 0 | R74: =SUMPRODUCT(($I69:R69))-SUMPRODUCT(($I69:R69)*($I$6:R$6<=(R$6-$E16))) -> 0 | S74: =SUMPRODUCT(($I69:S69))-SUMPRODUCT(($I69:S69)*($I$6:S$6<=(S$6-$E16))) -> 0 | T74: =SUMPRODUCT(($I69:T69))-SUMPRODUCT(($I69:T69)*($I$6:T$6<=(T$6-$E16))) -> 0 | U74: =SUMPRODUCT(($I69:U69))-SUMPRODUCT(($I69:U69)*($I$6:U$6<=(U$6-$E16))) -> 0 | V74: =SUMPRODUCT(($I69:V69))-SUMPRODUCT(($I69:V69)*($I$6:V$6<=(V$6-$E16))) -> 0 | W74: =SUMPRODUCT(($I69:W69))-SUMPRODUCT(($I69:W69)*($I$6:W$6<=(W$6-$E16))) -> 0 | X74: =SUMPRODUCT(($I69:X69))-SUMPRODUCT(($I69:X69)*($I$6:X$6<=(X$6-$E16))) -> 0 | Y74: =SUMPRODUCT(($I69:Y69))-SUMPRODUCT(($I69:Y69)*($I$6:Y$6<=(Y$6-$E16))) -> 0 | Z74: =SUMPRODUCT(($I69:Z69))-SUMPRODUCT(($I69:Z69)*($I$6:Z$6<=(Z$6-$E16))) -> 0 | AA74: =SUMPRODUCT(($I69:AA69))-SUMPRODUCT(($I69:AA69)*($I$6:AA$6<=(AA$6-$E16))) -> 0 | AB74: =SUMPRODUCT(($I69:AB69))-SUMPRODUCT(($I69:AB69)*($I$6:AB$6<=(AB$6-$E16))) -> 0 | AC74: =SUMPRODUCT(($I69:AC69))-SUMPRODUCT(($I69:AC69)*($I$6:AC$6<=(AC$6-$E16))) -> 0 | AD74: =SUMPRODUCT(($I69:AD69))-SUMPRODUCT(($I69:AD69)*($I$6:AD$6<=(AD$6-$E16))) -> 0 | AE74: =SUMPRODUCT(($I69:AE69))-SUMPRODUCT(($I69:AE69)*($I$6:AE$6<=(AE$6-$E16))) -> 0 | AF74: =SUMPRODUCT(($I69:AF69))-SUMPRODUCT(($I69:AF69)*($I$6:AF$6<=(AF$6-$E16))) -> 0 | AG74: =SUMPRODUCT(($I69:AG69))-SUMPRODUCT(($I69:AG69)*($I$6:AG$6<=(AG$6-$E16))) -> 0
C76: Annualised capex
C77: =$C$76&" - "&C14 -> Annualised capex - Cable replacement | G77: =input_dollars -> 2023-12-31 | I77: =IF($E14=0,0,-PMT(real_disc, $E14,H72,)) -> 0 | J77: -61288.21459 | K77: -122576.4292 | L77: -183864.6438 | M77: -245152.8584 | N77: -306441.073 | O77: -306441.073 | P77: -306441.073 | Q77: -306441.073 | R77: -306441.073 | S77: -306441.073 | T77: -306441.073 | U77: -306441.073 | V77: -306441.073 | W77: -306441.073 | X77: -306441.073 | Y77: -306441.073 | Z77: -306441.073 | AA77: -306441.073 | AB77: -306441.073 | AC77: -306441.073 | AD77: -306441.073 | AE77: -306441.073 | AF77: -306441.073 | AG77: -306441.073
C78: =$C$76&" - "&C15 -> Annualised capex - | G78: =input_dollars -> 2023-12-31 | I78: =IF($E15=0,0,-PMT(real_disc, $E15,H73,)) -> 0 | J78: 0 | K78: 0 | L78: 0 | M78: 0 | N78: 0 | O78: 0 | P78: 0 | Q78: 0 | R78: 0 | S78: 0 | T78: 0 | U78: 0 | V78: 0 | W78: 0 | X78: 0 | Y78: 0 | Z78: 0 | AA78: 0 | AB78: 0 | AC78: 0 | AD78: 0 | AE78: 0 | AF78: 0 | AG78: 0
C79: =$C$76&" - "&C16 -> Annualised capex - | G79: =input_dollars -> 2023-12-31 | I79: =IF($E16=0,0,-PMT(real_disc, $E16,H74,)) -> 0 | J79: 0 | K79: 0 | L79: 0 | M79: 0 | N79: 0 | O79: 0 | P79: 0 | Q79: 0 | R79: 0 | S79: 0 | T79: 0 | U79: 0 | V79: 0 | W79: 0 | X79: 0 | Y79: 0 | Z79: 0 | AA79: 0 | AB79: 0 | AC79: 0 | AD79: 0 | AE79: 0 | AF79: 0 | AG79: 0
C80: Total annualised capex | G80: =input_dollars -> 2023-12-31 | I80: =SUM(I77:I79) -> 0 | J80: =SUM(J77:J79) -> -61288.21459 | K80: -122576.4292 | L80: -183864.6438 | M80: -245152.8584 | N80: -306441.073 | O80: -306441.073 | P80: -306441.073 | Q80: -306441.073 | R80: -306441.073 | S80: -306441.073 | T80: -306441.073 | U80: -306441.073 | V80: -306441.073 | W80: -306441.073 | X80: -306441.073 | Y80: -306441.073 | Z80: -306441.073 | AA80: -306441.073 | AB80: -306441.073 | AC80: =SUM(AC77:AC79) -> -306441.073 | AD80: =SUM(AD77:AD79) -> -306441.073 | AE80: =SUM(AE77:AE79) -> -306441.073 | AF80: =SUM(AF77:AF79) -> -306441.073 | AG80: =SUM(AG77:AG79) -> -306441.073
C82: Annualised capex | G82: =input_dollars -> 2023-12-31 | I82: =I80 -> 0 | J82: =J80 -> -61288.21459 | K82: -122576.4292 | L82: -183864.6438 | M82: -245152.8584 | N82: -306441.073 | O82: -306441.073 | P82: -306441.073 | Q82: -306441.073 | R82: -306441.073 | S82: -306441.073 | T82: -306441.073 | U82: -306441.073 | V82: -306441.073 | W82: -306441.073 | X82: -306441.073 | Y82: -306441.073 | Z82: -306441.073 | AA82: -306441.073 | AB82: -306441.073 | AC82: =AC80 -> -306441.073 | AD82: =AD80 -> -306441.073 | AE82: =AE80 -> -306441.073 | AF82: =AF80 -> -306441.073 | AG82: =AG80 -> -306441.073
C83: Operating expenditure | G83: 2023-12-31 | I83: =-I19 -> 0 | J83: 0 | K83: 0 | L83: 0 | M83: 0 | N83: 0 | O83: 0 | P83: 0 | Q83: 0 | R83: 0 | S83: 0 | T83: 0 | U83: 0 | V83: 0 | W83: 0 | X83: 0 | Y83: 0 | Z83: 0 | AA83: 0 | AB83: 0 | AC83: 0 | AD83: 0 | AE83: 0 | AF83: 0 | AG83: 0
C84: Risk mitigated | G84: 2023-12-31 | I84: =I64 -> 0 | J84: =J64 -> 48157.47291 | K84: 119792.1409 | L84: 223341.9666 | M84: 370104.5198 | N84: 575184.4723 | O84: 704021.4478 | P84: 776456.5622 | Q84: 785891.0904 | R84: 785891.0904 | S84: 785891.0904 | T84: 785891.0904 | U84: 785891.0904 | V84: 785891.0904 | W84: 785891.0904 | X84: 785891.0904 | Y84: 785891.0904 | Z84: 785891.0904 | AA84: 785891.0904 | AB84: 785891.0904 | AC84: =AC64 -> 785891.0904 | AD84: =AD64 -> 785891.0904 | AE84: =AE64 -> 785891.0904 | AF84: =AF64 -> 785891.0904 | AG84: =AG64 -> 785891.0904
C85: Other benefits value | G85: 2023-12-31 | I85: =I57 -> 0 | J85: 0 | K85: 0 | L85: 0 | M85: 0 | N85: 0 | O85: 0 | P85: 0 | Q85: 0 | R85: 0 | S85: 0 | T85: 0 | U85: 0 | V85: 0 | W85: 0 | X85: 0 | Y85: 0 | Z85: 0 | AA85: 0 | AB85: 0 | AC85: 0 | AD85: 0 | AE85: 0 | AF85: 0 | AG85: 0
C87: Net benefits | G87: 2023-12-31 | I87: =SUM(I82:I86) -> 0 | J87: -13130.74169 | K87: -2784.288236 | L87: 39477.32282 | M87: 124951.6615 | N87: 268743.3994 | O87: 397580.3748 | P87: 470015.4892 | Q87: 479450.0175 | R87: 479450.0175 | S87: 479450.0175 | T87: 479450.0175 | U87: 479450.0175 | V87: 479450.0175 | W87: 479450.0175 | X87: 479450.0175 | Y87: 479450.0175 | Z87: 479450.0175 | AA87: 479450.0175 | AB87: 479450.0175 | AC87: =SUM(AC82:AC86) -> 479450.0175 | AD87: =SUM(AD82:AD86) -> 479450.0175 | AE87: =SUM(AE82:AE86) -> 479450.0175 | AF87: =SUM(AF82:AF86) -> 479450.0175 | AG87: =SUM(AG82:AG86) -> 479450.0175
C90: First capex year | G90: =IF(SUM($I17:$AG17)=0,0,(INDEX(I$6:AG$6,MATCH(TRUE,INDEX($I17:$AG17<>0,),0)))) -> 1
C92: First year | G92: =IF(_xlfn.MINIFS($G$90:$G$91, $G$90:$G$91, ">"&0)=0, $A$4, _xlfn.MINIFS($G$90:$G$91, $G$90:$G$91, ">"&0)) -> 1
A102: SENSITIVITIES
A106: NPV | C106: Net benefits | G106: =PROPER($A$3)&A106 -> Option 2NPV | I106: =I87 -> 0 | J106: =J87 -> -13130.74169 | K106: -2784.288236 | L106: 39477.32282 | M106: 124951.6615 | N106: 268743.3994 | O106: 397580.3748 | P106: 470015.4892 | Q106: 479450.0175 | R106: 479450.0175 | S106: 479450.0175 | T106: 479450.0175 | U106: 479450.0175 | V106: 479450.0175 | W106: 479450.0175 | X106: 479450.0175 | Y106: 479450.0175 | Z106: 479450.0175 | AA106: 479450.0175 | AB106: 479450.0175 | AC106: 479450.0175 | AD106: 479450.0175 | AE106: 479450.0175 | AF106: 479450.0175 | AG106: 479450.0175
C107: Total annualised capex | I107: =I82 -> 0 | J107: =J82 -> -61288.21459 | K107: -122576.4292 | L107: -183864.6438 | M107: -245152.8584 | N107: -306441.073 | O107: -306441.073 | P107: -306441.073 | Q107: -306441.073 | R107: -306441.073 | S107: -306441.073 | T107: -306441.073 | U107: -306441.073 | V107: -306441.073 | W107: -306441.073 | X107: -306441.073 | Y107: -306441.073 | Z107: -306441.073 | AA107: -306441.073 | AB107: -306441.073 | AC107: -306441.073 | AD107: -306441.073 | AE107: -306441.073 | AF107: -306441.073 | AG107: -306441.073
C108: Total benefits | I108: =SUM(I84:I85) -> 0 | J108: =SUM(J84:J85) -> 48157.47291 | K108: 119792.1409 | L108: 223341.9666 | M108: 370104.5198 | N108: 575184.4723 | O108: 704021.4478 | P108: 776456.5622 | Q108: 785891.0904 | R108: 785891.0904 | S108: 785891.0904 | T108: 785891.0904 | U108: 785891.0904 | V108: 785891.0904 | W108: 785891.0904 | X108: 785891.0904 | Y108: 785891.0904 | Z108: 785891.0904 | AA108: 785891.0904 | AB108: 785891.0904 | AC108: 785891.0904 | AD108: 785891.0904 | AE108: 785891.0904 | AF108: 785891.0904 | AG108: 785891.0904
D109: =Assumptions!G110 -> Capex | E109: =Assumptions!H110 -> Total benefits
A110: ="sens"&Assumptions!B111 -> sens1 | C110: =Assumptions!C111 -> Capex 10% higher | D110: =Assumptions!G111 -> 0.1 | E110: =Assumptions!H111 -> 0 | G110: =PROPER($A$3)&A110 -> Option 2sens1 | I110: =I$106+IF($C110<>0,SUMPRODUCT((I$107:I$108)*TRANSPOSE(($D110:$E110))),0) -> 0 | J110: =J$106+IF($C110<>0,SUMPRODUCT((J$107:J$108)*TRANSPOSE(($D110:$E110))),0) -> -19259.56315 | K110: =K$106+IF($C110<>0,SUMPRODUCT((K$107:K$108)*TRANSPOSE(($D110:$E110))),0) -> -15041.93115 | L110: =L$106+IF($C110<>0,SUMPRODUCT((L$107:L$108)*TRANSPOSE(($D110:$E110))),0) -> 21090.85844 | M110: =M$106+IF($C110<>0,SUMPRODUCT((M$107:M$108)*TRANSPOSE(($D110:$E110))),0) -> 100436.3756 | N110: =N$106+IF($C110<>0,SUMPRODUCT((N$107:N$108)*TRANSPOSE(($D110:$E110))),0) -> 238099.2921 | O110: =O$106+IF($C110<>0,SUMPRODUCT((O$107:O$108)*TRANSPOSE(($D110:$E110))),0) -> 366936.2675 | P110: =P$106+IF($C110<>0,SUMPRODUCT((P$107:P$108)*TRANSPOSE(($D110:$E110))),0) -> 439371.3819 | Q110: =Q$106+IF($C110<>0,SUMPRODUCT((Q$107:Q$108)*TRANSPOSE(($D110:$E110))),0) -> 448805.9102 | R110: =R$106+IF($C110<>0,SUMPRODUCT((R$107:R$108)*TRANSPOSE(($D110:$E110))),0) -> 448805.9102 | S110: =S$106+IF($C110<>0,SUMPRODUCT((S$107:S$108)*TRANSPOSE(($D110:$E110))),0) -> 448805.9102 | T110: =T$106+IF($C110<>0,SUMPRODUCT((T$107:T$108)*TRANSPOSE(($D110:$E110))),0) -> 448805.9102 | U110: =U$106+IF($C110<>0,SUMPRODUCT((U$107:U$108)*TRANSPOSE(($D110:$E110))),0) -> 448805.9102 | V110: =V$106+IF($C110<>0,SUMPRODUCT((V$107:V$108)*TRANSPOSE(($D110:$E110))),0) -> 448805.9102 | W110: =W$106+IF($C110<>0,SUMPRODUCT((W$107:W$108)*TRANSPOSE(($D110:$E110))),0) -> 448805.9102 | X110: =X$106+IF($C110<>0,SUMPRODUCT((X$107:X$108)*TRANSPOSE(($D110:$E110))),0) -> 448805.9102 | Y110: =Y$106+IF($C110<>0,SUMPRODUCT((Y$107:Y$108)*TRANSPOSE(($D110:$E110))),0) -> 448805.9102 | Z110: =Z$106+IF($C110<>0,SUMPRODUCT((Z$107:Z$108)*TRANSPOSE(($D110:$E110))),0) -> 448805.9102 | AA110: =AA$106+IF($C110<>0,SUMPRODUCT((AA$107:AA$108)*TRANSPOSE(($D110:$E110))),0) -> 448805.9102 | AB110: =AB$106+IF($C110<>0,SUMPRODUCT((AB$107:AB$108)*TRANSPOSE(($D110:$E110))),0) -> 448805.9102 | AC110: =AC$106+IF($C110<>0,SUMPRODUCT((AC$107:AC$108)*TRANSPOSE(($D110:$E110))),0) -> 448805.9102 | AD110: =AD$106+IF($C110<>0,SUMPRODUCT((AD$107:AD$108)*TRANSPOSE(($D110:$E110))),0) -> 448805.9102 | AE110: =AE$106+IF($C110<>0,SUMPRODUCT((AE$107:AE$108)*TRANSPOSE(($D110:$E110))),0) -> 448805.9102 | AF110: =AF$106+IF($C110<>0,SUMPRODUCT((AF$107:AF$108)*TRANSPOSE(($D110:$E110))),0) -> 448805.9102 | AG110: =AG$106+IF($C110<>0,SUMPRODUCT((AG$107:AG$108)*TRANSPOSE(($D110:$E110))),0) -> 448805.9102
A111: ="sens"&Assumptions!B112 -> sens2 | C111: =Assumptions!C112 -> Capex 10% lower | D111: =Assumptions!G112 -> -0.1 | E111: =Assumptions!H112 -> 0 | G111: =PROPER($A$3)&A111 -> Option 2sens2 | I111: =I$106+IF($C111<>0,SUMPRODUCT((I$107:I$108)*TRANSPOSE(($D111:$E111))),0) -> 0 | J111: =J$106+IF($C111<>0,SUMPRODUCT((J$107:J$108)*TRANSPOSE(($D111:$E111))),0) -> -7001.920228 | K111: =K$106+IF($C111<>0,SUMPRODUCT((K$107:K$108)*TRANSPOSE(($D111:$E111))),0) -> 9473.354682 | L111: =L$106+IF($C111<>0,SUMPRODUCT((L$107:L$108)*TRANSPOSE(($D111:$E111))),0) -> 57863.7872 | M111: =M$106+IF($C111<>0,SUMPRODUCT((M$107:M$108)*TRANSPOSE(($D111:$E111))),0) -> 149466.9473 | N111: =N$106+IF($C111<>0,SUMPRODUCT((N$107:N$108)*TRANSPOSE(($D111:$E111))),0) -> 299387.5067 | O111: =O$106+IF($C111<>0,SUMPRODUCT((O$107:O$108)*TRANSPOSE(($D111:$E111))),0) -> 428224.4821 | P111: =P$106+IF($C111<>0,SUMPRODUCT((P$107:P$108)*TRANSPOSE(($D111:$E111))),0) -> 500659.5965 | Q111: =Q$106+IF($C111<>0,SUMPRODUCT((Q$107:Q$108)*TRANSPOSE(($D111:$E111))),0) -> 510094.1248 | R111: =R$106+IF($C111<>0,SUMPRODUCT((R$107:R$108)*TRANSPOSE(($D111:$E111))),0) -> 510094.1248 | S111: =S$106+IF($C111<>0,SUMPRODUCT((S$107:S$108)*TRANSPOSE(($D111:$E111))),0) -> 510094.1248 | T111: =T$106+IF($C111<>0,SUMPRODUCT((T$107:T$108)*TRANSPOSE(($D111:$E111))),0) -> 510094.1248 | U111: =U$106+IF($C111<>0,SUMPRODUCT((U$107:U$108)*TRANSPOSE(($D111:$E111))),0) -> 510094.1248 | V111: =V$106+IF($C111<>0,SUMPRODUCT((V$107:V$108)*TRANSPOSE(($D111:$E111))),0) -> 510094.1248 | W111: =W$106+IF($C111<>0,SUMPRODUCT((W$107:W$108)*TRANSPOSE(($D111:$E111))),0) -> 510094.1248 | X111: =X$106+IF($C111<>0,SUMPRODUCT((X$107:X$108)*TRANSPOSE(($D111:$E111))),0) -> 510094.1248 | Y111: =Y$106+IF($C111<>0,SUMPRODUCT((Y$107:Y$108)*TRANSPOSE(($D111:$E111))),0) -> 510094.1248 | Z111: =Z$106+IF($C111<>0,SUMPRODUCT((Z$107:Z$108)*TRANSPOSE(($D111:$E111))),0) -> 510094.1248 | AA111: =AA$106+IF($C111<>0,SUMPRODUCT((AA$107:AA$108)*TRANSPOSE(($D111:$E111))),0) -> 510094.1248 | AB111: =AB$106+IF($C111<>0,SUMPRODUCT((AB$107:AB$108)*TRANSPOSE(($D111:$E111))),0) -> 510094.1248 | AC111: =AC$106+IF($C111<>0,SUMPRODUCT((AC$107:AC$108)*TRANSPOSE(($D111:$E111))),0) -> 510094.1248 | AD111: =AD$106+IF($C111<>0,SUMPRODUCT((AD$107:AD$108)*TRANSPOSE(($D111:$E111))),0) -> 510094.1248 | AE111: =AE$106+IF($C111<>0,SUMPRODUCT((AE$107:AE$108)*TRANSPOSE(($D111:$E111))),0) -> 510094.1248 | AF111: =AF$106+IF($C111<>0,SUMPRODUCT((AF$107:AF$108)*TRANSPOSE(($D111:$E111))),0) -> 510094.1248 | AG111: =AG$106+IF($C111<>0,SUMPRODUCT((AG$107:AG$108)*TRANSPOSE(($D111:$E111))),0) -> 510094.1248
A112: ="sens"&Assumptions!B113 -> sens3 | C112: =Assumptions!C113 -> Total benefits 10% higher | D112: =Assumptions!G113 -> 0 | E112: =Assumptions!H113 -> 0.1 | G112: Option 2sens3 | I112: =I$106+IF($C112<>0,SUMPRODUCT((I$107:I$108)*TRANSPOSE(($D112:$E112))),0) -> 0 | J112: =J$106+IF($C112<>0,SUMPRODUCT((J$107:J$108)*TRANSPOSE(($D112:$E112))),0) -> -8314.994397 | K112: =K$106+IF($C112<>0,SUMPRODUCT((K$107:K$108)*TRANSPOSE(($D112:$E112))),0) -> 9194.925858 | L112: =L$106+IF($C112<>0,SUMPRODUCT((L$107:L$108)*TRANSPOSE(($D112:$E112))),0) -> 61811.51948 | M112: =M$106+IF($C112<>0,SUMPRODUCT((M$107:M$108)*TRANSPOSE(($D112:$E112))),0) -> 161962.1134 | N112: =N$106+IF($C112<>0,SUMPRODUCT((N$107:N$108)*TRANSPOSE(($D112:$E112))),0) -> 326261.8466 | O112: =O$106+IF($C112<>0,SUMPRODUCT((O$107:O$108)*TRANSPOSE(($D112:$E112))),0) -> 467982.5196 | P112: =P$106+IF($C112<>0,SUMPRODUCT((P$107:P$108)*TRANSPOSE(($D112:$E112))),0) -> 547661.1454 | Q112: =Q$106+IF($C112<>0,SUMPRODUCT((Q$107:Q$108)*TRANSPOSE(($D112:$E112))),0) -> 558039.1265 | R112: =R$106+IF($C112<>0,SUMPRODUCT((R$107:R$108)*TRANSPOSE(($D112:$E112))),0) -> 558039.1265 | S112: =S$106+IF($C112<>0,SUMPRODUCT((S$107:S$108)*TRANSPOSE(($D112:$E112))),0) -> 558039.1265 | T112: =T$106+IF($C112<>0,SUMPRODUCT((T$107:T$108)*TRANSPOSE(($D112:$E112))),0) -> 558039.1265 | U112: =U$106+IF($C112<>0,SUMPRODUCT((U$107:U$108)*TRANSPOSE(($D112:$E112))),0) -> 558039.1265 | V112: =V$106+IF($C112<>0,SUMPRODUCT((V$107:V$108)*TRANSPOSE(($D112:$E112))),0) -> 558039.1265 | W112: =W$106+IF($C112<>0,SUMPRODUCT((W$107:W$108)*TRANSPOSE(($D112:$E112))),0) -> 558039.1265 | X112: =X$106+IF($C112<>0,SUMPRODUCT((X$107:X$108)*TRANSPOSE(($D112:$E112))),0) -> 558039.1265 | Y112: =Y$106+IF($C112<>0,SUMPRODUCT((Y$107:Y$108)*TRANSPOSE(($D112:$E112))),0) -> 558039.1265 | Z112: =Z$106+IF($C112<>0,SUMPRODUCT((Z$107:Z$108)*TRANSPOSE(($D112:$E112))),0) -> 558039.1265 | AA112: =AA$106+IF($C112<>0,SUMPRODUCT((AA$107:AA$108)*TRANSPOSE(($D112:$E112))),0) -> 558039.1265 | AB112: =AB$106+IF($C112<>0,SUMPRODUCT((AB$107:AB$108)*TRANSPOSE(($D112:$E112))),0) -> 558039.1265 | AC112: =AC$106+IF($C112<>0,SUMPRODUCT((AC$107:AC$108)*TRANSPOSE(($D112:$E112))),0) -> 558039.1265 | AD112: =AD$106+IF($C112<>0,SUMPRODUCT((AD$107:AD$108)*TRANSPOSE(($D112:$E112))),0) -> 558039.1265 | AE112: =AE$106+IF($C112<>0,SUMPRODUCT((AE$107:AE$108)*TRANSPOSE(($D112:$E112))),0) -> 558039.1265 | AF112: =AF$106+IF($C112<>0,SUMPRODUCT((AF$107:AF$108)*TRANSPOSE(($D112:$E112))),0) -> 558039.1265 | AG112: =AG$106+IF($C112<>0,SUMPRODUCT((AG$107:AG$108)*TRANSPOSE(($D112:$E112))),0) -> 558039.1265
A113: ="sens"&Assumptions!B114 -> sens4 | C113: =Assumptions!C114 -> Total benefits 10% lower | D113: =Assumptions!G114 -> 0 | E113: =Assumptions!H114 -> -0.1 | G113: Option 2sens4 | I113: =I$106+IF($C113<>0,SUMPRODUCT((I$107:I$108)*TRANSPOSE(($D113:$E113))),0) -> 0 | J113: =J$106+IF($C113<>0,SUMPRODUCT((J$107:J$108)*TRANSPOSE(($D113:$E113))),0) -> -17946.48898 | K113: =K$106+IF($C113<>0,SUMPRODUCT((K$107:K$108)*TRANSPOSE(($D113:$E113))),0) -> -14763.50233 | L113: =L$106+IF($C113<>0,SUMPRODUCT((L$107:L$108)*TRANSPOSE(($D113:$E113))),0) -> 17143.12616 | M113: =M$106+IF($C113<>0,SUMPRODUCT((M$107:M$108)*TRANSPOSE(($D113:$E113))),0) -> 87941.20947 | N113: =N$106+IF($C113<>0,SUMPRODUCT((N$107:N$108)*TRANSPOSE(($D113:$E113))),0) -> 211224.9521 | O113: =O$106+IF($C113<>0,SUMPRODUCT((O$107:O$108)*TRANSPOSE(($D113:$E113))),0) -> 327178.23 | P113: =P$106+IF($C113<>0,SUMPRODUCT((P$107:P$108)*TRANSPOSE(($D113:$E113))),0) -> 392369.833 | Q113: =Q$106+IF($C113<>0,SUMPRODUCT((Q$107:Q$108)*TRANSPOSE(($D113:$E113))),0) -> 400860.9084 | R113: =R$106+IF($C113<>0,SUMPRODUCT((R$107:R$108)*TRANSPOSE(($D113:$E113))),0) -> 400860.9084 | S113: =S$106+IF($C113<>0,SUMPRODUCT((S$107:S$108)*TRANSPOSE(($D113:$E113))),0) -> 400860.9084 | T113: =T$106+IF($C113<>0,SUMPRODUCT((T$107:T$108)*TRANSPOSE(($D113:$E113))),0) -> 400860.9084 | U113: =U$106+IF($C113<>0,SUMPRODUCT((U$107:U$108)*TRANSPOSE(($D113:$E113))),0) -> 400860.9084 | V113: =V$106+IF($C113<>0,SUMPRODUCT((V$107:V$108)*TRANSPOSE(($D113:$E113))),0) -> 400860.9084 | W113: =W$106+IF($C113<>0,SUMPRODUCT((W$107:W$108)*TRANSPOSE(($D113:$E113))),0) -> 400860.9084 | X113: =X$106+IF($C113<>0,SUMPRODUCT((X$107:X$108)*TRANSPOSE(($D113:$E113))),0) -> 400860.9084 | Y113: =Y$106+IF($C113<>0,SUMPRODUCT((Y$107:Y$108)*TRANSPOSE(($D113:$E113))),0) -> 400860.9084 | Z113: =Z$106+IF($C113<>0,SUMPRODUCT((Z$107:Z$108)*TRANSPOSE(($D113:$E113))),0) -> 400860.9084 | AA113: =AA$106+IF($C113<>0,SUMPRODUCT((AA$107:AA$108)*TRANSPOSE(($D113:$E113))),0) -> 400860.9084 | AB113: =AB$106+IF($C113<>0,SUMPRODUCT((AB$107:AB$108)*TRANSPOSE(($D113:$E113))),0) -> 400860.9084 | AC113: =AC$106+IF($C113<>0,SUMPRODUCT((AC$107:AC$108)*TRANSPOSE(($D113:$E113))),0) -> 400860.9084 | AD113: =AD$106+IF($C113<>0,SUMPRODUCT((AD$107:AD$108)*TRANSPOSE(($D113:$E113))),0) -> 400860.9084 | AE113: =AE$106+IF($C113<>0,SUMPRODUCT((AE$107:AE$108)*TRANSPOSE(($D113:$E113))),0) -> 400860.9084 | AF113: =AF$106+IF($C113<>0,SUMPRODUCT((AF$107:AF$108)*TRANSPOSE(($D113:$E113))),0) -> 400860.9084 | AG113: =AG$106+IF($C113<>0,SUMPRODUCT((AG$107:AG$108)*TRANSPOSE(($D113:$E113))),0) -> 400860.9084
A114: ="sens"&Assumptions!B115 -> sens5 | C114: =Assumptions!C115 -> Capex 10% higher & total benefits 10% lower | D114: =Assumptions!G115 -> 0.1 | E114: =Assumptions!H115 -> -0.1 | G114: Option 2sens5 | I114: =I$106+IF($C114<>0,SUMPRODUCT((I$107:I$108)*TRANSPOSE(($D114:$E114))),0) -> 0 | J114: =J$106+IF($C114<>0,SUMPRODUCT((J$107:J$108)*TRANSPOSE(($D114:$E114))),0) -> -24075.31044 | K114: =K$106+IF($C114<>0,SUMPRODUCT((K$107:K$108)*TRANSPOSE(($D114:$E114))),0) -> -27021.14525 | L114: =L$106+IF($C114<>0,SUMPRODUCT((L$107:L$108)*TRANSPOSE(($D114:$E114))),0) -> -1243.33822 | M114: =M$106+IF($C114<>0,SUMPRODUCT((M$107:M$108)*TRANSPOSE(($D114:$E114))),0) -> 63425.92363 | N114: =N$106+IF($C114<>0,SUMPRODUCT((N$107:N$108)*TRANSPOSE(($D114:$E114))),0) -> 180580.8448 | O114: =O$106+IF($C114<>0,SUMPRODUCT((O$107:O$108)*TRANSPOSE(($D114:$E114))),0) -> 296534.1227 | P114: =P$106+IF($C114<>0,SUMPRODUCT((P$107:P$108)*TRANSPOSE(($D114:$E114))),0) -> 361725.7257 | Q114: =Q$106+IF($C114<>0,SUMPRODUCT((Q$107:Q$108)*TRANSPOSE(($D114:$E114))),0) -> 370216.8011 | R114: =R$106+IF($C114<>0,SUMPRODUCT((R$107:R$108)*TRANSPOSE(($D114:$E114))),0) -> 370216.8011 | S114: =S$106+IF($C114<>0,SUMPRODUCT((S$107:S$108)*TRANSPOSE(($D114:$E114))),0) -> 370216.8011 | T114: =T$106+IF($C114<>0,SUMPRODUCT((T$107:T$108)*TRANSPOSE(($D114:$E114))),0) -> 370216.8011 | U114: =U$106+IF($C114<>0,SUMPRODUCT((U$107:U$108)*TRANSPOSE(($D114:$E114))),0) -> 370216.8011 | V114: =V$106+IF($C114<>0,SUMPRODUCT((V$107:V$108)*TRANSPOSE(($D114:$E114))),0) -> 370216.8011 | W114: =W$106+IF($C114<>0,SUMPRODUCT((W$107:W$108)*TRANSPOSE(($D114:$E114))),0) -> 370216.8011 | X114: =X$106+IF($C114<>0,SUMPRODUCT((X$107:X$108)*TRANSPOSE(($D114:$E114))),0) -> 370216.8011 | Y114: =Y$106+IF($C114<>0,SUMPRODUCT((Y$107:Y$108)*TRANSPOSE(($D114:$E114))),0) -> 370216.8011 | Z114: =Z$106+IF($C114<>0,SUMPRODUCT((Z$107:Z$108)*TRANSPOSE(($D114:$E114))),0) -> 370216.8011 | AA114: =AA$106+IF($C114<>0,SUMPRODUCT((AA$107:AA$108)*TRANSPOSE(($D114:$E114))),0) -> 370216.8011 | AB114: =AB$106+IF($C114<>0,SUMPRODUCT((AB$107:AB$108)*TRANSPOSE(($D114:$E114))),0) -> 370216.8011 | AC114: =AC$106+IF($C114<>0,SUMPRODUCT((AC$107:AC$108)*TRANSPOSE(($D114:$E114))),0) -> 370216.8011 | AD114: =AD$106+IF($C114<>0,SUMPRODUCT((AD$107:AD$108)*TRANSPOSE(($D114:$E114))),0) -> 370216.8011 | AE114: =AE$106+IF($C114<>0,SUMPRODUCT((AE$107:AE$108)*TRANSPOSE(($D114:$E114))),0) -> 370216.8011 | AF114: =AF$106+IF($C114<>0,SUMPRODUCT((AF$107:AF$108)*TRANSPOSE(($D114:$E114))),0) -> 370216.8011 | AG114: =AG$106+IF($C114<>0,SUMPRODUCT((AG$107:AG$108)*TRANSPOSE(($D114:$E114))),0) -> 370216.8011
A115: ="sens"&Assumptions!B116 -> sens | C115: =Assumptions!C116 -> 0 | D115: =Assumptions!G116 -> 0 | E115: =Assumptions!H116 -> 0 | G115: Option 2sens | I115: =I$106+IF($C115<>0,SUMPRODUCT((I$107:I$108)*TRANSPOSE(($D115:$E115))),0) -> 0 | J115: =J$106+IF($C115<>0,SUMPRODUCT((J$107:J$108)*TRANSPOSE(($D115:$E115))),0) -> -13130.74169 | K115: =K$106+IF($C115<>0,SUMPRODUCT((K$107:K$108)*TRANSPOSE(($D115:$E115))),0) -> -2784.288236 | L115: =L$106+IF($C115<>0,SUMPRODUCT((L$107:L$108)*TRANSPOSE(($D115:$E115))),0) -> 39477.32282 | M115: =M$106+IF($C115<>0,SUMPRODUCT((M$107:M$108)*TRANSPOSE(($D115:$E115))),0) -> 124951.6615 | N115: =N$106+IF($C115<>0,SUMPRODUCT((N$107:N$108)*TRANSPOSE(($D115:$E115))),0) -> 268743.3994 | O115: =O$106+IF($C115<>0,SUMPRODUCT((O$107:O$108)*TRANSPOSE(($D115:$E115))),0) -> 397580.3748 | P115: =P$106+IF($C115<>0,SUMPRODUCT((P$107:P$108)*TRANSPOSE(($D115:$E115))),0) -> 470015.4892 | Q115: =Q$106+IF($C115<>0,SUMPRODUCT((Q$107:Q$108)*TRANSPOSE(($D115:$E115))),0) -> 479450.0175 | R115: =R$106+IF($C115<>0,SUMPRODUCT((R$107:R$108)*TRANSPOSE(($D115:$E115))),0) -> 479450.0175 | S115: =S$106+IF($C115<>0,SUMPRODUCT((S$107:S$108)*TRANSPOSE(($D115:$E115))),0) -> 479450.0175 | T115: =T$106+IF($C115<>0,SUMPRODUCT((T$107:T$108)*TRANSPOSE(($D115:$E115))),0) -> 479450.0175 | U115: =U$106+IF($C115<>0,SUMPRODUCT((U$107:U$108)*TRANSPOSE(($D115:$E115))),0) -> 479450.0175 | V115: =V$106+IF($C115<>0,SUMPRODUCT((V$107:V$108)*TRANSPOSE(($D115:$E115))),0) -> 479450.0175 | W115: =W$106+IF($C115<>0,SUMPRODUCT((W$107:W$108)*TRANSPOSE(($D115:$E115))),0) -> 479450.0175 | X115: =X$106+IF($C115<>0,SUMPRODUCT((X$107:X$108)*TRANSPOSE(($D115:$E115))),0) -> 479450.0175 | Y115: =Y$106+IF($C115<>0,SUMPRODUCT((Y$107:Y$108)*TRANSPOSE(($D115:$E115))),0) -> 479450.0175 | Z115: =Z$106+IF($C115<>0,SUMPRODUCT((Z$107:Z$108)*TRANSPOSE(($D115:$E115))),0) -> 479450.0175 | AA115: =AA$106+IF($C115<>0,SUMPRODUCT((AA$107:AA$108)*TRANSPOSE(($D115:$E115))),0) -> 479450.0175 | AB115: =AB$106+IF($C115<>0,SUMPRODUCT((AB$107:AB$108)*TRANSPOSE(($D115:$E115))),0) -> 479450.0175 | AC115: =AC$106+IF($C115<>0,SUMPRODUCT((AC$107:AC$108)*TRANSPOSE(($D115:$E115))),0) -> 479450.0175 | AD115: =AD$106+IF($C115<>0,SUMPRODUCT((AD$107:AD$108)*TRANSPOSE(($D115:$E115))),0) -> 479450.0175 | AE115: =AE$106+IF($C115<>0,SUMPRODUCT((AE$107:AE$108)*TRANSPOSE(($D115:$E115))),0) -> 479450.0175 | AF115: =AF$106+IF($C115<>0,SUMPRODUCT((AF$107:AF$108)*TRANSPOSE(($D115:$E115))),0) -> 479450.0175 | AG115: =AG$106+IF($C115<>0,SUMPRODUCT((AG$107:AG$108)*TRANSPOSE(($D115:$E115))),0) -> 479450.0175
A116: ="sens"&Assumptions!B117 -> sens | C116: =Assumptions!C117 -> 0 | D116: =Assumptions!G117 -> 0 | E116: =Assumptions!H117 -> 0 | G116: Option 2sens | I116: =I$106+IF($C116<>0,SUMPRODUCT((I$107:I$108)*TRANSPOSE(($D116:$E116))),0) -> 0 | J116: =J$106+IF($C116<>0,SUMPRODUCT((J$107:J$108)*TRANSPOSE(($D116:$E116))),0) -> -13130.74169 | K116: =K$106+IF($C116<>0,SUMPRODUCT((K$107:K$108)*TRANSPOSE(($D116:$E116))),0) -> -2784.288236 | L116: =L$106+IF($C116<>0,SUMPRODUCT((L$107:L$108)*TRANSPOSE(($D116:$E116))),0) -> 39477.32282 | M116: =M$106+IF($C116<>0,SUMPRODUCT((M$107:M$108)*TRANSPOSE(($D116:$E116))),0) -> 124951.6615 | N116: =N$106+IF($C116<>0,SUMPRODUCT((N$107:N$108)*TRANSPOSE(($D116:$E116))),0) -> 268743.3994 | O116: =O$106+IF($C116<>0,SUMPRODUCT((O$107:O$108)*TRANSPOSE(($D116:$E116))),0) -> 397580.3748 | P116: =P$106+IF($C116<>0,SUMPRODUCT((P$107:P$108)*TRANSPOSE(($D116:$E116))),0) -> 470015.4892 | Q116: =Q$106+IF($C116<>0,SUMPRODUCT((Q$107:Q$108)*TRANSPOSE(($D116:$E116))),0) -> 479450.0175 | R116: =R$106+IF($C116<>0,SUMPRODUCT((R$107:R$108)*TRANSPOSE(($D116:$E116))),0) -> 479450.0175 | S116: =S$106+IF($C116<>0,SUMPRODUCT((S$107:S$108)*TRANSPOSE(($D116:$E116))),0) -> 479450.0175 | T116: =T$106+IF($C116<>0,SUMPRODUCT((T$107:T$108)*TRANSPOSE(($D116:$E116))),0) -> 479450.0175 | U116: =U$106+IF($C116<>0,SUMPRODUCT((U$107:U$108)*TRANSPOSE(($D116:$E116))),0) -> 479450.0175 | V116: =V$106+IF($C116<>0,SUMPRODUCT((V$107:V$108)*TRANSPOSE(($D116:$E116))),0) -> 479450.0175 | W116: =W$106+IF($C116<>0,SUMPRODUCT((W$107:W$108)*TRANSPOSE(($D116:$E116))),0) -> 479450.0175 | X116: =X$106+IF($C116<>0,SUMPRODUCT((X$107:X$108)*TRANSPOSE(($D116:$E116))),0) -> 479450.0175 | Y116: =Y$106+IF($C116<>0,SUMPRODUCT((Y$107:Y$108)*TRANSPOSE(($D116:$E116))),0) -> 479450.0175 | Z116: =Z$106+IF($C116<>0,SUMPRODUCT((Z$107:Z$108)*TRANSPOSE(($D116:$E116))),0) -> 479450.0175 | AA116: =AA$106+IF($C116<>0,SUMPRODUCT((AA$107:AA$108)*TRANSPOSE(($D116:$E116))),0) -> 479450.0175 | AB116: =AB$106+IF($C116<>0,SUMPRODUCT((AB$107:AB$108)*TRANSPOSE(($D116:$E116))),0) -> 479450.0175 | AC116: =AC$106+IF($C116<>0,SUMPRODUCT((AC$107:AC$108)*TRANSPOSE(($D116:$E116))),0) -> 479450.0175 | AD116: =AD$106+IF($C116<>0,SUMPRODUCT((AD$107:AD$108)*TRANSPOSE(($D116:$E116))),0) -> 479450.0175 | AE116: =AE$106+IF($C116<>0,SUMPRODUCT((AE$107:AE$108)*TRANSPOSE(($D116:$E116))),0) -> 479450.0175 | AF116: =AF$106+IF($C116<>0,SUMPRODUCT((AF$107:AF$108)*TRANSPOSE(($D116:$E116))),0) -> 479450.0175 | AG116: =AG$106+IF($C116<>0,SUMPRODUCT((AG$107:AG$108)*TRANSPOSE(($D116:$E116))),0) -> 479450.0175
A117: ="sens"&Assumptions!B118 -> sens | C117: =Assumptions!C118 -> 0 | D117: =Assumptions!G118 -> 0 | E117: =Assumptions!H118 -> 0 | G117: Option 2sens | I117: =I$106+IF($C117<>0,SUMPRODUCT((I$107:I$108)*TRANSPOSE(($D117:$E117))),0) -> 0 | J117: =J$106+IF($C117<>0,SUMPRODUCT((J$107:J$108)*TRANSPOSE(($D117:$E117))),0) -> -13130.74169 | K117: =K$106+IF($C117<>0,SUMPRODUCT((K$107:K$108)*TRANSPOSE(($D117:$E117))),0) -> -2784.288236 | L117: =L$106+IF($C117<>0,SUMPRODUCT((L$107:L$108)*TRANSPOSE(($D117:$E117))),0) -> 39477.32282 | M117: =M$106+IF($C117<>0,SUMPRODUCT((M$107:M$108)*TRANSPOSE(($D117:$E117))),0) -> 124951.6615 | N117: =N$106+IF($C117<>0,SUMPRODUCT((N$107:N$108)*TRANSPOSE(($D117:$E117))),0) -> 268743.3994 | O117: =O$106+IF($C117<>0,SUMPRODUCT((O$107:O$108)*TRANSPOSE(($D117:$E117))),0) -> 397580.3748 | P117: =P$106+IF($C117<>0,SUMPRODUCT((P$107:P$108)*TRANSPOSE(($D117:$E117))),0) -> 470015.4892 | Q117: =Q$106+IF($C117<>0,SUMPRODUCT((Q$107:Q$108)*TRANSPOSE(($D117:$E117))),0) -> 479450.0175 | R117: =R$106+IF($C117<>0,SUMPRODUCT((R$107:R$108)*TRANSPOSE(($D117:$E117))),0) -> 479450.0175 | S117: =S$106+IF($C117<>0,SUMPRODUCT((S$107:S$108)*TRANSPOSE(($D117:$E117))),0) -> 479450.0175 | T117: =T$106+IF($C117<>0,SUMPRODUCT((T$107:T$108)*TRANSPOSE(($D117:$E117))),0) -> 479450.0175 | U117: =U$106+IF($C117<>0,SUMPRODUCT((U$107:U$108)*TRANSPOSE(($D117:$E117))),0) -> 479450.0175 | V117: =V$106+IF($C117<>0,SUMPRODUCT((V$107:V$108)*TRANSPOSE(($D117:$E117))),0) -> 479450.0175 | W117: =W$106+IF($C117<>0,SUMPRODUCT((W$107:W$108)*TRANSPOSE(($D117:$E117))),0) -> 479450.0175 | X117: =X$106+IF($C117<>0,SUMPRODUCT((X$107:X$108)*TRANSPOSE(($D117:$E117))),0) -> 479450.0175 | Y117: =Y$106+IF($C117<>0,SUMPRODUCT((Y$107:Y$108)*TRANSPOSE(($D117:$E117))),0) -> 479450.0175 | Z117: =Z$106+IF($C117<>0,SUMPRODUCT((Z$107:Z$108)*TRANSPOSE(($D117:$E117))),0) -> 479450.0175 | AA117: =AA$106+IF($C117<>0,SUMPRODUCT((AA$107:AA$108)*TRANSPOSE(($D117:$E117))),0) -> 479450.0175 | AB117: =AB$106+IF($C117<>0,SUMPRODUCT((AB$107:AB$108)*TRANSPOSE(($D117:$E117))),0) -> 479450.0175 | AC117: =AC$106+IF($C117<>0,SUMPRODUCT((AC$107:AC$108)*TRANSPOSE(($D117:$E117))),0) -> 479450.0175 | AD117: =AD$106+IF($C117<>0,SUMPRODUCT((AD$107:AD$108)*TRANSPOSE(($D117:$E117))),0) -> 479450.0175 | AE117: =AE$106+IF($C117<>0,SUMPRODUCT((AE$107:AE$108)*TRANSPOSE(($D117:$E117))),0) -> 479450.0175 | AF117: =AF$106+IF($C117<>0,SUMPRODUCT((AF$107:AF$108)*TRANSPOSE(($D117:$E117))),0) -> 479450.0175 | AG117: =AG$106+IF($C117<>0,SUMPRODUCT((AG$107:AG$108)*TRANSPOSE(($D117:$E117))),0) -> 479450.0175

Sheet Option3
A1: =bus -> Powercor
A2: =proj -> HV cable replacement
A3: OPTION 3 | C3: =INDEX(Assumptions!$E$14:$E$18, MATCH(A3,_xlfn.ANCHORARRAY( Assumptions!$C$14),0)) -> Replace highest 10 delta risk cable sections
A4: =(INDEX(Data!$D$9:$D$13, MATCH(A3, options,0))) -> 
A6: ='Option1 (base case)'!A6 -> Count | I6: ='Option1 (base case)'!I6 -> 1 | J6: ='Option1 (base case)'!J6 -> 2 | K6: ='Option1 (base case)'!K6 -> 3 | L6: ='Option1 (base case)'!L6 -> 4 | M6: ='Option1 (base case)'!M6 -> 5 | N6: ='Option1 (base case)'!N6 -> 6 | O6: ='Option1 (base case)'!O6 -> 7 | P6: ='Option1 (base case)'!P6 -> 8 | Q6: ='Option1 (base case)'!Q6 -> 9 | R6: ='Option1 (base case)'!R6 -> 10 | S6: ='Option1 (base case)'!S6 -> 11 | T6: ='Option1 (base case)'!T6 -> 12 | U6: ='Option1 (base case)'!U6 -> 13 | V6: ='Option1 (base case)'!V6 -> 14 | W6: ='Option1 (base case)'!W6 -> 15 | X6: ='Option1 (base case)'!X6 -> 16 | Y6: ='Option1 (base case)'!Y6 -> 17 | Z6: ='Option1 (base case)'!Z6 -> 18 | AA6: ='Option1 (base case)'!AA6 -> 19 | AB6: ='Option1 (base case)'!AB6 -> 20 | AC6: ='Option1 (base case)'!AC6 -> 21 | AD6: ='Option1 (base case)'!AD6 -> 22 | AE6: ='Option1 (base case)'!AE6 -> 23 | AF6: ='Option1 (base case)'!AF6 -> 24 | AG6: ='Option1 (base case)'!AG6 -> 25
A7: ='Option1 (base case)'!A7 -> Value of CO2 reductions | G7: $/MWh | I7: ='Option1 (base case)'!I7 -> 24.7304868 | J7: ='Option1 (base case)'!J7 -> 22.34074009 | K7: ='Option1 (base case)'!K7 -> 20.19632912 | L7: ='Option1 (base case)'!L7 -> 18.06294208 | M7: ='Option1 (base case)'!M7 -> 15.91339762 | N7: ='Option1 (base case)'!N7 -> 13.71506943 | O7: ='Option1 (base case)'!O7 -> 13.71506943 | P7: ='Option1 (base case)'!P7 -> 13.71506943 | Q7: ='Option1 (base case)'!Q7 -> 13.71506943 | R7: ='Option1 (base case)'!R7 -> 13.71506943 | S7: ='Option1 (base case)'!S7 -> 13.71506943 | T7: ='Option1 (base case)'!T7 -> 13.71506943 | U7: ='Option1 (base case)'!U7 -> 13.71506943 | V7: ='Option1 (base case)'!V7 -> 13.71506943 | W7: ='Option1 (base case)'!W7 -> 13.71506943 | X7: ='Option1 (base case)'!X7 -> 13.71506943 | Y7: ='Option1 (base case)'!Y7 -> 13.71506943 | Z7: ='Option1 (base case)'!Z7 -> 13.71506943 | AA7: ='Option1 (base case)'!AA7 -> 13.71506943 | AB7: ='Option1 (base case)'!AB7 -> 13.71506943 | AC7: ='Option1 (base case)'!AC7 -> 13.71506943 | AD7: ='Option1 (base case)'!AD7 -> 13.71506943 | AE7: ='Option1 (base case)'!AE7 -> 13.71506943 | AF7: ='Option1 (base case)'!AF7 -> 13.71506943 | AG7: ='Option1 (base case)'!AG7 -> 13.71506943
G9: Units | I9: ='Option1 (base case)'!I9 -> 2026-27 | J9: ='Option1 (base case)'!J9 -> 2027-28 | K9: ='Option1 (base case)'!K9 -> 2028-29 | L9: ='Option1 (base case)'!L9 -> 2029-30 | M9: ='Option1 (base case)'!M9 -> 2030-31 | N9: ='Option1 (base case)'!N9 -> 2031-32 | O9: ='Option1 (base case)'!O9 -> 2032-33 | P9: ='Option1 (base case)'!P9 -> 2033-34 | Q9: ='Option1 (base case)'!Q9 -> 2034-35 | R9: ='Option1 (base case)'!R9 -> 2035-36 | S9: ='Option1 (base case)'!S9 -> 2036-37 | T9: ='Option1 (base case)'!T9 -> 2037-38 | U9: ='Option1 (base case)'!U9 -> 2038-39 | V9: ='Option1 (base case)'!V9 -> 2039-40 | W9: ='Option1 (base case)'!W9 -> 2040-41 | X9: ='Option1 (base case)'!X9 -> 2041-42 | Y9: ='Option1 (base case)'!Y9 -> 2042-43 | Z9: ='Option1 (base case)'!Z9 -> 2043-44 | AA9: ='Option1 (base case)'!AA9 -> 2044-45 | AB9: ='Option1 (base case)'!AB9 -> 2045-46 | AC9: ='Option1 (base case)'!AC9 -> 2046-47 | AD9: ='Option1 (base case)'!AD9 -> 2047-48 | AE9: ='Option1 (base case)'!AE9 -> 2048-49 | AF9: ='Option1 (base case)'!AF9 -> 2049-50 | AG9: ='Option1 (base case)'!AG9 -> 2050-51
A11: INVESTMENT & OPERATING COST
C13: Capex | E13: Asset life (yrs)
C14: Cable replacement | E14: 60 | G14: =input_dollars -> 2023-12-31 | I14: =Workings_costs!E45 -> 2877494.053 | J14: =Workings_costs!F45 -> 2877494.053 | K14: =Workings_costs!G45 -> 2877494.053 | L14: =Workings_costs!H45 -> 2877494.053 | M14: =Workings_costs!I45 -> 2877494.053 | N14: 0 | O14: 0 | P14: 0 | Q14: 0 | R14: 0 | S14: 0 | T14: 0 | U14: 0 | V14: 0 | W14: 0 | X14: 0 | Y14: 0 | Z14: 0 | AA14: 0 | AB14: 0 | AC14: 0 | AD14: 0 | AE14: 0 | AF14: 0 | AG14: 0
E15: 0 | G15: =input_dollars -> 2023-12-31 | I15: 0 | J15: 0 | K15: 0 | L15: 0 | M15: 0 | N15: 0 | O15: 0 | P15: 0 | Q15: 0 | R15: 0 | S15: 0 | T15: 0 | U15: 0 | V15: 0 | W15: 0 | X15: 0 | Y15: 0 | Z15: 0 | AA15: 0 | AB15: 0 | AC15: 0 | AD15: 0 | AE15: 0 | AF15: 0 | AG15: 0
E16: 0 | G16: =input_dollars -> 2023-12-31 | I16: 0 | J16: 0 | K16: 0 | L16: 0 | M16: 0 | N16: 0 | O16: 0 | P16: 0 | Q16: 0 | R16: 0 | S16: 0 | T16: 0 | U16: 0 | V16: 0 | W16: 0 | X16: 0 | Y16: 0 | Z16: 0 | AA16: 0 | AB16: 0 | AC16: 0 | AD16: 0 | AE16: 0 | AF16: 0 | AG16: 0
C17: Capital expenditure | G17: =input_dollars -> 2023-12-31 | I17: =SUM(I14:I16) -> 2877494.053 | J17: 2877494.053 | K17: 2877494.053 | L17: 2877494.053 | M17: 2877494.053 | N17: 0 | O17: 0 | P17: 0 | Q17: 0 | R17: =SUM(R14:R16) -> 0 | S17: 0 | T17: 0 | U17: 0 | V17: 0 | W17: 0 | X17: 0 | Y17: 0 | Z17: 0 | AA17: 0 | AB17: 0 | AC17: =SUM(AC14:AC16) -> 0 | AD17: =SUM(AD14:AD16) -> 0 | AE17: =SUM(AE14:AE16) -> 0 | AF17: =SUM(AF14:AF16) -> 0 | AG17: =SUM(AG14:AG16) -> 0
C19: Operating expenditure | G19: =input_dollars -> 2023-12-31 | I19: 0 | J19: 0 | K19: 0 | L19: 0 | M19: 0 | N19: 0 | O19: 0 | P19: 0 | Q19: 0 | R19: 0 | S19: 0 | T19: 0 | U19: 0 | V19: 0 | W19: 0 | X19: 0 | Y19: 0 | Z19: 0 | AA19: 0 | AB19: 0 | AC19: 0 | AD19: 0 | AE19: 0 | AF19: 0 | AG19: 0
A22: RISK ASSUMPTIONS
C24: PoF (major) | I24: 0 | J24: 0 | K24: 0 | L24: 0 | M24: 0 | N24: 0 | O24: 0 | P24: 0 | Q24: 0 | R24: 0 | S24: 0 | T24: 0 | U24: 0 | V24: 0 | W24: 0 | X24: 0 | Y24: 0 | Z24: 0 | AA24: 0 | AB24: 0 | AC24: 0 | AD24: 0 | AE24: 0 | AF24: 0 | AG24: 0
C25: PoF (reparable) | I25: 0 | J25: 0 | K25: 0 | L25: 0 | M25: 0 | N25: 0 | O25: 0 | P25: 0 | Q25: 0 | R25: 0 | S25: 0 | T25: 0 | U25: 0 | V25: 0 | W25: 0 | X25: 0 | Y25: 0 | Z25: 0 | AA25: 0 | AB25: 0 | AC25: 0 | AD25: 0 | AE25: 0 | AF25: 0 | AG25: 0
C27: Energy at risk (weighted) | G27: MWh | I27: =INDEX(Workings_risks!J$60:J$233, MATCH($A$3&$C27, Workings_risks!$E$60:$E$233,0)) -> 656.9024966 | J27: =INDEX(Workings_risks!K$60:K$233, MATCH($A$3&$C27, Workings_risks!$E$60:$E$233,0)) -> 784.0287714 | K27: =INDEX(Workings_risks!L$60:L$233, MATCH($A$3&$C27, Workings_risks!$E$60:$E$233,0)) -> 941.1783031 | L27: =INDEX(Workings_risks!M$60:M$233, MATCH($A$3&$C27, Workings_risks!$E$60:$E$233,0)) -> 1135.43649 | M27: =INDEX(Workings_risks!N$60:N$233, MATCH($A$3&$C27, Workings_risks!$E$60:$E$233,0)) -> 1376.085639 | N27: =INDEX(Workings_risks!O$60:O$233, MATCH($A$3&$C27, Workings_risks!$E$60:$E$233,0)) -> 1674.685001 | O27: =INDEX(Workings_risks!P$60:P$233, MATCH($A$3&$C27, Workings_risks!$E$60:$E$233,0)) -> 2047.14812 | P27: =INDEX(Workings_risks!Q$60:Q$233, MATCH($A$3&$C27, Workings_risks!$E$60:$E$233,0)) -> 2426.353332 | Q27: =INDEX(Workings_risks!R$60:R$233, MATCH($A$3&$C27, Workings_risks!$E$60:$E$233,0)) -> 2810.528789 | R27: =INDEX(Workings_risks!S$60:S$233, MATCH($A$3&$C27, Workings_risks!$E$60:$E$233,0)) -> 3198.404101 | S27: =INDEX(Workings_risks!T$60:T$233, MATCH($A$3&$C27, Workings_risks!$E$60:$E$233,0)) -> 3675.362559 | T27: =INDEX(Workings_risks!U$60:U$233, MATCH($A$3&$C27, Workings_risks!$E$60:$E$233,0)) -> 4160.1208 | U27: =INDEX(Workings_risks!V$60:V$233, MATCH($A$3&$C27, Workings_risks!$E$60:$E$233,0)) -> 4612.084804 | V27: =INDEX(Workings_risks!W$60:W$233, MATCH($A$3&$C27, Workings_risks!$E$60:$E$233,0)) -> 4935.337921 | W27: =INDEX(Workings_risks!X$60:X$233, MATCH($A$3&$C27, Workings_risks!$E$60:$E$233,0)) -> 5185.053546 | X27: =INDEX(Workings_risks!Y$60:Y$233, MATCH($A$3&$C27, Workings_risks!$E$60:$E$233,0)) -> 5406.182689 | Y27: =INDEX(Workings_risks!Z$60:Z$233, MATCH($A$3&$C27, Workings_risks!$E$60:$E$233,0)) -> 5538.459522 | Z27: =INDEX(Workings_risks!AA$60:AA$233, MATCH($A$3&$C27, Workings_risks!$E$60:$E$233,0)) -> 5650.834401 | AA27: =INDEX(Workings_risks!AB$60:AB$233, MATCH($A$3&$C27, Workings_risks!$E$60:$E$233,0)) -> 5745.224187 | AB27: =INDEX(Workings_risks!AC$60:AC$233, MATCH($A$3&$C27, Workings_risks!$E$60:$E$233,0)) -> 5829.93473 | AC27: =INDEX(Workings_risks!AD$60:AD$233, MATCH($A$3&$C27, Workings_risks!$E$60:$E$233,0)) -> 5908.106398 | AD27: =INDEX(Workings_risks!AE$60:AE$233, MATCH($A$3&$C27, Workings_risks!$E$60:$E$233,0)) -> 5963.65551 | AE27: =INDEX(Workings_risks!AF$60:AF$233, MATCH($A$3&$C27, Workings_risks!$E$60:$E$233,0)) -> 6006.826759 | AF27: =INDEX(Workings_risks!AG$60:AG$233, MATCH($A$3&$C27, Workings_risks!$E$60:$E$233,0)) -> 6044.455169 | AG27: =INDEX(Workings_risks!AH$60:AH$233, MATCH($A$3&$C27, Workings_risks!$E$60:$E$233,0)) -> 6080.324993
C28: Energy at risk value | D28: $/MWh | E28: =Assumptions!H41*vcr_esc -> 34717.18798 | F28: =IF(AND(SUM(I27:AG27)<>0, E28=0), "!", "") ->  | G28: =input_dollars -> 2023-12-31 | I28: =I27*$E$28 -> 22805807.46 | J28: =J27*$E$28 -> 27219274.24 | K28: 32675064.07 | L28: 39419162.05 | M28: 47773823.82 | N28: 58140353.98 | O28: 71071226.11 | P28: 84236164.73 | Q28: 97573656.27 | R28: 111039596.4 | S28: 127598252.9 | T28: 144427695.8 | U28: 160118615.1 | V28: 171341054.3 | W28: 180010478.6 | X28: 187687460.7 | Y28: 192279740.3 | Z28: 196181080.2 | AA28: 199458028.1 | AB28: 202398939.9 | AC28: 205112840.4 | AD28: 207041349.4 | AE28: 208540133.8 | AF28: 209846486.3 | AG28: 211091785.7
C30: ='Option1 (base case)'!C30 -> Safety consequence | D30: (after DF) | G30: =input_dollars -> 2023-12-31 | I30: =INDEX(Workings_risks!J$60:J$170, MATCH($A$3&$C30, Workings_risks!$E$60:$E$170,0)) -> 3423255.928 | J30: =INDEX(Workings_risks!K$60:K$170, MATCH($A$3&$C30, Workings_risks!$E$60:$E$170,0)) -> 4086949.474 | K30: =INDEX(Workings_risks!L$60:L$170, MATCH($A$3&$C30, Workings_risks!$E$60:$E$170,0)) -> 4907732.263 | L30: =INDEX(Workings_risks!M$60:M$170, MATCH($A$3&$C30, Workings_risks!$E$60:$E$170,0)) -> 5922767.275 | M30: =INDEX(Workings_risks!N$60:N$170, MATCH($A$3&$C30, Workings_risks!$E$60:$E$170,0)) -> 7180750.886 | N30: =INDEX(Workings_risks!O$60:O$170, MATCH($A$3&$C30, Workings_risks!$E$60:$E$170,0)) -> 8742359.076 | O30: =INDEX(Workings_risks!P$60:P$170, MATCH($A$3&$C30, Workings_risks!$E$60:$E$170,0)) -> 10686795.46 | P30: =INDEX(Workings_risks!Q$60:Q$170, MATCH($A$3&$C30, Workings_risks!$E$60:$E$170,0)) -> 12664585.04 | Q30: =INDEX(Workings_risks!R$60:R$170, MATCH($A$3&$C30, Workings_risks!$E$60:$E$170,0)) -> 14667064.76 | R30: =INDEX(Workings_risks!S$60:S$170, MATCH($A$3&$C30, Workings_risks!$E$60:$E$170,0)) -> 16688366.06 | S30: =INDEX(Workings_risks!T$60:T$170, MATCH($A$3&$C30, Workings_risks!$E$60:$E$170,0)) -> 19173896.07 | T30: =INDEX(Workings_risks!U$60:U$170, MATCH($A$3&$C30, Workings_risks!$E$60:$E$170,0)) -> 21700072.38 | U30: =INDEX(Workings_risks!V$60:V$170, MATCH($A$3&$C30, Workings_risks!$E$60:$E$170,0)) -> 24055351.07 | V30: =INDEX(Workings_risks!W$60:W$170, MATCH($A$3&$C30, Workings_risks!$E$60:$E$170,0)) -> 25739890.49 | W30: =INDEX(Workings_risks!X$60:X$170, MATCH($A$3&$C30, Workings_risks!$E$60:$E$170,0)) -> 27041210.7 | X30: =INDEX(Workings_risks!Y$60:Y$170, MATCH($A$3&$C30, Workings_risks!$E$60:$E$170,0)) -> 28193560.79 | Y30: =INDEX(Workings_risks!Z$60:Z$170, MATCH($A$3&$C30, Workings_risks!$E$60:$E$170,0)) -> 28882882.95 | Z30: =INDEX(Workings_risks!AA$60:AA$170, MATCH($A$3&$C30, Workings_risks!$E$60:$E$170,0)) -> 29468491.89 | AA30: =INDEX(Workings_risks!AB$60:AB$170, MATCH($A$3&$C30, Workings_risks!$E$60:$E$170,0)) -> 29960376.75 | AB30: =INDEX(Workings_risks!AC$60:AC$170, MATCH($A$3&$C30, Workings_risks!$E$60:$E$170,0)) -> 30401821.06 | AC30: =INDEX(Workings_risks!AD$60:AD$170, MATCH($A$3&$C30, Workings_risks!$E$60:$E$170,0)) -> 30809189.93 | AD30: =INDEX(Workings_risks!AE$60:AE$170, MATCH($A$3&$C30, Workings_risks!$E$60:$E$170,0)) -> 31098667.94 | AE30: =INDEX(Workings_risks!AF$60:AF$170, MATCH($A$3&$C30, Workings_risks!$E$60:$E$170,0)) -> 31323642.32 | AF30: =INDEX(Workings_risks!AG$60:AG$170, MATCH($A$3&$C30, Workings_risks!$E$60:$E$170,0)) -> 31519731.81 | AG30: =INDEX(Workings_risks!AH$60:AH$170, MATCH($A$3&$C30, Workings_risks!$E$60:$E$170,0)) -> 31706656.94
C31: ='Option1 (base case)'!C31 -> Unplanned replacements | G31: =input_dollars -> 2023-12-31 | I31: =INDEX(Workings_risks!J$60:J$170, MATCH($A$3&$C31, Workings_risks!$E$60:$E$170,0)) -> 1900959.372 | J31: =INDEX(Workings_risks!K$60:K$170, MATCH($A$3&$C31, Workings_risks!$E$60:$E$170,0)) -> 2266287.553 | K31: =INDEX(Workings_risks!L$60:L$170, MATCH($A$3&$C31, Workings_risks!$E$60:$E$170,0)) -> 2717167.055 | L31: =INDEX(Workings_risks!M$60:M$170, MATCH($A$3&$C31, Workings_risks!$E$60:$E$170,0)) -> 3273597.345 | M31: =INDEX(Workings_risks!N$60:N$170, MATCH($A$3&$C31, Workings_risks!$E$60:$E$170,0)) -> 3961756.675 | N31: =INDEX(Workings_risks!O$60:O$170, MATCH($A$3&$C31, Workings_risks!$E$60:$E$170,0)) -> 4814172.27 | O31: =INDEX(Workings_risks!P$60:P$170, MATCH($A$3&$C31, Workings_risks!$E$60:$E$170,0)) -> 5884741.058 | P31: =INDEX(Workings_risks!Q$60:Q$170, MATCH($A$3&$C31, Workings_risks!$E$60:$E$170,0)) -> 6978571.911 | Q31: =INDEX(Workings_risks!R$60:R$170, MATCH($A$3&$C31, Workings_risks!$E$60:$E$170,0)) -> 8089336.029 | R31: =INDEX(Workings_risks!S$60:S$170, MATCH($A$3&$C31, Workings_risks!$E$60:$E$170,0)) -> 9211773.901 | S31: =INDEX(Workings_risks!T$60:T$170, MATCH($A$3&$C31, Workings_risks!$E$60:$E$170,0)) -> 10592007.12 | T31: =INDEX(Workings_risks!U$60:U$170, MATCH($A$3&$C31, Workings_risks!$E$60:$E$170,0)) -> 11994811.54 | U31: =INDEX(Workings_risks!V$60:V$170, MATCH($A$3&$C31, Workings_risks!$E$60:$E$170,0)) -> 13302715.24 | V31: =INDEX(Workings_risks!W$60:W$170, MATCH($A$3&$C31, Workings_risks!$E$60:$E$170,0)) -> 14238152.46 | W31: =INDEX(Workings_risks!X$60:X$170, MATCH($A$3&$C31, Workings_risks!$E$60:$E$170,0)) -> 14960785.21 | X31: =INDEX(Workings_risks!Y$60:Y$170, MATCH($A$3&$C31, Workings_risks!$E$60:$E$170,0)) -> 15600693.75 | Y31: =INDEX(Workings_risks!Z$60:Z$170, MATCH($A$3&$C31, Workings_risks!$E$60:$E$170,0)) -> 15983479.45 | Z31: =INDEX(Workings_risks!AA$60:AA$170, MATCH($A$3&$C31, Workings_risks!$E$60:$E$170,0)) -> 16308672.43 | AA31: =INDEX(Workings_risks!AB$60:AB$170, MATCH($A$3&$C31, Workings_risks!$E$60:$E$170,0)) -> 16581819.74 | AB31: =INDEX(Workings_risks!AC$60:AC$170, MATCH($A$3&$C31, Workings_risks!$E$60:$E$170,0)) -> 16826957.03 | AC31: =INDEX(Workings_risks!AD$60:AD$170, MATCH($A$3&$C31, Workings_risks!$E$60:$E$170,0)) -> 17053171.98 | AD31: =INDEX(Workings_risks!AE$60:AE$170, MATCH($A$3&$C31, Workings_risks!$E$60:$E$170,0)) -> 17213921.27 | AE31: =INDEX(Workings_risks!AF$60:AF$170, MATCH($A$3&$C31, Workings_risks!$E$60:$E$170,0)) -> 17338851.21 | AF31: =INDEX(Workings_risks!AG$60:AG$170, MATCH($A$3&$C31, Workings_risks!$E$60:$E$170,0)) -> 17447741.15 | AG31: =INDEX(Workings_risks!AH$60:AH$170, MATCH($A$3&$C31, Workings_risks!$E$60:$E$170,0)) -> 17551542.07
C32: ='Option1 (base case)'!C32 -> Environmental consequence | D32: (after DF) | G32: =input_dollars -> 2023-12-31 | I32: =INDEX(Workings_risks!J$60:J$170, MATCH($A$3&$C32, Workings_risks!$E$60:$E$170,0)) -> 165853.3837 | J32: =INDEX(Workings_risks!K$60:K$170, MATCH($A$3&$C32, Workings_risks!$E$60:$E$170,0)) -> 198271.5753 | K32: =INDEX(Workings_risks!L$60:L$170, MATCH($A$3&$C32, Workings_risks!$E$60:$E$170,0)) -> 238437.6243 | L32: =INDEX(Workings_risks!M$60:M$170, MATCH($A$3&$C32, Workings_risks!$E$60:$E$170,0)) -> 288203.9882 | M32: =INDEX(Workings_risks!N$60:N$170, MATCH($A$3&$C32, Workings_risks!$E$60:$E$170,0)) -> 350000.3076 | N32: =INDEX(Workings_risks!O$60:O$170, MATCH($A$3&$C32, Workings_risks!$E$60:$E$170,0)) -> 426861.349 | O32: =INDEX(Workings_risks!P$60:P$170, MATCH($A$3&$C32, Workings_risks!$E$60:$E$170,0)) -> 521816.4354 | P32: =INDEX(Workings_risks!Q$60:Q$170, MATCH($A$3&$C32, Workings_risks!$E$60:$E$170,0)) -> 618001.0886 | Q32: =INDEX(Workings_risks!R$60:R$170, MATCH($A$3&$C32, Workings_risks!$E$60:$E$170,0)) -> 715119.317 | R32: =INDEX(Workings_risks!S$60:S$170, MATCH($A$3&$C32, Workings_risks!$E$60:$E$170,0)) -> 813049.8435 | S32: =INDEX(Workings_risks!T$60:T$170, MATCH($A$3&$C32, Workings_risks!$E$60:$E$170,0)) -> 933471.3285 | T32: =INDEX(Workings_risks!U$60:U$170, MATCH($A$3&$C32, Workings_risks!$E$60:$E$170,0)) -> 1055862.087 | U32: =INDEX(Workings_risks!V$60:V$170, MATCH($A$3&$C32, Workings_risks!$E$60:$E$170,0)) -> 1169973.023 | V32: =INDEX(Workings_risks!W$60:W$170, MATCH($A$3&$C32, Workings_risks!$E$60:$E$170,0)) -> 1251587.302 | W32: =INDEX(Workings_risks!X$60:X$170, MATCH($A$3&$C32, Workings_risks!$E$60:$E$170,0)) -> 1314634.987 | X32: =INDEX(Workings_risks!Y$60:Y$170, MATCH($A$3&$C32, Workings_risks!$E$60:$E$170,0)) -> 1370465.215 | Y32: =INDEX(Workings_risks!Z$60:Z$170, MATCH($A$3&$C32, Workings_risks!$E$60:$E$170,0)) -> 1403862.196 | Z32: =INDEX(Workings_risks!AA$60:AA$170, MATCH($A$3&$C32, Workings_risks!$E$60:$E$170,0)) -> 1432234.374 | AA32: =INDEX(Workings_risks!AB$60:AB$170, MATCH($A$3&$C32, Workings_risks!$E$60:$E$170,0)) -> 1456065.711 | AB32: =INDEX(Workings_risks!AC$60:AC$170, MATCH($A$3&$C32, Workings_risks!$E$60:$E$170,0)) -> 1477453.254 | AC32: =INDEX(Workings_risks!AD$60:AD$170, MATCH($A$3&$C32, Workings_risks!$E$60:$E$170,0)) -> 1497189.875 | AD32: =INDEX(Workings_risks!AE$60:AE$170, MATCH($A$3&$C32, Workings_risks!$E$60:$E$170,0)) -> 1511214.8 | AE32: =INDEX(Workings_risks!AF$60:AF$170, MATCH($A$3&$C32, Workings_risks!$E$60:$E$170,0)) -> 1522114.588 | AF32: =INDEX(Workings_risks!AG$60:AG$170, MATCH($A$3&$C32, Workings_risks!$E$60:$E$170,0)) -> 1531614.931 | AG32: =INDEX(Workings_risks!AH$60:AH$170, MATCH($A$3&$C32, Workings_risks!$E$60:$E$170,0)) -> 1540671.27
C33: ='Option1 (base case)'!C33 -> Response cost | G33: =input_dollars -> 2023-12-31 | I33: =INDEX(Workings_risks!J$60:J$170, MATCH($A$3&$C33, Workings_risks!$E$60:$E$170,0)) -> 1114904.081 | J33: =INDEX(Workings_risks!K$60:K$170, MATCH($A$3&$C33, Workings_risks!$E$60:$E$170,0)) -> 1331672.924 | K33: =INDEX(Workings_risks!L$60:L$170, MATCH($A$3&$C33, Workings_risks!$E$60:$E$170,0)) -> 1599923.285 | L33: =INDEX(Workings_risks!M$60:M$170, MATCH($A$3&$C33, Workings_risks!$E$60:$E$170,0)) -> 1931879.851 | M33: =INDEX(Workings_risks!N$60:N$170, MATCH($A$3&$C33, Workings_risks!$E$60:$E$170,0)) -> 2343566.52 | N33: =INDEX(Workings_risks!O$60:O$170, MATCH($A$3&$C33, Workings_risks!$E$60:$E$170,0)) -> 2854966.48 | O33: =INDEX(Workings_risks!P$60:P$170, MATCH($A$3&$C33, Workings_risks!$E$60:$E$170,0)) -> 3489989.183 | P33: =INDEX(Workings_risks!Q$60:Q$170, MATCH($A$3&$C33, Workings_risks!$E$60:$E$170,0)) -> 4134972.713 | Q33: =INDEX(Workings_risks!R$60:R$170, MATCH($A$3&$C33, Workings_risks!$E$60:$E$170,0)) -> 4787384.431 | R33: =INDEX(Workings_risks!S$60:S$170, MATCH($A$3&$C33, Workings_risks!$E$60:$E$170,0)) -> 5445693.609 | S33: =INDEX(Workings_risks!T$60:T$170, MATCH($A$3&$C33, Workings_risks!$E$60:$E$170,0)) -> 6255194.158 | T33: =INDEX(Workings_risks!U$60:U$170, MATCH($A$3&$C33, Workings_risks!$E$60:$E$170,0)) -> 7077932.606 | U33: =INDEX(Workings_risks!V$60:V$170, MATCH($A$3&$C33, Workings_risks!$E$60:$E$170,0)) -> 7845012.219 | V33: =INDEX(Workings_risks!W$60:W$170, MATCH($A$3&$C33, Workings_risks!$E$60:$E$170,0)) -> 8393641.919 | W33: =INDEX(Workings_risks!X$60:X$170, MATCH($A$3&$C33, Workings_risks!$E$60:$E$170,0)) -> 8817462.762 | X33: =INDEX(Workings_risks!Y$60:Y$170, MATCH($A$3&$C33, Workings_risks!$E$60:$E$170,0)) -> 9192766.229 | Y33: =INDEX(Workings_risks!Z$60:Z$170, MATCH($A$3&$C33, Workings_risks!$E$60:$E$170,0)) -> 9417268.314 | Z33: =INDEX(Workings_risks!AA$60:AA$170, MATCH($A$3&$C33, Workings_risks!$E$60:$E$170,0)) -> 9607992.527 | AA33: =INDEX(Workings_risks!AB$60:AB$170, MATCH($A$3&$C33, Workings_risks!$E$60:$E$170,0)) -> 9768192.187 | AB33: =INDEX(Workings_risks!AC$60:AC$170, MATCH($A$3&$C33, Workings_risks!$E$60:$E$170,0)) -> 9911964.103 | AC33: =INDEX(Workings_risks!AD$60:AD$170, MATCH($A$3&$C33, Workings_risks!$E$60:$E$170,0)) -> 10044638.15 | AD33: =INDEX(Workings_risks!AE$60:AE$170, MATCH($A$3&$C33, Workings_risks!$E$60:$E$170,0)) -> 10138916.88 | AE33: =INDEX(Workings_risks!AF$60:AF$170, MATCH($A$3&$C33, Workings_risks!$E$60:$E$170,0)) -> 10212187.72 | AF33: =INDEX(Workings_risks!AG$60:AG$170, MATCH($A$3&$C33, Workings_risks!$E$60:$E$170,0)) -> 10276051.19 | AG33: =INDEX(Workings_risks!AH$60:AH$170, MATCH($A$3&$C33, Workings_risks!$E$60:$E$170,0)) -> 10336929.95
G34: =input_dollars -> 2023-12-31 | I34: 0 | J34: 0 | K34: 0 | L34: 0 | M34: 0 | N34: 0 | O34: 0 | P34: 0 | Q34: 0 | R34: 0 | S34: 0 | T34: 0 | U34: 0 | V34: 0 | W34: 0 | X34: 0 | Y34: 0 | Z34: 0 | AA34: 0 | AB34: 0 | AC34: 0 | AD34: 0 | AE34: 0 | AF34: 0 | AG34: 0
C36: Total risk cost | I36: =SUM(I28:I34) -> 29410780.22 | J36: =SUM(J28:J34) -> 35102455.76 | K36: 42138324.3 | L36: 50835610.51 | M36: 61609898.21 | N36: 74978713.16 | O36: 91654568.25 | P36: 108632295.5 | Q36: 125832560.8 | R36: 143198479.8 | S36: 164552821.5 | T36: 186256374.4 | U36: 206491666.7 | V36: 220964326.5 | W36: 232144572.3 | X36: 242044946.7 | Y36: 247967233.3 | Z36: 252998471.4 | AA36: 257224482.4 | AB36: 261017135.4 | AC36: =SUM(AC28:AC34) -> 264517030.4 | AD36: =SUM(AD28:AD34) -> 267004070.3 | AE36: =SUM(AE28:AE34) -> 268936929.6 | AF36: =SUM(AF28:AF34) -> 270621625.4 | AG36: =SUM(AG28:AG34) -> 272227586
A38: OTHER BENEFITS
C41: Reduction in CO2 emissions | G41: MWh | I41: 0 | J41: 0 | K41: 0 | L41: 0 | M41: 0 | N41: 0 | O41: 0 | P41: 0 | Q41: 0 | R41: 0 | S41: 0 | T41: 0 | U41: 0 | V41: 0 | W41: 0 | X41: 0 | Y41: 0 | Z41: 0 | AA41: 0 | AB41: 0 | AC41: 0 | AD41: 0 | AE41: 0 | AF41: 0 | AG41: 0
C42: Value of reduction in CO2 emissions | G42: $ | I42: =I41*I7 -> 0 | J42: 0 | K42: 0 | L42: 0 | M42: 0 | N42: 0 | O42: 0 | P42: 0 | Q42: 0 | R42: 0 | S42: 0 | T42: 0 | U42: 0 | V42: 0 | W42: 0 | X42: 0 | Y42: 0 | Z42: 0 | AA42: 0 | AB42: 0 | AC42: 0 | AD42: 0 | AE42: 0 | AF42: 0 | AG42: 0
C45: Reliability in worst-served areas | D45: $/MWh | E45: =Assumptions!G94 -> 151432.8174 | G45: MWh | I45: 0 | J45: 0 | K45: 0 | L45: 0 | M45: 0 | N45: 0 | O45: 0 | P45: 0 | Q45: 0 | R45: 0 | S45: 0 | T45: 0 | U45: 0 | V45: 0 | W45: 0 | X45: 0 | Y45: 0 | Z45: 0 | AA45: 0 | AB45: 0 | AC45: 0 | AD45: 0 | AE45: 0 | AF45: 0 | AG45: 0
C46: Network resilience | D46: $/MWh | E46: =Assumptions!G95 -> 24590 | G46: MWh | I46: 0 | J46: 0 | K46: 0 | L46: 0 | M46: 0 | N46: 0 | O46: 0 | P46: 0 | Q46: 0 | R46: 0 | S46: 0 | T46: 0 | U46: 0 | V46: 0 | W46: 0 | X46: 0 | Y46: 0 | Z46: 0 | AA46: 0 | AB46: 0 | AC46: 0 | AD46: 0 | AE46: 0 | AF46: 0 | AG46: 0
C47: Enabling solar exports | D47: $/MWh | E47: =Assumptions!G96 -> 88.35771951 | G47: MWh | I47: 0 | J47: 0 | K47: 0 | L47: 0 | M47: 0 | N47: 0 | O47: 0 | P47: 0 | Q47: 0 | R47: 0 | S47: 0 | T47: 0 | U47: 0 | V47: 0 | W47: 0 | X47: 0 | Y47: 0 | Z47: 0 | AA47: 0 | AB47: 0 | AC47: 0 | AD47: 0 | AE47: 0 | AF47: 0 | AG47: 0
C48: Aesthetics | D48: $/customer | E48: =Assumptions!G97 -> 0 | G48: customers | I48: 0 | J48: 0 | K48: 0 | L48: 0 | M48: 0 | N48: 0 | O48: 0 | P48: 0 | Q48: 0 | R48: 0 | S48: 0 | T48: 0 | U48: 0 | V48: 0 | W48: 0 | X48: 0 | Y48: 0 | Z48: 0 | AA48: 0 | AB48: 0 | AC48: 0 | AD48: 0 | AE48: 0 | AF48: 0 | AG48: 0
C49: Customer value of time (res) | D49: $/customer min | E49: =Assumptions!G98 -> 0.3518133654 | G49: mins | I49: 0 | J49: 0 | K49: 0 | L49: 0 | M49: 0 | N49: 0 | O49: 0 | P49: 0 | Q49: 0 | R49: 0 | S49: 0 | T49: 0 | U49: 0 | V49: 0 | W49: 0 | X49: 0 | Y49: 0 | Z49: 0 | AA49: 0 | AB49: 0 | AC49: 0 | AD49: 0 | AE49: 0 | AF49: 0 | AG49: 0
C50: Customer value of time (bus) | D50: $/customer min | E50: =Assumptions!G99 -> 0.3518133654 | G50: mins | I50: 0 | J50: 0 | K50: 0 | L50: 0 | M50: 0 | N50: 0 | O50: 0 | P50: 0 | Q50: 0 | R50: 0 | S50: 0 | T50: 0 | U50: 0 | V50: 0 | W50: 0 | X50: 0 | Y50: 0 | Z50: 0 | AA50: 0 | AB50: 0 | AC50: 0 | AD50: 0 | AE50: 0 | AF50: 0 | AG50: 0
C51: Communication | D51: $/customer | E51: =Assumptions!G100 -> 0 | G51: customers | I51: 0 | J51: 0 | K51: 0 | L51: 0 | M51: 0 | N51: 0 | O51: 0 | P51: 0 | Q51: 0 | R51: 0 | S51: 0 | T51: 0 | U51: 0 | V51: 0 | W51: 0 | X51: 0 | Y51: 0 | Z51: 0 | AA51: 0 | AB51: 0 | AC51: 0 | AD51: 0 | AE51: 0 | AF51: 0 | AG51: 0
C52: Information accessibility | D52: $/customer | E52: =Assumptions!G101 -> 0 | G52: customers | I52: 0 | J52: 0 | K52: 0 | L52: 0 | M52: 0 | N52: 0 | O52: 0 | P52: 0 | Q52: 0 | R52: 0 | S52: 0 | T52: 0 | U52: 0 | V52: 0 | W52: 0 | X52: 0 | Y52: 0 | Z52: 0 | AA52: 0 | AB52: 0 | AC52: 0 | AD52: 0 | AE52: 0 | AF52: 0 | AG52: 0
C54: Other benefits 1 | G54: =input_dollars -> 2023-12-31 | I54: 0 | J54: 0 | K54: 0 | L54: 0 | M54: 0 | N54: 0 | O54: 0 | P54: 0 | Q54: 0 | R54: 0 | S54: 0 | T54: 0 | U54: 0 | V54: 0 | W54: 0 | X54: 0 | Y54: 0 | Z54: 0 | AA54: 0 | AB54: 0 | AC54: 0 | AD54: 0 | AE54: 0 | AF54: 0 | AG54: 0
C55: Other benefits 2 | G55: =input_dollars -> 2023-12-31 | I55: 0 | J55: 0 | K55: 0 | L55: 0 | M55: 0 | N55: 0 | O55: 0 | P55: 0 | Q55: 0 | R55: 0 | S55: 0 | T55: 0 | U55: 0 | V55: 0 | W55: 0 | X55: 0 | Y55: 0 | Z55: 0 | AA55: 0 | AB55: 0 | AC55: 0 | AD55: 0 | AE55: 0 | AF55: 0 | AG55: 0
C57: Total other benefits | G57: =input_dollars -> 2023-12-31 | I57: =SUMPRODUCT((I$45:I$52)*($E$45:$E$52))+SUM(I54:I55)+I42 -> 0 | J57: =SUMPRODUCT((J$45:J$52)*($E$45:$E$52))+SUM(J54:J55)+J42 -> 0 | K57: =SUMPRODUCT((K$45:K$52)*($E$45:$E$52))+SUM(K54:K55)+K42 -> 0 | L57: =SUMPRODUCT((L$45:L$52)*($E$45:$E$52))+SUM(L54:L55)+L42 -> 0 | M57: =SUMPRODUCT((M$45:M$52)*($E$45:$E$52))+SUM(M54:M55)+M42 -> 0 | N57: =SUMPRODUCT((N$45:N$52)*($E$45:$E$52))+SUM(N54:N55)+N42 -> 0 | O57: =SUMPRODUCT((O$45:O$52)*($E$45:$E$52))+SUM(O54:O55)+O42 -> 0 | P57: =SUMPRODUCT((P$45:P$52)*($E$45:$E$52))+SUM(P54:P55)+P42 -> 0 | Q57: =SUMPRODUCT((Q$45:Q$52)*($E$45:$E$52))+SUM(Q54:Q55)+Q42 -> 0 | R57: =SUMPRODUCT((R$45:R$52)*($E$45:$E$52))+SUM(R54:R55)+R42 -> 0 | S57: =SUMPRODUCT((S$45:S$52)*($E$45:$E$52))+SUM(S54:S55)+S42 -> 0 | T57: =SUMPRODUCT((T$45:T$52)*($E$45:$E$52))+SUM(T54:T55)+T42 -> 0 | U57: =SUMPRODUCT((U$45:U$52)*($E$45:$E$52))+SUM(U54:U55)+U42 -> 0 | V57: =SUMPRODUCT((V$45:V$52)*($E$45:$E$52))+SUM(V54:V55)+V42 -> 0 | W57: =SUMPRODUCT((W$45:W$52)*($E$45:$E$52))+SUM(W54:W55)+W42 -> 0 | X57: =SUMPRODUCT((X$45:X$52)*($E$45:$E$52))+SUM(X54:X55)+X42 -> 0 | Y57: =SUMPRODUCT((Y$45:Y$52)*($E$45:$E$52))+SUM(Y54:Y55)+Y42 -> 0 | Z57: =SUMPRODUCT((Z$45:Z$52)*($E$45:$E$52))+SUM(Z54:Z55)+Z42 -> 0 | AA57: =SUMPRODUCT((AA$45:AA$52)*($E$45:$E$52))+SUM(AA54:AA55)+AA42 -> 0 | AB57: =SUMPRODUCT((AB$45:AB$52)*($E$45:$E$52))+SUM(AB54:AB55)+AB42 -> 0 | AC57: =SUMPRODUCT((AC$45:AC$52)*($E$45:$E$52))+SUM(AC54:AC55)+AC42 -> 0 | AD57: =SUMPRODUCT((AD$45:AD$52)*($E$45:$E$52))+SUM(AD54:AD55)+AD42 -> 0 | AE57: =SUMPRODUCT((AE$45:AE$52)*($E$45:$E$52))+SUM(AE54:AE55)+AE42 -> 0 | AF57: =SUMPRODUCT((AF$45:AF$52)*($E$45:$E$52))+SUM(AF54:AF55)+AF42 -> 0 | AG57: =SUMPRODUCT((AG$45:AG$52)*($E$45:$E$52))+SUM(AG54:AG55)+AG42 -> 0
A60: SUMMARY
C64: ='Option1 (base case)'!C64 -> Risks mitigated vs base case | G64: =input_dollars -> 2023-12-31 | I64: =(1-INDEX(Data!$C$9:$C$13, MATCH($A$3, options,0)))*('Option1 (base case)'!I36-I36) -> 0 | J64: =(1-INDEX(Data!$C$9:$C$13, MATCH($A$3, options,0)))*('Option1 (base case)'!J36-J36) -> 79469.59608 | K64: =(1-INDEX(Data!$C$9:$C$13, MATCH($A$3, options,0)))*('Option1 (base case)'!K36-K36) -> 200364.4582 | L64: =(1-INDEX(Data!$C$9:$C$13, MATCH($A$3, options,0)))*('Option1 (base case)'!L36-L36) -> 378387.8119 | M64: =(1-INDEX(Data!$C$9:$C$13, MATCH($A$3, options,0)))*('Option1 (base case)'!M36-M36) -> 634805.518 | N64: =(1-INDEX(Data!$C$9:$C$13, MATCH($A$3, options,0)))*('Option1 (base case)'!N36-N36) -> 998357.7723 | O64: =(1-INDEX(Data!$C$9:$C$13, MATCH($A$3, options,0)))*('Option1 (base case)'!O36-O36) -> 1224789.876 | P64: =(1-INDEX(Data!$C$9:$C$13, MATCH($A$3, options,0)))*('Option1 (base case)'!P36-P36) -> 1334428.318 | Q64: =(1-INDEX(Data!$C$9:$C$13, MATCH($A$3, options,0)))*('Option1 (base case)'!Q36-Q36) -> 1364673.91 | R64: =(1-INDEX(Data!$C$9:$C$13, MATCH($A$3, options,0)))*('Option1 (base case)'!R36-R36) -> 1364814.693 | S64: =(1-INDEX(Data!$C$9:$C$13, MATCH($A$3, options,0)))*('Option1 (base case)'!S36-S36) -> 1364814.693 | T64: =(1-INDEX(Data!$C$9:$C$13, MATCH($A$3, options,0)))*('Option1 (base case)'!T36-T36) -> 1364814.693 | U64: =(1-INDEX(Data!$C$9:$C$13, MATCH($A$3, options,0)))*('Option1 (base case)'!U36-U36) -> 1364814.693 | V64: =(1-INDEX(Data!$C$9:$C$13, MATCH($A$3, options,0)))*('Option1 (base case)'!V36-V36) -> 1364814.693 | W64: =(1-INDEX(Data!$C$9:$C$13, MATCH($A$3, options,0)))*('Option1 (base case)'!W36-W36) -> 1364814.693 | X64: =(1-INDEX(Data!$C$9:$C$13, MATCH($A$3, options,0)))*('Option1 (base case)'!X36-X36) -> 1364814.693 | Y64: =(1-INDEX(Data!$C$9:$C$13, MATCH($A$3, options,0)))*('Option1 (base case)'!Y36-Y36) -> 1364814.693 | Z64: =(1-INDEX(Data!$C$9:$C$13, MATCH($A$3, options,0)))*('Option1 (base case)'!Z36-Z36) -> 1364814.693 | AA64: =(1-INDEX(Data!$C$9:$C$13, MATCH($A$3, options,0)))*('Option1 (base case)'!AA36-AA36) -> 1364814.693 | AB64: =(1-INDEX(Data!$C$9:$C$13, MATCH($A$3, options,0)))*('Option1 (base case)'!AB36-AB36) -> 1364814.693 | AC64: =(1-INDEX(Data!$C$9:$C$13, MATCH($A$3, options,0)))*('Option1 (base case)'!AC36-AC36) -> 1364814.693 | AD64: =(1-INDEX(Data!$C$9:$C$13, MATCH($A$3, options,0)))*('Option1 (base case)'!AD36-AD36) -> 1364814.693 | AE64: =(1-INDEX(Data!$C$9:$C$13, MATCH($A$3, options,0)))*('Option1 (base case)'!AE36-AE36) -> 1364814.693 | AF64: =(1-INDEX(Data!$C$9:$C$13, MATCH($A$3, options,0)))*('Option1 (base case)'!AF36-AF36) -> 1364814.693 | AG64: =(1-INDEX(Data!$C$9:$C$13, MATCH($A$3, options,0)))*('Option1 (base case)'!AG36-AG36) -> 1364814.693
C66: Capital expenditure
C67: =C14 -> Cable replacement | G67: =input_dollars -> 2023-12-31 | I67: =-I14 -> -2877494.053 | J67: -2877494.053 | K67: -2877494.053 | L67: -2877494.053 | M67: -2877494.053 | N67: 0 | O67: 0 | P67: 0 | Q67: 0 | R67: 0 | S67: 0 | T67: 0 | U67: 0 | V67: 0 | W67: 0 | X67: 0 | Y67: 0 | Z67: 0 | AA67: 0 | AB67: 0 | AC67: 0 | AD67: 0 | AE67: 0 | AF67: 0 | AG67: 0
C68: =C15 -> 0 | G68: =input_dollars -> 2023-12-31 | I68: =-I15 -> 0 | J68: 0 | K68: 0 | L68: 0 | M68: 0 | N68: 0 | O68: 0 | P68: 0 | Q68: 0 | R68: 0 | S68: 0 | T68: 0 | U68: 0 | V68: 0 | W68: 0 | X68: 0 | Y68: 0 | Z68: 0 | AA68: 0 | AB68: 0 | AC68: 0 | AD68: 0 | AE68: 0 | AF68: 0 | AG68: 0
C69: =C16 -> 0 | G69: =input_dollars -> 2023-12-31 | I69: =-I16 -> 0 | J69: 0 | K69: 0 | L69: 0 | M69: 0 | N69: 0 | O69: 0 | P69: 0 | Q69: 0 | R69: 0 | S69: 0 | T69: 0 | U69: 0 | V69: 0 | W69: 0 | X69: 0 | Y69: 0 | Z69: 0 | AA69: 0 | AB69: 0 | AC69: 0 | AD69: 0 | AE69: 0 | AF69: 0 | AG69: 0
C71: Cumulative capex
C72: =C14 -> Cable replacement | G72: =input_dollars -> 2023-12-31 | I72: =SUMPRODUCT(($I67:I67))-SUMPRODUCT(($I67:I67)*($I$6:I$6<=(I$6-$E14))) -> -2877494.053 | J72: =SUMPRODUCT(($I67:J67))-SUMPRODUCT(($I67:J67)*($I$6:J$6<=(J$6-$E14))) -> -5754988.106 | K72: =SUMPRODUCT(($I67:K67))-SUMPRODUCT(($I67:K67)*($I$6:K$6<=(K$6-$E14))) -> -8632482.16 | L72: =SUMPRODUCT(($I67:L67))-SUMPRODUCT(($I67:L67)*($I$6:L$6<=(L$6-$E14))) -> -11509976.21 | M72: =SUMPRODUCT(($I67:M67))-SUMPRODUCT(($I67:M67)*($I$6:M$6<=(M$6-$E14))) -> -14387470.27 | N72: =SUMPRODUCT(($I67:N67))-SUMPRODUCT(($I67:N67)*($I$6:N$6<=(N$6-$E14))) -> -14387470.27 | O72: =SUMPRODUCT(($I67:O67))-SUMPRODUCT(($I67:O67)*($I$6:O$6<=(O$6-$E14))) -> -14387470.27 | P72: =SUMPRODUCT(($I67:P67))-SUMPRODUCT(($I67:P67)*($I$6:P$6<=(P$6-$E14))) -> -14387470.27 | Q72: =SUMPRODUCT(($I67:Q67))-SUMPRODUCT(($I67:Q67)*($I$6:Q$6<=(Q$6-$E14))) -> -14387470.27 | R72: =SUMPRODUCT(($I67:R67))-SUMPRODUCT(($I67:R67)*($I$6:R$6<=(R$6-$E14))) -> -14387470.27 | S72: =SUMPRODUCT(($I67:S67))-SUMPRODUCT(($I67:S67)*($I$6:S$6<=(S$6-$E14))) -> -14387470.27 | T72: =SUMPRODUCT(($I67:T67))-SUMPRODUCT(($I67:T67)*($I$6:T$6<=(T$6-$E14))) -> -14387470.27 | U72: =SUMPRODUCT(($I67:U67))-SUMPRODUCT(($I67:U67)*($I$6:U$6<=(U$6-$E14))) -> -14387470.27 | V72: =SUMPRODUCT(($I67:V67))-SUMPRODUCT(($I67:V67)*($I$6:V$6<=(V$6-$E14))) -> -14387470.27 | W72: =SUMPRODUCT(($I67:W67))-SUMPRODUCT(($I67:W67)*($I$6:W$6<=(W$6-$E14))) -> -14387470.27 | X72: =SUMPRODUCT(($I67:X67))-SUMPRODUCT(($I67:X67)*($I$6:X$6<=(X$6-$E14))) -> -14387470.27 | Y72: =SUMPRODUCT(($I67:Y67))-SUMPRODUCT(($I67:Y67)*($I$6:Y$6<=(Y$6-$E14))) -> -14387470.27 | Z72: =SUMPRODUCT(($I67:Z67))-SUMPRODUCT(($I67:Z67)*($I$6:Z$6<=(Z$6-$E14))) -> -14387470.27 | AA72: =SUMPRODUCT(($I67:AA67))-SUMPRODUCT(($I67:AA67)*($I$6:AA$6<=(AA$6-$E14))) -> -14387470.27 | AB72: =SUMPRODUCT(($I67:AB67))-SUMPRODUCT(($I67:AB67)*($I$6:AB$6<=(AB$6-$E14))) -> -14387470.27 | AC72: =SUMPRODUCT(($I67:AC67))-SUMPRODUCT(($I67:AC67)*($I$6:AC$6<=(AC$6-$E14))) -> -14387470.27 | AD72: =SUMPRODUCT(($I67:AD67))-SUMPRODUCT(($I67:AD67)*($I$6:AD$6<=(AD$6-$E14))) -> -14387470.27 | AE72: =SUMPRODUCT(($I67:AE67))-SUMPRODUCT(($I67:AE67)*($I$6:AE$6<=(AE$6-$E14))) -> -14387470.27 | AF72: =SUMPRODUCT(($I67:AF67))-SUMPRODUCT(($I67:AF67)*($I$6:AF$6<=(AF$6-$E14))) -> -14387470.27 | AG72: =SUMPRODUCT(($I67:AG67))-SUMPRODUCT(($I67:AG67)*($I$6:AG$6<=(AG$6-$E14))) -> -14387470.27
C73: =C15 -> 0 | G73: =input_dollars -> 2023-12-31 | I73: =SUMPRODUCT(($I68:I68))-SUMPRODUCT(($I68:I68)*($I$6:I$6<=(I$6-$E15))) -> 0 | J73: =SUMPRODUCT(($I68:J68))-SUMPRODUCT(($I68:J68)*($I$6:J$6<=(J$6-$E15))) -> 0 | K73: =SUMPRODUCT(($I68:K68))-SUMPRODUCT(($I68:K68)*($I$6:K$6<=(K$6-$E15))) -> 0 | L73: =SUMPRODUCT(($I68:L68))-SUMPRODUCT(($I68:L68)*($I$6:L$6<=(L$6-$E15))) -> 0 | M73: =SUMPRODUCT(($I68:M68))-SUMPRODUCT(($I68:M68)*($I$6:M$6<=(M$6-$E15))) -> 0 | N73: =SUMPRODUCT(($I68:N68))-SUMPRODUCT(($I68:N68)*($I$6:N$6<=(N$6-$E15))) -> 0 | O73: =SUMPRODUCT(($I68:O68))-SUMPRODUCT(($I68:O68)*($I$6:O$6<=(O$6-$E15))) -> 0 | P73: =SUMPRODUCT(($I68:P68))-SUMPRODUCT(($I68:P68)*($I$6:P$6<=(P$6-$E15))) -> 0 | Q73: =SUMPRODUCT(($I68:Q68))-SUMPRODUCT(($I68:Q68)*($I$6:Q$6<=(Q$6-$E15))) -> 0 | R73: =SUMPRODUCT(($I68:R68))-SUMPRODUCT(($I68:R68)*($I$6:R$6<=(R$6-$E15))) -> 0 | S73: =SUMPRODUCT(($I68:S68))-SUMPRODUCT(($I68:S68)*($I$6:S$6<=(S$6-$E15))) -> 0 | T73: =SUMPRODUCT(($I68:T68))-SUMPRODUCT(($I68:T68)*($I$6:T$6<=(T$6-$E15))) -> 0 | U73: =SUMPRODUCT(($I68:U68))-SUMPRODUCT(($I68:U68)*($I$6:U$6<=(U$6-$E15))) -> 0 | V73: =SUMPRODUCT(($I68:V68))-SUMPRODUCT(($I68:V68)*($I$6:V$6<=(V$6-$E15))) -> 0 | W73: =SUMPRODUCT(($I68:W68))-SUMPRODUCT(($I68:W68)*($I$6:W$6<=(W$6-$E15))) -> 0 | X73: =SUMPRODUCT(($I68:X68))-SUMPRODUCT(($I68:X68)*($I$6:X$6<=(X$6-$E15))) -> 0 | Y73: =SUMPRODUCT(($I68:Y68))-SUMPRODUCT(($I68:Y68)*($I$6:Y$6<=(Y$6-$E15))) -> 0 | Z73: =SUMPRODUCT(($I68:Z68))-SUMPRODUCT(($I68:Z68)*($I$6:Z$6<=(Z$6-$E15))) -> 0 | AA73: =SUMPRODUCT(($I68:AA68))-SUMPRODUCT(($I68:AA68)*($I$6:AA$6<=(AA$6-$E15))) -> 0 | AB73: =SUMPRODUCT(($I68:AB68))-SUMPRODUCT(($I68:AB68)*($I$6:AB$6<=(AB$6-$E15))) -> 0 | AC73: =SUMPRODUCT(($I68:AC68))-SUMPRODUCT(($I68:AC68)*($I$6:AC$6<=(AC$6-$E15))) -> 0 | AD73: =SUMPRODUCT(($I68:AD68))-SUMPRODUCT(($I68:AD68)*($I$6:AD$6<=(AD$6-$E15))) -> 0 | AE73: =SUMPRODUCT(($I68:AE68))-SUMPRODUCT(($I68:AE68)*($I$6:AE$6<=(AE$6-$E15))) -> 0 | AF73: =SUMPRODUCT(($I68:AF68))-SUMPRODUCT(($I68:AF68)*($I$6:AF$6<=(AF$6-$E15))) -> 0 | AG73: =SUMPRODUCT(($I68:AG68))-SUMPRODUCT(($I68:AG68)*($I$6:AG$6<=(AG$6-$E15))) -> 0
C74: =C16 -> 0 | G74: =input_dollars -> 2023-12-31 | I74: =SUMPRODUCT(($I69:I69))-SUMPRODUCT(($I69:I69)*($I$6:I$6<=(I$6-$E16))) -> 0 | J74: =SUMPRODUCT(($I69:J69))-SUMPRODUCT(($I69:J69)*($I$6:J$6<=(J$6-$E16))) -> 0 | K74: =SUMPRODUCT(($I69:K69))-SUMPRODUCT(($I69:K69)*($I$6:K$6<=(K$6-$E16))) -> 0 | L74: =SUMPRODUCT(($I69:L69))-SUMPRODUCT(($I69:L69)*($I$6:L$6<=(L$6-$E16))) -> 0 | M74: =SUMPRODUCT(($I69:M69))-SUMPRODUCT(($I69:M69)*($I$6:M$6<=(M$6-$E16))) -> 0 | N74: =SUMPRODUCT(($I69:N69))-SUMPRODUCT(($I69:N69)*($I$6:N$6<=(N$6-$E16))) -> 0 | O74: =SUMPRODUCT(($I69:O69))-SUMPRODUCT(($I69:O69)*($I$6:O$6<=(O$6-$E16))) -> 0 | P74: =SUMPRODUCT(($I69:P69))-SUMPRODUCT(($I69:P69)*($I$6:P$6<=(P$6-$E16))) -> 0 | Q74: =SUMPRODUCT(($I69:Q69))-SUMPRODUCT(($I69:Q69)*($I$6:Q$6<=(Q$6-$E16))) -> 0 | R74: =SUMPRODUCT(($I69:R69))-SUMPRODUCT(($I69:R69)*($I$6:R$6<=(R$6-$E16))) -> 0 | S74: =SUMPRODUCT(($I69:S69))-SUMPRODUCT(($I69:S69)*($I$6:S$6<=(S$6-$E16))) -> 0 | T74: =SUMPRODUCT(($I69:T69))-SUMPRODUCT(($I69:T69)*($I$6:T$6<=(T$6-$E16))) -> 0 | U74: =SUMPRODUCT(($I69:U69))-SUMPRODUCT(($I69:U69)*($I$6:U$6<=(U$6-$E16))) -> 0 | V74: =SUMPRODUCT(($I69:V69))-SUMPRODUCT(($I69:V69)*($I$6:V$6<=(V$6-$E16))) -> 0 | W74: =SUMPRODUCT(($I69:W69))-SUMPRODUCT(($I69:W69)*($I$6:W$6<=(W$6-$E16))) -> 0 | X74: =SUMPRODUCT(($I69:X69))-SUMPRODUCT(($I69:X69)*($I$6:X$6<=(X$6-$E16))) -> 0 | Y74: =SUMPRODUCT(($I69:Y69))-SUMPRODUCT(($I69:Y69)*($I$6:Y$6<=(Y$6-$E16))) -> 0 | Z74: =SUMPRODUCT(($I69:Z69))-SUMPRODUCT(($I69:Z69)*($I$6:Z$6<=(Z$6-$E16))) -> 0 | AA74: =SUMPRODUCT(($I69:AA69))-SUMPRODUCT(($I69:AA69)*($I$6:AA$6<=(AA$6-$E16))) -> 0 | AB74: =SUMPRODUCT(($I69:AB69))-SUMPRODUCT(($I69:AB69)*($I$6:AB$6<=(AB$6-$E16))) -> 0 | AC74: =SUMPRODUCT(($I69:AC69))-SUMPRODUCT(($I69:AC69)*($I$6:AC$6<=(AC$6-$E16))) -> 0 | AD74: =SUMPRODUCT(($I69:AD69))-SUMPRODUCT(($I69:AD69)*($I$6:AD$6<=(AD$6-$E16))) -> 0 | AE74: =SUMPRODUCT(($I69:AE69))-SUMPRODUCT(($I69:AE69)*($I$6:AE$6<=(AE$6-$E16))) -> 0 | AF74: =SUMPRODUCT(($I69:AF69))-SUMPRODUCT(($I69:AF69)*($I$6:AF$6<=(AF$6-$E16))) -> 0 | AG74: =SUMPRODUCT(($I69:AG69))-SUMPRODUCT(($I69:AG69)*($I$6:AG$6<=(AG$6-$E16))) -> 0
C76: Annualised capex
C77: =$C$76&" - "&C14 -> Annualised capex - Cable replacement | G77: =input_dollars -> 2023-12-31 | I77: =IF($E14=0,0,-PMT(real_disc, $E14,H72,)) -> 0 | J77: -115354.7694 | K77: -230709.5389 | L77: -346064.3083 | M77: -461419.0778 | N77: -576773.8472 | O77: -576773.8472 | P77: -576773.8472 | Q77: -576773.8472 | R77: -576773.8472 | S77: -576773.8472 | T77: -576773.8472 | U77: -576773.8472 | V77: -576773.8472 | W77: -576773.8472 | X77: -576773.8472 | Y77: -576773.8472 | Z77: -576773.8472 | AA77: -576773.8472 | AB77: -576773.8472 | AC77: -576773.8472 | AD77: -576773.8472 | AE77: -576773.8472 | AF77: -576773.8472 | AG77: -576773.8472
C78: =$C$76&" - "&C15 -> Annualised capex - | G78: =input_dollars -> 2023-12-31 | I78: =IF($E15=0,0,-PMT(real_disc, $E15,H73,)) -> 0 | J78: 0 | K78: 0 | L78: 0 | M78: 0 | N78: 0 | O78: 0 | P78: 0 | Q78: 0 | R78: 0 | S78: 0 | T78: 0 | U78: 0 | V78: 0 | W78: 0 | X78: 0 | Y78: 0 | Z78: 0 | AA78: 0 | AB78: 0 | AC78: 0 | AD78: 0 | AE78: 0 | AF78: 0 | AG78: 0
C79: =$C$76&" - "&C16 -> Annualised capex - | G79: =input_dollars -> 2023-12-31 | I79: =IF($E16=0,0,-PMT(real_disc, $E16,H74,)) -> 0 | J79: 0 | K79: 0 | L79: 0 | M79: 0 | N79: 0 | O79: 0 | P79: 0 | Q79: 0 | R79: 0 | S79: 0 | T79: 0 | U79: 0 | V79: 0 | W79: 0 | X79: 0 | Y79: 0 | Z79: 0 | AA79: 0 | AB79: 0 | AC79: 0 | AD79: 0 | AE79: 0 | AF79: 0 | AG79: 0
C80: Total annualised capex | G80: =input_dollars -> 2023-12-31 | I80: =SUM(I77:I79) -> 0 | J80: =SUM(J77:J79) -> -115354.7694 | K80: -230709.5389 | L80: -346064.3083 | M80: -461419.0778 | N80: -576773.8472 | O80: -576773.8472 | P80: -576773.8472 | Q80: -576773.8472 | R80: -576773.8472 | S80: -576773.8472 | T80: -576773.8472 | U80: -576773.8472 | V80: -576773.8472 | W80: -576773.8472 | X80: -576773.8472 | Y80: -576773.8472 | Z80: -576773.8472 | AA80: -576773.8472 | AB80: -576773.8472 | AC80: =SUM(AC77:AC79) -> -576773.8472 | AD80: =SUM(AD77:AD79) -> -576773.8472 | AE80: =SUM(AE77:AE79) -> -576773.8472 | AF80: =SUM(AF77:AF79) -> -576773.8472 | AG80: =SUM(AG77:AG79) -> -576773.8472
C82: Annualised capex | G82: =input_dollars -> 2023-12-31 | I82: =I80 -> 0 | J82: =J80 -> -115354.7694 | K82: -230709.5389 | L82: -346064.3083 | M82: -461419.0778 | N82: -576773.8472 | O82: -576773.8472 | P82: -576773.8472 | Q82: -576773.8472 | R82: -576773.8472 | S82: -576773.8472 | T82: -576773.8472 | U82: -576773.8472 | V82: -576773.8472 | W82: -576773.8472 | X82: -576773.8472 | Y82: -576773.8472 | Z82: -576773.8472 | AA82: -576773.8472 | AB82: -576773.8472 | AC82: =AC80 -> -576773.8472 | AD82: =AD80 -> -576773.8472 | AE82: =AE80 -> -576773.8472 | AF82: =AF80 -> -576773.8472 | AG82: =AG80 -> -576773.8472
C83: Operating expenditure | G83: 2023-12-31 | I83: =-I19 -> 0 | J83: 0 | K83: 0 | L83: 0 | M83: 0 | N83: 0 | O83: 0 | P83: 0 | Q83: 0 | R83: 0 | S83: 0 | T83: 0 | U83: 0 | V83: 0 | W83: 0 | X83: 0 | Y83: 0 | Z83: 0 | AA83: 0 | AB83: 0 | AC83: 0 | AD83: 0 | AE83: 0 | AF83: 0 | AG83: 0
C84: Risk mitigated | G84: 2023-12-31 | I84: =I64 -> 0 | J84: 79469.59608 | K84: 200364.4582 | L84: 378387.8119 | M84: 634805.518 | N84: 998357.7723 | O84: 1224789.876 | P84: 1334428.318 | Q84: 1364673.91 | R84: 1364814.693 | S84: 1364814.693 | T84: 1364814.693 | U84: 1364814.693 | V84: 1364814.693 | W84: 1364814.693 | X84: 1364814.693 | Y84: 1364814.693 | Z84: 1364814.693 | AA84: 1364814.693 | AB84: 1364814.693 | AC84: 1364814.693 | AD84: 1364814.693 | AE84: 1364814.693 | AF84: 1364814.693 | AG84: 1364814.693
C85: Other benefits value | G85: 2023-12-31 | I85: =I57 -> 0 | J85: 0 | K85: 0 | L85: 0 | M85: 0 | N85: 0 | O85: 0 | P85: 0 | Q85: 0 | R85: 0 | S85: 0 | T85: 0 | U85: 0 | V85: 0 | W85: 0 | X85: 0 | Y85: 0 | Z85: 0 | AA85: 0 | AB85: 0 | AC85: 0 | AD85: 0 | AE85: 0 | AF85: 0 | AG85: 0
C87: Net benefits | G87: 2023-12-31 | I87: =SUM(I82:I86) -> 0 | J87: -35885.17337 | K87: -30345.08066 | L87: 32323.50354 | M87: 173386.4402 | N87: 421583.9251 | O87: 648016.029 | P87: 757654.471 | Q87: 787900.0624 | R87: 788040.8457 | S87: 788040.8457 | T87: 788040.8457 | U87: 788040.8457 | V87: 788040.8457 | W87: 788040.8457 | X87: 788040.8457 | Y87: 788040.8457 | Z87: 788040.8457 | AA87: 788040.8457 | AB87: 788040.8457 | AC87: =SUM(AC82:AC86) -> 788040.8457 | AD87: =SUM(AD82:AD86) -> 788040.8457 | AE87: =SUM(AE82:AE86) -> 788040.8457 | AF87: =SUM(AF82:AF86) -> 788040.8457 | AG87: =SUM(AG82:AG86) -> 788040.8457
C90: First capex year | G90: =IF(SUM($I17:$AG17)=0,0,(INDEX(I$6:AG$6,MATCH(TRUE,INDEX($I17:$AG17<>0,),0)))) -> 1
C92: First year | G92: =IF(_xlfn.MINIFS($G$90:$G$91, $G$90:$G$91, ">"&0)=0, $A$4, _xlfn.MINIFS($G$90:$G$91, $G$90:$G$91, ">"&0)) -> 1
A102: SENSITIVITIES
A106: NPV | C106: Net benefits | G106: =PROPER($A$3)&A106 -> Option 3NPV | I106: =I87 -> 0 | J106: =J87 -> -35885.17337 | K106: -30345.08066 | L106: 32323.50354 | M106: 173386.4402 | N106: 421583.9251 | O106: 648016.029 | P106: 757654.471 | Q106: 787900.0624 | R106: 788040.8457 | S106: 788040.8457 | T106: 788040.8457 | U106: 788040.8457 | V106: 788040.8457 | W106: 788040.8457 | X106: 788040.8457 | Y106: 788040.8457 | Z106: 788040.8457 | AA106: 788040.8457 | AB106: 788040.8457 | AC106: 788040.8457 | AD106: 788040.8457 | AE106: 788040.8457 | AF106: 788040.8457 | AG106: 788040.8457
C107: Total annualised capex | I107: =I82 -> 0 | J107: =J82 -> -115354.7694 | K107: -230709.5389 | L107: -346064.3083 | M107: -461419.0778 | N107: -576773.8472 | O107: -576773.8472 | P107: -576773.8472 | Q107: -576773.8472 | R107: -576773.8472 | S107: -576773.8472 | T107: -576773.8472 | U107: -576773.8472 | V107: -576773.8472 | W107: -576773.8472 | X107: -576773.8472 | Y107: -576773.8472 | Z107: -576773.8472 | AA107: -576773.8472 | AB107: -576773.8472 | AC107: -576773.8472 | AD107: -576773.8472 | AE107: -576773.8472 | AF107: -576773.8472 | AG107: -576773.8472
C108: Total benefits | I108: =SUM(I84:I85) -> 0 | J108: =SUM(J84:J85) -> 79469.59608 | K108: 200364.4582 | L108: 378387.8119 | M108: 634805.518 | N108: 998357.7723 | O108: 1224789.876 | P108: 1334428.318 | Q108: 1364673.91 | R108: 1364814.693 | S108: 1364814.693 | T108: 1364814.693 | U108: 1364814.693 | V108: 1364814.693 | W108: 1364814.693 | X108: 1364814.693 | Y108: 1364814.693 | Z108: 1364814.693 | AA108: 1364814.693 | AB108: 1364814.693 | AC108: 1364814.693 | AD108: 1364814.693 | AE108: 1364814.693 | AF108: 1364814.693 | AG108: 1364814.693
D109: =Assumptions!G110 -> Capex | E109: =Assumptions!H110 -> Total benefits
A110: ="sens"&Assumptions!B111 -> sens1 | C110: =Assumptions!C111 -> Capex 10% higher | D110: =Assumptions!G111 -> 0.1 | E110: =Assumptions!H111 -> 0 | G110: =PROPER($A$3)&A110 -> Option 3sens1 | I110: =I$106+IF($C110<>0,SUMPRODUCT((I$107:I$108)*TRANSPOSE(($D110:$E110))),0) -> 0 | J110: =J$106+IF($C110<>0,SUMPRODUCT((J$107:J$108)*TRANSPOSE(($D110:$E110))),0) -> -47420.65032 | K110: =K$106+IF($C110<>0,SUMPRODUCT((K$107:K$108)*TRANSPOSE(($D110:$E110))),0) -> -53416.03455 | L110: =L$106+IF($C110<>0,SUMPRODUCT((L$107:L$108)*TRANSPOSE(($D110:$E110))),0) -> -2282.927291 | M110: =M$106+IF($C110<>0,SUMPRODUCT((M$107:M$108)*TRANSPOSE(($D110:$E110))),0) -> 127244.5324 | N110: =N$106+IF($C110<>0,SUMPRODUCT((N$107:N$108)*TRANSPOSE(($D110:$E110))),0) -> 363906.5404 | O110: =O$106+IF($C110<>0,SUMPRODUCT((O$107:O$108)*TRANSPOSE(($D110:$E110))),0) -> 590338.6443 | P110: =P$106+IF($C110<>0,SUMPRODUCT((P$107:P$108)*TRANSPOSE(($D110:$E110))),0) -> 699977.0863 | Q110: =Q$106+IF($C110<>0,SUMPRODUCT((Q$107:Q$108)*TRANSPOSE(($D110:$E110))),0) -> 730222.6776 | R110: =R$106+IF($C110<>0,SUMPRODUCT((R$107:R$108)*TRANSPOSE(($D110:$E110))),0) -> 730363.461 | S110: =S$106+IF($C110<>0,SUMPRODUCT((S$107:S$108)*TRANSPOSE(($D110:$E110))),0) -> 730363.461 | T110: =T$106+IF($C110<>0,SUMPRODUCT((T$107:T$108)*TRANSPOSE(($D110:$E110))),0) -> 730363.461 | U110: =U$106+IF($C110<>0,SUMPRODUCT((U$107:U$108)*TRANSPOSE(($D110:$E110))),0) -> 730363.461 | V110: =V$106+IF($C110<>0,SUMPRODUCT((V$107:V$108)*TRANSPOSE(($D110:$E110))),0) -> 730363.461 | W110: =W$106+IF($C110<>0,SUMPRODUCT((W$107:W$108)*TRANSPOSE(($D110:$E110))),0) -> 730363.461 | X110: =X$106+IF($C110<>0,SUMPRODUCT((X$107:X$108)*TRANSPOSE(($D110:$E110))),0) -> 730363.461 | Y110: =Y$106+IF($C110<>0,SUMPRODUCT((Y$107:Y$108)*TRANSPOSE(($D110:$E110))),0) -> 730363.461 | Z110: =Z$106+IF($C110<>0,SUMPRODUCT((Z$107:Z$108)*TRANSPOSE(($D110:$E110))),0) -> 730363.461 | AA110: =AA$106+IF($C110<>0,SUMPRODUCT((AA$107:AA$108)*TRANSPOSE(($D110:$E110))),0) -> 730363.461 | AB110: =AB$106+IF($C110<>0,SUMPRODUCT((AB$107:AB$108)*TRANSPOSE(($D110:$E110))),0) -> 730363.461 | AC110: =AC$106+IF($C110<>0,SUMPRODUCT((AC$107:AC$108)*TRANSPOSE(($D110:$E110))),0) -> 730363.461 | AD110: =AD$106+IF($C110<>0,SUMPRODUCT((AD$107:AD$108)*TRANSPOSE(($D110:$E110))),0) -> 730363.461 | AE110: =AE$106+IF($C110<>0,SUMPRODUCT((AE$107:AE$108)*TRANSPOSE(($D110:$E110))),0) -> 730363.461 | AF110: =AF$106+IF($C110<>0,SUMPRODUCT((AF$107:AF$108)*TRANSPOSE(($D110:$E110))),0) -> 730363.461 | AG110: =AG$106+IF($C110<>0,SUMPRODUCT((AG$107:AG$108)*TRANSPOSE(($D110:$E110))),0) -> 730363.461
A111: ="sens"&Assumptions!B112 -> sens2 | C111: =Assumptions!C112 -> Capex 10% lower | D111: =Assumptions!G112 -> -0.1 | E111: =Assumptions!H112 -> 0 | G111: =PROPER($A$3)&A111 -> Option 3sens2 | I111: =I$106+IF($C111<>0,SUMPRODUCT((I$107:I$108)*TRANSPOSE(($D111:$E111))),0) -> 0 | J111: =J$106+IF($C111<>0,SUMPRODUCT((J$107:J$108)*TRANSPOSE(($D111:$E111))),0) -> -24349.69643 | K111: =K$106+IF($C111<>0,SUMPRODUCT((K$107:K$108)*TRANSPOSE(($D111:$E111))),0) -> -7274.126766 | L111: =L$106+IF($C111<>0,SUMPRODUCT((L$107:L$108)*TRANSPOSE(($D111:$E111))),0) -> 66929.93438 | M111: =M$106+IF($C111<>0,SUMPRODUCT((M$107:M$108)*TRANSPOSE(($D111:$E111))),0) -> 219528.3479 | N111: =N$106+IF($C111<>0,SUMPRODUCT((N$107:N$108)*TRANSPOSE(($D111:$E111))),0) -> 479261.3098 | O111: =O$106+IF($C111<>0,SUMPRODUCT((O$107:O$108)*TRANSPOSE(($D111:$E111))),0) -> 705693.4138 | P111: =P$106+IF($C111<>0,SUMPRODUCT((P$107:P$108)*TRANSPOSE(($D111:$E111))),0) -> 815331.8557 | Q111: =Q$106+IF($C111<>0,SUMPRODUCT((Q$107:Q$108)*TRANSPOSE(($D111:$E111))),0) -> 845577.4471 | R111: =R$106+IF($C111<>0,SUMPRODUCT((R$107:R$108)*TRANSPOSE(($D111:$E111))),0) -> 845718.2304 | S111: =S$106+IF($C111<>0,SUMPRODUCT((S$107:S$108)*TRANSPOSE(($D111:$E111))),0) -> 845718.2304 | T111: =T$106+IF($C111<>0,SUMPRODUCT((T$107:T$108)*TRANSPOSE(($D111:$E111))),0) -> 845718.2304 | U111: =U$106+IF($C111<>0,SUMPRODUCT((U$107:U$108)*TRANSPOSE(($D111:$E111))),0) -> 845718.2304 | V111: =V$106+IF($C111<>0,SUMPRODUCT((V$107:V$108)*TRANSPOSE(($D111:$E111))),0) -> 845718.2304 | W111: =W$106+IF($C111<>0,SUMPRODUCT((W$107:W$108)*TRANSPOSE(($D111:$E111))),0) -> 845718.2304 | X111: =X$106+IF($C111<>0,SUMPRODUCT((X$107:X$108)*TRANSPOSE(($D111:$E111))),0) -> 845718.2304 | Y111: =Y$106+IF($C111<>0,SUMPRODUCT((Y$107:Y$108)*TRANSPOSE(($D111:$E111))),0) -> 845718.2304 | Z111: =Z$106+IF($C111<>0,SUMPRODUCT((Z$107:Z$108)*TRANSPOSE(($D111:$E111))),0) -> 845718.2304 | AA111: =AA$106+IF($C111<>0,SUMPRODUCT((AA$107:AA$108)*TRANSPOSE(($D111:$E111))),0) -> 845718.2304 | AB111: =AB$106+IF($C111<>0,SUMPRODUCT((AB$107:AB$108)*TRANSPOSE(($D111:$E111))),0) -> 845718.2304 | AC111: =AC$106+IF($C111<>0,SUMPRODUCT((AC$107:AC$108)*TRANSPOSE(($D111:$E111))),0) -> 845718.2304 | AD111: =AD$106+IF($C111<>0,SUMPRODUCT((AD$107:AD$108)*TRANSPOSE(($D111:$E111))),0) -> 845718.2304 | AE111: =AE$106+IF($C111<>0,SUMPRODUCT((AE$107:AE$108)*TRANSPOSE(($D111:$E111))),0) -> 845718.2304 | AF111: =AF$106+IF($C111<>0,SUMPRODUCT((AF$107:AF$108)*TRANSPOSE(($D111:$E111))),0) -> 845718.2304 | AG111: =AG$106+IF($C111<>0,SUMPRODUCT((AG$107:AG$108)*TRANSPOSE(($D111:$E111))),0) -> 845718.2304
A112: ="sens"&Assumptions!B113 -> sens3 | C112: =Assumptions!C113 -> Total benefits 10% higher | D112: =Assumptions!G113 -> 0 | E112: =Assumptions!H113 -> 0.1 | G112: Option 3sens3 | I112: =I$106+IF($C112<>0,SUMPRODUCT((I$107:I$108)*TRANSPOSE(($D112:$E112))),0) -> 0 | J112: =J$106+IF($C112<>0,SUMPRODUCT((J$107:J$108)*TRANSPOSE(($D112:$E112))),0) -> -27938.21377 | K112: =K$106+IF($C112<>0,SUMPRODUCT((K$107:K$108)*TRANSPOSE(($D112:$E112))),0) -> -10308.63483 | L112: =L$106+IF($C112<>0,SUMPRODUCT((L$107:L$108)*TRANSPOSE(($D112:$E112))),0) -> 70162.28473 | M112: =M$106+IF($C112<>0,SUMPRODUCT((M$107:M$108)*TRANSPOSE(($D112:$E112))),0) -> 236866.992 | N112: =N$106+IF($C112<>0,SUMPRODUCT((N$107:N$108)*TRANSPOSE(($D112:$E112))),0) -> 521419.7023 | O112: =O$106+IF($C112<>0,SUMPRODUCT((O$107:O$108)*TRANSPOSE(($D112:$E112))),0) -> 770495.0167 | P112: =P$106+IF($C112<>0,SUMPRODUCT((P$107:P$108)*TRANSPOSE(($D112:$E112))),0) -> 891097.3028 | Q112: =Q$106+IF($C112<>0,SUMPRODUCT((Q$107:Q$108)*TRANSPOSE(($D112:$E112))),0) -> 924367.4533 | R112: =R$106+IF($C112<>0,SUMPRODUCT((R$107:R$108)*TRANSPOSE(($D112:$E112))),0) -> 924522.315 | S112: =S$106+IF($C112<>0,SUMPRODUCT((S$107:S$108)*TRANSPOSE(($D112:$E112))),0) -> 924522.315 | T112: =T$106+IF($C112<>0,SUMPRODUCT((T$107:T$108)*TRANSPOSE(($D112:$E112))),0) -> 924522.315 | U112: =U$106+IF($C112<>0,SUMPRODUCT((U$107:U$108)*TRANSPOSE(($D112:$E112))),0) -> 924522.315 | V112: =V$106+IF($C112<>0,SUMPRODUCT((V$107:V$108)*TRANSPOSE(($D112:$E112))),0) -> 924522.315 | W112: =W$106+IF($C112<>0,SUMPRODUCT((W$107:W$108)*TRANSPOSE(($D112:$E112))),0) -> 924522.315 | X112: =X$106+IF($C112<>0,SUMPRODUCT((X$107:X$108)*TRANSPOSE(($D112:$E112))),0) -> 924522.315 | Y112: =Y$106+IF($C112<>0,SUMPRODUCT((Y$107:Y$108)*TRANSPOSE(($D112:$E112))),0) -> 924522.315 | Z112: =Z$106+IF($C112<>0,SUMPRODUCT((Z$107:Z$108)*TRANSPOSE(($D112:$E112))),0) -> 924522.315 | AA112: =AA$106+IF($C112<>0,SUMPRODUCT((AA$107:AA$108)*TRANSPOSE(($D112:$E112))),0) -> 924522.315 | AB112: =AB$106+IF($C112<>0,SUMPRODUCT((AB$107:AB$108)*TRANSPOSE(($D112:$E112))),0) -> 924522.315 | AC112: =AC$106+IF($C112<>0,SUMPRODUCT((AC$107:AC$108)*TRANSPOSE(($D112:$E112))),0) -> 924522.315 | AD112: =AD$106+IF($C112<>0,SUMPRODUCT((AD$107:AD$108)*TRANSPOSE(($D112:$E112))),0) -> 924522.315 | AE112: =AE$106+IF($C112<>0,SUMPRODUCT((AE$107:AE$108)*TRANSPOSE(($D112:$E112))),0) -> 924522.315 | AF112: =AF$106+IF($C112<>0,SUMPRODUCT((AF$107:AF$108)*TRANSPOSE(($D112:$E112))),0) -> 924522.315 | AG112: =AG$106+IF($C112<>0,SUMPRODUCT((AG$107:AG$108)*TRANSPOSE(($D112:$E112))),0) -> 924522.315
A113: ="sens"&Assumptions!B114 -> sens4 | C113: =Assumptions!C114 -> Total benefits 10% lower | D113: =Assumptions!G114 -> 0 | E113: =Assumptions!H114 -> -0.1 | G113: Option 3sens4 | I113: =I$106+IF($C113<>0,SUMPRODUCT((I$107:I$108)*TRANSPOSE(($D113:$E113))),0) -> 0 | J113: =J$106+IF($C113<>0,SUMPRODUCT((J$107:J$108)*TRANSPOSE(($D113:$E113))),0) -> -43832.13298 | K113: =K$106+IF($C113<>0,SUMPRODUCT((K$107:K$108)*TRANSPOSE(($D113:$E113))),0) -> -50381.52648 | L113: =L$106+IF($C113<>0,SUMPRODUCT((L$107:L$108)*TRANSPOSE(($D113:$E113))),0) -> -5515.277646 | M113: =M$106+IF($C113<>0,SUMPRODUCT((M$107:M$108)*TRANSPOSE(($D113:$E113))),0) -> 109905.8884 | N113: =N$106+IF($C113<>0,SUMPRODUCT((N$107:N$108)*TRANSPOSE(($D113:$E113))),0) -> 321748.1479 | O113: =O$106+IF($C113<>0,SUMPRODUCT((O$107:O$108)*TRANSPOSE(($D113:$E113))),0) -> 525537.0414 | P113: =P$106+IF($C113<>0,SUMPRODUCT((P$107:P$108)*TRANSPOSE(($D113:$E113))),0) -> 624211.6392 | Q113: =Q$106+IF($C113<>0,SUMPRODUCT((Q$107:Q$108)*TRANSPOSE(($D113:$E113))),0) -> 651432.6714 | R113: =R$106+IF($C113<>0,SUMPRODUCT((R$107:R$108)*TRANSPOSE(($D113:$E113))),0) -> 651559.3764 | S113: =S$106+IF($C113<>0,SUMPRODUCT((S$107:S$108)*TRANSPOSE(($D113:$E113))),0) -> 651559.3764 | T113: =T$106+IF($C113<>0,SUMPRODUCT((T$107:T$108)*TRANSPOSE(($D113:$E113))),0) -> 651559.3764 | U113: =U$106+IF($C113<>0,SUMPRODUCT((U$107:U$108)*TRANSPOSE(($D113:$E113))),0) -> 651559.3764 | V113: =V$106+IF($C113<>0,SUMPRODUCT((V$107:V$108)*TRANSPOSE(($D113:$E113))),0) -> 651559.3764 | W113: =W$106+IF($C113<>0,SUMPRODUCT((W$107:W$108)*TRANSPOSE(($D113:$E113))),0) -> 651559.3764 | X113: =X$106+IF($C113<>0,SUMPRODUCT((X$107:X$108)*TRANSPOSE(($D113:$E113))),0) -> 651559.3764 | Y113: =Y$106+IF($C113<>0,SUMPRODUCT((Y$107:Y$108)*TRANSPOSE(($D113:$E113))),0) -> 651559.3764 | Z113: =Z$106+IF($C113<>0,SUMPRODUCT((Z$107:Z$108)*TRANSPOSE(($D113:$E113))),0) -> 651559.3764 | AA113: =AA$106+IF($C113<>0,SUMPRODUCT((AA$107:AA$108)*TRANSPOSE(($D113:$E113))),0) -> 651559.3764 | AB113: =AB$106+IF($C113<>0,SUMPRODUCT((AB$107:AB$108)*TRANSPOSE(($D113:$E113))),0) -> 651559.3764 | AC113: =AC$106+IF($C113<>0,SUMPRODUCT((AC$107:AC$108)*TRANSPOSE(($D113:$E113))),0) -> 651559.3764 | AD113: =AD$106+IF($C113<>0,SUMPRODUCT((AD$107:AD$108)*TRANSPOSE(($D113:$E113))),0) -> 651559.3764 | AE113: =AE$106+IF($C113<>0,SUMPRODUCT((AE$107:AE$108)*TRANSPOSE(($D113:$E113))),0) -> 651559.3764 | AF113: =AF$106+IF($C113<>0,SUMPRODUCT((AF$107:AF$108)*TRANSPOSE(($D113:$E113))),0) -> 651559.3764 | AG113: =AG$106+IF($C113<>0,SUMPRODUCT((AG$107:AG$108)*TRANSPOSE(($D113:$E113))),0) -> 651559.3764
A114: ="sens"&Assumptions!B115 -> sens5 | C114: =Assumptions!C115 -> Capex 10% higher & total benefits 10% lower | D114: =Assumptions!G115 -> 0.1 | E114: =Assumptions!H115 -> -0.1 | G114: Option 3sens5 | I114: =I$106+IF($C114<>0,SUMPRODUCT((I$107:I$108)*TRANSPOSE(($D114:$E114))),0) -> 0 | J114: =J$106+IF($C114<>0,SUMPRODUCT((J$107:J$108)*TRANSPOSE(($D114:$E114))),0) -> -55367.60993 | K114: =K$106+IF($C114<>0,SUMPRODUCT((K$107:K$108)*TRANSPOSE(($D114:$E114))),0) -> -73452.48037 | L114: =L$106+IF($C114<>0,SUMPRODUCT((L$107:L$108)*TRANSPOSE(($D114:$E114))),0) -> -40121.70848 | M114: =M$106+IF($C114<>0,SUMPRODUCT((M$107:M$108)*TRANSPOSE(($D114:$E114))),0) -> 63763.98059 | N114: =N$106+IF($C114<>0,SUMPRODUCT((N$107:N$108)*TRANSPOSE(($D114:$E114))),0) -> 264070.7631 | O114: =O$106+IF($C114<>0,SUMPRODUCT((O$107:O$108)*TRANSPOSE(($D114:$E114))),0) -> 467859.6567 | P114: =P$106+IF($C114<>0,SUMPRODUCT((P$107:P$108)*TRANSPOSE(($D114:$E114))),0) -> 566534.2545 | Q114: =Q$106+IF($C114<>0,SUMPRODUCT((Q$107:Q$108)*TRANSPOSE(($D114:$E114))),0) -> 593755.2867 | R114: =R$106+IF($C114<>0,SUMPRODUCT((R$107:R$108)*TRANSPOSE(($D114:$E114))),0) -> 593881.9917 | S114: =S$106+IF($C114<>0,SUMPRODUCT((S$107:S$108)*TRANSPOSE(($D114:$E114))),0) -> 593881.9917 | T114: =T$106+IF($C114<>0,SUMPRODUCT((T$107:T$108)*TRANSPOSE(($D114:$E114))),0) -> 593881.9917 | U114: =U$106+IF($C114<>0,SUMPRODUCT((U$107:U$108)*TRANSPOSE(($D114:$E114))),0) -> 593881.9917 | V114: =V$106+IF($C114<>0,SUMPRODUCT((V$107:V$108)*TRANSPOSE(($D114:$E114))),0) -> 593881.9917 | W114: =W$106+IF($C114<>0,SUMPRODUCT((W$107:W$108)*TRANSPOSE(($D114:$E114))),0) -> 593881.9917 | X114: =X$106+IF($C114<>0,SUMPRODUCT((X$107:X$108)*TRANSPOSE(($D114:$E114))),0) -> 593881.9917 | Y114: =Y$106+IF($C114<>0,SUMPRODUCT((Y$107:Y$108)*TRANSPOSE(($D114:$E114))),0) -> 593881.9917 | Z114: =Z$106+IF($C114<>0,SUMPRODUCT((Z$107:Z$108)*TRANSPOSE(($D114:$E114))),0) -> 593881.9917 | AA114: =AA$106+IF($C114<>0,SUMPRODUCT((AA$107:AA$108)*TRANSPOSE(($D114:$E114))),0) -> 593881.9917 | AB114: =AB$106+IF($C114<>0,SUMPRODUCT((AB$107:AB$108)*TRANSPOSE(($D114:$E114))),0) -> 593881.9917 | AC114: =AC$106+IF($C114<>0,SUMPRODUCT((AC$107:AC$108)*TRANSPOSE(($D114:$E114))),0) -> 593881.9917 | AD114: =AD$106+IF($C114<>0,SUMPRODUCT((AD$107:AD$108)*TRANSPOSE(($D114:$E114))),0) -> 593881.9917 | AE114: =AE$106+IF($C114<>0,SUMPRODUCT((AE$107:AE$108)*TRANSPOSE(($D114:$E114))),0) -> 593881.9917 | AF114: =AF$106+IF($C114<>0,SUMPRODUCT((AF$107:AF$108)*TRANSPOSE(($D114:$E114))),0) -> 593881.9917 | AG114: =AG$106+IF($C114<>0,SUMPRODUCT((AG$107:AG$108)*TRANSPOSE(($D114:$E114))),0) -> 593881.9917
A115: ="sens"&Assumptions!B116 -> sens | C115: =Assumptions!C116 -> 0 | D115: =Assumptions!G116 -> 0 | E115: =Assumptions!H116 -> 0 | G115: Option 3sens | I115: =I$106+IF($C115<>0,SUMPRODUCT((I$107:I$108)*TRANSPOSE(($D115:$E115))),0) -> 0 | J115: =J$106+IF($C115<>0,SUMPRODUCT((J$107:J$108)*TRANSPOSE(($D115:$E115))),0) -> -35885.17337 | K115: =K$106+IF($C115<>0,SUMPRODUCT((K$107:K$108)*TRANSPOSE(($D115:$E115))),0) -> -30345.08066 | L115: =L$106+IF($C115<>0,SUMPRODUCT((L$107:L$108)*TRANSPOSE(($D115:$E115))),0) -> 32323.50354 | M115: =M$106+IF($C115<>0,SUMPRODUCT((M$107:M$108)*TRANSPOSE(($D115:$E115))),0) -> 173386.4402 | N115: =N$106+IF($C115<>0,SUMPRODUCT((N$107:N$108)*TRANSPOSE(($D115:$E115))),0) -> 421583.9251 | O115: =O$106+IF($C115<>0,SUMPRODUCT((O$107:O$108)*TRANSPOSE(($D115:$E115))),0) -> 648016.029 | P115: =P$106+IF($C115<>0,SUMPRODUCT((P$107:P$108)*TRANSPOSE(($D115:$E115))),0) -> 757654.471 | Q115: =Q$106+IF($C115<>0,SUMPRODUCT((Q$107:Q$108)*TRANSPOSE(($D115:$E115))),0) -> 787900.0624 | R115: =R$106+IF($C115<>0,SUMPRODUCT((R$107:R$108)*TRANSPOSE(($D115:$E115))),0) -> 788040.8457 | S115: =S$106+IF($C115<>0,SUMPRODUCT((S$107:S$108)*TRANSPOSE(($D115:$E115))),0) -> 788040.8457 | T115: =T$106+IF($C115<>0,SUMPRODUCT((T$107:T$108)*TRANSPOSE(($D115:$E115))),0) -> 788040.8457 | U115: =U$106+IF($C115<>0,SUMPRODUCT((U$107:U$108)*TRANSPOSE(($D115:$E115))),0) -> 788040.8457 | V115: =V$106+IF($C115<>0,SUMPRODUCT((V$107:V$108)*TRANSPOSE(($D115:$E115))),0) -> 788040.8457 | W115: =W$106+IF($C115<>0,SUMPRODUCT((W$107:W$108)*TRANSPOSE(($D115:$E115))),0) -> 788040.8457 | X115: =X$106+IF($C115<>0,SUMPRODUCT((X$107:X$108)*TRANSPOSE(($D115:$E115))),0) -> 788040.8457 | Y115: =Y$106+IF($C115<>0,SUMPRODUCT((Y$107:Y$108)*TRANSPOSE(($D115:$E115))),0) -> 788040.8457 | Z115: =Z$106+IF($C115<>0,SUMPRODUCT((Z$107:Z$108)*TRANSPOSE(($D115:$E115))),0) -> 788040.8457 | AA115: =AA$106+IF($C115<>0,SUMPRODUCT((AA$107:AA$108)*TRANSPOSE(($D115:$E115))),0) -> 788040.8457 | AB115: =AB$106+IF($C115<>0,SUMPRODUCT((AB$107:AB$108)*TRANSPOSE(($D115:$E115))),0) -> 788040.8457 | AC115: =AC$106+IF($C115<>0,SUMPRODUCT((AC$107:AC$108)*TRANSPOSE(($D115:$E115))),0) -> 788040.8457 | AD115: =AD$106+IF($C115<>0,SUMPRODUCT((AD$107:AD$108)*TRANSPOSE(($D115:$E115))),0) -> 788040.8457 | AE115: =AE$106+IF($C115<>0,SUMPRODUCT((AE$107:AE$108)*TRANSPOSE(($D115:$E115))),0) -> 788040.8457 | AF115: =AF$106+IF($C115<>0,SUMPRODUCT((AF$107:AF$108)*TRANSPOSE(($D115:$E115))),0) -> 788040.8457 | AG115: =AG$106+IF($C115<>0,SUMPRODUCT((AG$107:AG$108)*TRANSPOSE(($D115:$E115))),0) -> 788040.8457
A116: ="sens"&Assumptions!B117 -> sens | C116: =Assumptions!C117 -> 0 | D116: =Assumptions!G117 -> 0 | E116: =Assumptions!H117 -> 0 | G116: Option 3sens | I116: =I$106+IF($C116<>0,SUMPRODUCT((I$107:I$108)*TRANSPOSE(($D116:$E116))),0) -> 0 | J116: =J$106+IF($C116<>0,SUMPRODUCT((J$107:J$108)*TRANSPOSE(($D116:$E116))),0) -> -35885.17337 | K116: =K$106+IF($C116<>0,SUMPRODUCT((K$107:K$108)*TRANSPOSE(($D116:$E116))),0) -> -30345.08066 | L116: =L$106+IF($C116<>0,SUMPRODUCT((L$107:L$108)*TRANSPOSE(($D116:$E116))),0) -> 32323.50354 | M116: =M$106+IF($C116<>0,SUMPRODUCT((M$107:M$108)*TRANSPOSE(($D116:$E116))),0) -> 173386.4402 | N116: =N$106+IF($C116<>0,SUMPRODUCT((N$107:N$108)*TRANSPOSE(($D116:$E116))),0) -> 421583.9251 | O116: =O$106+IF($C116<>0,SUMPRODUCT((O$107:O$108)*TRANSPOSE(($D116:$E116))),0) -> 648016.029 | P116: =P$106+IF($C116<>0,SUMPRODUCT((P$107:P$108)*TRANSPOSE(($D116:$E116))),0) -> 757654.471 | Q116: =Q$106+IF($C116<>0,SUMPRODUCT((Q$107:Q$108)*TRANSPOSE(($D116:$E116))),0) -> 787900.0624 | R116: =R$106+IF($C116<>0,SUMPRODUCT((R$107:R$108)*TRANSPOSE(($D116:$E116))),0) -> 788040.8457 | S116: =S$106+IF($C116<>0,SUMPRODUCT((S$107:S$108)*TRANSPOSE(($D116:$E116))),0) -> 788040.8457 | T116: =T$106+IF($C116<>0,SUMPRODUCT((T$107:T$108)*TRANSPOSE(($D116:$E116))),0) -> 788040.8457 | U116: =U$106+IF($C116<>0,SUMPRODUCT((U$107:U$108)*TRANSPOSE(($D116:$E116))),0) -> 788040.8457 | V116: =V$106+IF($C116<>0,SUMPRODUCT((V$107:V$108)*TRANSPOSE(($D116:$E116))),0) -> 788040.8457 | W116: =W$106+IF($C116<>0,SUMPRODUCT((W$107:W$108)*TRANSPOSE(($D116:$E116))),0) -> 788040.8457 | X116: =X$106+IF($C116<>0,SUMPRODUCT((X$107:X$108)*TRANSPOSE(($D116:$E116))),0) -> 788040.8457 | Y116: =Y$106+IF($C116<>0,SUMPRODUCT((Y$107:Y$108)*TRANSPOSE(($D116:$E116))),0) -> 788040.8457 | Z116: =Z$106+IF($C116<>0,SUMPRODUCT((Z$107:Z$108)*TRANSPOSE(($D116:$E116))),0) -> 788040.8457 | AA116: =AA$106+IF($C116<>0,SUMPRODUCT((AA$107:AA$108)*TRANSPOSE(($D116:$E116))),0) -> 788040.8457 | AB116: =AB$106+IF($C116<>0,SUMPRODUCT((AB$107:AB$108)*TRANSPOSE(($D116:$E116))),0) -> 788040.8457 | AC116: =AC$106+IF($C116<>0,SUMPRODUCT((AC$107:AC$108)*TRANSPOSE(($D116:$E116))),0) -> 788040.8457 | AD116: =AD$106+IF($C116<>0,SUMPRODUCT((AD$107:AD$108)*TRANSPOSE(($D116:$E116))),0) -> 788040.8457 | AE116: =AE$106+IF($C116<>0,SUMPRODUCT((AE$107:AE$108)*TRANSPOSE(($D116:$E116))),0) -> 788040.8457 | AF116: =AF$106+IF($C116<>0,SUMPRODUCT((AF$107:AF$108)*TRANSPOSE(($D116:$E116))),0) -> 788040.8457 | AG116: =AG$106+IF($C116<>0,SUMPRODUCT((AG$107:AG$108)*TRANSPOSE(($D116:$E116))),0) -> 788040.8457
A117: ="sens"&Assumptions!B118 -> sens | C117: =Assumptions!C118 -> 0 | D117: =Assumptions!G118 -> 0 | E117: =Assumptions!H118 -> 0 | G117: Option 3sens | I117: =I$106+IF($C117<>0,SUMPRODUCT((I$107:I$108)*TRANSPOSE(($D117:$E117))),0) -> 0 | J117: =J$106+IF($C117<>0,SUMPRODUCT((J$107:J$108)*TRANSPOSE(($D117:$E117))),0) -> -35885.17337 | K117: =K$106+IF($C117<>0,SUMPRODUCT((K$107:K$108)*TRANSPOSE(($D117:$E117))),0) -> -30345.08066 | L117: =L$106+IF($C117<>0,SUMPRODUCT((L$107:L$108)*TRANSPOSE(($D117:$E117))),0) -> 32323.50354 | M117: =M$106+IF($C117<>0,SUMPRODUCT((M$107:M$108)*TRANSPOSE(($D117:$E117))),0) -> 173386.4402 | N117: =N$106+IF($C117<>0,SUMPRODUCT((N$107:N$108)*TRANSPOSE(($D117:$E117))),0) -> 421583.9251 | O117: =O$106+IF($C117<>0,SUMPRODUCT((O$107:O$108)*TRANSPOSE(($D117:$E117))),0) -> 648016.029 | P117: =P$106+IF($C117<>0,SUMPRODUCT((P$107:P$108)*TRANSPOSE(($D117:$E117))),0) -> 757654.471 | Q117: =Q$106+IF($C117<>0,SUMPRODUCT((Q$107:Q$108)*TRANSPOSE(($D117:$E117))),0) -> 787900.0624 | R117: =R$106+IF($C117<>0,SUMPRODUCT((R$107:R$108)*TRANSPOSE(($D117:$E117))),0) -> 788040.8457 | S117: =S$106+IF($C117<>0,SUMPRODUCT((S$107:S$108)*TRANSPOSE(($D117:$E117))),0) -> 788040.8457 | T117: =T$106+IF($C117<>0,SUMPRODUCT((T$107:T$108)*TRANSPOSE(($D117:$E117))),0) -> 788040.8457 | U117: =U$106+IF($C117<>0,SUMPRODUCT((U$107:U$108)*TRANSPOSE(($D117:$E117))),0) -> 788040.8457 | V117: =V$106+IF($C117<>0,SUMPRODUCT((V$107:V$108)*TRANSPOSE(($D117:$E117))),0) -> 788040.8457 | W117: =W$106+IF($C117<>0,SUMPRODUCT((W$107:W$108)*TRANSPOSE(($D117:$E117))),0) -> 788040.8457 | X117: =X$106+IF($C117<>0,SUMPRODUCT((X$107:X$108)*TRANSPOSE(($D117:$E117))),0) -> 788040.8457 | Y117: =Y$106+IF($C117<>0,SUMPRODUCT((Y$107:Y$108)*TRANSPOSE(($D117:$E117))),0) -> 788040.8457 | Z117: =Z$106+IF($C117<>0,SUMPRODUCT((Z$107:Z$108)*TRANSPOSE(($D117:$E117))),0) -> 788040.8457 | AA117: =AA$106+IF($C117<>0,SUMPRODUCT((AA$107:AA$108)*TRANSPOSE(($D117:$E117))),0) -> 788040.8457 | AB117: =AB$106+IF($C117<>0,SUMPRODUCT((AB$107:AB$108)*TRANSPOSE(($D117:$E117))),0) -> 788040.8457 | AC117: =AC$106+IF($C117<>0,SUMPRODUCT((AC$107:AC$108)*TRANSPOSE(($D117:$E117))),0) -> 788040.8457 | AD117: =AD$106+IF($C117<>0,SUMPRODUCT((AD$107:AD$108)*TRANSPOSE(($D117:$E117))),0) -> 788040.8457 | AE117: =AE$106+IF($C117<>0,SUMPRODUCT((AE$107:AE$108)*TRANSPOSE(($D117:$E117))),0) -> 788040.8457 | AF117: =AF$106+IF($C117<>0,SUMPRODUCT((AF$107:AF$108)*TRANSPOSE(($D117:$E117))),0) -> 788040.8457 | AG117: =AG$106+IF($C117<>0,SUMPRODUCT((AG$107:AG$108)*TRANSPOSE(($D117:$E117))),0) -> 788040.8457

Sheet Option4
A1: =bus -> Powercor
A2: =proj -> HV cable replacement
A3: OPTION 4 | C3: =INDEX(Assumptions!$E$14:$E$18, MATCH(A3,_xlfn.ANCHORARRAY( Assumptions!$C$14),0)) -> Monitor highest delta risk cable sections and replace those with high partial discharge
A4: =(INDEX(Data!$D$9:$D$13, MATCH(A3, options,0))) -> 
A6: ='Option1 (base case)'!A6 -> Count | I6: ='Option1 (base case)'!I6 -> 1 | J6: ='Option1 (base case)'!J6 -> 2 | K6: ='Option1 (base case)'!K6 -> 3 | L6: ='Option1 (base case)'!L6 -> 4 | M6: ='Option1 (base case)'!M6 -> 5 | N6: ='Option1 (base case)'!N6 -> 6 | O6: ='Option1 (base case)'!O6 -> 7 | P6: ='Option1 (base case)'!P6 -> 8 | Q6: ='Option1 (base case)'!Q6 -> 9 | R6: ='Option1 (base case)'!R6 -> 10 | S6: ='Option1 (base case)'!S6 -> 11 | T6: ='Option1 (base case)'!T6 -> 12 | U6: ='Option1 (base case)'!U6 -> 13 | V6: ='Option1 (base case)'!V6 -> 14 | W6: ='Option1 (base case)'!W6 -> 15 | X6: ='Option1 (base case)'!X6 -> 16 | Y6: ='Option1 (base case)'!Y6 -> 17 | Z6: ='Option1 (base case)'!Z6 -> 18 | AA6: ='Option1 (base case)'!AA6 -> 19 | AB6: ='Option1 (base case)'!AB6 -> 20 | AC6: ='Option1 (base case)'!AC6 -> 21 | AD6: ='Option1 (base case)'!AD6 -> 22 | AE6: ='Option1 (base case)'!AE6 -> 23 | AF6: ='Option1 (base case)'!AF6 -> 24 | AG6: ='Option1 (base case)'!AG6 -> 25
A7: ='Option1 (base case)'!A7 -> Value of CO2 reductions | G7: $/MWh | I7: ='Option1 (base case)'!I7 -> 24.7304868 | J7: ='Option1 (base case)'!J7 -> 22.34074009 | K7: ='Option1 (base case)'!K7 -> 20.19632912 | L7: ='Option1 (base case)'!L7 -> 18.06294208 | M7: ='Option1 (base case)'!M7 -> 15.91339762 | N7: ='Option1 (base case)'!N7 -> 13.71506943 | O7: ='Option1 (base case)'!O7 -> 13.71506943 | P7: ='Option1 (base case)'!P7 -> 13.71506943 | Q7: ='Option1 (base case)'!Q7 -> 13.71506943 | R7: ='Option1 (base case)'!R7 -> 13.71506943 | S7: ='Option1 (base case)'!S7 -> 13.71506943 | T7: ='Option1 (base case)'!T7 -> 13.71506943 | U7: ='Option1 (base case)'!U7 -> 13.71506943 | V7: ='Option1 (base case)'!V7 -> 13.71506943 | W7: ='Option1 (base case)'!W7 -> 13.71506943 | X7: ='Option1 (base case)'!X7 -> 13.71506943 | Y7: ='Option1 (base case)'!Y7 -> 13.71506943 | Z7: ='Option1 (base case)'!Z7 -> 13.71506943 | AA7: ='Option1 (base case)'!AA7 -> 13.71506943 | AB7: ='Option1 (base case)'!AB7 -> 13.71506943 | AC7: ='Option1 (base case)'!AC7 -> 13.71506943 | AD7: ='Option1 (base case)'!AD7 -> 13.71506943 | AE7: ='Option1 (base case)'!AE7 -> 13.71506943 | AF7: ='Option1 (base case)'!AF7 -> 13.71506943 | AG7: ='Option1 (base case)'!AG7 -> 13.71506943
G9: Units | I9: ='Option1 (base case)'!I9 -> 2026-27 | J9: ='Option1 (base case)'!J9 -> 2027-28 | K9: ='Option1 (base case)'!K9 -> 2028-29 | L9: ='Option1 (base case)'!L9 -> 2029-30 | M9: ='Option1 (base case)'!M9 -> 2030-31 | N9: ='Option1 (base case)'!N9 -> 2031-32 | O9: ='Option1 (base case)'!O9 -> 2032-33 | P9: ='Option1 (base case)'!P9 -> 2033-34 | Q9: ='Option1 (base case)'!Q9 -> 2034-35 | R9: ='Option1 (base case)'!R9 -> 2035-36 | S9: ='Option1 (base case)'!S9 -> 2036-37 | T9: ='Option1 (base case)'!T9 -> 2037-38 | U9: ='Option1 (base case)'!U9 -> 2038-39 | V9: ='Option1 (base case)'!V9 -> 2039-40 | W9: ='Option1 (base case)'!W9 -> 2040-41 | X9: ='Option1 (base case)'!X9 -> 2041-42 | Y9: ='Option1 (base case)'!Y9 -> 2042-43 | Z9: ='Option1 (base case)'!Z9 -> 2043-44 | AA9: ='Option1 (base case)'!AA9 -> 2044-45 | AB9: ='Option1 (base case)'!AB9 -> 2045-46 | AC9: ='Option1 (base case)'!AC9 -> 2046-47 | AD9: ='Option1 (base case)'!AD9 -> 2047-48 | AE9: ='Option1 (base case)'!AE9 -> 2048-49 | AF9: ='Option1 (base case)'!AF9 -> 2049-50 | AG9: ='Option1 (base case)'!AG9 -> 2050-51
A11: INVESTMENT & OPERATING COST
C13: Capex | E13: Asset life (yrs)
C14: Condition assessment of top 30 delta risk cable sections | E14: 1 | G14: =input_dollars -> 2023-12-31 | I14: =Workings_costs!E50 -> 1000000 | J14: =Workings_costs!F50 -> 1000000 | K14: =Workings_costs!G50 -> 1000000 | L14: =Workings_costs!H50 -> 1000000 | M14: =Workings_costs!I50 -> 1000000 | N14: 0 | O14: 0 | P14: 0 | Q14: 0 | R14: 0 | S14: 0 | T14: 0 | U14: 0 | V14: 0 | W14: 0 | X14: 0 | Y14: 0 | Z14: 0 | AA14: 0 | AB14: 0 | AC14: 0 | AD14: 0 | AE14: 0 | AF14: 0 | AG14: 0
C15: Replacement of poor condition cable sections | E15: 60 | G15: =input_dollars -> 2023-12-31 | I15: =Workings_costs!E51 -> 0 | J15: =Workings_costs!F51 -> 1050451.619 | K15: =Workings_costs!G51 -> 1050451.619 | L15: =Workings_costs!H51 -> 1050451.619 | M15: =Workings_costs!I51 -> 1050451.619 | N15: 0 | O15: 0 | P15: 0 | Q15: 0 | R15: 0 | S15: 0 | T15: 0 | U15: 0 | V15: 0 | W15: 0 | X15: 0 | Y15: 0 | Z15: 0 | AA15: 0 | AB15: 0 | AC15: 0 | AD15: 0 | AE15: 0 | AF15: 0 | AG15: 0
E16: 0 | G16: =input_dollars -> 2023-12-31 | I16: 0 | J16: 0 | K16: 0 | L16: 0 | M16: 0 | N16: 0 | O16: 0 | P16: 0 | Q16: 0 | R16: 0 | S16: 0 | T16: 0 | U16: 0 | V16: 0 | W16: 0 | X16: 0 | Y16: 0 | Z16: 0 | AA16: 0 | AB16: 0 | AC16: 0 | AD16: 0 | AE16: 0 | AF16: 0 | AG16: 0
C17: Capital expenditure | G17: =input_dollars -> 2023-12-31 | I17: =SUM(I14:I16) -> 1000000 | J17: 2050451.619 | K17: 2050451.619 | L17: 2050451.619 | M17: 2050451.619 | N17: 0 | O17: 0 | P17: 0 | Q17: 0 | R17: =SUM(R14:R16) -> 0 | S17: 0 | T17: 0 | U17: 0 | V17: 0 | W17: 0 | X17: 0 | Y17: 0 | Z17: 0 | AA17: 0 | AB17: 0 | AC17: 0 | AD17: 0 | AE17: 0 | AF17: 0 | AG17: 0
C19: Operating expenditure | G19: =input_dollars -> 2023-12-31 | I19: 0 | J19: 0 | K19: 0 | L19: 0 | M19: 0 | N19: 0 | O19: 0 | P19: 0 | Q19: 0 | R19: 0 | S19: 0 | T19: 0 | U19: 0 | V19: 0 | W19: 0 | X19: 0 | Y19: 0 | Z19: 0 | AA19: 0 | AB19: 0 | AC19: 0 | AD19: 0 | AE19: 0 | AF19: 0 | AG19: 0
A22: RISK ASSUMPTIONS
C24: PoF (major) | I24: 0 | J24: 0 | K24: 0 | L24: 0 | M24: 0 | N24: 0 | O24: 0 | P24: 0 | Q24: 0 | R24: 0 | S24: 0 | T24: 0 | U24: 0 | V24: 0 | W24: 0 | X24: 0 | Y24: 0 | Z24: 0 | AA24: 0 | AB24: 0 | AC24: 0 | AD24: 0 | AE24: 0 | AF24: 0 | AG24: 0
C25: PoF (reparable) | I25: 0 | J25: 0 | K25: 0 | L25: 0 | M25: 0 | N25: 0 | O25: 0 | P25: 0 | Q25: 0 | R25: 0 | S25: 0 | T25: 0 | U25: 0 | V25: 0 | W25: 0 | X25: 0 | Y25: 0 | Z25: 0 | AA25: 0 | AB25: 0 | AC25: 0 | AD25: 0 | AE25: 0 | AF25: 0 | AG25: 0
C27: Energy at risk (weighted) | G27: MWh | I27: =INDEX(Workings_risks!J$60:J$233, MATCH($A$3&$C27, Workings_risks!$E$60:$E$233,0)) -> 635.1351393 | J27: =INDEX(Workings_risks!K$60:K$233, MATCH($A$3&$C27, Workings_risks!$E$60:$E$233,0)) -> 759.3453561 | K27: =INDEX(Workings_risks!L$60:L$233, MATCH($A$3&$C27, Workings_risks!$E$60:$E$233,0)) -> 913.3502211 | L27: =INDEX(Workings_risks!M$60:M$233, MATCH($A$3&$C27, Workings_risks!$E$60:$E$233,0)) -> 1104.283068 | M27: =INDEX(Workings_risks!N$60:N$233, MATCH($A$3&$C27, Workings_risks!$E$60:$E$233,0)) -> 1341.515936 | N27: =INDEX(Workings_risks!O$60:O$233, MATCH($A$3&$C27, Workings_risks!$E$60:$E$233,0)) -> 1691.30134 | O27: =INDEX(Workings_risks!P$60:P$233, MATCH($A$3&$C27, Workings_risks!$E$60:$E$233,0)) -> 2067.5067 | P27: =INDEX(Workings_risks!Q$60:Q$233, MATCH($A$3&$C27, Workings_risks!$E$60:$E$233,0)) -> 2448.48885 | Q27: =INDEX(Workings_risks!R$60:R$233, MATCH($A$3&$C27, Workings_risks!$E$60:$E$233,0)) -> 2833.036734 | R27: =INDEX(Workings_risks!S$60:S$233, MATCH($A$3&$C27, Workings_risks!$E$60:$E$233,0)) -> 3220.875449 | S27: =INDEX(Workings_risks!T$60:T$233, MATCH($A$3&$C27, Workings_risks!$E$60:$E$233,0)) -> 3697.79221 | T27: =INDEX(Workings_risks!U$60:U$233, MATCH($A$3&$C27, Workings_risks!$E$60:$E$233,0)) -> 4182.505286 | U27: =INDEX(Workings_risks!V$60:V$233, MATCH($A$3&$C27, Workings_risks!$E$60:$E$233,0)) -> 4634.420359 | V27: =INDEX(Workings_risks!W$60:W$233, MATCH($A$3&$C27, Workings_risks!$E$60:$E$233,0)) -> 4957.620458 | W27: =INDEX(Workings_risks!X$60:X$233, MATCH($A$3&$C27, Workings_risks!$E$60:$E$233,0)) -> 5207.278627 | X27: =INDEX(Workings_risks!Y$60:Y$233, MATCH($A$3&$C27, Workings_risks!$E$60:$E$233,0)) -> 5428.345494 | Y27: =INDEX(Workings_risks!Z$60:Z$233, MATCH($A$3&$C27, Workings_risks!$E$60:$E$233,0)) -> 5560.554816 | Z27: =INDEX(Workings_risks!AA$60:AA$233, MATCH($A$3&$C27, Workings_risks!$E$60:$E$233,0)) -> 5672.856502 | AA27: =INDEX(Workings_risks!AB$60:AB$233, MATCH($A$3&$C27, Workings_risks!$E$60:$E$233,0)) -> 5767.166918 | AB27: =INDEX(Workings_risks!AC$60:AC$233, MATCH($A$3&$C27, Workings_risks!$E$60:$E$233,0)) -> 5851.791386 | AC27: =INDEX(Workings_risks!AD$60:AD$233, MATCH($A$3&$C27, Workings_risks!$E$60:$E$233,0)) -> 5929.869694 | AD27: =INDEX(Workings_risks!AE$60:AE$233, MATCH($A$3&$C27, Workings_risks!$E$60:$E$233,0)) -> 5985.317528 | AE27: =INDEX(Workings_risks!AF$60:AF$233, MATCH($A$3&$C27, Workings_risks!$E$60:$E$233,0)) -> 6028.378899 | AF27: =INDEX(Workings_risks!AG$60:AG$233, MATCH($A$3&$C27, Workings_risks!$E$60:$E$233,0)) -> 6065.888084 | AG27: =INDEX(Workings_risks!AH$60:AH$233, MATCH($A$3&$C27, Workings_risks!$E$60:$E$233,0)) -> 6101.628526
C28: Energy at risk value | D28: $/MWh | E28: =Assumptions!H41*vcr_esc -> 34717.18798 | F28: =IF(AND(SUM(I27:AG27)<>0, E28=0), "!", "") ->  | G28: =input_dollars -> 2023-12-31 | I28: =I27*$E$28 -> 22050106.02 | J28: =J27*$E$28 -> 26362335.47 | K28: 31708951.31 | L28: 38337602.85 | M28: 46573660.94 | N28: 58717226.56 | O28: 71778018.75 | P28: 85004647.66 | Q28: 98355068.85 | R28: 111819738.4 | S28: 128376947.3 | T28: 145204822.2 | U28: 160894042.8 | V28: 172114641.4 | W28: 180782070.9 | X28: 188456890.9 | Y28: 193046826.8 | Z28: 196945625.5 | AA28: 200219818 | AB28: 203157741.6 | AC28: 205868400.8 | AD28: 207793393.7 | AE28: 209288363.4 | AF28: 210590576.9 | AG28: 211831384.5
C30: ='Option1 (base case)'!C30 -> Safety consequence | D30: (after DF) | G30: =input_dollars -> 2023-12-31 | I30: =INDEX(Workings_risks!J$60:J$170, MATCH($A$3&$C30, Workings_risks!$E$60:$E$170,0)) -> 3335482.651 | J30: =INDEX(Workings_risks!K$60:K$170, MATCH($A$3&$C30, Workings_risks!$E$60:$E$170,0)) -> 3988297.866 | K30: =INDEX(Workings_risks!L$60:L$170, MATCH($A$3&$C30, Workings_risks!$E$60:$E$170,0)) -> 4797739.314 | L30: =INDEX(Workings_risks!M$60:M$170, MATCH($A$3&$C30, Workings_risks!$E$60:$E$170,0)) -> 5801337.196 | M30: =INDEX(Workings_risks!N$60:N$170, MATCH($A$3&$C30, Workings_risks!$E$60:$E$170,0)) -> 7048385.253 | N30: =INDEX(Workings_risks!O$60:O$170, MATCH($A$3&$C30, Workings_risks!$E$60:$E$170,0)) -> 8820419.353 | O30: =INDEX(Workings_risks!P$60:P$170, MATCH($A$3&$C30, Workings_risks!$E$60:$E$170,0)) -> 10782453.62 | P30: =INDEX(Workings_risks!Q$60:Q$170, MATCH($A$3&$C30, Workings_risks!$E$60:$E$170,0)) -> 12768622.75 | Q30: =INDEX(Workings_risks!R$60:R$170, MATCH($A$3&$C30, Workings_risks!$E$60:$E$170,0)) -> 14772939.21 | R30: =INDEX(Workings_risks!S$60:S$170, MATCH($A$3&$C30, Workings_risks!$E$60:$E$170,0)) -> 16794094.51 | S30: =INDEX(Workings_risks!T$60:T$170, MATCH($A$3&$C30, Workings_risks!$E$60:$E$170,0)) -> 19279456.38 | T30: =INDEX(Workings_risks!U$60:U$170, MATCH($A$3&$C30, Workings_risks!$E$60:$E$170,0)) -> 21805450.56 | U30: =INDEX(Workings_risks!V$60:V$170, MATCH($A$3&$C30, Workings_risks!$E$60:$E$170,0)) -> 24160531.95 | V30: =INDEX(Workings_risks!W$60:W$170, MATCH($A$3&$C30, Workings_risks!$E$60:$E$170,0)) -> 25844857.59 | W30: =INDEX(Workings_risks!X$60:X$170, MATCH($A$3&$C30, Workings_risks!$E$60:$E$170,0)) -> 27145946.11 | X30: =INDEX(Workings_risks!Y$60:Y$170, MATCH($A$3&$C30, Workings_risks!$E$60:$E$170,0)) -> 28298045.08 | Y30: =INDEX(Workings_risks!Z$60:Z$170, MATCH($A$3&$C30, Workings_risks!$E$60:$E$170,0)) -> 28987095.02 | Z30: =INDEX(Workings_risks!AA$60:AA$170, MATCH($A$3&$C30, Workings_risks!$E$60:$E$170,0)) -> 29572408.81 | AA30: =INDEX(Workings_risks!AB$60:AB$170, MATCH($A$3&$C30, Workings_risks!$E$60:$E$170,0)) -> 30063973.63 | AB30: =INDEX(Workings_risks!AC$60:AC$170, MATCH($A$3&$C30, Workings_risks!$E$60:$E$170,0)) -> 30505070.86 | AC30: =INDEX(Workings_risks!AD$60:AD$170, MATCH($A$3&$C30, Workings_risks!$E$60:$E$170,0)) -> 30912063.27 | AD30: =INDEX(Workings_risks!AE$60:AE$170, MATCH($A$3&$C30, Workings_risks!$E$60:$E$170,0)) -> 31201132.89 | AE30: =INDEX(Workings_risks!AF$60:AF$170, MATCH($A$3&$C30, Workings_risks!$E$60:$E$170,0)) -> 31425664.21 | AF30: =INDEX(Workings_risks!AG$60:AG$170, MATCH($A$3&$C30, Workings_risks!$E$60:$E$170,0)) -> 31621272.95 | AG30: =INDEX(Workings_risks!AH$60:AH$170, MATCH($A$3&$C30, Workings_risks!$E$60:$E$170,0)) -> 31807676.37
C31: ='Option1 (base case)'!C31 -> Unplanned replacements | G31: =input_dollars -> 2023-12-31 | I31: =INDEX(Workings_risks!J$60:J$170, MATCH($A$3&$C31, Workings_risks!$E$60:$E$170,0)) -> 1854168.291 | J31: =INDEX(Workings_risks!K$60:K$170, MATCH($A$3&$C31, Workings_risks!$E$60:$E$170,0)) -> 2217101.65 | K31: =INDEX(Workings_risks!L$60:L$170, MATCH($A$3&$C31, Workings_risks!$E$60:$E$170,0)) -> 2667114.077 | L31: =INDEX(Workings_risks!M$60:M$170, MATCH($A$3&$C31, Workings_risks!$E$60:$E$170,0)) -> 3225073.491 | M31: =INDEX(Workings_risks!N$60:N$170, MATCH($A$3&$C31, Workings_risks!$E$60:$E$170,0)) -> 3918387.58 | N31: =INDEX(Workings_risks!O$60:O$170, MATCH($A$3&$C31, Workings_risks!$E$60:$E$170,0)) -> 4898552.998 | O31: =INDEX(Workings_risks!P$60:P$170, MATCH($A$3&$C31, Workings_risks!$E$60:$E$170,0)) -> 5988202.925 | P31: =INDEX(Workings_risks!Q$60:Q$170, MATCH($A$3&$C31, Workings_risks!$E$60:$E$170,0)) -> 7091197.514 | Q31: =INDEX(Workings_risks!R$60:R$170, MATCH($A$3&$C31, Workings_risks!$E$60:$E$170,0)) -> 8204236.442 | R31: =INDEX(Workings_risks!S$60:S$170, MATCH($A$3&$C31, Workings_risks!$E$60:$E$170,0)) -> 9326602.505 | S31: =INDEX(Workings_risks!T$60:T$170, MATCH($A$3&$C31, Workings_risks!$E$60:$E$170,0)) -> 10706746.1 | T31: =INDEX(Workings_risks!U$60:U$170, MATCH($A$3&$C31, Workings_risks!$E$60:$E$170,0)) -> 12109453.42 | U31: =INDEX(Workings_risks!V$60:V$170, MATCH($A$3&$C31, Workings_risks!$E$60:$E$170,0)) -> 13417251.95 | V31: =INDEX(Workings_risks!W$60:W$170, MATCH($A$3&$C31, Workings_risks!$E$60:$E$170,0)) -> 14352575.2 | W31: =INDEX(Workings_risks!X$60:X$170, MATCH($A$3&$C31, Workings_risks!$E$60:$E$170,0)) -> 15075084.44 | X31: =INDEX(Workings_risks!Y$60:Y$170, MATCH($A$3&$C31, Workings_risks!$E$60:$E$170,0)) -> 15714859.11 | Y31: =INDEX(Workings_risks!Z$60:Z$170, MATCH($A$3&$C31, Workings_risks!$E$60:$E$170,0)) -> 16097499.69 | Z31: =INDEX(Workings_risks!AA$60:AA$170, MATCH($A$3&$C31, Workings_risks!$E$60:$E$170,0)) -> 16422535.34 | AA31: =INDEX(Workings_risks!AB$60:AB$170, MATCH($A$3&$C31, Workings_risks!$E$60:$E$170,0)) -> 16695512.03 | AB31: =INDEX(Workings_risks!AC$60:AC$170, MATCH($A$3&$C31, Workings_risks!$E$60:$E$170,0)) -> 16940464.3 | AC31: =INDEX(Workings_risks!AD$60:AD$170, MATCH($A$3&$C31, Workings_risks!$E$60:$E$170,0)) -> 17166478.56 | AD31: =INDEX(Workings_risks!AE$60:AE$170, MATCH($A$3&$C31, Workings_risks!$E$60:$E$170,0)) -> 17327010.14 | AE31: =INDEX(Workings_risks!AF$60:AF$170, MATCH($A$3&$C31, Workings_risks!$E$60:$E$170,0)) -> 17451703.88 | AF31: =INDEX(Workings_risks!AG$60:AG$170, MATCH($A$3&$C31, Workings_risks!$E$60:$E$170,0)) -> 17560337.55 | AG31: =INDEX(Workings_risks!AH$60:AH$170, MATCH($A$3&$C31, Workings_risks!$E$60:$E$170,0)) -> 17663860.34
C32: ='Option1 (base case)'!C32 -> Environmental consequence | D32: (after DF) | G32: =input_dollars -> 2023-12-31 | I32: =INDEX(Workings_risks!J$60:J$170, MATCH($A$3&$C32, Workings_risks!$E$60:$E$170,0)) -> 164003.3245 | J32: =INDEX(Workings_risks!K$60:K$170, MATCH($A$3&$C32, Workings_risks!$E$60:$E$170,0)) -> 196149.3055 | K32: =INDEX(Workings_risks!L$60:L$170, MATCH($A$3&$C32, Workings_risks!$E$60:$E$170,0)) -> 236011.0115 | L32: =INDEX(Workings_risks!M$60:M$170, MATCH($A$3&$C32, Workings_risks!$E$60:$E$170,0)) -> 285440.1591 | M32: =INDEX(Workings_risks!N$60:N$170, MATCH($A$3&$C32, Workings_risks!$E$60:$E$170,0)) -> 346867.4946 | N32: =INDEX(Workings_risks!O$60:O$170, MATCH($A$3&$C32, Workings_risks!$E$60:$E$170,0)) -> 427967.4819 | O32: =INDEX(Workings_risks!P$60:P$170, MATCH($A$3&$C32, Workings_risks!$E$60:$E$170,0)) -> 523171.1987 | P32: =INDEX(Workings_risks!Q$60:Q$170, MATCH($A$3&$C32, Workings_risks!$E$60:$E$170,0)) -> 619473.2593 | Q32: =INDEX(Workings_risks!R$60:R$170, MATCH($A$3&$C32, Workings_risks!$E$60:$E$170,0)) -> 716613.8669 | R32: =INDEX(Workings_risks!S$60:S$170, MATCH($A$3&$C32, Workings_risks!$E$60:$E$170,0)) -> 814541.2397 | S32: =INDEX(Workings_risks!T$60:T$170, MATCH($A$3&$C32, Workings_risks!$E$60:$E$170,0)) -> 934959.1808 | T32: =INDEX(Workings_risks!U$60:U$170, MATCH($A$3&$C32, Workings_risks!$E$60:$E$170,0)) -> 1057346.1 | U32: =INDEX(Workings_risks!V$60:V$170, MATCH($A$3&$C32, Workings_risks!$E$60:$E$170,0)) -> 1171452.878 | V32: =INDEX(Workings_risks!W$60:W$170, MATCH($A$3&$C32, Workings_risks!$E$60:$E$170,0)) -> 1253062.651 | W32: =INDEX(Workings_risks!X$60:X$170, MATCH($A$3&$C32, Workings_risks!$E$60:$E$170,0)) -> 1316105.452 | X32: =INDEX(Workings_risks!Y$60:Y$170, MATCH($A$3&$C32, Workings_risks!$E$60:$E$170,0)) -> 1371930.388 | Y32: =INDEX(Workings_risks!Z$60:Z$170, MATCH($A$3&$C32, Workings_risks!$E$60:$E$170,0)) -> 1405321.631 | Z32: =INDEX(Workings_risks!AA$60:AA$170, MATCH($A$3&$C32, Workings_risks!$E$60:$E$170,0)) -> 1433687.587 | AA32: =INDEX(Workings_risks!AB$60:AB$170, MATCH($A$3&$C32, Workings_risks!$E$60:$E$170,0)) -> 1457512.179 | AB32: =INDEX(Workings_risks!AC$60:AC$170, MATCH($A$3&$C32, Workings_risks!$E$60:$E$170,0)) -> 1478892.406 | AC32: =INDEX(Workings_risks!AD$60:AD$170, MATCH($A$3&$C32, Workings_risks!$E$60:$E$170,0)) -> 1498621.092 | AD32: =INDEX(Workings_risks!AE$60:AE$170, MATCH($A$3&$C32, Workings_risks!$E$60:$E$170,0)) -> 1512637.41 | AE32: =INDEX(Workings_risks!AF$60:AF$170, MATCH($A$3&$C32, Workings_risks!$E$60:$E$170,0)) -> 1523527.858 | AF32: =INDEX(Workings_risks!AG$60:AG$170, MATCH($A$3&$C32, Workings_risks!$E$60:$E$170,0)) -> 1533018.068 | AG32: =INDEX(Workings_risks!AH$60:AH$170, MATCH($A$3&$C32, Workings_risks!$E$60:$E$170,0)) -> 1542063.411
C33: ='Option1 (base case)'!C33 -> Response cost | G33: =input_dollars -> 2023-12-31 | I33: =INDEX(Workings_risks!J$60:J$170, MATCH($A$3&$C33, Workings_risks!$E$60:$E$170,0)) -> 1093571.137 | J33: =INDEX(Workings_risks!K$60:K$170, MATCH($A$3&$C33, Workings_risks!$E$60:$E$170,0)) -> 1307746.56 | K33: =INDEX(Workings_risks!L$60:L$170, MATCH($A$3&$C33, Workings_risks!$E$60:$E$170,0)) -> 1573317.3 | L33: =INDEX(Workings_risks!M$60:M$170, MATCH($A$3&$C33, Workings_risks!$E$60:$E$170,0)) -> 1902607.279 | M33: =INDEX(Workings_risks!N$60:N$170, MATCH($A$3&$C33, Workings_risks!$E$60:$E$170,0)) -> 2311799.098 | N33: =INDEX(Workings_risks!O$60:O$170, MATCH($A$3&$C33, Workings_risks!$E$60:$E$170,0)) -> 2874573.33 | O33: =INDEX(Workings_risks!P$60:P$170, MATCH($A$3&$C33, Workings_risks!$E$60:$E$170,0)) -> 3514017.061 | P33: =INDEX(Workings_risks!Q$60:Q$170, MATCH($A$3&$C33, Workings_risks!$E$60:$E$170,0)) -> 4161106.899 | Q33: =INDEX(Workings_risks!R$60:R$170, MATCH($A$3&$C33, Workings_risks!$E$60:$E$170,0)) -> 4813984.257 | R33: =INDEX(Workings_risks!S$60:S$170, MATCH($A$3&$C33, Workings_risks!$E$60:$E$170,0)) -> 5472258.036 | S33: =INDEX(Workings_risks!T$60:T$170, MATCH($A$3&$C33, Workings_risks!$E$60:$E$170,0)) -> 6281717.72 | T33: =INDEX(Workings_risks!U$60:U$170, MATCH($A$3&$C33, Workings_risks!$E$60:$E$170,0)) -> 7104411.906 | U33: =INDEX(Workings_risks!V$60:V$170, MATCH($A$3&$C33, Workings_risks!$E$60:$E$170,0)) -> 7871443.564 | V33: =INDEX(Workings_risks!W$60:W$170, MATCH($A$3&$C33, Workings_risks!$E$60:$E$170,0)) -> 8420021.304 | W33: =INDEX(Workings_risks!X$60:X$170, MATCH($A$3&$C33, Workings_risks!$E$60:$E$170,0)) -> 8843785.837 | X33: =INDEX(Workings_risks!Y$60:Y$170, MATCH($A$3&$C33, Workings_risks!$E$60:$E$170,0)) -> 9219028.27 | Y33: =INDEX(Workings_risks!Z$60:Z$170, MATCH($A$3&$C33, Workings_risks!$E$60:$E$170,0)) -> 9443464.193 | Z33: =INDEX(Workings_risks!AA$60:AA$170, MATCH($A$3&$C33, Workings_risks!$E$60:$E$170,0)) -> 9634116.673 | AA33: =INDEX(Workings_risks!AB$60:AB$170, MATCH($A$3&$C33, Workings_risks!$E$60:$E$170,0)) -> 9794238.548 | AB33: =INDEX(Workings_risks!AC$60:AC$170, MATCH($A$3&$C33, Workings_risks!$E$60:$E$170,0)) -> 9937926.106 | AC33: =INDEX(Workings_risks!AD$60:AD$170, MATCH($A$3&$C33, Workings_risks!$E$60:$E$170,0)) -> 10070508.66 | AD33: =INDEX(Workings_risks!AE$60:AE$170, MATCH($A$3&$C33, Workings_risks!$E$60:$E$170,0)) -> 10164688.13 | AE33: =INDEX(Workings_risks!AF$60:AF$170, MATCH($A$3&$C33, Workings_risks!$E$60:$E$170,0)) -> 10237851.29 | AF33: =INDEX(Workings_risks!AG$60:AG$170, MATCH($A$3&$C33, Workings_risks!$E$60:$E$170,0)) -> 10301597.9 | AG33: =INDEX(Workings_risks!AH$60:AH$170, MATCH($A$3&$C33, Workings_risks!$E$60:$E$170,0)) -> 10362349.87
G34: =input_dollars -> 2023-12-31 | I34: 0 | J34: 0 | K34: 0 | L34: 0 | M34: 0 | N34: 0 | O34: 0 | P34: 0 | Q34: 0 | R34: 0 | S34: 0 | T34: 0 | U34: 0 | V34: 0 | W34: 0 | X34: 0 | Y34: 0 | Z34: 0 | AA34: 0 | AB34: 0 | AC34: 0 | AD34: 0 | AE34: 0 | AF34: 0 | AG34: 0
C36: Total risk cost | I36: =SUM(I28:I34) -> 28497331.43 | J36: =SUM(J28:J34) -> 34071630.85 | K36: 40983133.02 | L36: 49552060.97 | M36: 60199100.36 | N36: 75738739.72 | O36: 92585863.56 | P36: 109645048.1 | Q36: 126862842.6 | R36: 144227234.7 | S36: 165579826.7 | T36: 187281484.2 | U36: 207514723.1 | V36: 221985158.1 | W36: 233162992.8 | X36: 243060753.8 | Y36: 248980207.4 | Z36: 254008374 | AA36: 258231054.4 | AB36: 262020095.2 | AC36: 265516072.4 | AD36: 267998862.3 | AE36: 269927110.7 | AF36: 271606803.3 | AG36: 273207334.5
A38: OTHER BENEFITS
C41: Reduction in CO2 emissions | G41: MWh | I41: 0 | J41: 0 | K41: 0 | L41: 0 | M41: 0 | N41: 0 | O41: 0 | P41: 0 | Q41: 0 | R41: 0 | S41: 0 | T41: 0 | U41: 0 | V41: 0 | W41: 0 | X41: 0 | Y41: 0 | Z41: 0 | AA41: 0 | AB41: 0 | AC41: 0 | AD41: 0 | AE41: 0 | AF41: 0 | AG41: 0
C42: Value of reduction in CO2 emissions | G42: $ | I42: =I41*I7 -> 0 | J42: 0 | K42: 0 | L42: 0 | M42: 0 | N42: 0 | O42: 0 | P42: 0 | Q42: 0 | R42: 0 | S42: 0 | T42: 0 | U42: 0 | V42: 0 | W42: 0 | X42: 0 | Y42: 0 | Z42: 0 | AA42: 0 | AB42: 0 | AC42: 0 | AD42: 0 | AE42: 0 | AF42: 0 | AG42: 0
C45: Reliability in worst-served areas | D45: $/MWh | E45: =Assumptions!G94 -> 151432.8174 | G45: MWh | I45: 0 | J45: 0 | K45: 0 | L45: 0 | M45: 0 | N45: 0 | O45: 0 | P45: 0 | Q45: 0 | R45: 0 | S45: 0 | T45: 0 | U45: 0 | V45: 0 | W45: 0 | X45: 0 | Y45: 0 | Z45: 0 | AA45: 0 | AB45: 0 | AC45: 0 | AD45: 0 | AE45: 0 | AF45: 0 | AG45: 0
C46: Network resilience | D46: $/MWh | E46: =Assumptions!G95 -> 24590 | G46: MWh | I46: 0 | J46: 0 | K46: 0 | L46: 0 | M46: 0 | N46: 0 | O46: 0 | P46: 0 | Q46: 0 | R46: 0 | S46: 0 | T46: 0 | U46: 0 | V46: 0 | W46: 0 | X46: 0 | Y46: 0 | Z46: 0 | AA46: 0 | AB46: 0 | AC46: 0 | AD46: 0 | AE46: 0 | AF46: 0 | AG46: 0
C47: Enabling solar exports | D47: $/MWh | E47: =Assumptions!G96 -> 88.35771951 | G47: MWh | I47: 0 | J47: 0 | K47: 0 | L47: 0 | M47: 0 | N47: 0 | O47: 0 | P47: 0 | Q47: 0 | R47: 0 | S47: 0 | T47: 0 | U47: 0 | V47: 0 | W47: 0 | X47: 0 | Y47: 0 | Z47: 0 | AA47: 0 | AB47: 0 | AC47: 0 | AD47: 0 | AE47: 0 | AF47: 0 | AG47: 0
C48: Aesthetics | D48: $/customer | E48: =Assumptions!G97 -> 0 | G48: customers | I48: 0 | J48: 0 | K48: 0 | L48: 0 | M48: 0 | N48: 0 | O48: 0 | P48: 0 | Q48: 0 | R48: 0 | S48: 0 | T48: 0 | U48: 0 | V48: 0 | W48: 0 | X48: 0 | Y48: 0 | Z48: 0 | AA48: 0 | AB48: 0 | AC48: 0 | AD48: 0 | AE48: 0 | AF48: 0 | AG48: 0
C49: Customer value of time (res) | D49: $/customer min | E49: =Assumptions!G98 -> 0.3518133654 | G49: mins | I49: 0 | J49: 0 | K49: 0 | L49: 0 | M49: 0 | N49: 0 | O49: 0 | P49: 0 | Q49: 0 | R49: 0 | S49: 0 | T49: 0 | U49: 0 | V49: 0 | W49: 0 | X49: 0 | Y49: 0 | Z49: 0 | AA49: 0 | AB49: 0 | AC49: 0 | AD49: 0 | AE49: 0 | AF49: 0 | AG49: 0
C50: Customer value of time (bus) | D50: $/customer min | E50: =Assumptions!G99 -> 0.3518133654 | G50: mins | I50: 0 | J50: 0 | K50: 0 | L50: 0 | M50: 0 | N50: 0 | O50: 0 | P50: 0 | Q50: 0 | R50: 0 | S50: 0 | T50: 0 | U50: 0 | V50: 0 | W50: 0 | X50: 0 | Y50: 0 | Z50: 0 | AA50: 0 | AB50: 0 | AC50: 0 | AD50: 0 | AE50: 0 | AF50: 0 | AG50: 0
C51: Communication | D51: $/customer | E51: =Assumptions!G100 -> 0 | G51: customers | I51: 0 | J51: 0 | K51: 0 | L51: 0 | M51: 0 | N51: 0 | O51: 0 | P51: 0 | Q51: 0 | R51: 0 | S51: 0 | T51: 0 | U51: 0 | V51: 0 | W51: 0 | X51: 0 | Y51: 0 | Z51: 0 | AA51: 0 | AB51: 0 | AC51: 0 | AD51: 0 | AE51: 0 | AF51: 0 | AG51: 0
C52: Information accessibility | D52: $/customer | E52: =Assumptions!G101 -> 0 | G52: customers | I52: 0 | J52: 0 | K52: 0 | L52: 0 | M52: 0 | N52: 0 | O52: 0 | P52: 0 | Q52: 0 | R52: 0 | S52: 0 | T52: 0 | U52: 0 | V52: 0 | W52: 0 | X52: 0 | Y52: 0 | Z52: 0 | AA52: 0 | AB52: 0 | AC52: 0 | AD52: 0 | AE52: 0 | AF52: 0 | AG52: 0
C54: Other benefits 1 | G54: =input_dollars -> 2023-12-31 | I54: 0 | J54: 0 | K54: 0 | L54: 0 | M54: 0 | N54: 0 | O54: 0 | P54: 0 | Q54: 0 | R54: 0 | S54: 0 | T54: 0 | U54: 0 | V54: 0 | W54: 0 | X54: 0 | Y54: 0 | Z54: 0 | AA54: 0 | AB54: 0 | AC54: 0 | AD54: 0 | AE54: 0 | AF54: 0 | AG54: 0
C55: Other benefits 2 | G55: =input_dollars -> 2023-12-31 | I55: 0 | J55: 0 | K55: 0 | L55: 0 | M55: 0 | N55: 0 | O55: 0 | P55: 0 | Q55: 0 | R55: 0 | S55: 0 | T55: 0 | U55: 0 | V55: 0 | W55: 0 | X55: 0 | Y55: 0 | Z55: 0 | AA55: 0 | AB55: 0 | AC55: 0 | AD55: 0 | AE55: 0 | AF55: 0 | AG55: 0
C57: Total other benefits | G57: =input_dollars -> 2023-12-31 | I57: =SUMPRODUCT((I$45:I$52)*($E$45:$E$52))+SUM(I54:I55)+I42 -> 0 | J57: =SUMPRODUCT((J$45:J$52)*($E$45:$E$52))+SUM(J54:J55)+J42 -> 0 | K57: =SUMPRODUCT((K$45:K$52)*($E$45:$E$52))+SUM(K54:K55)+K42 -> 0 | L57: =SUMPRODUCT((L$45:L$52)*($E$45:$E$52))+SUM(L54:L55)+L42 -> 0 | M57: =SUMPRODUCT((M$45:M$52)*($E$45:$E$52))+SUM(M54:M55)+M42 -> 0 | N57: =SUMPRODUCT((N$45:N$52)*($E$45:$E$52))+SUM(N54:N55)+N42 -> 0 | O57: =SUMPRODUCT((O$45:O$52)*($E$45:$E$52))+SUM(O54:O55)+O42 -> 0 | P57: =SUMPRODUCT((P$45:P$52)*($E$45:$E$52))+SUM(P54:P55)+P42 -> 0 | Q57: =SUMPRODUCT((Q$45:Q$52)*($E$45:$E$52))+SUM(Q54:Q55)+Q42 -> 0 | R57: =SUMPRODUCT((R$45:R$52)*($E$45:$E$52))+SUM(R54:R55)+R42 -> 0 | S57: =SUMPRODUCT((S$45:S$52)*($E$45:$E$52))+SUM(S54:S55)+S42 -> 0 | T57: =SUMPRODUCT((T$45:T$52)*($E$45:$E$52))+SUM(T54:T55)+T42 -> 0 | U57: =SUMPRODUCT((U$45:U$52)*($E$45:$E$52))+SUM(U54:U55)+U42 -> 0 | V57: =SUMPRODUCT((V$45:V$52)*($E$45:$E$52))+SUM(V54:V55)+V42 -> 0 | W57: =SUMPRODUCT((W$45:W$52)*($E$45:$E$52))+SUM(W54:W55)+W42 -> 0 | X57: =SUMPRODUCT((X$45:X$52)*($E$45:$E$52))+SUM(X54:X55)+X42 -> 0 | Y57: =SUMPRODUCT((Y$45:Y$52)*($E$45:$E$52))+SUM(Y54:Y55)+Y42 -> 0 | Z57: =SUMPRODUCT((Z$45:Z$52)*($E$45:$E$52))+SUM(Z54:Z55)+Z42 -> 0 | AA57: =SUMPRODUCT((AA$45:AA$52)*($E$45:$E$52))+SUM(AA54:AA55)+AA42 -> 0 | AB57: =SUMPRODUCT((AB$45:AB$52)*($E$45:$E$52))+SUM(AB54:AB55)+AB42 -> 0 | AC57: =SUMPRODUCT((AC$45:AC$52)*($E$45:$E$52))+SUM(AC54:AC55)+AC42 -> 0 | AD57: =SUMPRODUCT((AD$45:AD$52)*($E$45:$E$52))+SUM(AD54:AD55)+AD42 -> 0 | AE57: =SUMPRODUCT((AE$45:AE$52)*($E$45:$E$52))+SUM(AE54:AE55)+AE42 -> 0 | AF57: =SUMPRODUCT((AF$45:AF$52)*($E$45:$E$52))+SUM(AF54:AF55)+AF42 -> 0 | AG57: =SUMPRODUCT((AG$45:AG$52)*($E$45:$E$52))+SUM(AG54:AG55)+AG42 -> 0
A60: SUMMARY
C64: ='Option1 (base case)'!C64 -> Risks mitigated vs base case | G64: =input_dollars -> 2023-12-31 | I64: =(1-INDEX(Data!$C$9:$C$13, MATCH($A$3, options,0)))*('Option1 (base case)'!I36-I36) -> 913448.7966 | J64: =(1-INDEX(Data!$C$9:$C$13, MATCH($A$3, options,0)))*('Option1 (base case)'!J36-J36) -> 1110294.509 | K64: =(1-INDEX(Data!$C$9:$C$13, MATCH($A$3, options,0)))*('Option1 (base case)'!K36-K36) -> 1355555.74 | L64: =(1-INDEX(Data!$C$9:$C$13, MATCH($A$3, options,0)))*('Option1 (base case)'!L36-L36) -> 1661937.345 | M64: =(1-INDEX(Data!$C$9:$C$13, MATCH($A$3, options,0)))*('Option1 (base case)'!M36-M36) -> 2045603.364 | N64: =(1-INDEX(Data!$C$9:$C$13, MATCH($A$3, options,0)))*('Option1 (base case)'!N36-N36) -> 238331.2109 | O64: =(1-INDEX(Data!$C$9:$C$13, MATCH($A$3, options,0)))*('Option1 (base case)'!O36-O36) -> 293494.5672 | P64: =(1-INDEX(Data!$C$9:$C$13, MATCH($A$3, options,0)))*('Option1 (base case)'!P36-P36) -> 321675.7098 | Q64: =(1-INDEX(Data!$C$9:$C$13, MATCH($A$3, options,0)))*('Option1 (base case)'!Q36-Q36) -> 334392.0904 | R64: =(1-INDEX(Data!$C$9:$C$13, MATCH($A$3, options,0)))*('Option1 (base case)'!R36-R36) -> 336059.8237 | S64: =(1-INDEX(Data!$C$9:$C$13, MATCH($A$3, options,0)))*('Option1 (base case)'!S36-S36) -> 337809.5773 | T64: =(1-INDEX(Data!$C$9:$C$13, MATCH($A$3, options,0)))*('Option1 (base case)'!T36-T36) -> 339704.8923 | U64: =(1-INDEX(Data!$C$9:$C$13, MATCH($A$3, options,0)))*('Option1 (base case)'!U36-U36) -> 341758.2179 | V64: =(1-INDEX(Data!$C$9:$C$13, MATCH($A$3, options,0)))*('Option1 (base case)'!V36-V36) -> 343983.0865 | W64: =(1-INDEX(Data!$C$9:$C$13, MATCH($A$3, options,0)))*('Option1 (base case)'!W36-W36) -> 346394.2084 | X64: =(1-INDEX(Data!$C$9:$C$13, MATCH($A$3, options,0)))*('Option1 (base case)'!X36-X36) -> 349007.5757 | Y64: =(1-INDEX(Data!$C$9:$C$13, MATCH($A$3, options,0)))*('Option1 (base case)'!Y36-Y36) -> 351840.5753 | Z64: =(1-INDEX(Data!$C$9:$C$13, MATCH($A$3, options,0)))*('Option1 (base case)'!Z36-Z36) -> 354912.1116 | AA64: =(1-INDEX(Data!$C$9:$C$13, MATCH($A$3, options,0)))*('Option1 (base case)'!AA36-AA36) -> 358242.7401 | AB64: =(1-INDEX(Data!$C$9:$C$13, MATCH($A$3, options,0)))*('Option1 (base case)'!AB36-AB36) -> 361854.8132 | AC64: =(1-INDEX(Data!$C$9:$C$13, MATCH($A$3, options,0)))*('Option1 (base case)'!AC36-AC36) -> 365772.6388 | AD64: =(1-INDEX(Data!$C$9:$C$13, MATCH($A$3, options,0)))*('Option1 (base case)'!AD36-AD36) -> 370022.6523 | AE64: =(1-INDEX(Data!$C$9:$C$13, MATCH($A$3, options,0)))*('Option1 (base case)'!AE36-AE36) -> 374633.6052 | AF64: =(1-INDEX(Data!$C$9:$C$13, MATCH($A$3, options,0)))*('Option1 (base case)'!AF36-AF36) -> 379636.7694 | AG64: =(1-INDEX(Data!$C$9:$C$13, MATCH($A$3, options,0)))*('Option1 (base case)'!AG36-AG36) -> 385066.1598
C66: Capital expenditure
C67: =C14 -> Condition assessment of top 30 delta risk cable sections | G67: =input_dollars -> 2023-12-31 | I67: =-I14 -> -1000000 | J67: -1000000 | K67: -1000000 | L67: -1000000 | M67: -1000000 | N67: 0 | O67: 0 | P67: 0 | Q67: 0 | R67: 0 | S67: 0 | T67: 0 | U67: 0 | V67: 0 | W67: 0 | X67: 0 | Y67: 0 | Z67: 0 | AA67: 0 | AB67: 0 | AC67: 0 | AD67: 0 | AE67: 0 | AF67: 0 | AG67: 0
C68: =C15 -> Replacement of poor condition cable sections | G68: =input_dollars -> 2023-12-31 | I68: =-I15 -> 0 | J68: -1050451.619 | K68: -1050451.619 | L68: -1050451.619 | M68: -1050451.619 | N68: 0 | O68: 0 | P68: 0 | Q68: 0 | R68: 0 | S68: 0 | T68: 0 | U68: 0 | V68: 0 | W68: 0 | X68: 0 | Y68: 0 | Z68: 0 | AA68: 0 | AB68: 0 | AC68: 0 | AD68: 0 | AE68: 0 | AF68: 0 | AG68: 0
C69: =C16 -> 0 | G69: =input_dollars -> 2023-12-31 | I69: =-I16 -> 0 | J69: 0 | K69: 0 | L69: 0 | M69: 0 | N69: 0 | O69: 0 | P69: 0 | Q69: 0 | R69: 0 | S69: 0 | T69: 0 | U69: 0 | V69: 0 | W69: 0 | X69: 0 | Y69: 0 | Z69: 0 | AA69: 0 | AB69: 0 | AC69: 0 | AD69: 0 | AE69: 0 | AF69: 0 | AG69: 0
C71: Cumulative capex
C72: =C14 -> Condition assessment of top 30 delta risk cable sections | G72: =input_dollars -> 2023-12-31 | I72: =SUMPRODUCT(($I67:I67))-SUMPRODUCT(($I67:I67)*($I$6:I$6<=(I$6-$E14))) -> -1000000 | J72: =SUMPRODUCT(($I67:J67))-SUMPRODUCT(($I67:J67)*($I$6:J$6<=(J$6-$E14))) -> -1000000 | K72: =SUMPRODUCT(($I67:K67))-SUMPRODUCT(($I67:K67)*($I$6:K$6<=(K$6-$E14))) -> -1000000 | L72: =SUMPRODUCT(($I67:L67))-SUMPRODUCT(($I67:L67)*($I$6:L$6<=(L$6-$E14))) -> -1000000 | M72: =SUMPRODUCT(($I67:M67))-SUMPRODUCT(($I67:M67)*($I$6:M$6<=(M$6-$E14))) -> -1000000 | N72: =SUMPRODUCT(($I67:N67))-SUMPRODUCT(($I67:N67)*($I$6:N$6<=(N$6-$E14))) -> 0 | O72: =SUMPRODUCT(($I67:O67))-SUMPRODUCT(($I67:O67)*($I$6:O$6<=(O$6-$E14))) -> 0 | P72: =SUMPRODUCT(($I67:P67))-SUMPRODUCT(($I67:P67)*($I$6:P$6<=(P$6-$E14))) -> 0 | Q72: =SUMPRODUCT(($I67:Q67))-SUMPRODUCT(($I67:Q67)*($I$6:Q$6<=(Q$6-$E14))) -> 0 | R72: =SUMPRODUCT(($I67:R67))-SUMPRODUCT(($I67:R67)*($I$6:R$6<=(R$6-$E14))) -> 0 | S72: =SUMPRODUCT(($I67:S67))-SUMPRODUCT(($I67:S67)*($I$6:S$6<=(S$6-$E14))) -> 0 | T72: =SUMPRODUCT(($I67:T67))-SUMPRODUCT(($I67:T67)*($I$6:T$6<=(T$6-$E14))) -> 0 | U72: =SUMPRODUCT(($I67:U67))-SUMPRODUCT(($I67:U67)*($I$6:U$6<=(U$6-$E14))) -> 0 | V72: =SUMPRODUCT(($I67:V67))-SUMPRODUCT(($I67:V67)*($I$6:V$6<=(V$6-$E14))) -> 0 | W72: =SUMPRODUCT(($I67:W67))-SUMPRODUCT(($I67:W67)*($I$6:W$6<=(W$6-$E14))) -> 0 | X72: =SUMPRODUCT(($I67:X67))-SUMPRODUCT(($I67:X67)*($I$6:X$6<=(X$6-$E14))) -> 0 | Y72: =SUMPRODUCT(($I67:Y67))-SUMPRODUCT(($I67:Y67)*($I$6:Y$6<=(Y$6-$E14))) -> 0 | Z72: =SUMPRODUCT(($I67:Z67))-SUMPRODUCT(($I67:Z67)*($I$6:Z$6<=(Z$6-$E14))) -> 0 | AA72: =SUMPRODUCT(($I67:AA67))-SUMPRODUCT(($I67:AA67)*($I$6:AA$6<=(AA$6-$E14))) -> 0 | AB72: =SUMPRODUCT(($I67:AB67))-SUMPRODUCT(($I67:AB67)*($I$6:AB$6<=(AB$6-$E14))) -> 0 | AC72: =SUMPRODUCT(($I67:AC67))-SUMPRODUCT(($I67:AC67)*($I$6:AC$6<=(AC$6-$E14))) -> 0 | AD72: =SUMPRODUCT(($I67:AD67))-SUMPRODUCT(($I67:AD67)*($I$6:AD$6<=(AD$6-$E14))) -> 0 | AE72: =SUMPRODUCT(($I67:AE67))-SUMPRODUCT(($I67:AE67)*($I$6:AE$6<=(AE$6-$E14))) -> 0 | AF72: =SUMPRODUCT(($I67:AF67))-SUMPRODUCT(($I67:AF67)*($I$6:AF$6<=(AF$6-$E14))) -> 0 | AG72: =SUMPRODUCT(($I67:AG67))-SUMPRODUCT(($I67:AG67)*($I$6:AG$6<=(AG$6-$E14))) -> 0
C73: =C15 -> Replacement of poor condition cable sections | G73: =input_dollars -> 2023-12-31 | I73: =SUMPRODUCT(($I68:I68))-SUMPRODUCT(($I68:I68)*($I$6:I$6<=(I$6-$E15))) -> 0 | J73: =SUMPRODUCT(($I68:J68))-SUMPRODUCT(($I68:J68)*($I$6:J$6<=(J$6-$E15))) -> -1050451.619 | K73: =SUMPRODUCT(($I68:K68))-SUMPRODUCT(($I68:K68)*($I$6:K$6<=(K$6-$E15))) -> -2100903.239 | L73: =SUMPRODUCT(($I68:L68))-SUMPRODUCT(($I68:L68)*($I$6:L$6<=(L$6-$E15))) -> -3151354.858 | M73: =SUMPRODUCT(($I68:M68))-SUMPRODUCT(($I68:M68)*($I$6:M$6<=(M$6-$E15))) -> -4201806.478 | N73: =SUMPRODUCT(($I68:N68))-SUMPRODUCT(($I68:N68)*($I$6:N$6<=(N$6-$E15))) -> -4201806.478 | O73: =SUMPRODUCT(($I68:O68))-SUMPRODUCT(($I68:O68)*($I$6:O$6<=(O$6-$E15))) -> -4201806.478 | P73: =SUMPRODUCT(($I68:P68))-SUMPRODUCT(($I68:P68)*($I$6:P$6<=(P$6-$E15))) -> -4201806.478 | Q73: =SUMPRODUCT(($I68:Q68))-SUMPRODUCT(($I68:Q68)*($I$6:Q$6<=(Q$6-$E15))) -> -4201806.478 | R73: =SUMPRODUCT(($I68:R68))-SUMPRODUCT(($I68:R68)*($I$6:R$6<=(R$6-$E15))) -> -4201806.478 | S73: =SUMPRODUCT(($I68:S68))-SUMPRODUCT(($I68:S68)*($I$6:S$6<=(S$6-$E15))) -> -4201806.478 | T73: =SUMPRODUCT(($I68:T68))-SUMPRODUCT(($I68:T68)*($I$6:T$6<=(T$6-$E15))) -> -4201806.478 | U73: =SUMPRODUCT(($I68:U68))-SUMPRODUCT(($I68:U68)*($I$6:U$6<=(U$6-$E15))) -> -4201806.478 | V73: =SUMPRODUCT(($I68:V68))-SUMPRODUCT(($I68:V68)*($I$6:V$6<=(V$6-$E15))) -> -4201806.478 | W73: =SUMPRODUCT(($I68:W68))-SUMPRODUCT(($I68:W68)*($I$6:W$6<=(W$6-$E15))) -> -4201806.478 | X73: =SUMPRODUCT(($I68:X68))-SUMPRODUCT(($I68:X68)*($I$6:X$6<=(X$6-$E15))) -> -4201806.478 | Y73: =SUMPRODUCT(($I68:Y68))-SUMPRODUCT(($I68:Y68)*($I$6:Y$6<=(Y$6-$E15))) -> -4201806.478 | Z73: =SUMPRODUCT(($I68:Z68))-SUMPRODUCT(($I68:Z68)*($I$6:Z$6<=(Z$6-$E15))) -> -4201806.478 | AA73: =SUMPRODUCT(($I68:AA68))-SUMPRODUCT(($I68:AA68)*($I$6:AA$6<=(AA$6-$E15))) -> -4201806.478 | AB73: =SUMPRODUCT(($I68:AB68))-SUMPRODUCT(($I68:AB68)*($I$6:AB$6<=(AB$6-$E15))) -> -4201806.478 | AC73: =SUMPRODUCT(($I68:AC68))-SUMPRODUCT(($I68:AC68)*($I$6:AC$6<=(AC$6-$E15))) -> -4201806.478 | AD73: =SUMPRODUCT(($I68:AD68))-SUMPRODUCT(($I68:AD68)*($I$6:AD$6<=(AD$6-$E15))) -> -4201806.478 | AE73: =SUMPRODUCT(($I68:AE68))-SUMPRODUCT(($I68:AE68)*($I$6:AE$6<=(AE$6-$E15))) -> -4201806.478 | AF73: =SUMPRODUCT(($I68:AF68))-SUMPRODUCT(($I68:AF68)*($I$6:AF$6<=(AF$6-$E15))) -> -4201806.478 | AG73: =SUMPRODUCT(($I68:AG68))-SUMPRODUCT(($I68:AG68)*($I$6:AG$6<=(AG$6-$E15))) -> -4201806.478
C74: =C16 -> 0 | G74: =input_dollars -> 2023-12-31 | I74: =SUMPRODUCT(($I69:I69))-SUMPRODUCT(($I69:I69)*($I$6:I$6<=(I$6-$E16))) -> 0 | J74: =SUMPRODUCT(($I69:J69))-SUMPRODUCT(($I69:J69)*($I$6:J$6<=(J$6-$E16))) -> 0 | K74: =SUMPRODUCT(($I69:K69))-SUMPRODUCT(($I69:K69)*($I$6:K$6<=(K$6-$E16))) -> 0 | L74: =SUMPRODUCT(($I69:L69))-SUMPRODUCT(($I69:L69)*($I$6:L$6<=(L$6-$E16))) -> 0 | M74: =SUMPRODUCT(($I69:M69))-SUMPRODUCT(($I69:M69)*($I$6:M$6<=(M$6-$E16))) -> 0 | N74: =SUMPRODUCT(($I69:N69))-SUMPRODUCT(($I69:N69)*($I$6:N$6<=(N$6-$E16))) -> 0 | O74: =SUMPRODUCT(($I69:O69))-SUMPRODUCT(($I69:O69)*($I$6:O$6<=(O$6-$E16))) -> 0 | P74: =SUMPRODUCT(($I69:P69))-SUMPRODUCT(($I69:P69)*($I$6:P$6<=(P$6-$E16))) -> 0 | Q74: =SUMPRODUCT(($I69:Q69))-SUMPRODUCT(($I69:Q69)*($I$6:Q$6<=(Q$6-$E16))) -> 0 | R74: =SUMPRODUCT(($I69:R69))-SUMPRODUCT(($I69:R69)*($I$6:R$6<=(R$6-$E16))) -> 0 | S74: =SUMPRODUCT(($I69:S69))-SUMPRODUCT(($I69:S69)*($I$6:S$6<=(S$6-$E16))) -> 0 | T74: =SUMPRODUCT(($I69:T69))-SUMPRODUCT(($I69:T69)*($I$6:T$6<=(T$6-$E16))) -> 0 | U74: =SUMPRODUCT(($I69:U69))-SUMPRODUCT(($I69:U69)*($I$6:U$6<=(U$6-$E16))) -> 0 | V74: =SUMPRODUCT(($I69:V69))-SUMPRODUCT(($I69:V69)*($I$6:V$6<=(V$6-$E16))) -> 0 | W74: =SUMPRODUCT(($I69:W69))-SUMPRODUCT(($I69:W69)*($I$6:W$6<=(W$6-$E16))) -> 0 | X74: =SUMPRODUCT(($I69:X69))-SUMPRODUCT(($I69:X69)*($I$6:X$6<=(X$6-$E16))) -> 0 | Y74: =SUMPRODUCT(($I69:Y69))-SUMPRODUCT(($I69:Y69)*($I$6:Y$6<=(Y$6-$E16))) -> 0 | Z74: =SUMPRODUCT(($I69:Z69))-SUMPRODUCT(($I69:Z69)*($I$6:Z$6<=(Z$6-$E16))) -> 0 | AA74: =SUMPRODUCT(($I69:AA69))-SUMPRODUCT(($I69:AA69)*($I$6:AA$6<=(AA$6-$E16))) -> 0 | AB74: =SUMPRODUCT(($I69:AB69))-SUMPRODUCT(($I69:AB69)*($I$6:AB$6<=(AB$6-$E16))) -> 0 | AC74: =SUMPRODUCT(($I69:AC69))-SUMPRODUCT(($I69:AC69)*($I$6:AC$6<=(AC$6-$E16))) -> 0 | AD74: =SUMPRODUCT(($I69:AD69))-SUMPRODUCT(($I69:AD69)*($I$6:AD$6<=(AD$6-$E16))) -> 0 | AE74: =SUMPRODUCT(($I69:AE69))-SUMPRODUCT(($I69:AE69)*($I$6:AE$6<=(AE$6-$E16))) -> 0 | AF74: =SUMPRODUCT(($I69:AF69))-SUMPRODUCT(($I69:AF69)*($I$6:AF$6<=(AF$6-$E16))) -> 0 | AG74: =SUMPRODUCT(($I69:AG69))-SUMPRODUCT(($I69:AG69)*($I$6:AG$6<=(AG$6-$E16))) -> 0
C76: Annualised capex
C77: =$C$76&" - "&C14 -> Annualised capex - Condition assessment of top 30 delta risk cable sections | G77: =input_dollars -> 2023-12-31 | I77: =IF($E14=0,0,-PMT(real_disc, $E14,H72,)) -> 0 | J77: -1035000 | K77: -1035000 | L77: -1035000 | M77: -1035000 | N77: -1035000 | O77: 0 | P77: 0 | Q77: 0 | R77: 0 | S77: 0 | T77: 0 | U77: 0 | V77: 0 | W77: 0 | X77: 0 | Y77: 0 | Z77: 0 | AA77: 0 | AB77: 0 | AC77: 0 | AD77: 0 | AE77: 0 | AF77: 0 | AG77: 0
C78: =$C$76&" - "&C15 -> Annualised capex - Replacement of poor condition cable sections | G78: =input_dollars -> 2023-12-31 | I78: =IF($E15=0,0,-PMT(real_disc, $E15,H73,)) -> 0 | J78: 0 | K78: -42111.15718 | L78: -84222.31437 | M78: -126333.4716 | N78: -168444.6287 | O78: -168444.6287 | P78: -168444.6287 | Q78: -168444.6287 | R78: -168444.6287 | S78: -168444.6287 | T78: -168444.6287 | U78: -168444.6287 | V78: -168444.6287 | W78: -168444.6287 | X78: -168444.6287 | Y78: -168444.6287 | Z78: -168444.6287 | AA78: -168444.6287 | AB78: -168444.6287 | AC78: -168444.6287 | AD78: -168444.6287 | AE78: -168444.6287 | AF78: -168444.6287 | AG78: -168444.6287
C79: =$C$76&" - "&C16 -> Annualised capex - | G79: =input_dollars -> 2023-12-31 | I79: =IF($E16=0,0,-PMT(real_disc, $E16,H74,)) -> 0 | J79: 0 | K79: 0 | L79: 0 | M79: 0 | N79: 0 | O79: 0 | P79: 0 | Q79: 0 | R79: 0 | S79: 0 | T79: 0 | U79: 0 | V79: 0 | W79: 0 | X79: 0 | Y79: 0 | Z79: 0 | AA79: 0 | AB79: 0 | AC79: 0 | AD79: 0 | AE79: 0 | AF79: 0 | AG79: 0
C80: Total annualised capex | G80: =input_dollars -> 2023-12-31 | I80: =SUM(I77:I79) -> 0 | J80: =SUM(J77:J79) -> -1035000 | K80: -1077111.157 | L80: -1119222.314 | M80: -1161333.472 | N80: -1203444.629 | O80: -168444.6287 | P80: -168444.6287 | Q80: -168444.6287 | R80: -168444.6287 | S80: -168444.6287 | T80: -168444.6287 | U80: -168444.6287 | V80: -168444.6287 | W80: -168444.6287 | X80: -168444.6287 | Y80: -168444.6287 | Z80: -168444.6287 | AA80: -168444.6287 | AB80: -168444.6287 | AC80: =SUM(AC77:AC79) -> -168444.6287 | AD80: =SUM(AD77:AD79) -> -168444.6287 | AE80: =SUM(AE77:AE79) -> -168444.6287 | AF80: =SUM(AF77:AF79) -> -168444.6287 | AG80: =SUM(AG77:AG79) -> -168444.6287
C82: Annualised capex | G82: =input_dollars -> 2023-12-31 | I82: =I80 -> 0 | J82: =J80 -> -1035000 | K82: -1077111.157 | L82: -1119222.314 | M82: -1161333.472 | N82: -1203444.629 | O82: -168444.6287 | P82: -168444.6287 | Q82: -168444.6287 | R82: -168444.6287 | S82: -168444.6287 | T82: -168444.6287 | U82: -168444.6287 | V82: -168444.6287 | W82: -168444.6287 | X82: -168444.6287 | Y82: -168444.6287 | Z82: -168444.6287 | AA82: -168444.6287 | AB82: -168444.6287 | AC82: =AC80 -> -168444.6287 | AD82: =AD80 -> -168444.6287 | AE82: =AE80 -> -168444.6287 | AF82: =AF80 -> -168444.6287 | AG82: =AG80 -> -168444.6287
C83: Operating expenditure | G83: 2023-12-31 | I83: =-I19 -> 0 | J83: 0 | K83: 0 | L83: 0 | M83: 0 | N83: 0 | O83: 0 | P83: 0 | Q83: 0 | R83: 0 | S83: 0 | T83: 0 | U83: 0 | V83: 0 | W83: 0 | X83: 0 | Y83: 0 | Z83: 0 | AA83: 0 | AB83: 0 | AC83: 0 | AD83: 0 | AE83: 0 | AF83: 0 | AG83: 0
C84: Risk mitigated | G84: 2023-12-31 | I84: =I64 -> 913448.7966 | J84: =J64 -> 1110294.509 | K84: 1355555.74 | L84: 1661937.345 | M84: 2045603.364 | N84: 238331.2109 | O84: 293494.5672 | P84: 321675.7098 | Q84: 334392.0904 | R84: 336059.8237 | S84: 337809.5773 | T84: 339704.8923 | U84: 341758.2179 | V84: 343983.0865 | W84: 346394.2084 | X84: 349007.5757 | Y84: 351840.5753 | Z84: 354912.1116 | AA84: 358242.7401 | AB84: 361854.8132 | AC84: =AC64 -> 365772.6388 | AD84: =AD64 -> 370022.6523 | AE84: =AE64 -> 374633.6052 | AF84: =AF64 -> 379636.7694 | AG84: =AG64 -> 385066.1598
C85: Other benefits value | G85: 2023-12-31 | I85: =I57 -> 0 | J85: 0 | K85: 0 | L85: 0 | M85: 0 | N85: 0 | O85: 0 | P85: 0 | Q85: 0 | R85: 0 | S85: 0 | T85: 0 | U85: 0 | V85: 0 | W85: 0 | X85: 0 | Y85: 0 | Z85: 0 | AA85: 0 | AB85: 0 | AC85: 0 | AD85: 0 | AE85: 0 | AF85: 0 | AG85: 0
C87: Net benefits | G87: 2023-12-31 | I87: =SUM(I82:I86) -> 913448.7966 | J87: 75294.50891 | K87: 278444.5827 | L87: 542715.0308 | M87: 884269.8925 | N87: -965113.4179 | O87: 125049.9385 | P87: 153231.081 | Q87: 165947.4616 | R87: 167615.1949 | S87: 169364.9485 | T87: 171260.2635 | U87: 173313.5892 | V87: 175538.4578 | W87: 177949.5796 | X87: 180562.947 | Y87: 183395.9466 | Z87: 186467.4829 | AA87: 189798.1114 | AB87: 193410.1845 | AC87: =SUM(AC82:AC86) -> 197328.01 | AD87: =SUM(AD82:AD86) -> 201578.0235 | AE87: =SUM(AE82:AE86) -> 206188.9765 | AF87: =SUM(AF82:AF86) -> 211192.1407 | AG87: =SUM(AG82:AG86) -> 216621.5311
C90: First capex year | G90: =IF(SUM($I17:$AG17)=0,0,(INDEX(I$6:AG$6,MATCH(TRUE,INDEX($I17:$AG17<>0,),0)))) -> 1
C92: First year | G92: =IF(_xlfn.MINIFS($G$90:$G$91, $G$90:$G$91, ">"&0)=0, $A$4, _xlfn.MINIFS($G$90:$G$91, $G$90:$G$91, ">"&0)) -> 1
A102: SENSITIVITIES
A106: NPV | C106: Net benefits | G106: =PROPER($A$3)&A106 -> Option 4NPV | I106: =I87 -> 913448.7966 | J106: =J87 -> 75294.50891 | K106: 278444.5827 | L106: 542715.0308 | M106: 884269.8925 | N106: -965113.4179 | O106: 125049.9385 | P106: 153231.081 | Q106: 165947.4616 | R106: 167615.1949 | S106: 169364.9485 | T106: 171260.2635 | U106: 173313.5892 | V106: 175538.4578 | W106: 177949.5796 | X106: 180562.947 | Y106: 183395.9466 | Z106: 186467.4829 | AA106: 189798.1114 | AB106: 193410.1845 | AC106: 197328.01 | AD106: 201578.0235 | AE106: 206188.9765 | AF106: 211192.1407 | AG106: 216621.5311
C107: Total annualised capex | I107: =I82 -> 0 | J107: =J82 -> -1035000 | K107: -1077111.157 | L107: -1119222.314 | M107: -1161333.472 | N107: -1203444.629 | O107: -168444.6287 | P107: -168444.6287 | Q107: -168444.6287 | R107: -168444.6287 | S107: -168444.6287 | T107: -168444.6287 | U107: -168444.6287 | V107: -168444.6287 | W107: -168444.6287 | X107: -168444.6287 | Y107: -168444.6287 | Z107: -168444.6287 | AA107: -168444.6287 | AB107: -168444.6287 | AC107: -168444.6287 | AD107: -168444.6287 | AE107: -168444.6287 | AF107: -168444.6287 | AG107: -168444.6287
C108: Total benefits | I108: =SUM(I84:I85) -> 913448.7966 | J108: =SUM(J84:J85) -> 1110294.509 | K108: 1355555.74 | L108: 1661937.345 | M108: 2045603.364 | N108: 238331.2109 | O108: 293494.5672 | P108: 321675.7098 | Q108: 334392.0904 | R108: 336059.8237 | S108: 337809.5773 | T108: 339704.8923 | U108: 341758.2179 | V108: 343983.0865 | W108: 346394.2084 | X108: 349007.5757 | Y108: 351840.5753 | Z108: 354912.1116 | AA108: 358242.7401 | AB108: 361854.8132 | AC108: 365772.6388 | AD108: 370022.6523 | AE108: 374633.6052 | AF108: 379636.7694 | AG108: 385066.1598
D109: =Assumptions!G110 -> Capex | E109: =Assumptions!H110 -> Total benefits
A110: ="sens"&Assumptions!B111 -> sens1 | C110: =Assumptions!C111 -> Capex 10% higher | D110: =Assumptions!G111 -> 0.1 | E110: =Assumptions!H111 -> 0 | G110: =PROPER($A$3)&A110 -> Option 4sens1 | I110: =I$106+IF($C110<>0,SUMPRODUCT((I$107:I$108)*TRANSPOSE(($D110:$E110))),0) -> 913448.7966 | J110: =J$106+IF($C110<>0,SUMPRODUCT((J$107:J$108)*TRANSPOSE(($D110:$E110))),0) -> -28205.49109 | K110: =K$106+IF($C110<>0,SUMPRODUCT((K$107:K$108)*TRANSPOSE(($D110:$E110))),0) -> 170733.467 | L110: =L$106+IF($C110<>0,SUMPRODUCT((L$107:L$108)*TRANSPOSE(($D110:$E110))),0) -> 430792.7993 | M110: =M$106+IF($C110<>0,SUMPRODUCT((M$107:M$108)*TRANSPOSE(($D110:$E110))),0) -> 768136.5453 | N110: =N$106+IF($C110<>0,SUMPRODUCT((N$107:N$108)*TRANSPOSE(($D110:$E110))),0) -> -1085457.881 | O110: =O$106+IF($C110<>0,SUMPRODUCT((O$107:O$108)*TRANSPOSE(($D110:$E110))),0) -> 108205.4756 | P110: =P$106+IF($C110<>0,SUMPRODUCT((P$107:P$108)*TRANSPOSE(($D110:$E110))),0) -> 136386.6182 | Q110: =Q$106+IF($C110<>0,SUMPRODUCT((Q$107:Q$108)*TRANSPOSE(($D110:$E110))),0) -> 149102.9988 | R110: =R$106+IF($C110<>0,SUMPRODUCT((R$107:R$108)*TRANSPOSE(($D110:$E110))),0) -> 150770.7321 | S110: =S$106+IF($C110<>0,SUMPRODUCT((S$107:S$108)*TRANSPOSE(($D110:$E110))),0) -> 152520.4856 | T110: =T$106+IF($C110<>0,SUMPRODUCT((T$107:T$108)*TRANSPOSE(($D110:$E110))),0) -> 154415.8006 | U110: =U$106+IF($C110<>0,SUMPRODUCT((U$107:U$108)*TRANSPOSE(($D110:$E110))),0) -> 156469.1263 | V110: =V$106+IF($C110<>0,SUMPRODUCT((V$107:V$108)*TRANSPOSE(($D110:$E110))),0) -> 158693.9949 | W110: =W$106+IF($C110<>0,SUMPRODUCT((W$107:W$108)*TRANSPOSE(($D110:$E110))),0) -> 161105.1168 | X110: =X$106+IF($C110<>0,SUMPRODUCT((X$107:X$108)*TRANSPOSE(($D110:$E110))),0) -> 163718.4841 | Y110: =Y$106+IF($C110<>0,SUMPRODUCT((Y$107:Y$108)*TRANSPOSE(($D110:$E110))),0) -> 166551.4837 | Z110: =Z$106+IF($C110<>0,SUMPRODUCT((Z$107:Z$108)*TRANSPOSE(($D110:$E110))),0) -> 169623.02 | AA110: =AA$106+IF($C110<>0,SUMPRODUCT((AA$107:AA$108)*TRANSPOSE(($D110:$E110))),0) -> 172953.6485 | AB110: =AB$106+IF($C110<>0,SUMPRODUCT((AB$107:AB$108)*TRANSPOSE(($D110:$E110))),0) -> 176565.7216 | AC110: =AC$106+IF($C110<>0,SUMPRODUCT((AC$107:AC$108)*TRANSPOSE(($D110:$E110))),0) -> 180483.5471 | AD110: =AD$106+IF($C110<>0,SUMPRODUCT((AD$107:AD$108)*TRANSPOSE(($D110:$E110))),0) -> 184733.5606 | AE110: =AE$106+IF($C110<>0,SUMPRODUCT((AE$107:AE$108)*TRANSPOSE(($D110:$E110))),0) -> 189344.5136 | AF110: =AF$106+IF($C110<>0,SUMPRODUCT((AF$107:AF$108)*TRANSPOSE(($D110:$E110))),0) -> 194347.6778 | AG110: =AG$106+IF($C110<>0,SUMPRODUCT((AG$107:AG$108)*TRANSPOSE(($D110:$E110))),0) -> 199777.0682
A111: ="sens"&Assumptions!B112 -> sens2 | C111: =Assumptions!C112 -> Capex 10% lower | D111: =Assumptions!G112 -> -0.1 | E111: =Assumptions!H112 -> 0 | G111: =PROPER($A$3)&A111 -> Option 4sens2 | I111: =I$106+IF($C111<>0,SUMPRODUCT((I$107:I$108)*TRANSPOSE(($D111:$E111))),0) -> 913448.7966 | J111: =J$106+IF($C111<>0,SUMPRODUCT((J$107:J$108)*TRANSPOSE(($D111:$E111))),0) -> 178794.5089 | K111: =K$106+IF($C111<>0,SUMPRODUCT((K$107:K$108)*TRANSPOSE(($D111:$E111))),0) -> 386155.6984 | L111: =L$106+IF($C111<>0,SUMPRODUCT((L$107:L$108)*TRANSPOSE(($D111:$E111))),0) -> 654637.2622 | M111: =M$106+IF($C111<>0,SUMPRODUCT((M$107:M$108)*TRANSPOSE(($D111:$E111))),0) -> 1000403.24 | N111: =N$106+IF($C111<>0,SUMPRODUCT((N$107:N$108)*TRANSPOSE(($D111:$E111))),0) -> -844768.955 | O111: =O$106+IF($C111<>0,SUMPRODUCT((O$107:O$108)*TRANSPOSE(($D111:$E111))),0) -> 141894.4014 | P111: =P$106+IF($C111<>0,SUMPRODUCT((P$107:P$108)*TRANSPOSE(($D111:$E111))),0) -> 170075.5439 | Q111: =Q$106+IF($C111<>0,SUMPRODUCT((Q$107:Q$108)*TRANSPOSE(($D111:$E111))),0) -> 182791.9245 | R111: =R$106+IF($C111<>0,SUMPRODUCT((R$107:R$108)*TRANSPOSE(($D111:$E111))),0) -> 184459.6578 | S111: =S$106+IF($C111<>0,SUMPRODUCT((S$107:S$108)*TRANSPOSE(($D111:$E111))),0) -> 186209.4114 | T111: =T$106+IF($C111<>0,SUMPRODUCT((T$107:T$108)*TRANSPOSE(($D111:$E111))),0) -> 188104.7264 | U111: =U$106+IF($C111<>0,SUMPRODUCT((U$107:U$108)*TRANSPOSE(($D111:$E111))),0) -> 190158.0521 | V111: =V$106+IF($C111<>0,SUMPRODUCT((V$107:V$108)*TRANSPOSE(($D111:$E111))),0) -> 192382.9207 | W111: =W$106+IF($C111<>0,SUMPRODUCT((W$107:W$108)*TRANSPOSE(($D111:$E111))),0) -> 194794.0425 | X111: =X$106+IF($C111<>0,SUMPRODUCT((X$107:X$108)*TRANSPOSE(($D111:$E111))),0) -> 197407.4098 | Y111: =Y$106+IF($C111<>0,SUMPRODUCT((Y$107:Y$108)*TRANSPOSE(($D111:$E111))),0) -> 200240.4095 | Z111: =Z$106+IF($C111<>0,SUMPRODUCT((Z$107:Z$108)*TRANSPOSE(($D111:$E111))),0) -> 203311.9457 | AA111: =AA$106+IF($C111<>0,SUMPRODUCT((AA$107:AA$108)*TRANSPOSE(($D111:$E111))),0) -> 206642.5742 | AB111: =AB$106+IF($C111<>0,SUMPRODUCT((AB$107:AB$108)*TRANSPOSE(($D111:$E111))),0) -> 210254.6474 | AC111: =AC$106+IF($C111<>0,SUMPRODUCT((AC$107:AC$108)*TRANSPOSE(($D111:$E111))),0) -> 214172.4729 | AD111: =AD$106+IF($C111<>0,SUMPRODUCT((AD$107:AD$108)*TRANSPOSE(($D111:$E111))),0) -> 218422.4864 | AE111: =AE$106+IF($C111<>0,SUMPRODUCT((AE$107:AE$108)*TRANSPOSE(($D111:$E111))),0) -> 223033.4393 | AF111: =AF$106+IF($C111<>0,SUMPRODUCT((AF$107:AF$108)*TRANSPOSE(($D111:$E111))),0) -> 228036.6036 | AG111: =AG$106+IF($C111<>0,SUMPRODUCT((AG$107:AG$108)*TRANSPOSE(($D111:$E111))),0) -> 233465.994
A112: ="sens"&Assumptions!B113 -> sens3 | C112: =Assumptions!C113 -> Total benefits 10% higher | D112: =Assumptions!G113 -> 0 | E112: =Assumptions!H113 -> 0.1 | G112: Option 4sens3 | I112: =I$106+IF($C112<>0,SUMPRODUCT((I$107:I$108)*TRANSPOSE(($D112:$E112))),0) -> 1004793.676 | J112: =J$106+IF($C112<>0,SUMPRODUCT((J$107:J$108)*TRANSPOSE(($D112:$E112))),0) -> 186323.9598 | K112: =K$106+IF($C112<>0,SUMPRODUCT((K$107:K$108)*TRANSPOSE(($D112:$E112))),0) -> 414000.1567 | L112: =L$106+IF($C112<>0,SUMPRODUCT((L$107:L$108)*TRANSPOSE(($D112:$E112))),0) -> 708908.7653 | M112: =M$106+IF($C112<>0,SUMPRODUCT((M$107:M$108)*TRANSPOSE(($D112:$E112))),0) -> 1088830.229 | N112: =N$106+IF($C112<>0,SUMPRODUCT((N$107:N$108)*TRANSPOSE(($D112:$E112))),0) -> -941280.2968 | O112: =O$106+IF($C112<>0,SUMPRODUCT((O$107:O$108)*TRANSPOSE(($D112:$E112))),0) -> 154399.3952 | P112: =P$106+IF($C112<>0,SUMPRODUCT((P$107:P$108)*TRANSPOSE(($D112:$E112))),0) -> 185398.652 | Q112: =Q$106+IF($C112<>0,SUMPRODUCT((Q$107:Q$108)*TRANSPOSE(($D112:$E112))),0) -> 199386.6707 | R112: =R$106+IF($C112<>0,SUMPRODUCT((R$107:R$108)*TRANSPOSE(($D112:$E112))),0) -> 201221.1773 | S112: =S$106+IF($C112<>0,SUMPRODUCT((S$107:S$108)*TRANSPOSE(($D112:$E112))),0) -> 203145.9062 | T112: =T$106+IF($C112<>0,SUMPRODUCT((T$107:T$108)*TRANSPOSE(($D112:$E112))),0) -> 205230.7527 | U112: =U$106+IF($C112<>0,SUMPRODUCT((U$107:U$108)*TRANSPOSE(($D112:$E112))),0) -> 207489.411 | V112: =V$106+IF($C112<>0,SUMPRODUCT((V$107:V$108)*TRANSPOSE(($D112:$E112))),0) -> 209936.7664 | W112: =W$106+IF($C112<>0,SUMPRODUCT((W$107:W$108)*TRANSPOSE(($D112:$E112))),0) -> 212589.0005 | X112: =X$106+IF($C112<>0,SUMPRODUCT((X$107:X$108)*TRANSPOSE(($D112:$E112))),0) -> 215463.7045 | Y112: =Y$106+IF($C112<>0,SUMPRODUCT((Y$107:Y$108)*TRANSPOSE(($D112:$E112))),0) -> 218580.0041 | Z112: =Z$106+IF($C112<>0,SUMPRODUCT((Z$107:Z$108)*TRANSPOSE(($D112:$E112))),0) -> 221958.694 | AA112: =AA$106+IF($C112<>0,SUMPRODUCT((AA$107:AA$108)*TRANSPOSE(($D112:$E112))),0) -> 225622.3854 | AB112: =AB$106+IF($C112<>0,SUMPRODUCT((AB$107:AB$108)*TRANSPOSE(($D112:$E112))),0) -> 229595.6658 | AC112: =AC$106+IF($C112<>0,SUMPRODUCT((AC$107:AC$108)*TRANSPOSE(($D112:$E112))),0) -> 233905.2739 | AD112: =AD$106+IF($C112<>0,SUMPRODUCT((AD$107:AD$108)*TRANSPOSE(($D112:$E112))),0) -> 238580.2887 | AE112: =AE$106+IF($C112<>0,SUMPRODUCT((AE$107:AE$108)*TRANSPOSE(($D112:$E112))),0) -> 243652.337 | AF112: =AF$106+IF($C112<>0,SUMPRODUCT((AF$107:AF$108)*TRANSPOSE(($D112:$E112))),0) -> 249155.8176 | AG112: =AG$106+IF($C112<>0,SUMPRODUCT((AG$107:AG$108)*TRANSPOSE(($D112:$E112))),0) -> 255128.1471
A113: ="sens"&Assumptions!B114 -> sens4 | C113: =Assumptions!C114 -> Total benefits 10% lower | D113: =Assumptions!G114 -> 0 | E113: =Assumptions!H114 -> -0.1 | G113: Option 4sens4 | I113: =I$106+IF($C113<>0,SUMPRODUCT((I$107:I$108)*TRANSPOSE(($D113:$E113))),0) -> 822103.9169 | J113: =J$106+IF($C113<>0,SUMPRODUCT((J$107:J$108)*TRANSPOSE(($D113:$E113))),0) -> -35734.94198 | K113: =K$106+IF($C113<>0,SUMPRODUCT((K$107:K$108)*TRANSPOSE(($D113:$E113))),0) -> 142889.0087 | L113: =L$106+IF($C113<>0,SUMPRODUCT((L$107:L$108)*TRANSPOSE(($D113:$E113))),0) -> 376521.2963 | M113: =M$106+IF($C113<>0,SUMPRODUCT((M$107:M$108)*TRANSPOSE(($D113:$E113))),0) -> 679709.5561 | N113: =N$106+IF($C113<>0,SUMPRODUCT((N$107:N$108)*TRANSPOSE(($D113:$E113))),0) -> -988946.539 | O113: =O$106+IF($C113<>0,SUMPRODUCT((O$107:O$108)*TRANSPOSE(($D113:$E113))),0) -> 95700.48178 | P113: =P$106+IF($C113<>0,SUMPRODUCT((P$107:P$108)*TRANSPOSE(($D113:$E113))),0) -> 121063.5101 | Q113: =Q$106+IF($C113<>0,SUMPRODUCT((Q$107:Q$108)*TRANSPOSE(($D113:$E113))),0) -> 132508.2526 | R113: =R$106+IF($C113<>0,SUMPRODUCT((R$107:R$108)*TRANSPOSE(($D113:$E113))),0) -> 134009.2126 | S113: =S$106+IF($C113<>0,SUMPRODUCT((S$107:S$108)*TRANSPOSE(($D113:$E113))),0) -> 135583.9908 | T113: =T$106+IF($C113<>0,SUMPRODUCT((T$107:T$108)*TRANSPOSE(($D113:$E113))),0) -> 137289.7743 | U113: =U$106+IF($C113<>0,SUMPRODUCT((U$107:U$108)*TRANSPOSE(($D113:$E113))),0) -> 139137.7674 | V113: =V$106+IF($C113<>0,SUMPRODUCT((V$107:V$108)*TRANSPOSE(($D113:$E113))),0) -> 141140.1491 | W113: =W$106+IF($C113<>0,SUMPRODUCT((W$107:W$108)*TRANSPOSE(($D113:$E113))),0) -> 143310.1588 | X113: =X$106+IF($C113<>0,SUMPRODUCT((X$107:X$108)*TRANSPOSE(($D113:$E113))),0) -> 145662.1894 | Y113: =Y$106+IF($C113<>0,SUMPRODUCT((Y$107:Y$108)*TRANSPOSE(($D113:$E113))),0) -> 148211.889 | Z113: =Z$106+IF($C113<>0,SUMPRODUCT((Z$107:Z$108)*TRANSPOSE(($D113:$E113))),0) -> 150976.2717 | AA113: =AA$106+IF($C113<>0,SUMPRODUCT((AA$107:AA$108)*TRANSPOSE(($D113:$E113))),0) -> 153973.8374 | AB113: =AB$106+IF($C113<>0,SUMPRODUCT((AB$107:AB$108)*TRANSPOSE(($D113:$E113))),0) -> 157224.7032 | AC113: =AC$106+IF($C113<>0,SUMPRODUCT((AC$107:AC$108)*TRANSPOSE(($D113:$E113))),0) -> 160750.7461 | AD113: =AD$106+IF($C113<>0,SUMPRODUCT((AD$107:AD$108)*TRANSPOSE(($D113:$E113))),0) -> 164575.7583 | AE113: =AE$106+IF($C113<>0,SUMPRODUCT((AE$107:AE$108)*TRANSPOSE(($D113:$E113))),0) -> 168725.616 | AF113: =AF$106+IF($C113<>0,SUMPRODUCT((AF$107:AF$108)*TRANSPOSE(($D113:$E113))),0) -> 173228.4637 | AG113: =AG$106+IF($C113<>0,SUMPRODUCT((AG$107:AG$108)*TRANSPOSE(($D113:$E113))),0) -> 178114.9151
A114: ="sens"&Assumptions!B115 -> sens5 | C114: =Assumptions!C115 -> Capex 10% higher & total benefits 10% lower | D114: =Assumptions!G115 -> 0.1 | E114: =Assumptions!H115 -> -0.1 | G114: Option 4sens5 | I114: =I$106+IF($C114<>0,SUMPRODUCT((I$107:I$108)*TRANSPOSE(($D114:$E114))),0) -> 822103.9169 | J114: =J$106+IF($C114<>0,SUMPRODUCT((J$107:J$108)*TRANSPOSE(($D114:$E114))),0) -> -139234.942 | K114: =K$106+IF($C114<>0,SUMPRODUCT((K$107:K$108)*TRANSPOSE(($D114:$E114))),0) -> 35177.89298 | L114: =L$106+IF($C114<>0,SUMPRODUCT((L$107:L$108)*TRANSPOSE(($D114:$E114))),0) -> 264599.0648 | M114: =M$106+IF($C114<>0,SUMPRODUCT((M$107:M$108)*TRANSPOSE(($D114:$E114))),0) -> 563576.2089 | N114: =N$106+IF($C114<>0,SUMPRODUCT((N$107:N$108)*TRANSPOSE(($D114:$E114))),0) -> -1109291.002 | O114: =O$106+IF($C114<>0,SUMPRODUCT((O$107:O$108)*TRANSPOSE(($D114:$E114))),0) -> 78856.0189 | P114: =P$106+IF($C114<>0,SUMPRODUCT((P$107:P$108)*TRANSPOSE(($D114:$E114))),0) -> 104219.0472 | Q114: =Q$106+IF($C114<>0,SUMPRODUCT((Q$107:Q$108)*TRANSPOSE(($D114:$E114))),0) -> 115663.7897 | R114: =R$106+IF($C114<>0,SUMPRODUCT((R$107:R$108)*TRANSPOSE(($D114:$E114))),0) -> 117164.7497 | S114: =S$106+IF($C114<>0,SUMPRODUCT((S$107:S$108)*TRANSPOSE(($D114:$E114))),0) -> 118739.5279 | T114: =T$106+IF($C114<>0,SUMPRODUCT((T$107:T$108)*TRANSPOSE(($D114:$E114))),0) -> 120445.3114 | U114: =U$106+IF($C114<>0,SUMPRODUCT((U$107:U$108)*TRANSPOSE(($D114:$E114))),0) -> 122293.3045 | V114: =V$106+IF($C114<>0,SUMPRODUCT((V$107:V$108)*TRANSPOSE(($D114:$E114))),0) -> 124295.6863 | W114: =W$106+IF($C114<>0,SUMPRODUCT((W$107:W$108)*TRANSPOSE(($D114:$E114))),0) -> 126465.6959 | X114: =X$106+IF($C114<>0,SUMPRODUCT((X$107:X$108)*TRANSPOSE(($D114:$E114))),0) -> 128817.7265 | Y114: =Y$106+IF($C114<>0,SUMPRODUCT((Y$107:Y$108)*TRANSPOSE(($D114:$E114))),0) -> 131367.4262 | Z114: =Z$106+IF($C114<>0,SUMPRODUCT((Z$107:Z$108)*TRANSPOSE(($D114:$E114))),0) -> 134131.8088 | AA114: =AA$106+IF($C114<>0,SUMPRODUCT((AA$107:AA$108)*TRANSPOSE(($D114:$E114))),0) -> 137129.3745 | AB114: =AB$106+IF($C114<>0,SUMPRODUCT((AB$107:AB$108)*TRANSPOSE(($D114:$E114))),0) -> 140380.2403 | AC114: =AC$106+IF($C114<>0,SUMPRODUCT((AC$107:AC$108)*TRANSPOSE(($D114:$E114))),0) -> 143906.2833 | AD114: =AD$106+IF($C114<>0,SUMPRODUCT((AD$107:AD$108)*TRANSPOSE(($D114:$E114))),0) -> 147731.2954 | AE114: =AE$106+IF($C114<>0,SUMPRODUCT((AE$107:AE$108)*TRANSPOSE(($D114:$E114))),0) -> 151881.1531 | AF114: =AF$106+IF($C114<>0,SUMPRODUCT((AF$107:AF$108)*TRANSPOSE(($D114:$E114))),0) -> 156384.0009 | AG114: =AG$106+IF($C114<>0,SUMPRODUCT((AG$107:AG$108)*TRANSPOSE(($D114:$E114))),0) -> 161270.4522
A115: ="sens"&Assumptions!B116 -> sens | C115: =Assumptions!C116 -> 0 | D115: =Assumptions!G116 -> 0 | E115: =Assumptions!H116 -> 0 | G115: Option 4sens | I115: =I$106+IF($C115<>0,SUMPRODUCT((I$107:I$108)*TRANSPOSE(($D115:$E115))),0) -> 913448.7966 | J115: =J$106+IF($C115<>0,SUMPRODUCT((J$107:J$108)*TRANSPOSE(($D115:$E115))),0) -> 75294.50891 | K115: =K$106+IF($C115<>0,SUMPRODUCT((K$107:K$108)*TRANSPOSE(($D115:$E115))),0) -> 278444.5827 | L115: =L$106+IF($C115<>0,SUMPRODUCT((L$107:L$108)*TRANSPOSE(($D115:$E115))),0) -> 542715.0308 | M115: =M$106+IF($C115<>0,SUMPRODUCT((M$107:M$108)*TRANSPOSE(($D115:$E115))),0) -> 884269.8925 | N115: =N$106+IF($C115<>0,SUMPRODUCT((N$107:N$108)*TRANSPOSE(($D115:$E115))),0) -> -965113.4179 | O115: =O$106+IF($C115<>0,SUMPRODUCT((O$107:O$108)*TRANSPOSE(($D115:$E115))),0) -> 125049.9385 | P115: =P$106+IF($C115<>0,SUMPRODUCT((P$107:P$108)*TRANSPOSE(($D115:$E115))),0) -> 153231.081 | Q115: =Q$106+IF($C115<>0,SUMPRODUCT((Q$107:Q$108)*TRANSPOSE(($D115:$E115))),0) -> 165947.4616 | R115: =R$106+IF($C115<>0,SUMPRODUCT((R$107:R$108)*TRANSPOSE(($D115:$E115))),0) -> 167615.1949 | S115: =S$106+IF($C115<>0,SUMPRODUCT((S$107:S$108)*TRANSPOSE(($D115:$E115))),0) -> 169364.9485 | T115: =T$106+IF($C115<>0,SUMPRODUCT((T$107:T$108)*TRANSPOSE(($D115:$E115))),0) -> 171260.2635 | U115: =U$106+IF($C115<>0,SUMPRODUCT((U$107:U$108)*TRANSPOSE(($D115:$E115))),0) -> 173313.5892 | V115: =V$106+IF($C115<>0,SUMPRODUCT((V$107:V$108)*TRANSPOSE(($D115:$E115))),0) -> 175538.4578 | W115: =W$106+IF($C115<>0,SUMPRODUCT((W$107:W$108)*TRANSPOSE(($D115:$E115))),0) -> 177949.5796 | X115: =X$106+IF($C115<>0,SUMPRODUCT((X$107:X$108)*TRANSPOSE(($D115:$E115))),0) -> 180562.947 | Y115: =Y$106+IF($C115<>0,SUMPRODUCT((Y$107:Y$108)*TRANSPOSE(($D115:$E115))),0) -> 183395.9466 | Z115: =Z$106+IF($C115<>0,SUMPRODUCT((Z$107:Z$108)*TRANSPOSE(($D115:$E115))),0) -> 186467.4829 | AA115: =AA$106+IF($C115<>0,SUMPRODUCT((AA$107:AA$108)*TRANSPOSE(($D115:$E115))),0) -> 189798.1114 | AB115: =AB$106+IF($C115<>0,SUMPRODUCT((AB$107:AB$108)*TRANSPOSE(($D115:$E115))),0) -> 193410.1845 | AC115: =AC$106+IF($C115<>0,SUMPRODUCT((AC$107:AC$108)*TRANSPOSE(($D115:$E115))),0) -> 197328.01 | AD115: =AD$106+IF($C115<>0,SUMPRODUCT((AD$107:AD$108)*TRANSPOSE(($D115:$E115))),0) -> 201578.0235 | AE115: =AE$106+IF($C115<>0,SUMPRODUCT((AE$107:AE$108)*TRANSPOSE(($D115:$E115))),0) -> 206188.9765 | AF115: =AF$106+IF($C115<>0,SUMPRODUCT((AF$107:AF$108)*TRANSPOSE(($D115:$E115))),0) -> 211192.1407 | AG115: =AG$106+IF($C115<>0,SUMPRODUCT((AG$107:AG$108)*TRANSPOSE(($D115:$E115))),0) -> 216621.5311
A116: ="sens"&Assumptions!B117 -> sens | C116: =Assumptions!C117 -> 0 | D116: =Assumptions!G117 -> 0 | E116: =Assumptions!H117 -> 0 | G116: Option 4sens | I116: =I$106+IF($C116<>0,SUMPRODUCT((I$107:I$108)*TRANSPOSE(($D116:$E116))),0) -> 913448.7966 | J116: =J$106+IF($C116<>0,SUMPRODUCT((J$107:J$108)*TRANSPOSE(($D116:$E116))),0) -> 75294.50891 | K116: =K$106+IF($C116<>0,SUMPRODUCT((K$107:K$108)*TRANSPOSE(($D116:$E116))),0) -> 278444.5827 | L116: =L$106+IF($C116<>0,SUMPRODUCT((L$107:L$108)*TRANSPOSE(($D116:$E116))),0) -> 542715.0308 | M116: =M$106+IF($C116<>0,SUMPRODUCT((M$107:M$108)*TRANSPOSE(($D116:$E116))),0) -> 884269.8925 | N116: =N$106+IF($C116<>0,SUMPRODUCT((N$107:N$108)*TRANSPOSE(($D116:$E116))),0) -> -965113.4179 | O116: =O$106+IF($C116<>0,SUMPRODUCT((O$107:O$108)*TRANSPOSE(($D116:$E116))),0) -> 125049.9385 | P116: =P$106+IF($C116<>0,SUMPRODUCT((P$107:P$108)*TRANSPOSE(($D116:$E116))),0) -> 153231.081 | Q116: =Q$106+IF($C116<>0,SUMPRODUCT((Q$107:Q$108)*TRANSPOSE(($D116:$E116))),0) -> 165947.4616 | R116: =R$106+IF($C116<>0,SUMPRODUCT((R$107:R$108)*TRANSPOSE(($D116:$E116))),0) -> 167615.1949 | S116: =S$106+IF($C116<>0,SUMPRODUCT((S$107:S$108)*TRANSPOSE(($D116:$E116))),0) -> 169364.9485 | T116: =T$106+IF($C116<>0,SUMPRODUCT((T$107:T$108)*TRANSPOSE(($D116:$E116))),0) -> 171260.2635 | U116: =U$106+IF($C116<>0,SUMPRODUCT((U$107:U$108)*TRANSPOSE(($D116:$E116))),0) -> 173313.5892 | V116: =V$106+IF($C116<>0,SUMPRODUCT((V$107:V$108)*TRANSPOSE(($D116:$E116))),0) -> 175538.4578 | W116: =W$106+IF($C116<>0,SUMPRODUCT((W$107:W$108)*TRANSPOSE(($D116:$E116))),0) -> 177949.5796 | X116: =X$106+IF($C116<>0,SUMPRODUCT((X$107:X$108)*TRANSPOSE(($D116:$E116))),0) -> 180562.947 | Y116: =Y$106+IF($C116<>0,SUMPRODUCT((Y$107:Y$108)*TRANSPOSE(($D116:$E116))),0) -> 183395.9466 | Z116: =Z$106+IF($C116<>0,SUMPRODUCT((Z$107:Z$108)*TRANSPOSE(($D116:$E116))),0) -> 186467.4829 | AA116: =AA$106+IF($C116<>0,SUMPRODUCT((AA$107:AA$108)*TRANSPOSE(($D116:$E116))),0) -> 189798.1114 | AB116: =AB$106+IF($C116<>0,SUMPRODUCT((AB$107:AB$108)*TRANSPOSE(($D116:$E116))),0) -> 193410.1845 | AC116: =AC$106+IF($C116<>0,SUMPRODUCT((AC$107:AC$108)*TRANSPOSE(($D116:$E116))),0) -> 197328.01 | AD116: =AD$106+IF($C116<>0,SUMPRODUCT((AD$107:AD$108)*TRANSPOSE(($D116:$E116))),0) -> 201578.0235 | AE116: =AE$106+IF($C116<>0,SUMPRODUCT((AE$107:AE$108)*TRANSPOSE(($D116:$E116))),0) -> 206188.9765 | AF116: =AF$106+IF($C116<>0,SUMPRODUCT((AF$107:AF$108)*TRANSPOSE(($D116:$E116))),0) -> 211192.1407 | AG116: =AG$106+IF($C116<>0,SUMPRODUCT((AG$107:AG$108)*TRANSPOSE(($D116:$E116))),0) -> 216621.5311
A117: ="sens"&Assumptions!B118 -> sens | C117: =Assumptions!C118 -> 0 | D117: =Assumptions!G118 -> 0 | E117: =Assumptions!H118 -> 0 | G117: Option 4sens | I117: =I$106+IF($C117<>0,SUMPRODUCT((I$107:I$108)*TRANSPOSE(($D117:$E117))),0) -> 913448.7966 | J117: =J$106+IF($C117<>0,SUMPRODUCT((J$107:J$108)*TRANSPOSE(($D117:$E117))),0) -> 75294.50891 | K117: =K$106+IF($C117<>0,SUMPRODUCT((K$107:K$108)*TRANSPOSE(($D117:$E117))),0) -> 278444.5827 | L117: =L$106+IF($C117<>0,SUMPRODUCT((L$107:L$108)*TRANSPOSE(($D117:$E117))),0) -> 542715.0308 | M117: =M$106+IF($C117<>0,SUMPRODUCT((M$107:M$108)*TRANSPOSE(($D117:$E117))),0) -> 884269.8925 | N117: =N$106+IF($C117<>0,SUMPRODUCT((N$107:N$108)*TRANSPOSE(($D117:$E117))),0) -> -965113.4179 | O117: =O$106+IF($C117<>0,SUMPRODUCT((O$107:O$108)*TRANSPOSE(($D117:$E117))),0) -> 125049.9385 | P117: =P$106+IF($C117<>0,SUMPRODUCT((P$107:P$108)*TRANSPOSE(($D117:$E117))),0) -> 153231.081 | Q117: =Q$106+IF($C117<>0,SUMPRODUCT((Q$107:Q$108)*TRANSPOSE(($D117:$E117))),0) -> 165947.4616 | R117: =R$106+IF($C117<>0,SUMPRODUCT((R$107:R$108)*TRANSPOSE(($D117:$E117))),0) -> 167615.1949 | S117: =S$106+IF($C117<>0,SUMPRODUCT((S$107:S$108)*TRANSPOSE(($D117:$E117))),0) -> 169364.9485 | T117: =T$106+IF($C117<>0,SUMPRODUCT((T$107:T$108)*TRANSPOSE(($D117:$E117))),0) -> 171260.2635 | U117: =U$106+IF($C117<>0,SUMPRODUCT((U$107:U$108)*TRANSPOSE(($D117:$E117))),0) -> 173313.5892 | V117: =V$106+IF($C117<>0,SUMPRODUCT((V$107:V$108)*TRANSPOSE(($D117:$E117))),0) -> 175538.4578 | W117: =W$106+IF($C117<>0,SUMPRODUCT((W$107:W$108)*TRANSPOSE(($D117:$E117))),0) -> 177949.5796 | X117: =X$106+IF($C117<>0,SUMPRODUCT((X$107:X$108)*TRANSPOSE(($D117:$E117))),0) -> 180562.947 | Y117: =Y$106+IF($C117<>0,SUMPRODUCT((Y$107:Y$108)*TRANSPOSE(($D117:$E117))),0) -> 183395.9466 | Z117: =Z$106+IF($C117<>0,SUMPRODUCT((Z$107:Z$108)*TRANSPOSE(($D117:$E117))),0) -> 186467.4829 | AA117: =AA$106+IF($C117<>0,SUMPRODUCT((AA$107:AA$108)*TRANSPOSE(($D117:$E117))),0) -> 189798.1114 | AB117: =AB$106+IF($C117<>0,SUMPRODUCT((AB$107:AB$108)*TRANSPOSE(($D117:$E117))),0) -> 193410.1845 | AC117: =AC$106+IF($C117<>0,SUMPRODUCT((AC$107:AC$108)*TRANSPOSE(($D117:$E117))),0) -> 197328.01 | AD117: =AD$106+IF($C117<>0,SUMPRODUCT((AD$107:AD$108)*TRANSPOSE(($D117:$E117))),0) -> 201578.0235 | AE117: =AE$106+IF($C117<>0,SUMPRODUCT((AE$107:AE$108)*TRANSPOSE(($D117:$E117))),0) -> 206188.9765 | AF117: =AF$106+IF($C117<>0,SUMPRODUCT((AF$107:AF$108)*TRANSPOSE(($D117:$E117))),0) -> 211192.1407 | AG117: =AG$106+IF($C117<>0,SUMPRODUCT((AG$107:AG$108)*TRANSPOSE(($D117:$E117))),0) -> 216621.5311

Sheet Option5
A1: =bus -> Powercor
A2: =proj -> HV cable replacement
A3: OPTION 5 | C3: =INDEX(Assumptions!$E$14:$E$18, MATCH(A3,_xlfn.ANCHORARRAY( Assumptions!$C$14),0)) -> Replace highest 5 delta risk cable sections and monitor further 10
A4: =(INDEX(Data!$D$9:$D$13, MATCH(A3, options,0))) -> 
A6: ='Option1 (base case)'!A6 -> Count | I6: ='Option1 (base case)'!I6 -> 1 | J6: ='Option1 (base case)'!J6 -> 2 | K6: ='Option1 (base case)'!K6 -> 3 | L6: ='Option1 (base case)'!L6 -> 4 | M6: ='Option1 (base case)'!M6 -> 5 | N6: ='Option1 (base case)'!N6 -> 6 | O6: ='Option1 (base case)'!O6 -> 7 | P6: ='Option1 (base case)'!P6 -> 8 | Q6: ='Option1 (base case)'!Q6 -> 9 | R6: ='Option1 (base case)'!R6 -> 10 | S6: ='Option1 (base case)'!S6 -> 11 | T6: ='Option1 (base case)'!T6 -> 12 | U6: ='Option1 (base case)'!U6 -> 13 | V6: ='Option1 (base case)'!V6 -> 14 | W6: ='Option1 (base case)'!W6 -> 15 | X6: ='Option1 (base case)'!X6 -> 16 | Y6: ='Option1 (base case)'!Y6 -> 17 | Z6: ='Option1 (base case)'!Z6 -> 18 | AA6: ='Option1 (base case)'!AA6 -> 19 | AB6: ='Option1 (base case)'!AB6 -> 20 | AC6: ='Option1 (base case)'!AC6 -> 21 | AD6: ='Option1 (base case)'!AD6 -> 22 | AE6: ='Option1 (base case)'!AE6 -> 23 | AF6: ='Option1 (base case)'!AF6 -> 24 | AG6: ='Option1 (base case)'!AG6 -> 25
A7: ='Option1 (base case)'!A7 -> Value of CO2 reductions | G7: $/MWh | I7: ='Option1 (base case)'!I7 -> 24.7304868 | J7: ='Option1 (base case)'!J7 -> 22.34074009 | K7: ='Option1 (base case)'!K7 -> 20.19632912 | L7: ='Option1 (base case)'!L7 -> 18.06294208 | M7: ='Option1 (base case)'!M7 -> 15.91339762 | N7: ='Option1 (base case)'!N7 -> 13.71506943 | O7: ='Option1 (base case)'!O7 -> 13.71506943 | P7: ='Option1 (base case)'!P7 -> 13.71506943 | Q7: ='Option1 (base case)'!Q7 -> 13.71506943 | R7: ='Option1 (base case)'!R7 -> 13.71506943 | S7: ='Option1 (base case)'!S7 -> 13.71506943 | T7: ='Option1 (base case)'!T7 -> 13.71506943 | U7: ='Option1 (base case)'!U7 -> 13.71506943 | V7: ='Option1 (base case)'!V7 -> 13.71506943 | W7: ='Option1 (base case)'!W7 -> 13.71506943 | X7: ='Option1 (base case)'!X7 -> 13.71506943 | Y7: ='Option1 (base case)'!Y7 -> 13.71506943 | Z7: ='Option1 (base case)'!Z7 -> 13.71506943 | AA7: ='Option1 (base case)'!AA7 -> 13.71506943 | AB7: ='Option1 (base case)'!AB7 -> 13.71506943 | AC7: ='Option1 (base case)'!AC7 -> 13.71506943 | AD7: ='Option1 (base case)'!AD7 -> 13.71506943 | AE7: ='Option1 (base case)'!AE7 -> 13.71506943 | AF7: ='Option1 (base case)'!AF7 -> 13.71506943 | AG7: ='Option1 (base case)'!AG7 -> 13.71506943
G9: Units | I9: ='Option1 (base case)'!I9 -> 2026-27 | J9: ='Option1 (base case)'!J9 -> 2027-28 | K9: ='Option1 (base case)'!K9 -> 2028-29 | L9: ='Option1 (base case)'!L9 -> 2029-30 | M9: ='Option1 (base case)'!M9 -> 2030-31 | N9: ='Option1 (base case)'!N9 -> 2031-32 | O9: ='Option1 (base case)'!O9 -> 2032-33 | P9: ='Option1 (base case)'!P9 -> 2033-34 | Q9: ='Option1 (base case)'!Q9 -> 2034-35 | R9: ='Option1 (base case)'!R9 -> 2035-36 | S9: ='Option1 (base case)'!S9 -> 2036-37 | T9: ='Option1 (base case)'!T9 -> 2037-38 | U9: ='Option1 (base case)'!U9 -> 2038-39 | V9: ='Option1 (base case)'!V9 -> 2039-40 | W9: ='Option1 (base case)'!W9 -> 2040-41 | X9: ='Option1 (base case)'!X9 -> 2041-42 | Y9: ='Option1 (base case)'!Y9 -> 2042-43 | Z9: ='Option1 (base case)'!Z9 -> 2043-44 | AA9: ='Option1 (base case)'!AA9 -> 2044-45 | AB9: ='Option1 (base case)'!AB9 -> 2045-46 | AC9: ='Option1 (base case)'!AC9 -> 2046-47 | AD9: ='Option1 (base case)'!AD9 -> 2047-48 | AE9: ='Option1 (base case)'!AE9 -> 2048-49 | AF9: ='Option1 (base case)'!AF9 -> 2049-50 | AG9: ='Option1 (base case)'!AG9 -> 2050-51
A11: INVESTMENT & OPERATING COST
C13: Capex | E13: Asset life (yrs)
C14: Cable replacement (top 5) | E14: 60 | G14: =input_dollars -> 2023-12-31 | I14: =Workings_costs!E54 -> 1528818.218 | J14: =Workings_costs!F54 -> 1528818.218 | K14: =Workings_costs!G54 -> 1528818.218 | L14: =Workings_costs!H54 -> 1528818.218 | M14: =Workings_costs!I54 -> 1528818.218 | N14: 0 | O14: 0 | P14: 0 | Q14: 0 | R14: 0 | S14: 0 | T14: 0 | U14: 0 | V14: 0 | W14: 0 | X14: 0 | Y14: 0 | Z14: 0 | AA14: 0 | AB14: 0 | AC14: 0 | AD14: 0 | AE14: 0 | AF14: 0 | AG14: 0
C15: Condition assessment of next 10 delta risk cable sections | E15: 1 | G15: =input_dollars -> 2023-12-31 | I15: =Workings_costs!E55 -> 333333.3333 | J15: =Workings_costs!F55 -> 333333.3333 | K15: =Workings_costs!G55 -> 333333.3333 | L15: =Workings_costs!H55 -> 333333.3333 | M15: =Workings_costs!I55 -> 333333.3333 | N15: 0 | O15: 0 | P15: 0 | Q15: 0 | R15: 0 | S15: 0 | T15: 0 | U15: 0 | V15: 0 | W15: 0 | X15: 0 | Y15: 0 | Z15: 0 | AA15: 0 | AB15: 0 | AC15: 0 | AD15: 0 | AE15: 0 | AF15: 0 | AG15: 0
C16: Replacement of poor condition cable sections | E16: 60 | G16: =input_dollars -> 2023-12-31 | I16: =Workings_costs!E56 -> 0 | J16: =Workings_costs!F56 -> 0 | K16: =Workings_costs!G56 -> 0 | L16: =Workings_costs!H56 -> 0 | M16: =Workings_costs!I56 -> 772268.1667 | N16: 0 | O16: 0 | P16: 0 | Q16: 0 | R16: 0 | S16: 0 | T16: 0 | U16: 0 | V16: 0 | W16: 0 | X16: 0 | Y16: 0 | Z16: 0 | AA16: 0 | AB16: 0 | AC16: 0 | AD16: 0 | AE16: 0 | AF16: 0 | AG16: 0
C17: Capital expenditure | G17: =input_dollars -> 2023-12-31 | I17: =SUM(I14:I16) -> 1862151.551 | J17: 1862151.551 | K17: =SUM(K14:K16) -> 1862151.551 | L17: 1862151.551 | M17: 2634419.718 | N17: 0 | O17: 0 | P17: 0 | Q17: 0 | R17: =SUM(R14:R16) -> 0 | S17: 0 | T17: 0 | U17: 0 | V17: 0 | W17: 0 | X17: 0 | Y17: 0 | Z17: 0 | AA17: 0 | AB17: 0 | AC17: 0 | AD17: 0 | AE17: 0 | AF17: 0 | AG17: 0
C19: Operating expenditure | G19: =input_dollars -> 2023-12-31 | I19: 0 | J19: 0 | K19: 0 | L19: 0 | M19: 0 | N19: 0 | O19: 0 | P19: 0 | Q19: 0 | R19: 0 | S19: 0 | T19: 0 | U19: 0 | V19: 0 | W19: 0 | X19: 0 | Y19: 0 | Z19: 0 | AA19: 0 | AB19: 0 | AC19: 0 | AD19: 0 | AE19: 0 | AF19: 0 | AG19: 0
A22: RISK ASSUMPTIONS
C24: PoF (major) | I24: 0 | J24: 0 | K24: 0 | L24: 0 | M24: 0 | N24: 0 | O24: 0 | P24: 0 | Q24: 0 | R24: 0 | S24: 0 | T24: 0 | U24: 0 | V24: 0 | W24: 0 | X24: 0 | Y24: 0 | Z24: 0 | AA24: 0 | AB24: 0 | AC24: 0 | AD24: 0 | AE24: 0 | AF24: 0 | AG24: 0
C25: PoF (reparable) | I25: 0 | J25: 0 | K25: 0 | L25: 0 | M25: 0 | N25: 0 | O25: 0 | P25: 0 | Q25: 0 | R25: 0 | S25: 0 | T25: 0 | U25: 0 | V25: 0 | W25: 0 | X25: 0 | Y25: 0 | Z25: 0 | AA25: 0 | AB25: 0 | AC25: 0 | AD25: 0 | AE25: 0 | AF25: 0 | AG25: 0
C27: Energy at risk (weighted) | G27: MWh | I27: =INDEX(Workings_risks!J$60:J$233, MATCH($A$3&$C27, Workings_risks!$E$60:$E$233,0)) -> 656.9024966 | J27: =INDEX(Workings_risks!K$60:K$233, MATCH($A$3&$C27, Workings_risks!$E$60:$E$233,0)) -> 777.409532 | K27: =INDEX(Workings_risks!L$60:L$233, MATCH($A$3&$C27, Workings_risks!$E$60:$E$233,0)) -> 933.8784519 | L27: =INDEX(Workings_risks!M$60:M$233, MATCH($A$3&$C27, Workings_risks!$E$60:$E$233,0)) -> 1127.55593 | M27: =INDEX(Workings_risks!N$60:N$233, MATCH($A$3&$C27, Workings_risks!$E$60:$E$233,0)) -> 1367.820895 | N27: =INDEX(Workings_risks!O$60:O$233, MATCH($A$3&$C27, Workings_risks!$E$60:$E$233,0)) -> 1682.930748 | O27: =INDEX(Workings_risks!P$60:P$233, MATCH($A$3&$C27, Workings_risks!$E$60:$E$233,0)) -> 2057.297345 | P27: =INDEX(Workings_risks!Q$60:Q$233, MATCH($A$3&$C27, Workings_risks!$E$60:$E$233,0)) -> 2437.244699 | Q27: =INDEX(Workings_risks!R$60:R$233, MATCH($A$3&$C27, Workings_risks!$E$60:$E$233,0)) -> 2821.794786 | R27: =INDEX(Workings_risks!S$60:S$233, MATCH($A$3&$C27, Workings_risks!$E$60:$E$233,0)) -> 3209.672575 | S27: =INDEX(Workings_risks!T$60:T$233, MATCH($A$3&$C27, Workings_risks!$E$60:$E$233,0)) -> 3686.631033 | T27: =INDEX(Workings_risks!U$60:U$233, MATCH($A$3&$C27, Workings_risks!$E$60:$E$233,0)) -> 4171.389274 | U27: =INDEX(Workings_risks!V$60:V$233, MATCH($A$3&$C27, Workings_risks!$E$60:$E$233,0)) -> 4623.353277 | V27: =INDEX(Workings_risks!W$60:W$233, MATCH($A$3&$C27, Workings_risks!$E$60:$E$233,0)) -> 4946.606395 | W27: =INDEX(Workings_risks!X$60:X$233, MATCH($A$3&$C27, Workings_risks!$E$60:$E$233,0)) -> 5196.32202 | X27: =INDEX(Workings_risks!Y$60:Y$233, MATCH($A$3&$C27, Workings_risks!$E$60:$E$233,0)) -> 5417.451163 | Y27: =INDEX(Workings_risks!Z$60:Z$233, MATCH($A$3&$C27, Workings_risks!$E$60:$E$233,0)) -> 5549.727996 | Z27: =INDEX(Workings_risks!AA$60:AA$233, MATCH($A$3&$C27, Workings_risks!$E$60:$E$233,0)) -> 5662.102875 | AA27: =INDEX(Workings_risks!AB$60:AB$233, MATCH($A$3&$C27, Workings_risks!$E$60:$E$233,0)) -> 5756.49266 | AB27: =INDEX(Workings_risks!AC$60:AC$233, MATCH($A$3&$C27, Workings_risks!$E$60:$E$233,0)) -> 5841.203204 | AC27: =INDEX(Workings_risks!AD$60:AD$233, MATCH($A$3&$C27, Workings_risks!$E$60:$E$233,0)) -> 5919.374872 | AD27: =INDEX(Workings_risks!AE$60:AE$233, MATCH($A$3&$C27, Workings_risks!$E$60:$E$233,0)) -> 5974.923984 | AE27: =INDEX(Workings_risks!AF$60:AF$233, MATCH($A$3&$C27, Workings_risks!$E$60:$E$233,0)) -> 6018.095233 | AF27: =INDEX(Workings_risks!AG$60:AG$233, MATCH($A$3&$C27, Workings_risks!$E$60:$E$233,0)) -> 6055.723643 | AG27: =INDEX(Workings_risks!AH$60:AH$233, MATCH($A$3&$C27, Workings_risks!$E$60:$E$233,0)) -> 6091.593467
C28: Energy at risk value | D28: $/MWh | E28: =Assumptions!H41*vcr_esc -> 34717.18798 | F28: =IF(AND(SUM(I27:AG27)<>0, E28=0), "!", "") ->  | G28: =input_dollars -> 2023-12-31 | I28: =I27*$E$28 -> 22805807.46 | J28: =J27*$E$28 -> 26989472.86 | K28: 32421633.76 | L28: 39145571.19 | M28: 47486895.12 | N28: 58426623.12 | O28: 71423578.64 | P28: 84614282.36 | Q28: 97964780.02 | R28: 111430806.1 | S28: 127989462.6 | T28: 144818905.6 | U28: 160509824.8 | V28: 171732264.1 | W28: 180401688.4 | X28: 188078670.4 | Y28: 192670950.1 | Z28: 196572289.9 | AA28: 199849237.8 | AB28: 202790149.6 | AC28: 205504050.2 | AD28: 207432559.1 | AE28: 208931343.5 | AF28: 210237696.1 | AG28: 211482995.5
C30: ='Option1 (base case)'!C30 -> Safety consequence | D30: (after DF) | G30: =input_dollars -> 2023-12-31 | I30: =INDEX(Workings_risks!J$60:J$233, MATCH($A$3&$C30, Workings_risks!$E$60:$E$233,0)) -> 3423255.928 | J30: =INDEX(Workings_risks!K$60:K$233, MATCH($A$3&$C30, Workings_risks!$E$60:$E$233,0)) -> 4058871.683 | K30: =INDEX(Workings_risks!L$60:L$233, MATCH($A$3&$C30, Workings_risks!$E$60:$E$233,0)) -> 4876970.758 | L30: =INDEX(Workings_risks!M$60:M$233, MATCH($A$3&$C30, Workings_risks!$E$60:$E$233,0)) -> 5889864.069 | M30: =INDEX(Workings_risks!N$60:N$233, MATCH($A$3&$C30, Workings_risks!$E$60:$E$233,0)) -> 7146707.14 | N30: =INDEX(Workings_risks!O$60:O$233, MATCH($A$3&$C30, Workings_risks!$E$60:$E$233,0)) -> 8779815.654 | O30: =INDEX(Workings_risks!P$60:P$233, MATCH($A$3&$C30, Workings_risks!$E$60:$E$233,0)) -> 10732899.49 | P30: =INDEX(Workings_risks!Q$60:Q$233, MATCH($A$3&$C30, Workings_risks!$E$60:$E$233,0)) -> 12714047.74 | Q30: =INDEX(Workings_risks!R$60:R$233, MATCH($A$3&$C30, Workings_risks!$E$60:$E$233,0)) -> 14718244.54 | R30: =INDEX(Workings_risks!S$60:S$233, MATCH($A$3&$C30, Workings_risks!$E$60:$E$233,0)) -> 16739557.23 | S30: =INDEX(Workings_risks!T$60:T$233, MATCH($A$3&$C30, Workings_risks!$E$60:$E$233,0)) -> 19225087.24 | T30: =INDEX(Workings_risks!U$60:U$233, MATCH($A$3&$C30, Workings_risks!$E$60:$E$233,0)) -> 21751263.55 | U30: =INDEX(Workings_risks!V$60:V$233, MATCH($A$3&$C30, Workings_risks!$E$60:$E$233,0)) -> 24106542.24 | V30: =INDEX(Workings_risks!W$60:W$233, MATCH($A$3&$C30, Workings_risks!$E$60:$E$233,0)) -> 25791081.66 | W30: =INDEX(Workings_risks!X$60:X$233, MATCH($A$3&$C30, Workings_risks!$E$60:$E$233,0)) -> 27092401.87 | X30: =INDEX(Workings_risks!Y$60:Y$233, MATCH($A$3&$C30, Workings_risks!$E$60:$E$233,0)) -> 28244751.96 | Y30: =INDEX(Workings_risks!Z$60:Z$233, MATCH($A$3&$C30, Workings_risks!$E$60:$E$233,0)) -> 28934074.12 | Z30: =INDEX(Workings_risks!AA$60:AA$233, MATCH($A$3&$C30, Workings_risks!$E$60:$E$233,0)) -> 29519683.06 | AA30: =INDEX(Workings_risks!AB$60:AB$233, MATCH($A$3&$C30, Workings_risks!$E$60:$E$233,0)) -> 30011567.92 | AB30: =INDEX(Workings_risks!AC$60:AC$233, MATCH($A$3&$C30, Workings_risks!$E$60:$E$233,0)) -> 30453012.23 | AC30: =INDEX(Workings_risks!AD$60:AD$233, MATCH($A$3&$C30, Workings_risks!$E$60:$E$233,0)) -> 30860381.1 | AD30: =INDEX(Workings_risks!AE$60:AE$233, MATCH($A$3&$C30, Workings_risks!$E$60:$E$233,0)) -> 31149859.11 | AE30: =INDEX(Workings_risks!AF$60:AF$233, MATCH($A$3&$C30, Workings_risks!$E$60:$E$233,0)) -> 31374833.49 | AF30: =INDEX(Workings_risks!AG$60:AG$233, MATCH($A$3&$C30, Workings_risks!$E$60:$E$233,0)) -> 31570922.98 | AG30: =INDEX(Workings_risks!AH$60:AH$233, MATCH($A$3&$C30, Workings_risks!$E$60:$E$233,0)) -> 31757848.11
C31: ='Option1 (base case)'!C31 -> Unplanned replacements | G31: =input_dollars -> 2023-12-31 | I31: =INDEX(Workings_risks!J$60:J$233, MATCH($A$3&$C31, Workings_risks!$E$60:$E$233,0)) -> 1900959.372 | J31: =INDEX(Workings_risks!K$60:K$233, MATCH($A$3&$C31, Workings_risks!$E$60:$E$233,0)) -> 2242074.437 | K31: =INDEX(Workings_risks!L$60:L$233, MATCH($A$3&$C31, Workings_risks!$E$60:$E$233,0)) -> 2687950.529 | L31: =INDEX(Workings_risks!M$60:M$233, MATCH($A$3&$C31, Workings_risks!$E$60:$E$233,0)) -> 3238579.484 | M31: =INDEX(Workings_risks!N$60:N$233, MATCH($A$3&$C31, Workings_risks!$E$60:$E$233,0)) -> 3920086.224 | N31: =INDEX(Workings_risks!O$60:O$233, MATCH($A$3&$C31, Workings_risks!$E$60:$E$233,0)) -> 4825136.09 | O31: =INDEX(Workings_risks!P$60:P$233, MATCH($A$3&$C31, Workings_risks!$E$60:$E$233,0)) -> 5898411.352 | P31: =INDEX(Workings_risks!Q$60:Q$233, MATCH($A$3&$C31, Workings_risks!$E$60:$E$233,0)) -> 6992279.24 | Q31: =INDEX(Workings_risks!R$60:R$233, MATCH($A$3&$C31, Workings_risks!$E$60:$E$233,0)) -> 8104327.406 | R31: =INDEX(Workings_risks!S$60:S$233, MATCH($A$3&$C31, Workings_risks!$E$60:$E$233,0)) -> 9226776.644 | S31: =INDEX(Workings_risks!T$60:T$233, MATCH($A$3&$C31, Workings_risks!$E$60:$E$233,0)) -> 10607009.87 | T31: =INDEX(Workings_risks!U$60:U$233, MATCH($A$3&$C31, Workings_risks!$E$60:$E$233,0)) -> 12009814.28 | U31: =INDEX(Workings_risks!V$60:V$233, MATCH($A$3&$C31, Workings_risks!$E$60:$E$233,0)) -> 13317717.98 | V31: =INDEX(Workings_risks!W$60:W$233, MATCH($A$3&$C31, Workings_risks!$E$60:$E$233,0)) -> 14253155.2 | W31: =INDEX(Workings_risks!X$60:X$233, MATCH($A$3&$C31, Workings_risks!$E$60:$E$233,0)) -> 14975787.95 | X31: =INDEX(Workings_risks!Y$60:Y$233, MATCH($A$3&$C31, Workings_risks!$E$60:$E$233,0)) -> 15615696.49 | Y31: =INDEX(Workings_risks!Z$60:Z$233, MATCH($A$3&$C31, Workings_risks!$E$60:$E$233,0)) -> 15998482.2 | Z31: =INDEX(Workings_risks!AA$60:AA$233, MATCH($A$3&$C31, Workings_risks!$E$60:$E$233,0)) -> 16323675.18 | AA31: =INDEX(Workings_risks!AB$60:AB$233, MATCH($A$3&$C31, Workings_risks!$E$60:$E$233,0)) -> 16596822.48 | AB31: =INDEX(Workings_risks!AC$60:AC$233, MATCH($A$3&$C31, Workings_risks!$E$60:$E$233,0)) -> 16841959.78 | AC31: =INDEX(Workings_risks!AD$60:AD$233, MATCH($A$3&$C31, Workings_risks!$E$60:$E$233,0)) -> 17068174.73 | AD31: =INDEX(Workings_risks!AE$60:AE$233, MATCH($A$3&$C31, Workings_risks!$E$60:$E$233,0)) -> 17228924.01 | AE31: =INDEX(Workings_risks!AF$60:AF$233, MATCH($A$3&$C31, Workings_risks!$E$60:$E$233,0)) -> 17353853.95 | AF31: =INDEX(Workings_risks!AG$60:AG$233, MATCH($A$3&$C31, Workings_risks!$E$60:$E$233,0)) -> 17462743.9 | AG31: =INDEX(Workings_risks!AH$60:AH$233, MATCH($A$3&$C31, Workings_risks!$E$60:$E$233,0)) -> 17566544.81
C32: ='Option1 (base case)'!C32 -> Environmental consequence | D32: (after DF) | G32: =input_dollars -> 2023-12-31 | I32: =INDEX(Workings_risks!J$60:J$233, MATCH($A$3&$C32, Workings_risks!$E$60:$E$233,0)) -> 165853.3837 | J32: =INDEX(Workings_risks!K$60:K$233, MATCH($A$3&$C32, Workings_risks!$E$60:$E$233,0)) -> 197651.241 | K32: =INDEX(Workings_risks!L$60:L$233, MATCH($A$3&$C32, Workings_risks!$E$60:$E$233,0)) -> 237767.9799 | L32: =INDEX(Workings_risks!M$60:M$233, MATCH($A$3&$C32, Workings_risks!$E$60:$E$233,0)) -> 287499.7808 | M32: =INDEX(Workings_risks!N$60:N$233, MATCH($A$3&$C32, Workings_risks!$E$60:$E$233,0)) -> 349286.788 | N32: =INDEX(Workings_risks!O$60:O$233, MATCH($A$3&$C32, Workings_risks!$E$60:$E$233,0)) -> 427694.2077 | O32: =INDEX(Workings_risks!P$60:P$233, MATCH($A$3&$C32, Workings_risks!$E$60:$E$233,0)) -> 522839.7238 | P32: =INDEX(Workings_risks!Q$60:Q$233, MATCH($A$3&$C32, Workings_risks!$E$60:$E$233,0)) -> 619109.6734 | Q32: =INDEX(Workings_risks!R$60:R$233, MATCH($A$3&$C32, Workings_risks!$E$60:$E$233,0)) -> 716256.919 | R32: =INDEX(Workings_risks!S$60:S$233, MATCH($A$3&$C32, Workings_risks!$E$60:$E$233,0)) -> 814187.6059 | S32: =INDEX(Workings_risks!T$60:T$233, MATCH($A$3&$C32, Workings_risks!$E$60:$E$233,0)) -> 934609.0909 | T32: =INDEX(Workings_risks!U$60:U$233, MATCH($A$3&$C32, Workings_risks!$E$60:$E$233,0)) -> 1056999.849 | U32: =INDEX(Workings_risks!V$60:V$233, MATCH($A$3&$C32, Workings_risks!$E$60:$E$233,0)) -> 1171110.786 | V32: =INDEX(Workings_risks!W$60:W$233, MATCH($A$3&$C32, Workings_risks!$E$60:$E$233,0)) -> 1252725.064 | W32: =INDEX(Workings_risks!X$60:X$233, MATCH($A$3&$C32, Workings_risks!$E$60:$E$233,0)) -> 1315772.749 | X32: =INDEX(Workings_risks!Y$60:Y$233, MATCH($A$3&$C32, Workings_risks!$E$60:$E$233,0)) -> 1371602.978 | Y32: =INDEX(Workings_risks!Z$60:Z$233, MATCH($A$3&$C32, Workings_risks!$E$60:$E$233,0)) -> 1404999.959 | Z32: =INDEX(Workings_risks!AA$60:AA$233, MATCH($A$3&$C32, Workings_risks!$E$60:$E$233,0)) -> 1433372.136 | AA32: =INDEX(Workings_risks!AB$60:AB$233, MATCH($A$3&$C32, Workings_risks!$E$60:$E$233,0)) -> 1457203.474 | AB32: =INDEX(Workings_risks!AC$60:AC$233, MATCH($A$3&$C32, Workings_risks!$E$60:$E$233,0)) -> 1478591.016 | AC32: =INDEX(Workings_risks!AD$60:AD$233, MATCH($A$3&$C32, Workings_risks!$E$60:$E$233,0)) -> 1498327.638 | AD32: =INDEX(Workings_risks!AE$60:AE$233, MATCH($A$3&$C32, Workings_risks!$E$60:$E$233,0)) -> 1512352.563 | AE32: =INDEX(Workings_risks!AF$60:AF$233, MATCH($A$3&$C32, Workings_risks!$E$60:$E$233,0)) -> 1523252.35 | AF32: =INDEX(Workings_risks!AG$60:AG$233, MATCH($A$3&$C32, Workings_risks!$E$60:$E$233,0)) -> 1532752.693 | AG32: =INDEX(Workings_risks!AH$60:AH$233, MATCH($A$3&$C32, Workings_risks!$E$60:$E$233,0)) -> 1541809.032
C33: ='Option1 (base case)'!C33 -> Response cost | G33: =input_dollars -> 2023-12-31 | I33: =INDEX(Workings_risks!J$60:J$233, MATCH($A$3&$C33, Workings_risks!$E$60:$E$233,0)) -> 1114904.081 | J33: =INDEX(Workings_risks!K$60:K$233, MATCH($A$3&$C33, Workings_risks!$E$60:$E$233,0)) -> 1324672.241 | K33: =INDEX(Workings_risks!L$60:L$233, MATCH($A$3&$C33, Workings_risks!$E$60:$E$233,0)) -> 1592253.467 | L33: =INDEX(Workings_risks!M$60:M$233, MATCH($A$3&$C33, Workings_risks!$E$60:$E$233,0)) -> 1923676.039 | M33: =INDEX(Workings_risks!N$60:N$233, MATCH($A$3&$C33, Workings_risks!$E$60:$E$233,0)) -> 2335078.335 | N33: =INDEX(Workings_risks!O$60:O$233, MATCH($A$3&$C33, Workings_risks!$E$60:$E$233,0)) -> 2864305.592 | O33: =INDEX(Workings_risks!P$60:P$233, MATCH($A$3&$C33, Workings_risks!$E$60:$E$233,0)) -> 3501484.379 | P33: =INDEX(Workings_risks!Q$60:Q$233, MATCH($A$3&$C33, Workings_risks!$E$60:$E$233,0)) -> 4147305.331 | Q33: =INDEX(Workings_risks!R$60:R$233, MATCH($A$3&$C33, Workings_risks!$E$60:$E$233,0)) -> 4800145.171 | R33: =INDEX(Workings_risks!S$60:S$233, MATCH($A$3&$C33, Workings_risks!$E$60:$E$233,0)) -> 5458457.19 | S33: =INDEX(Workings_risks!T$60:T$233, MATCH($A$3&$C33, Workings_risks!$E$60:$E$233,0)) -> 6267957.738 | T33: =INDEX(Workings_risks!U$60:U$233, MATCH($A$3&$C33, Workings_risks!$E$60:$E$233,0)) -> 7090696.187 | U33: =INDEX(Workings_risks!V$60:V$233, MATCH($A$3&$C33, Workings_risks!$E$60:$E$233,0)) -> 7857775.799 | V33: =INDEX(Workings_risks!W$60:W$233, MATCH($A$3&$C33, Workings_risks!$E$60:$E$233,0)) -> 8406405.5 | W33: =INDEX(Workings_risks!X$60:X$233, MATCH($A$3&$C33, Workings_risks!$E$60:$E$233,0)) -> 8830226.342 | X33: =INDEX(Workings_risks!Y$60:Y$233, MATCH($A$3&$C33, Workings_risks!$E$60:$E$233,0)) -> 9205529.809 | Y33: =INDEX(Workings_risks!Z$60:Z$233, MATCH($A$3&$C33, Workings_risks!$E$60:$E$233,0)) -> 9430031.895 | Z33: =INDEX(Workings_risks!AA$60:AA$233, MATCH($A$3&$C33, Workings_risks!$E$60:$E$233,0)) -> 9620756.108 | AA33: =INDEX(Workings_risks!AB$60:AB$233, MATCH($A$3&$C33, Workings_risks!$E$60:$E$233,0)) -> 9780955.768 | AB33: =INDEX(Workings_risks!AC$60:AC$233, MATCH($A$3&$C33, Workings_risks!$E$60:$E$233,0)) -> 9924727.684 | AC33: =INDEX(Workings_risks!AD$60:AD$233, MATCH($A$3&$C33, Workings_risks!$E$60:$E$233,0)) -> 10057401.73 | AD33: =INDEX(Workings_risks!AE$60:AE$233, MATCH($A$3&$C33, Workings_risks!$E$60:$E$233,0)) -> 10151680.46 | AE33: =INDEX(Workings_risks!AF$60:AF$233, MATCH($A$3&$C33, Workings_risks!$E$60:$E$233,0)) -> 10224951.3 | AF33: =INDEX(Workings_risks!AG$60:AG$233, MATCH($A$3&$C33, Workings_risks!$E$60:$E$233,0)) -> 10288814.77 | AG33: =INDEX(Workings_risks!AH$60:AH$233, MATCH($A$3&$C33, Workings_risks!$E$60:$E$233,0)) -> 10349693.53
G34: =input_dollars -> 2023-12-31 | I34: 0 | J34: 0 | K34: 0 | L34: 0 | M34: 0 | N34: 0 | O34: 0 | P34: 0 | Q34: 0 | R34: 0 | S34: 0 | T34: 0 | U34: 0 | V34: 0 | W34: 0 | X34: 0 | Y34: 0 | Z34: 0 | AA34: 0 | AB34: 0 | AC34: 0 | AD34: 0 | AE34: 0 | AF34: 0 | AG34: 0
C36: Total risk cost | I36: =SUM(I28:I34) -> 29410780.22 | J36: =SUM(J28:J34) -> 34812742.46 | K36: 41816576.5 | L36: 50485190.56 | M36: 61238053.61 | N36: 75323574.66 | O36: 92079213.59 | P36: 109087024.3 | Q36: 126303754.1 | R36: 143669784.8 | S36: 165024126.5 | T36: 186727679.4 | U36: 206962971.6 | V36: 221435631.5 | W36: 232615877.3 | X36: 242516251.6 | Y36: 248438538.2 | Z36: 253469776.4 | AA36: 257695787.4 | AB36: 261488440.3 | AC36: 264988335.4 | AD36: 267475375.3 | AE36: 269408234.6 | AF36: 271092930.4 | AG36: 272698891
A38: OTHER BENEFITS
C41: Reduction in CO2 emissions | G41: MWh | I41: 0 | J41: 0 | K41: 0 | L41: 0 | M41: 0 | N41: 0 | O41: 0 | P41: 0 | Q41: 0 | R41: 0 | S41: 0 | T41: 0 | U41: 0 | V41: 0 | W41: 0 | X41: 0 | Y41: 0 | Z41: 0 | AA41: 0 | AB41: 0 | AC41: 0 | AD41: 0 | AE41: 0 | AF41: 0 | AG41: 0
C42: Value of reduction in CO2 emissions | G42: $ | I42: =I41*I7 -> 0 | J42: 0 | K42: 0 | L42: 0 | M42: 0 | N42: 0 | O42: 0 | P42: 0 | Q42: 0 | R42: 0 | S42: 0 | T42: 0 | U42: 0 | V42: 0 | W42: 0 | X42: 0 | Y42: 0 | Z42: 0 | AA42: 0 | AB42: 0 | AC42: 0 | AD42: 0 | AE42: 0 | AF42: 0 | AG42: 0
C45: Reliability in worst-served areas | D45: $/MWh | E45: =Assumptions!G94 -> 151432.8174 | G45: MWh | I45: 0 | J45: 0 | K45: 0 | L45: 0 | M45: 0 | N45: 0 | O45: 0 | P45: 0 | Q45: 0 | R45: 0 | S45: 0 | T45: 0 | U45: 0 | V45: 0 | W45: 0 | X45: 0 | Y45: 0 | Z45: 0 | AA45: 0 | AB45: 0 | AC45: 0 | AD45: 0 | AE45: 0 | AF45: 0 | AG45: 0
C46: Network resilience | D46: $/MWh | E46: =Assumptions!G95 -> 24590 | G46: MWh | I46: 0 | J46: 0 | K46: 0 | L46: 0 | M46: 0 | N46: 0 | O46: 0 | P46: 0 | Q46: 0 | R46: 0 | S46: 0 | T46: 0 | U46: 0 | V46: 0 | W46: 0 | X46: 0 | Y46: 0 | Z46: 0 | AA46: 0 | AB46: 0 | AC46: 0 | AD46: 0 | AE46: 0 | AF46: 0 | AG46: 0
C47: Enabling solar exports | D47: $/MWh | E47: =Assumptions!G96 -> 88.35771951 | G47: MWh | I47: 0 | J47: 0 | K47: 0 | L47: 0 | M47: 0 | N47: 0 | O47: 0 | P47: 0 | Q47: 0 | R47: 0 | S47: 0 | T47: 0 | U47: 0 | V47: 0 | W47: 0 | X47: 0 | Y47: 0 | Z47: 0 | AA47: 0 | AB47: 0 | AC47: 0 | AD47: 0 | AE47: 0 | AF47: 0 | AG47: 0
C48: Aesthetics | D48: $/customer | E48: =Assumptions!G97 -> 0 | G48: customers | I48: 0 | J48: 0 | K48: 0 | L48: 0 | M48: 0 | N48: 0 | O48: 0 | P48: 0 | Q48: 0 | R48: 0 | S48: 0 | T48: 0 | U48: 0 | V48: 0 | W48: 0 | X48: 0 | Y48: 0 | Z48: 0 | AA48: 0 | AB48: 0 | AC48: 0 | AD48: 0 | AE48: 0 | AF48: 0 | AG48: 0
C49: Customer value of time (res) | D49: $/customer min | E49: =Assumptions!G98 -> 0.3518133654 | G49: mins | I49: 0 | J49: 0 | K49: 0 | L49: 0 | M49: 0 | N49: 0 | O49: 0 | P49: 0 | Q49: 0 | R49: 0 | S49: 0 | T49: 0 | U49: 0 | V49: 0 | W49: 0 | X49: 0 | Y49: 0 | Z49: 0 | AA49: 0 | AB49: 0 | AC49: 0 | AD49: 0 | AE49: 0 | AF49: 0 | AG49: 0
C50: Customer value of time (bus) | D50: $/customer min | E50: =Assumptions!G99 -> 0.3518133654 | G50: mins | I50: 0 | J50: 0 | K50: 0 | L50: 0 | M50: 0 | N50: 0 | O50: 0 | P50: 0 | Q50: 0 | R50: 0 | S50: 0 | T50: 0 | U50: 0 | V50: 0 | W50: 0 | X50: 0 | Y50: 0 | Z50: 0 | AA50: 0 | AB50: 0 | AC50: 0 | AD50: 0 | AE50: 0 | AF50: 0 | AG50: 0
C51: Communication | D51: $/customer | E51: =Assumptions!G100 -> 0 | G51: customers | I51: 0 | J51: 0 | K51: 0 | L51: 0 | M51: 0 | N51: 0 | O51: 0 | P51: 0 | Q51: 0 | R51: 0 | S51: 0 | T51: 0 | U51: 0 | V51: 0 | W51: 0 | X51: 0 | Y51: 0 | Z51: 0 | AA51: 0 | AB51: 0 | AC51: 0 | AD51: 0 | AE51: 0 | AF51: 0 | AG51: 0
C52: Information accessibility | D52: $/customer | E52: =Assumptions!G101 -> 0 | G52: customers | I52: 0 | J52: 0 | K52: 0 | L52: 0 | M52: 0 | N52: 0 | O52: 0 | P52: 0 | Q52: 0 | R52: 0 | S52: 0 | T52: 0 | U52: 0 | V52: 0 | W52: 0 | X52: 0 | Y52: 0 | Z52: 0 | AA52: 0 | AB52: 0 | AC52: 0 | AD52: 0 | AE52: 0 | AF52: 0 | AG52: 0
C54: Other benefits 1 | G54: =input_dollars -> 2023-12-31 | I54: 0 | J54: 0 | K54: 0 | L54: 0 | M54: 0 | N54: 0 | O54: 0 | P54: 0 | Q54: 0 | R54: 0 | S54: 0 | T54: 0 | U54: 0 | V54: 0 | W54: 0 | X54: 0 | Y54: 0 | Z54: 0 | AA54: 0 | AB54: 0 | AC54: 0 | AD54: 0 | AE54: 0 | AF54: 0 | AG54: 0
C55: Other benefits 2 | G55: =input_dollars -> 2023-12-31 | I55: 0 | J55: 0 | K55: 0 | L55: 0 | M55: 0 | N55: 0 | O55: 0 | P55: 0 | Q55: 0 | R55: 0 | S55: 0 | T55: 0 | U55: 0 | V55: 0 | W55: 0 | X55: 0 | Y55: 0 | Z55: 0 | AA55: 0 | AB55: 0 | AC55: 0 | AD55: 0 | AE55: 0 | AF55: 0 | AG55: 0
C57: Total other benefits | G57: =input_dollars -> 2023-12-31 | I57: =SUMPRODUCT((I$45:I$52)*($E$45:$E$52))+SUM(I54:I55)+I42 -> 0 | J57: =SUMPRODUCT((J$45:J$52)*($E$45:$E$52))+SUM(J54:J55)+J42 -> 0 | K57: =SUMPRODUCT((K$45:K$52)*($E$45:$E$52))+SUM(K54:K55)+K42 -> 0 | L57: =SUMPRODUCT((L$45:L$52)*($E$45:$E$52))+SUM(L54:L55)+L42 -> 0 | M57: =SUMPRODUCT((M$45:M$52)*($E$45:$E$52))+SUM(M54:M55)+M42 -> 0 | N57: =SUMPRODUCT((N$45:N$52)*($E$45:$E$52))+SUM(N54:N55)+N42 -> 0 | O57: =SUMPRODUCT((O$45:O$52)*($E$45:$E$52))+SUM(O54:O55)+O42 -> 0 | P57: =SUMPRODUCT((P$45:P$52)*($E$45:$E$52))+SUM(P54:P55)+P42 -> 0 | Q57: =SUMPRODUCT((Q$45:Q$52)*($E$45:$E$52))+SUM(Q54:Q55)+Q42 -> 0 | R57: =SUMPRODUCT((R$45:R$52)*($E$45:$E$52))+SUM(R54:R55)+R42 -> 0 | S57: =SUMPRODUCT((S$45:S$52)*($E$45:$E$52))+SUM(S54:S55)+S42 -> 0 | T57: =SUMPRODUCT((T$45:T$52)*($E$45:$E$52))+SUM(T54:T55)+T42 -> 0 | U57: =SUMPRODUCT((U$45:U$52)*($E$45:$E$52))+SUM(U54:U55)+U42 -> 0 | V57: =SUMPRODUCT((V$45:V$52)*($E$45:$E$52))+SUM(V54:V55)+V42 -> 0 | W57: =SUMPRODUCT((W$45:W$52)*($E$45:$E$52))+SUM(W54:W55)+W42 -> 0 | X57: =SUMPRODUCT((X$45:X$52)*($E$45:$E$52))+SUM(X54:X55)+X42 -> 0 | Y57: =SUMPRODUCT((Y$45:Y$52)*($E$45:$E$52))+SUM(Y54:Y55)+Y42 -> 0 | Z57: =SUMPRODUCT((Z$45:Z$52)*($E$45:$E$52))+SUM(Z54:Z55)+Z42 -> 0 | AA57: =SUMPRODUCT((AA$45:AA$52)*($E$45:$E$52))+SUM(AA54:AA55)+AA42 -> 0 | AB57: =SUMPRODUCT((AB$45:AB$52)*($E$45:$E$52))+SUM(AB54:AB55)+AB42 -> 0 | AC57: =SUMPRODUCT((AC$45:AC$52)*($E$45:$E$52))+SUM(AC54:AC55)+AC42 -> 0 | AD57: =SUMPRODUCT((AD$45:AD$52)*($E$45:$E$52))+SUM(AD54:AD55)+AD42 -> 0 | AE57: =SUMPRODUCT((AE$45:AE$52)*($E$45:$E$52))+SUM(AE54:AE55)+AE42 -> 0 | AF57: =SUMPRODUCT((AF$45:AF$52)*($E$45:$E$52))+SUM(AF54:AF55)+AF42 -> 0 | AG57: =SUMPRODUCT((AG$45:AG$52)*($E$45:$E$52))+SUM(AG54:AG55)+AG42 -> 0
A60: SUMMARY
C64: ='Option1 (base case)'!C64 -> Risks mitigated vs base case | G64: =input_dollars -> 2023-12-31 | I64: =(1-INDEX(Data!$C$9:$C$13, MATCH($A$3, options,0)))*('Option1 (base case)'!I36-I36) -> 0 | J64: =(1-INDEX(Data!$C$9:$C$13, MATCH($A$3, options,0)))*('Option1 (base case)'!J36-J36) -> 369182.8983 | K64: =(1-INDEX(Data!$C$9:$C$13, MATCH($A$3, options,0)))*('Option1 (base case)'!K36-K36) -> 522112.2596 | L64: =(1-INDEX(Data!$C$9:$C$13, MATCH($A$3, options,0)))*('Option1 (base case)'!L36-L36) -> 728807.7584 | M64: =(1-INDEX(Data!$C$9:$C$13, MATCH($A$3, options,0)))*('Option1 (base case)'!M36-M36) -> 1006650.119 | N64: =(1-INDEX(Data!$C$9:$C$13, MATCH($A$3, options,0)))*('Option1 (base case)'!N36-N36) -> 653496.2707 | O64: =(1-INDEX(Data!$C$9:$C$13, MATCH($A$3, options,0)))*('Option1 (base case)'!O36-O36) -> 800144.5327 | P64: =(1-INDEX(Data!$C$9:$C$13, MATCH($A$3, options,0)))*('Option1 (base case)'!P36-P36) -> 879699.4488 | Q64: =(1-INDEX(Data!$C$9:$C$13, MATCH($A$3, options,0)))*('Option1 (base case)'!Q36-Q36) -> 893480.6647 | R64: =(1-INDEX(Data!$C$9:$C$13, MATCH($A$3, options,0)))*('Option1 (base case)'!R36-R36) -> 893509.7089 | S64: =(1-INDEX(Data!$C$9:$C$13, MATCH($A$3, options,0)))*('Option1 (base case)'!S36-S36) -> 893509.7089 | T64: =(1-INDEX(Data!$C$9:$C$13, MATCH($A$3, options,0)))*('Option1 (base case)'!T36-T36) -> 893509.7089 | U64: =(1-INDEX(Data!$C$9:$C$13, MATCH($A$3, options,0)))*('Option1 (base case)'!U36-U36) -> 893509.7089 | V64: =(1-INDEX(Data!$C$9:$C$13, MATCH($A$3, options,0)))*('Option1 (base case)'!V36-V36) -> 893509.7089 | W64: =(1-INDEX(Data!$C$9:$C$13, MATCH($A$3, options,0)))*('Option1 (base case)'!W36-W36) -> 893509.7089 | X64: =(1-INDEX(Data!$C$9:$C$13, MATCH($A$3, options,0)))*('Option1 (base case)'!X36-X36) -> 893509.7089 | Y64: =(1-INDEX(Data!$C$9:$C$13, MATCH($A$3, options,0)))*('Option1 (base case)'!Y36-Y36) -> 893509.7089 | Z64: =(1-INDEX(Data!$C$9:$C$13, MATCH($A$3, options,0)))*('Option1 (base case)'!Z36-Z36) -> 893509.7089 | AA64: =(1-INDEX(Data!$C$9:$C$13, MATCH($A$3, options,0)))*('Option1 (base case)'!AA36-AA36) -> 893509.7089 | AB64: =(1-INDEX(Data!$C$9:$C$13, MATCH($A$3, options,0)))*('Option1 (base case)'!AB36-AB36) -> 893509.7089 | AC64: =(1-INDEX(Data!$C$9:$C$13, MATCH($A$3, options,0)))*('Option1 (base case)'!AC36-AC36) -> 893509.7089 | AD64: =(1-INDEX(Data!$C$9:$C$13, MATCH($A$3, options,0)))*('Option1 (base case)'!AD36-AD36) -> 893509.7089 | AE64: =(1-INDEX(Data!$C$9:$C$13, MATCH($A$3, options,0)))*('Option1 (base case)'!AE36-AE36) -> 893509.7089 | AF64: =(1-INDEX(Data!$C$9:$C$13, MATCH($A$3, options,0)))*('Option1 (base case)'!AF36-AF36) -> 893509.7089 | AG64: =(1-INDEX(Data!$C$9:$C$13, MATCH($A$3, options,0)))*('Option1 (base case)'!AG36-AG36) -> 893509.7089
C66: Capital expenditure
C67: =C14 -> Cable replacement (top 5) | G67: =input_dollars -> 2023-12-31 | I67: =-I14 -> -1528818.218 | J67: -1528818.218 | K67: -1528818.218 | L67: -1528818.218 | M67: -1528818.218 | N67: 0 | O67: 0 | P67: 0 | Q67: 0 | R67: 0 | S67: 0 | T67: 0 | U67: 0 | V67: 0 | W67: 0 | X67: 0 | Y67: 0 | Z67: 0 | AA67: 0 | AB67: 0 | AC67: 0 | AD67: 0 | AE67: 0 | AF67: 0 | AG67: 0
C68: =C15 -> Condition assessment of next 10 delta risk cable sections | G68: =input_dollars -> 2023-12-31 | I68: =-I15 -> -333333.3333 | J68: -333333.3333 | K68: -333333.3333 | L68: -333333.3333 | M68: -333333.3333 | N68: 0 | O68: 0 | P68: 0 | Q68: 0 | R68: 0 | S68: 0 | T68: 0 | U68: 0 | V68: 0 | W68: 0 | X68: 0 | Y68: 0 | Z68: 0 | AA68: 0 | AB68: 0 | AC68: 0 | AD68: 0 | AE68: 0 | AF68: 0 | AG68: 0
C69: =C16 -> Replacement of poor condition cable sections | G69: =input_dollars -> 2023-12-31 | I69: =-I16 -> 0 | J69: 0 | K69: 0 | L69: 0 | M69: -772268.1667 | N69: 0 | O69: 0 | P69: 0 | Q69: 0 | R69: 0 | S69: 0 | T69: 0 | U69: 0 | V69: 0 | W69: 0 | X69: 0 | Y69: 0 | Z69: 0 | AA69: 0 | AB69: 0 | AC69: 0 | AD69: 0 | AE69: 0 | AF69: 0 | AG69: 0
C71: Cumulative capex
C72: =C14 -> Cable replacement (top 5) | G72: =input_dollars -> 2023-12-31 | I72: =SUMPRODUCT(($I67:I67))-SUMPRODUCT(($I67:I67)*($I$6:I$6<=(I$6-$E14))) -> -1528818.218 | J72: =SUMPRODUCT(($I67:J67))-SUMPRODUCT(($I67:J67)*($I$6:J$6<=(J$6-$E14))) -> -3057636.435 | K72: =SUMPRODUCT(($I67:K67))-SUMPRODUCT(($I67:K67)*($I$6:K$6<=(K$6-$E14))) -> -4586454.653 | L72: =SUMPRODUCT(($I67:L67))-SUMPRODUCT(($I67:L67)*($I$6:L$6<=(L$6-$E14))) -> -6115272.87 | M72: =SUMPRODUCT(($I67:M67))-SUMPRODUCT(($I67:M67)*($I$6:M$6<=(M$6-$E14))) -> -7644091.088 | N72: =SUMPRODUCT(($I67:N67))-SUMPRODUCT(($I67:N67)*($I$6:N$6<=(N$6-$E14))) -> -7644091.088 | O72: =SUMPRODUCT(($I67:O67))-SUMPRODUCT(($I67:O67)*($I$6:O$6<=(O$6-$E14))) -> -7644091.088 | P72: =SUMPRODUCT(($I67:P67))-SUMPRODUCT(($I67:P67)*($I$6:P$6<=(P$6-$E14))) -> -7644091.088 | Q72: =SUMPRODUCT(($I67:Q67))-SUMPRODUCT(($I67:Q67)*($I$6:Q$6<=(Q$6-$E14))) -> -7644091.088 | R72: =SUMPRODUCT(($I67:R67))-SUMPRODUCT(($I67:R67)*($I$6:R$6<=(R$6-$E14))) -> -7644091.088 | S72: =SUMPRODUCT(($I67:S67))-SUMPRODUCT(($I67:S67)*($I$6:S$6<=(S$6-$E14))) -> -7644091.088 | T72: =SUMPRODUCT(($I67:T67))-SUMPRODUCT(($I67:T67)*($I$6:T$6<=(T$6-$E14))) -> -7644091.088 | U72: =SUMPRODUCT(($I67:U67))-SUMPRODUCT(($I67:U67)*($I$6:U$6<=(U$6-$E14))) -> -7644091.088 | V72: =SUMPRODUCT(($I67:V67))-SUMPRODUCT(($I67:V67)*($I$6:V$6<=(V$6-$E14))) -> -7644091.088 | W72: =SUMPRODUCT(($I67:W67))-SUMPRODUCT(($I67:W67)*($I$6:W$6<=(W$6-$E14))) -> -7644091.088 | X72: =SUMPRODUCT(($I67:X67))-SUMPRODUCT(($I67:X67)*($I$6:X$6<=(X$6-$E14))) -> -7644091.088 | Y72: =SUMPRODUCT(($I67:Y67))-SUMPRODUCT(($I67:Y67)*($I$6:Y$6<=(Y$6-$E14))) -> -7644091.088 | Z72: =SUMPRODUCT(($I67:Z67))-SUMPRODUCT(($I67:Z67)*($I$6:Z$6<=(Z$6-$E14))) -> -7644091.088 | AA72: =SUMPRODUCT(($I67:AA67))-SUMPRODUCT(($I67:AA67)*($I$6:AA$6<=(AA$6-$E14))) -> -7644091.088 | AB72: =SUMPRODUCT(($I67:AB67))-SUMPRODUCT(($I67:AB67)*($I$6:AB$6<=(AB$6-$E14))) -> -7644091.088 | AC72: =SUMPRODUCT(($I67:AC67))-SUMPRODUCT(($I67:AC67)*($I$6:AC$6<=(AC$6-$E14))) -> -7644091.088 | AD72: =SUMPRODUCT(($I67:AD67))-SUMPRODUCT(($I67:AD67)*($I$6:AD$6<=(AD$6-$E14))) -> -7644091.088 | AE72: =SUMPRODUCT(($I67:AE67))-SUMPRODUCT(($I67:AE67)*($I$6:AE$6<=(AE$6-$E14))) -> -7644091.088 | AF72: =SUMPRODUCT(($I67:AF67))-SUMPRODUCT(($I67:AF67)*($I$6:AF$6<=(AF$6-$E14))) -> -7644091.088 | AG72: =SUMPRODUCT(($I67:AG67))-SUMPRODUCT(($I67:AG67)*($I$6:AG$6<=(AG$6-$E14))) -> -7644091.088
C73: =C15 -> Condition assessment of next 10 delta risk cable sections | G73: =input_dollars -> 2023-12-31 | I73: =SUMPRODUCT(($I68:I68))-SUMPRODUCT(($I68:I68)*($I$6:I$6<=(I$6-$E15))) -> -333333.3333 | J73: =SUMPRODUCT(($I68:J68))-SUMPRODUCT(($I68:J68)*($I$6:J$6<=(J$6-$E15))) -> -333333.3333 | K73: =SUMPRODUCT(($I68:K68))-SUMPRODUCT(($I68:K68)*($I$6:K$6<=(K$6-$E15))) -> -333333.3333 | L73: =SUMPRODUCT(($I68:L68))-SUMPRODUCT(($I68:L68)*($I$6:L$6<=(L$6-$E15))) -> -333333.3333 | M73: =SUMPRODUCT(($I68:M68))-SUMPRODUCT(($I68:M68)*($I$6:M$6<=(M$6-$E15))) -> -333333.3333 | N73: =SUMPRODUCT(($I68:N68))-SUMPRODUCT(($I68:N68)*($I$6:N$6<=(N$6-$E15))) -> 0 | O73: =SUMPRODUCT(($I68:O68))-SUMPRODUCT(($I68:O68)*($I$6:O$6<=(O$6-$E15))) -> 0 | P73: =SUMPRODUCT(($I68:P68))-SUMPRODUCT(($I68:P68)*($I$6:P$6<=(P$6-$E15))) -> 0 | Q73: =SUMPRODUCT(($I68:Q68))-SUMPRODUCT(($I68:Q68)*($I$6:Q$6<=(Q$6-$E15))) -> 0 | R73: =SUMPRODUCT(($I68:R68))-SUMPRODUCT(($I68:R68)*($I$6:R$6<=(R$6-$E15))) -> 0 | S73: =SUMPRODUCT(($I68:S68))-SUMPRODUCT(($I68:S68)*($I$6:S$6<=(S$6-$E15))) -> 0 | T73: =SUMPRODUCT(($I68:T68))-SUMPRODUCT(($I68:T68)*($I$6:T$6<=(T$6-$E15))) -> 0 | U73: =SUMPRODUCT(($I68:U68))-SUMPRODUCT(($I68:U68)*($I$6:U$6<=(U$6-$E15))) -> 0 | V73: =SUMPRODUCT(($I68:V68))-SUMPRODUCT(($I68:V68)*($I$6:V$6<=(V$6-$E15))) -> 0 | W73: =SUMPRODUCT(($I68:W68))-SUMPRODUCT(($I68:W68)*($I$6:W$6<=(W$6-$E15))) -> 0 | X73: =SUMPRODUCT(($I68:X68))-SUMPRODUCT(($I68:X68)*($I$6:X$6<=(X$6-$E15))) -> 0 | Y73: =SUMPRODUCT(($I68:Y68))-SUMPRODUCT(($I68:Y68)*($I$6:Y$6<=(Y$6-$E15))) -> 0 | Z73: =SUMPRODUCT(($I68:Z68))-SUMPRODUCT(($I68:Z68)*($I$6:Z$6<=(Z$6-$E15))) -> 0 | AA73: =SUMPRODUCT(($I68:AA68))-SUMPRODUCT(($I68:AA68)*($I$6:AA$6<=(AA$6-$E15))) -> 0 | AB73: =SUMPRODUCT(($I68:AB68))-SUMPRODUCT(($I68:AB68)*($I$6:AB$6<=(AB$6-$E15))) -> 0 | AC73: =SUMPRODUCT(($I68:AC68))-SUMPRODUCT(($I68:AC68)*($I$6:AC$6<=(AC$6-$E15))) -> 0 | AD73: =SUMPRODUCT(($I68:AD68))-SUMPRODUCT(($I68:AD68)*($I$6:AD$6<=(AD$6-$E15))) -> 0 | AE73: =SUMPRODUCT(($I68:AE68))-SUMPRODUCT(($I68:AE68)*($I$6:AE$6<=(AE$6-$E15))) -> 0 | AF73: =SUMPRODUCT(($I68:AF68))-SUMPRODUCT(($I68:AF68)*($I$6:AF$6<=(AF$6-$E15))) -> 0 | AG73: =SUMPRODUCT(($I68:AG68))-SUMPRODUCT(($I68:AG68)*($I$6:AG$6<=(AG$6-$E15))) -> 0
